{"text_format":"1","workbook":"xlsx","n_sheets":16,"sheets":["Instructions","Housing Type","Parcels","Site Control 1","Site Control 2","Site Control 3","Site Control 4","Site Control 5","Services","Resyndication","Hybrid","Rehab","Const. & Design","Min. Const. Stds.","Data","Lists"],"not_rendered":{"charts":0,"images":10,"macros":1,"external_links":1,"defined_names":67,"comments":1,"pivot_tables":0},"unopened":[],"bounds":{"document_bytes":16777216,"sheet_cells":100000,"rows_first":2000,"rows_last":500,"rows_between":2000,"halvings":0,"cell_chars":16384,"cell_head_chars":4096},"cells_cut":0,"cells_raw":0,"read":"whole","date_system":"1900"}

{"sheet":"Instructions","index":0,"n_rows":225,"n_cols":6,"rows_kept":225,"cut":false,"hidden":false,"merged":[[1,5,1,7],[224,2,225,11],[0,0,0,12],[100,1,100,11],[113,1,114,11],[116,1,116,11],[122,2,124,11],[118,2,120,11],[18,1,18,11],[60,4,60,9],[53,2,54,11],[129,2,130,11],[125,3,127,11],[58,2,58,11],[185,1,185,11],[2,1,2,11],[4,1,10,11],[65,2,68,11],[81,2,83,11],[20,1,23,11],[24,4,24,8],[62,2,63,11],[11,1,11,11],[13,2,14,11],[49,2,51,11],[214,1,214,11],[218,1,218,11],[187,1,189,11],[210,2,212,11],[191,2,193,11],[195,2,196,11],[198,2,200,11],[202,2,204,11],[206,2,209,11],[181,2,181,11],[174,1,174,11],[176,1,177,11],[162,1,165,11],[106,2,107,10],[133,1,133,11],[157,2,159,11],[169,2,170,11],[160,1,160,11],[148,1,148,11],[135,2,136,11],[154,2,155,11],[138,2,139,11],[141,2,142,11]]}
["Instructions"]
[null,null,null,null,null,"Version 5.1"]
[null,"Applicant Certification"]
[]
[null,"By signing the Applicant Statement, I/ We, who are authorized to legally act on the applicant’s behalf, certify and guarantee, under penalty of perjury: that services provided, as requested, will be available within 6 months of the project’s placed-in-service date, of a regular and ongoing nature, and provided to tenants for period of at least 15 years, free of charge (except for day care services or any charges required by law), and are not being delivered by the on-site Property Manager or other property management staff consistent with CTCAC Regulations Section 10325(c)(4)(B); that each of the individual items identified in the minimum construction standards section of CTCAC Regulations will be incorporated into the design of the project; and that all information provided in this Excel document is true and correct."]
[]
[]
[]
[]
[]
[]
[null,"Submitting Exhibit A"]
[]
[null,"1)","For 4% CDLAC/CTCAC joint apps, once complete, save as .xlsx file to upload to the portal.  The portal will not accept .xslm files."]
[]
[]
[null,"2)","For 9% CTCAC apps, may be included on the application flash drive as an .xlsm file."]
[]
[null,"Linking to your E-application"]
[]
[null,"This workbook is linked to and dependent upon the current CTCAC 9% e-application or Attachment 40 (4% e-application). This is intended to reduce duplicate data entry and perform calculations for applicants. We greatly value your feedback and suggestions for improving the application process. Please send your thoughts to TCACdocs@treasurer.ca.gov with the subject “Linked Workbook Feedback”."]
[]
[]
[]
[null,null,null,null,{"$f":"HYPERLINK(\"mailto:tcacdocs@treasurer.ca.gov?subject=Linked Workbook Feedback\",\"mailto: TCACdocs@treasurer.ca.gov\")","v":"mailto: TCACdocs@treasurer.ca.gov"}]
[]
[null,"1)","You must be on the Instructions tab to point this workbook to your e-application."]
[]
[null,"2)","Select the “Workbook Links” icon within the “Data” menu in the ribbon above ([Alt + A] then [Alt + K])."]
[]
[null,"3)","On the right side of your workbook, the Workbook Links side bar will appear."]
[]
[]
[]
[]
[]
[]
[]
[]
[null,"4)","Select \"...\" to the right of the linked file. Select \"Change source\" from the dropdown."]
[]
[]
[]
[]
[]
[]
[]
[]
[]
[null,null,"CAUTION: Always use the \"Open Workbook\" option from this dropdown to open the e-application while this linked workbook is open. Navigating to the source e-application in File Explorer and opening there will cause REF errors."]
[]
[]
[]
[null,"5)","In the Change Source dialogue box, navigate to and select your e-application then click the “Open” button. Note: many calculations within this workbook will not work properly until the e-application is complete."]
[]
[]
[null,"6)","After the linked cells have updated, “Close” the Workbook Links side bar."]
[]
[null,"7)","If the links were successfully updated, your project name should appear below. "]
[]
[null,null,null,"Project Name:",{"$f":"INDEX(val,MATCH(\"g_ProjectName\",ref,0))","v":0}]
[]
[null,"8)","Cells with grey backgrounds are pulled from (or based on data from) your e-application. Applicants should only provide information in cells with yellow backgrounds."]
[]
[]
[null,"9)","While working with linked workbooks you may be prompted with one of the following warnings. You will be required to “Enable Content” or “Update” linked cells to keep the workbooks in sync. When you make changes to the e-application you should open, update linked cells, and save all other linked workbooks. It is the applicant’s responsibility to ensure all information provided is consistent."]
[]
[]
[]
[]
[]
[]
[]
[]
[]
[]
[]
[]
[]
[]
[]
[null,"10)","If you move or rename the e-application or its folder, you may be notified that linked cells can’t be updated. While on the Instructions tab, you should be able to \"Manage Workbook Links” and “Change Source” to communicate the correct file path."]
[]
[]
[]
[]
[]
[]
[]
[]
[]
[]
[]
[]
[]
[]
[]
[]
[]
[]
[null,"Housing Type tab"]
[]
[null,"1)","Be sure your Housing Type is pulled from the e-application in cell N7."]
[]
[null,"2)","If applicable, be sure your secondary Housing Type is displayed in Housing Type tab cell N8."]
[]
[null,"3)","Click the macro icon in row 10 if you'd like to show only requirements for your housing type(s). \nClick the macro icon in row 11 to show all housing types after running the macro."]
[]
[]
[null,"4)","Evidence compliance with the applicable housing type requirements."]
[]
[null,"5)","Once complete, the cells AI7 and AI8 should show 0 remaining unmet requirements."]
[]
[null,"Note: If you choose not to hide unrelated requirements, you can quickly navigate to your applicable section by clicking the corresponding link at the top right in cells AM2:AM6."]
[]
[]
[null,"Parcels tab"]
[]
[null,"1)","All parcels should be listed on the parcels tab. Include each Assessor's Parcel Number on its own line. Enter the square footage only for that parcel. List the fee owner for that parcel on the Title Report provided with your application, and the current use of each parcel."]
[]
[]
[]
[null,"2)","All parcels that will have their site control evidenced by the same documents should be assigned the same Site Control ID. A Site Control tab will be generated for each unique Site Control ID. This attachment has been designed with room for 5 different sets of site control documents."]
[]
[]
[null,null,"a)  ","For example, 5 parcels sold on the same purchase and sale agreement will use one (1) Site Control tab. 2 parcels being sold to the applicant by two (2) different sellers would require two Site Control tabs."]
[]
[]
[]
[null,"3)","Once all parcels have been entered on the Parcels tab, select the macro icon in cell F1:G1 to show as many Site Control tabs as necessary."]
[]
[]
[]
[null,"Site Control tabs"]
[]
[null,"1)","All relevant parcel numbers for each Site Control number will be listed on row 5. Provide a narrative description for how those parcels are controlled by the applicant."]
[]
[]
[null,"2)","Select what type of document or agreement is being used to demonstrate site control for the applicable parcels and provide the requested information."]
[]
[]
[null,"3)","Select what document is being used to substantiate land value or cost for the applicable parcels and provide the requested information."]
[]
[]
[null,"4)","Provide the requested information regarding the title report."]
[]
[null,"5)","Disclose all outstanding liens against the parcels on each title report."]
[]
[null,"Services tab"]
[]
[null,"1)","The top area of this tab contains summary information for your convenience."]
[]
[null,"2)","Include position descriptions where required."]
[]
[null,"3)","A conversion tool for FTE to hours is included in cells AP29:AY37. This is only for your convenience to calculate the required number of service hours per year, no entry is required in the yellow cell for application submission."]
[]
[]
[null,"4)","Complete the \"Service Provider and Reference Contacts\" table. Select whether the contact is a provider or a reference. All items entered in the Contacts table will be available to select from the dropdowns in the Budget and Experience tables."]
[]
[]
[null,"Resyndication tab"]
[]
[null,"Resyndication projects are existing tax credit projects requesting a new reservation of tax credits to finance the rehabilitation of the existing tax credit project. A new reservation of tax credits may be applied for concurrently with the initial, expiring 15-year federal compliance period. The acquisition date and the placed in service date must occur after the existing federal 15-year compliance period has expired."]
[]
[]
[]
[]
[null,"1)","If you have multiple projects that are resyndicating into one, you may duplicate this tab."]
[]
[null,"2)","To do so, right-click the tab and select \"Move or Copy...\", highlight \"Rehab\", and check \"Create a copy\" before selecting \"Okay\"."]
[]
[]
[null,"3)","Complete the Checklist and Questionnaire, providing any documents required in tab 8."]
[]
[null,"Hybrid tab"]
[]
[null,"Hybrid projects are new construction developments constructed with separate 9% and 4% Federal Credit Allocations. Hybrid projects must meet the conditions set forth in Section 10325(c)(9)(A)."]
[]
[]
[null,"1)","The 4% application must be submitted before the 9% application. "]
[]
[null,"2)","Enter the 4% project cost and unit count onto the Tie Breaker tab of the 9% e-application. "]
[]
[null,"3)","Complete the Checklist and Questionnaire, providing any documents required in tab 4."]
[]
[null,"Rehab tab"]
[]
[null,"This form is designed to facilitate the reconciliation of the Capital Needs Assessment and the aggregate rehabilitation budget presented in CTCAC's Sources and Uses.  The intent is to hold developers of rehabilitation projects to the same standards as those who develop newly constructed projects."]
[]
[]
[]
[null,"1)","Rehabilitation Items:  You are encouraged to individualize this report as needed by removing or adding rows as necessary to the particular project.  However, columns are not to be removed or ignored, nor are the overall row categories to be changed (these are denoted by the BOLD CAPITALIZED HEADINGS in the rows)."]
[]
[]
[]
[null,"2)","Comments / Brief Description of the Proposed Rehabilitation:  The description provided here should represent a concise explanation of what will be rehabilitated regarding the particular rehabilitation line item."]
[]
[]
[null,"3)","Number and Percentage:  These columns should provide an estimate of the percentage of units that will be subject to this particular rehabilitation; or if more appropriate, the percentage of the component(s) / feature(s) throughout the project, that will be subject to this rehabilitation expenditure."]
[]
[]
[]
[null,"4)","Estimated Remaining Useful Life / CNA Evidence:  Cite the page(s) in the CNA that support the need for this rehabilitation, and/or provide an estimate of the remaining useful life (typically a range for multiple items such as appliances, etc.) to the feature that will be rehabilitated."]
[]
[]
[]
[null,"5)","Estimated Cost:  Self-explanatory, however, the total of these expenditures must equal the sum of the rehabilitation site work, structures and prevailing wage costs (i.e., all costs not shown as contractor profit, overhead and general requirements) in the first page of \"Part IV: Sources and Uses Budget\"."]
[]
[]
[]
[null,"6)","Total Cost From Capital Needs Assessment (CNA):  Enter the estimated cost total for the \"Immediate Needs\" into Cell G85.  If there is a variance from the total amount on the \"Rehabilitation Summary\" worksheet, please provide an explanation in the \"Comments\" table."]
[]
[]
[]
[null,"Construction & Design tab"]
[]
[null,"1) ","Provide a narrative in tab 12 that includes all details listed on the Construction & Design tab."]
[]
[null,"Minimum Construction Standards tab"]
[]
[null,"1) ","Read each listed minimum construction standard."]
[]
[null,"2)","Select if you have requested and received approval for a waiver. If so, provide the waiver in tab 10."]
[]
[null,"3) ","No additional signature is required on this page. By signing the Applicant Statement, you are certifying to the response selected."]

{"sheet":"Housing Type","index":1,"n_rows":656,"n_cols":45,"rows_kept":656,"cut":false,"hidden":false,"merged":[[338,2,339,34],[357,2,358,34],[340,2,342,34],[411,2,412,34],[415,5,416,35],[418,5,419,34],[420,5,421,34],[359,2,361,34],[349,2,349,5],[349,6,349,12],[349,13,349,16],[349,17,349,21],[349,22,349,25],[353,13,353,16],[354,13,354,16],[355,13,355,16],[350,17,350,21],[351,17,351,21],[352,17,352,21],[353,17,353,21],[354,17,354,21],[372,25,372,26],[368,16,368,20],[368,26,368,27],[322,30,322,32],[330,30,330,34],[330,2,331,29],[333,1,333,6],[335,2,336,29],[335,30,335,31],[355,27,355,29],[328,1,328,6],[316,15,316,19],[355,17,355,21],[350,6,350,12],[350,2,350,5],[353,2,353,5],[354,2,354,5],[355,2,355,5],[350,13,350,16],[345,22,348,25],[350,22,350,25],[351,22,351,25],[352,22,352,25],[353,22,353,25],[354,22,354,25],[355,22,355,25],[345,17,348,21],[322,18,322,19],[296,7,296,10],[296,11,296,14],[296,15,296,18],[296,19,296,23],[296,24,296,28],[301,19,301,22],[302,19,302,22],[297,24,297,28],[321,21,321,22],[322,21,322,22],[321,27,321,28],[322,27,322,28],[307,18,307,19],[306,18,306,19],[308,18,308,19],[308,25,308,26],[310,22,310,23],[307,25,307,26],[294,2,294,6],[294,7,294,10],[294,11,294,14],[294,15,294,18],[294,19,294,23],[294,24,294,28],[312,30,312,32],[315,30,315,32],[321,18,321,19],[297,29,297,33],[308,30,308,32],[297,2,297,6],[292,7,292,10],[292,11,292,14],[292,15,292,18],[292,19,292,23],[292,24,292,28],[293,2,293,6],[293,7,293,10],[293,11,293,14],[293,15,293,18],[293,19,293,23],[293,24,293,28],[292,2,292,6],[290,11,290,14],[290,15,290,18],[290,19,290,23],[290,24,290,28],[291,2,291,6],[291,7,291,10],[291,11,291,14],[291,15,291,18],[291,19,291,23],[291,24,291,28],[290,2,290,6],[290,7,290,10],[288,11,288,14],[288,15,288,18],[288,19,288,23],[288,24,288,28],[289,2,289,6],[289,7,289,10],[289,11,289,14],[289,15,289,18],[289,19,289,23],[289,24,289,28],[274,24,274,28],[275,24,275,28],[276,24,276,28],[277,24,277,28],[287,2,287,6],[287,7,287,10],[287,11,287,14],[287,15,287,18],[287,19,287,23],[287,24,287,28],[283,19,283,23],[280,19,280,23],[279,24,279,28],[278,19,278,23],[279,19,279,23],[281,11,281,14],[281,15,281,18],[284,15,284,18],[285,2,285,6],[286,2,286,6],[285,29,285,33],[263,29,263,33],[264,29,264,33],[265,29,265,33],[282,15,282,18],[270,29,270,33],[271,29,271,33],[272,29,272,33],[273,29,273,33],[274,29,274,33],[275,29,275,33],[276,29,276,33],[277,15,277,18],[278,15,278,18],[270,24,270,28],[271,24,271,28],[278,24,278,28],[274,19,274,23],[275,19,275,23],[276,19,276,23],[276,15,276,18],[272,24,272,28],[273,24,273,28],[284,24,284,28],[277,29,277,33],[284,19,284,23],[280,15,280,18],[2,31,2,36],[386,13,388,16],[386,17,388,19],[315,15,315,28],[326,27,326,30],[321,30,321,32],[320,18,320,19],[294,29,294,33],[295,29,295,33],[314,3,314,33],[318,3,319,33],[295,2,295,6],[295,7,295,10],[295,11,295,14],[295,15,295,18],[295,19,295,23],[295,24,295,28],[296,2,296,6],[370,1,370,6],[280,11,280,14],[279,15,279,18],[278,29,278,33],[282,24,282,28],[283,24,283,28],[263,11,263,14],[264,11,264,14],[284,7,284,10],[285,7,285,10],[286,7,286,10],[297,7,297,10],[285,15,285,18],[297,15,297,18],[297,19,297,23],[283,7,283,10],[281,19,281,23],[282,19,282,23],[281,7,281,10],[282,7,282,10],[283,15,283,18],[286,15,286,18],[283,11,283,14],[284,11,284,14],[285,11,285,14],[286,11,286,14],[297,11,297,14],[265,24,265,28],[268,11,268,14],[269,11,269,14],[268,15,268,18],[269,15,269,18],[258,2,259,33],[266,29,266,33],[269,19,269,23],[263,24,263,28],[263,19,263,23],[264,19,264,23],[267,19,267,23],[268,19,268,23],[265,19,265,23],[269,29,269,33],[264,24,264,28],[267,29,267,33],[268,29,268,33],[266,19,266,23],[266,24,266,28],[267,24,267,28],[263,2,263,6],[264,2,264,6],[265,2,265,6],[263,7,263,10],[264,7,264,10],[265,7,265,10],[266,7,266,10],[267,7,267,10],[268,7,268,10],[269,7,269,10],[270,7,270,10],[271,7,271,10],[272,7,272,10],[273,7,273,10],[274,7,274,10],[275,7,275,10],[276,7,276,10],[277,7,277,10],[266,2,266,6],[288,2,288,6],[288,7,288,10],[177,2,177,5],[177,13,177,16],[177,17,177,19],[177,21,177,23],[190,1,190,6],[192,15,192,16],[179,22,179,23],[182,1,182,6],[256,1,256,6],[237,2,249,34],[193,31,193,32],[207,16,207,20],[192,31,192,32],[192,33,192,34],[265,11,265,14],[266,11,266,14],[263,15,263,18],[264,15,264,18],[265,15,265,18],[266,15,266,18],[193,33,193,34],[213,33,213,34],[221,26,221,30],[211,18,211,19],[211,25,211,26],[212,18,212,19],[212,25,212,26],[193,28,193,29],[206,33,206,34],[207,26,207,27],[207,29,207,31],[194,33,194,34],[207,33,207,34],[195,2,198,29],[205,16,205,20],[195,33,195,34],[196,31,196,32],[196,33,196,34],[4,1,5,33],[6,13,6,17],[7,13,7,17],[6,34,6,35],[7,34,7,35],[19,25,19,27],[20,25,20,27],[14,1,14,6],[16,24,16,25],[18,12,18,13],[19,12,19,13],[20,12,20,13],[19,9,19,10],[20,9,20,10],[19,22,19,23],[20,22,20,23],[19,28,20,28],[19,29,20,38],[130,0,130,36],[132,1,132,6],[134,30,134,34],[134,2,139,28],[154,1,154,6],[149,25,149,26],[146,7,146,12],[147,25,147,26],[146,25,146,26],[148,25,148,26],[151,12,151,13],[147,28,148,28],[147,29,148,38],[141,2,142,28],[141,30,141,34],[157,30,157,34],[156,2,159,28],[304,1,304,6],[218,1,218,6],[209,1,209,6],[271,2,271,6],[267,2,267,6],[268,2,268,6],[269,2,269,6],[230,0,230,36],[283,2,283,6],[284,2,284,6],[261,7,262,10],[261,15,262,18],[261,19,262,23],[261,24,262,28],[261,11,262,14],[261,2,262,6],[211,33,211,34],[212,33,212,34],[268,24,268,28],[269,24,269,28],[267,15,267,18],[267,11,267,14],[270,11,270,14],[271,11,271,14],[285,24,285,28],[286,24,286,28],[280,29,280,33],[287,29,287,33],[288,29,288,33],[286,29,286,33],[289,29,289,33],[272,19,272,23],[273,19,273,23],[272,11,272,14],[285,19,285,23],[286,19,286,23],[277,11,277,14],[278,11,278,14],[281,29,281,33],[282,29,282,33],[283,29,283,33],[284,29,284,33],[280,24,280,28],[279,29,279,33],[281,24,281,28],[279,11,279,14],[290,29,290,33],[291,29,291,33],[292,29,292,33],[293,29,293,33],[307,30,307,32],[296,29,296,33],[270,2,270,6],[272,2,272,6],[273,2,273,6],[270,15,270,18],[271,15,271,18],[272,15,272,18],[273,15,273,18],[274,15,274,18],[275,15,275,18],[273,11,273,14],[274,11,274,14],[275,11,275,14],[276,11,276,14],[277,2,277,6],[278,2,278,6],[279,2,279,6],[282,11,282,14],[271,19,271,23],[0,0,0,36],[4,34,4,35],[12,0,12,36],[99,29,99,31],[100,29,100,31],[33,18,33,20],[34,18,34,20],[32,21,32,23],[83,28,83,29],[60,2,60,34],[71,2,71,34],[77,20,77,21],[80,1,80,6],[61,6,61,7],[32,7,32,13],[33,7,33,13],[30,7,31,13],[30,14,31,17],[50,30,50,31],[48,13,48,14],[30,18,31,20],[99,33,99,34],[82,31,82,32],[61,26,61,28],[99,26,99,27],[87,33,87,34],[83,33,83,34],[84,33,84,34],[85,33,85,34],[86,33,86,34],[83,31,83,32],[87,31,87,32],[84,31,84,32],[85,2,88,29],[92,33,92,34],[85,31,85,32],[98,16,98,20],[90,20,90,21],[96,1,96,6],[99,16,99,20],[94,26,94,30],[46,1,46,6],[34,14,34,17],[35,14,35,17],[37,22,37,23],[35,18,35,20],[86,31,86,32],[34,7,34,13],[35,7,35,13],[63,2,65,28],[64,30,64,34],[34,2,34,6],[35,2,35,6],[61,23,61,24],[54,18,54,19],[52,1,52,6],[73,2,75,28],[74,30,74,34],[68,2,69,34],[82,33,82,34],[82,15,82,16],[82,28,82,29],[56,2,58,28],[57,30,57,31],[22,22,22,23],[25,1,25,6],[32,14,32,17],[33,14,33,17],[32,18,32,20],[27,2,28,34],[40,32,40,33],[43,3,44,34],[40,2,41,31],[30,2,31,6],[32,2,32,6],[33,21,33,23],[34,21,34,23],[35,21,35,23],[33,2,33,6],[100,33,100,34],[326,33,326,34],[100,16,100,20],[100,26,100,27],[206,16,206,20],[206,26,206,27],[206,29,206,31],[195,31,195,32],[220,2,222,24],[280,2,280,6],[281,2,281,6],[282,2,282,6],[197,31,197,32],[261,29,262,33],[274,2,274,6],[270,19,270,23],[275,2,275,6],[276,2,276,6],[278,7,278,10],[279,7,279,10],[280,7,280,10],[277,19,277,23],[102,1,102,6],[184,2,185,29],[368,29,368,31],[368,33,368,34],[364,1,364,6],[366,32,366,35],[345,2,348,5],[345,6,348,12],[345,13,348,16],[351,2,351,5],[351,6,351,12],[351,13,351,16],[352,2,352,5],[352,6,352,12],[352,13,352,16],[353,6,353,12],[354,6,354,12],[355,6,355,12],[350,27,350,29],[351,27,351,29],[352,27,352,29],[353,27,353,29],[354,27,354,29],[166,9,166,10],[166,17,166,18],[171,1,171,6],[168,29,168,30],[163,17,163,18],[161,1,161,6],[164,17,164,18],[176,2,176,5],[176,13,176,16],[176,17,176,19],[176,21,176,23],[173,13,175,16],[104,33,104,34],[197,33,197,34],[200,20,200,21],[203,1,203,6],[104,25,104,26],[105,18,105,19],[104,18,104,19],[105,25,105,26],[118,1,118,6],[121,29,121,33],[115,20,115,21],[184,31,184,32],[187,2,188,28],[192,28,192,29],[194,31,194,32],[105,33,105,34],[106,33,106,34],[111,1,111,6],[113,30,113,31],[144,1,144,6],[187,30,187,34],[173,6,175,12],[173,17,175,19],[173,2,175,5],[393,31,393,32],[396,1,396,6],[398,16,398,18],[399,16,399,18],[398,23,398,25],[399,23,399,25],[398,27,398,29],[399,27,399,29],[374,33,374,34],[379,1,379,6],[381,30,381,34],[384,1,384,6],[389,2,389,5],[389,13,389,16],[389,17,389,19],[389,21,389,23],[390,2,390,5],[390,13,390,16],[390,17,390,19],[390,21,390,23],[391,2,391,5],[386,2,388,5],[386,6,388,12],[381,2,382,27],[405,12,405,14],[401,31,401,32],[401,33,401,35],[404,19,404,20],[406,12,406,14],[407,12,407,14],[407,30,407,32],[407,33,407,35],[409,1,409,6],[423,11,423,25],[427,26,427,27],[442,1,442,6],[425,1,425,6],[429,7,429,12],[429,25,429,26],[430,25,430,26],[430,28,431,28],[430,29,431,38],[431,25,431,26],[432,25,432,26],[434,12,434,13],[437,2,440,28],[438,30,438,34],[460,30,460,34],[463,1,463,6],[465,30,465,34],[460,2,461,28],[469,2,471,28],[469,30,469,31],[444,30,444,34],[444,2,445,28],[453,0,453,36],[455,1,455,6],[457,2,458,28],[457,30,457,31],[465,2,467,28],[473,2,474,28],[473,30,473,34],[476,2,478,28],[477,30,477,31],[482,1,482,6],[484,30,484,34],[487,3,489,28],[487,30,487,31],[512,1,512,6],[484,2,486,28],[479,3,480,28],[514,2,516,28],[514,30,514,34],[518,2,522,28],[518,30,518,31],[524,1,524,6],[526,2,528,28],[526,30,526,34],[491,3,492,28],[491,30,491,31],[494,3,498,28],[494,30,494,31],[500,30,500,31],[500,3,504,28],[506,1,506,6],[508,30,508,34],[508,2,510,28],[543,17,543,21],[544,17,544,21],[545,17,545,21],[544,30,544,31],[545,30,545,31],[545,32,545,34],[547,1,547,6],[549,17,549,21],[530,1,530,6],[535,16,535,17],[535,26,535,27],[536,16,536,17],[536,26,536,27],[536,28,536,30],[541,1,541,6],[538,30,538,34],[538,2,539,28],[532,2,534,28],[550,17,550,21],[550,28,550,29],[550,30,550,32],[550,33,550,34],[551,17,551,21],[551,28,551,29],[551,30,551,32],[551,33,551,34],[559,0,559,36],[561,1,561,6],[563,8,563,9],[563,18,563,19],[564,18,564,19],[564,21,564,23],[566,1,566,6],[571,17,571,19],[571,24,571,26],[571,28,571,30],[568,8,568,9],[569,8,569,9],[568,18,568,19],[569,18,569,19],[569,21,569,23],[572,17,572,19],[572,24,572,26],[572,28,572,30],[574,31,574,32],[574,33,574,35],[579,11,579,13],[580,11,580,13],[581,11,581,13],[581,30,581,32],[581,33,581,35],[620,17,620,21],[620,28,620,29],[620,30,620,32],[620,33,620,34],[577,1,577,6],[583,1,583,6],[585,2,585,29],[585,30,585,31],[587,2,588,34],[589,2,591,34],[594,2,597,5],[594,6,597,12],[594,13,597,16],[594,17,597,21],[594,22,597,25],[598,2,598,5],[598,6,598,12],[598,13,598,16],[598,17,598,21],[598,22,598,25],[599,2,599,5],[599,6,599,12],[599,13,599,16],[599,17,599,21],[651,2,653,34],[124,1,124,6],[126,2,128,34],[224,1,224,6],[226,2,228,34],[447,1,447,6],[449,2,451,34],[553,1,553,6],[555,2,557,34],[649,1,649,6],[646,21,646,26],[646,12,646,13],[647,23,647,24],[647,12,647,13],[627,33,627,34],[632,1,632,6],[634,2,635,28],[634,30,634,34],[637,1,637,6],[639,25,639,26],[641,25,641,26],[640,25,640,26],[644,1,644,6],[621,17,621,21],[0,44,0,47],[81,2,82,14],[191,2,192,14],[176,6,176,12],[177,6,177,12],[389,6,389,12],[390,6,390,12],[391,6,391,12],[299,19,299,22],[300,19,300,22],[391,13,391,16],[391,17,391,19],[391,21,391,23],[372,33,372,34],[366,16,366,20],[367,16,367,20],[367,26,367,27],[367,29,367,31],[367,33,367,34],[373,18,373,19],[373,25,373,26],[373,33,373,34],[324,1,324,6],[326,16,326,17],[372,18,372,19],[375,2,377,34],[628,2,630,34],[107,2,109,34],[120,2,122,26],[214,2,216,34],[232,1,232,6],[234,2,236,34],[252,2,254,34],[621,28,621,29],[621,30,621,32],[621,33,621,34],[623,1,623,6],[625,25,625,26],[625,33,625,34],[625,18,625,19],[626,25,626,26],[626,33,626,34],[612,1,612,6],[614,2,615,28],[614,30,614,34],[615,30,615,34],[617,1,617,6],[619,17,619,21],[599,22,599,25],[599,27,599,29],[600,2,600,5],[600,6,600,12],[600,13,600,16],[600,17,600,21],[600,22,600,25],[600,27,600,29],[601,2,601,5],[601,6,601,12],[601,13,601,16],[601,17,601,21],[601,22,601,25],[601,27,601,29],[602,2,602,5],[602,6,602,12],[602,13,602,16],[602,17,602,21],[602,22,602,25],[602,27,602,29],[606,2,607,34],[608,2,610,34],[603,2,603,5],[603,6,603,12],[603,13,603,16],[603,17,603,21],[603,22,603,25],[603,27,603,29],[604,2,604,5],[604,6,604,12],[604,13,604,16],[604,17,604,21],[604,22,604,25],[604,27,604,29]]}
["Attachment 4 - Additional Threshold Requirements",null,null,null,null,null,null,null,null,null,null,null,null,null,null,null,null,null,null,null,null,null,null,null,null,null,null,null,null,null,null,null,null,null,null,null,null,null,"Jump to section:",null,null,null,null,null,"Instructions for Housing Type tab »"]
[null,null,null,null,null,null,null,null,null,null,null,null,null,null,null,null,null,null,null,null,null,null,null,null,null,null,null,null,null,null,null,null,null,null,null,null,null,null,{"$f":"HYPERLINK(\"#\"&AO2,\"Large Family\")","v":"Large Family"},{"$f":"COUNTIFS(INDIRECT(AP2),IsFalse)","v":4},{"$f":"CELL(\"address\",A13)","v":"$A$13"},{"$f":"SUBSTITUTE(AO2&\":\"&AO3,\"A\",\"AJ\")","v":"$AJ$13:$AJ$131"},{"$f":"OR($N$7=AM2,$N$8=AM2)","v":false}]
[null,null,null,null,null,null,"Project Name:",{"$f":"INDEX(val,MATCH(\"g_ProjectName\",ref,0))","v":0},null,null,null,null,null,null,null,null,null,null,null,null,null,null,null,null,null,null,null,null,null,null,"Application deadline:",null,null,null,null,null,null,null,{"$f":"HYPERLINK(\"#\"&AO3,\"Seniors\")","v":"Seniors"},{"$f":"COUNTIFS(INDIRECT(AP3),IsFalse)","v":8},{"$f":"CELL(\"address\",A131)","v":"$A$131"},{"$f":"SUBSTITUTE(AO3&\":\"&AO4,\"A\",\"AJ\")","v":"$AJ$131:$AJ$231"},{"$f":"OR($N$7=AM3,$N$8=AM3)","v":false}]
[null,null,null,null,null,null,null,null,null,null,null,null,null,null,null,null,null,null,null,null,null,null,null,null,null,null,null,null,null,null,null,null,null,null,null,null,null,null,{"$f":"HYPERLINK(\"#\"&AO4,\"Special Needs\")","v":"Special Needs"},{"$f":"COUNTIFS(INDIRECT(AP4),IsFalse)","v":9},{"$f":"CELL(\"address\",A231)","v":"$A$231"},{"$f":"SUBSTITUTE(AO4&\":\"&AO5,\"A\",\"AJ\")","v":"$AJ$231:$AJ$454"},{"$f":"OR($N$7=AM4,$N$8=AM4)","v":false}]
[null,"Is the project seeking points in the 9% scoring or the QRRP scoring for meeting a housing type's additional threshold requirements?",null,null,null,null,null,null,null,null,null,null,null,null,null,null,null,null,null,null,null,null,null,null,null,null,null,null,null,null,null,null,null,null,{"$f":"IF(INDEX(val,MATCH(\"t_PointsAddlHousingType\",ref,0)),\"Yes\",\"No\")","v":"No"},null,null,null,{"$f":"HYPERLINK(\"#\"&AO5,\"At-Risk\")","v":"At-Risk"},{"$f":"COUNTIFS(INDIRECT(AP5),IsFalse)","v":9},{"$f":"CELL(\"address\",A454)","v":"$A$454"},{"$f":"SUBSTITUTE(AO5&\":\"&AO6,\"A\",\"AJ\")","v":"$AJ$454:$AJ$560"},{"$f":"OR($N$7=AM5,$N$8=AM5)","v":false}]
[null,null,null,null,null,null,null,null,null,null,null,null,null,null,null,null,null,null,null,null,null,null,null,null,null,null,null,null,null,null,null,null,null,null,null,null,null,null,{"$f":"HYPERLINK(\"#\"&AO6,\"SRO\")","v":"SRO"},{"$f":"COUNTIFS(INDIRECT(AP6),IsFalse)","v":6},{"$f":"CELL(\"address\",A560)","v":"$A$560"},{"$f":"SUBSTITUTE(AO6&\":\"&AO7,\"A\",\"AJ\")","v":"$AJ$560:$AJ$680"},{"$f":"OR($N$7=AM6,$N$8=AM6)","v":false}]
[null,"The project's primary housing type:",null,null,null,null,null,null,null,null,null,null,null,{"$f":"INDEX(val,MATCH(\"t_HousingType\",ref,0))","v":"(select one)"},null,null,null,null,null,null,null,null,null,null,null,null,null,null,null,null,null,null,null,"Additional Threshold Requirements not yet met:",{"$f":"IFERROR(INDEX($AN$2:$AN$7,MATCH(N7,$AM$2:$AM$7,0)),\"\")","v":""},null,null,null,{"$f":"HYPERLINK(\"#\"&AO7,\"Non-Targeted\")","v":"Non-Targeted"},0,{"$f":"CELL(\"address\",A680)","v":"$A$680"}]
[null,"The project's secondary housing type:",null,null,null,null,null,null,null,null,null,null,null,{"$f":"IF(INDEX(val,MATCH(\"t_SecondaryHousingType\",ref,0))=0,\"N/A\",INDEX(val,MATCH(\"t_SecondaryHousingType\",ref,0)))","v":"N/A"},null,null,null,null,null,null,null,null,null,null,null,null,null,null,null,null,null,null,null,{"$f":"IF(N8=\"N/A\",\"\",\"Additional Threshold Requirements not met:\")","v":""},{"$f":"IFERROR(INDEX($AN$2:$AN$6,MATCH(N8,$AM$2:$AM$6,0)),0)","v":0}]
[]
[null,"Click this button to hide all other housing types besides the relevant type(s) shown above:"]
[null,"Click this button to show all housing types:"]
[]
["Large Family - 10325(g)(1)"]
[]
[null,"10325(g)(1)(A)",null,null,null,null,null,"Required 2-BR and 3-BR units",null,null,null,null,null,null,null,null,null,null,null,null,null,null,null,null,null,null,null,null,null,null,null,null,null,null,null,{"$f":"IF(AND(NOT(AC20=\"!\"),OR(W23=\"Yes\",AND(Z20:AB21))),IsTrue,IsFalse)","v":"ü"}]
[]
[null,null,"Did the project receive land use entitlements prior to January 1, 2016?"]
[]
[null,null,"Low Income Units:",null,null,null,null,null,null,null,null,null,{"$f":"IF(AND($N$7=\"Special Needs\",$N$8=\"Large Family\"),INDEX(val,MATCH(\"g_UnitsLowIncome\",ref,0))-INDEX(val,MATCH(\"g_UnitsSpecialNeeds\",ref,0)),INDEX(val,MATCH(\"g_UnitsLowIncome\",ref,0)))","v":0}]
[null,null,null,null,null,null,null,null,"Required 2-BR Units:",{"$f":"IF(Y17=\"Yes\",0%,25%)","v":0.25},null,null,{"$f":"ROUNDUP($M$19*J20,0)","v":0},null,null,null,null,null,null,null,null,"Proposed 2-BR Units:",{"$f":"IF(AND($N$7=\"Special Needs\",$N$8=\"Large Family\"),INDEX(val,MATCH(\"g_Units2\",ref,0))-INDEX(val,MATCH(\"g_SpNe2\",ref,0)),INDEX(val,MATCH(\"g_Units2\",ref,0)))","v":0},null,null,{"$f":"OR(W20>=M20,((W21-M21)+W20)>=M20)","v":true},null,null,{"$f":"IF(AND($N$7=\"Special Needs\",$N$8=\"Large Family\",$T$300=0),\"!\",\"\")","v":""},{"$f":"IF(AC20=\"!\",\"Complete primary housing type first\",\"\")","v":""}]
[null,null,null,null,null,null,null,null,"Required 3-BR+ Units:",0.25,null,null,{"$f":"ROUNDUP($M$19*J21,0)","v":0},null,null,null,null,null,null,null,null,"Proposed 3-BR+ Units:",{"$f":"IF(AND($N$7=\"Special Needs\",$N$8=\"Large Family\"),((INDEX(val,MATCH(\"g_Units3\",ref,0))+INDEX(val,MATCH(\"g_Units4\",ref,0))+INDEX(val,MATCH(\"g_Units5\",ref,0)))-(INDEX(val,MATCH(\"g_SpNe3\",ref,0))+INDEX(val,MATCH(\"g_SpNe4\",ref,0))+INDEX(val,MATCH(\"g_SpNe5\",ref,0)))),(INDEX(val,MATCH(\"g_Units3\",ref,0))+INDEX(val,MATCH(\"g_Units4\",ref,0))+INDEX(val,MATCH(\"g_Units5\",ref,0))))","v":0},null,null,{"$f":"W21>=M21","v":true}]
[]
[null,null,"Applying under the 9% At-Risk Set-Aside and obtained a waiver:"]
[null,null,null,"Waivers should be saved as a standalone file in tab 4."]
[]
[null,"10325(g)(1)(B)",null,null,null,null,null,"Minimum unit square footages",null,null,null,null,null,null,null,null,null,null,null,null,null,null,null,null,null,null,null,null,null,null,null,null,null,null,null,{"$f":"IF(OR(W38=\"Yes\",AND(AG41=\"Yes\",D44<>\"\"),AND(V33:X36)),IsTrue,IsFalse)","v":"ü"}]
[]
[null,null,"Bedrooms shall be large enough to accommodate two persons each and living areas shall be adequately sized to accommodate families based on two persons per bedroom."]
[]
[]
[null,null,"Smallest  Sq. Ft. Proposed",null,null,null,null,"Unit Type",null,null,null,null,null,null,"Minimum Sq. Ft.",null,null,null,"Count"]
[]
[null,null,null,null,null,null,null,"1 Bedroom",null,null,null,null,null,null,450,null,null,null,{"$f":"IF(AND($N$7=\"Special Needs\",$N$8=\"Large Family\"),INDEX(val,MATCH(\"g_Units1\",ref,0))-INDEX(val,MATCH(\"g_SpNe1\",ref,0)),INDEX(val,MATCH(\"g_Units1\",ref,0)))","v":0},null,null,{"$f":"OR(S33=0,C33>=O33)","v":true}]
[null,null,null,null,null,null,null,"2 Bedroom",null,null,null,null,null,null,700,null,null,null,{"$f":"IF(AND($N$7=\"Special Needs\",$N$8=\"Large Family\"),INDEX(val,MATCH(\"g_Units2\",ref,0))-INDEX(val,MATCH(\"g_SpNe2\",ref,0)),INDEX(val,MATCH(\"g_Units2\",ref,0)))","v":0},null,null,{"$f":"OR(S34=0,C34>=O34)","v":true}]
[null,null,null,null,null,null,null,"3 Bedroom",null,null,null,null,null,null,900,null,null,null,{"$f":"IF(AND($N$7=\"Special Needs\",$N$8=\"Large Family\"),INDEX(val,MATCH(\"g_Units3\",ref,0))-INDEX(val,MATCH(\"g_SpNe3\",ref,0)),INDEX(val,MATCH(\"g_Units3\",ref,0)))","v":0},null,null,{"$f":"OR(S35=0,C35>=O35)","v":true}]
[null,null,null,null,null,null,null,"4+ Bedroom",null,null,null,null,null,null,1100,null,null,null,{"$f":"IF(AND($N$7=\"Special Needs\",$N$8=\"Large Family\"),((INDEX(val,MATCH(\"g_Units4\",ref,0))+INDEX(val,MATCH(\"g_Units5\",ref,0)))-(INDEX(val,MATCH(\"g_SpNe4\",ref,0))+INDEX(val,MATCH(\"g_SpNe5\",ref,0)))),(INDEX(val,MATCH(\"g_Units4\",ref,0))+INDEX(val,MATCH(\"g_Units5\",ref,0))))","v":0},null,null,{"$f":"OR(S36=0,C36>=O36)","v":true}]
[]
[null,null,"Applying as a rehabilitation project and obtained a waiver:"]
[null,null,null,"Waivers should be saved as a standalone file in tab 4."]
[]
[null,null,"These restrictions conflict with the requirements of another governmental agency to which the project is subject to approval."]
[]
[null,null,null,"If so, list the agency and the restrictions:"]
[]
[]
[]
[null,"10325(g)(1)(C)",null,null,null,null,null,"Required two full baths for 4+BR units",null,null,null,null,null,null,null,null,null,null,null,null,null,null,null,null,null,null,null,null,null,null,null,null,null,null,null,{"$f":"IF(N49=0,IsTrue,IF(AE51=\"Yes\",IsTrue,IsFalse))","v":"ü"}]
[]
[null,null,"Count of 4 or more bedroom units",null,null,null,null,null,null,null,null,null,null,{"$f":"IF(AND($N$7=\"Special Needs\",$N$8=\"Large Family\"),((INDEX(val,MATCH(\"g_Units4\",ref,0))+INDEX(val,MATCH(\"g_Units5\",ref,0)))-(INDEX(val,MATCH(\"g_SpNe4\",ref,0))+INDEX(val,MATCH(\"g_SpNe5\",ref,0)))),INDEX(val,MATCH(\"g_Units4\",ref,0))+INDEX(val,MATCH(\"g_Units5\",ref,0)))","v":0}]
[]
[null,null,"Are at least 2 full bathrooms to be provided in all 4 bedroom and larger Low-Income Units?"]
[]
[null,"10325(g)(1)(D)",null,null,null,null,null,"Required play/recreational facilities",null,null,null,null,null,null,null,null,null,null,null,null,null,null,null,null,null,null,null,null,null,null,null,null,null,null,null,{"$f":"IF(OR(S55=\"Yes\",U78=\"Yes\",AND(C61<>\"\",C72<>\"\",AA62,AE65<>\"\",OR(AE58=\"Yes\",AE75<>\"\"))),IsTrue,IsFalse)","v":"ü"}]
[]
[null,null,"Is the project exempt for having 20 units or fewer?",null,null,null,null,null,null,null,null,null,null,null,null,null,null,null,{"$f":"IF(INDEX(val,MATCH(\"g_UnitsTotal\",ref,0))<=20,\"Yes\",\"No\")","v":"Yes"}]
[]
[null,null,"Does the project qualify for a waiver of this requirement because suitable outdoor play/recreational facilities as described in 10325(g)(1)(D) are readily accessible and located within ¼ mile of the project as measured by a walkable path?"]
[]
[]
[null,null,"Describe the outdoor accessible play/recreational area for children ages 2-12:"]
[]
[null,null,null,null,null,"Sq. Ft. Min:",{"$f":"600+MAX(0,INDEX(val,MATCH(\"g_UnitsTotal\",ref,0))-100)*5","v":600},null,null,null,null,null,null,null,null,null,null,null,null,null,null,null,"Recreation area sq. ft. (ages 2-12) proposed:",null,null,null,{"$f":"X62>=G62","v":false}]
[]
[null,null,"Outdoor play/recreational space must be equipped with reasonable play equipment for the size of the project, and the surface must be natural or synthetic protective material. The play area must include an accessible entrance point."]
[]
[]
[]
[]
[null,null,"Note: The outdoor play area of an onsite day care center may qualify as a play area for children 2-12 years for purposes of this section if it is available to children when the day care center is not open."]
[]
[null,null,"Describe the play/recreational facilities for children ages 13-17:"]
[]
[]
[null,null,"Square footage of a community building cannot be included for the play/recreational area for children ages 13-17 unless that square footage is accessible to minors at all times between 6 a.m. and 10 p.m. except when the area is reserved for service amenities or special events."]
[]
[]
[]
[null,null,"Applying as a rehabilitation project and obtained a waiver:"]
[null,null,null,"Waivers should be saved as a standalone file in tab 4."]
[]
[null,"10325(g)(1)(E)",null,null,null,null,null,"Required common areas",null,null,null,null,null,null,null,null,null,null,null,null,null,null,null,null,null,null,null,null,null,null,null,null,null,null,null,{"$f":"IF(OR(U91=\"Yes\",AND(C86<>\"\",P83>=AC83,OR(AH93=\"no\",AND(AH93=\"Yes\",AA95<>\"\")))),IsTrue,IsFalse)","v":"û"}]
[null,null,"Common area sq. ft. proposed, excluding laundry rooms or manager living units:"]
[null,null,null,null,null,null,null,null,null,null,null,null,null,null,null,null,null,null,null,null,null,null,null,null,null,null,null,"Sq. Ft. Min:",{"$f":"IF(AC84>100,AH84,INDEX(AH85:AH88,MATCH(AC84,AF85:AF88,-11)))","v":0},null,null,"Units",null,"Min"]
[null,null,null,null,null,null,null,null,null,null,null,null,null,null,null,null,null,null,null,null,null,null,null,null,null,null,null,"Total Units:",{"$f":"INDEX(val,MATCH(\"g_UnitsTotal\",ref,0))","v":0},null,null,"> 100",null,1800]
[null,null,"Describe the interior common area amenities:",null,null,null,null,null,null,null,null,null,null,null,null,null,null,null,null,null,null,null,null,null,null,null,null,null,null,null,null,100,null,1400]
[null,null,null,null,null,null,null,null,null,null,null,null,null,null,null,null,null,null,null,null,null,null,null,null,null,null,null,null,null,null,null,60,null,1000]
[null,null,null,null,null,null,null,null,null,null,null,null,null,null,null,null,null,null,null,null,null,null,null,null,null,null,null,null,null,null,null,30,null,600]
[null,null,null,null,null,null,null,null,null,null,null,null,null,null,null,null,null,null,null,null,null,null,null,null,null,null,null,null,null,null,null,20,null,0]
[]
[]
[null,null,"Applying as a rehabilitation project and obtained a waiver:"]
[null,null,null,"Waivers should be saved as a standalone file in tab 4."]
[null,null,"Is this part of a multiphase project proposing to share use of common areas and community space?"]
[null,null,null,"A joint use agreement must be provided in the placed in service application."]
[null,null,null,null,"Please provide the project number of the previously-completed phase. "]
[]
[null,"10325(g)(1)(F)",null,null,null,null,null,"Public agency or owner's equity financing",null,null,null,null,null,null,null,null,null,null,null,null,null,null,null,null,null,null,null,null,null,null,null,null,null,null,null,{"$f":"IF(OR(AD100:AF101),IsTrue,IsFalse)","v":"û"}]
[]
[null,null,"Total Project Costs:",null,null,null,null,null,null,null,null,null,null,null,null,null,{"$f":"INDEX(val,MATCH(\"g_TotalProjectCost\",ref,0))","v":0}]
[null,null,"Public agency long-term financial support:",null,null,null,null,null,null,null,null,null,null,null,null,null,0,null,null,null,null,null,"Percentage:",null,null,null,{"$f":"IFERROR(Q100/Q99,0)","v":0},null,null,{"$f":"AA100>=AH100","v":false},null,null,null,0.15]
[null,null,"Owner's equity (including tax credit proceeds):",null,null,null,null,null,null,null,null,null,null,null,null,null,0,null,null,null,null,null,"Percentage:",null,null,null,{"$f":"IFERROR(Q101/Q99,0)","v":0},null,null,{"$f":"AA101>=AH101","v":false},null,null,null,0.3]
[]
[null,"10325(g)(1)(G)",null,null,null,null,null,"Adequate laundry facilities",null,null,null,null,null,null,null,null,null,null,null,null,null,null,null,null,null,null,null,null,null,null,null,null,null,null,null,{"$f":"IF(OR(S105=\"Yes\",AND(AH106>=AH105,AH107>=AH105)),IsTrue,IsFalse)","v":"ü"}]
[]
[null,"   Are washers and dryers provided in each unit?",null,null,null,null,null,null,null,null,null,null,null,null,null,null,null,null,null,null,null,"Total Units:",null,null,null,{"$f":"INDEX(val,MATCH(\"g_UnitsTotal\",ref,0))","v":0},null,null,null,null,null,null,"Min required:",{"$f":"IF(AND($N$7=\"Special Needs\",$N$8=\"Large Family\"),ROUNDUP((INDEX(val,MATCH(\"g_UnitsTotal\",ref,0))-INDEX(val,MATCH(\"g_UnitsSpecialNeeds\",ref,0)))/10*(100%-Z106),0)+ROUNDUP((INDEX(val,MATCH(\"g_UnitsSpecialNeeds\",ref,0)))/15*(100%-Z106),0),ROUNDUP(Z105/10*(100%-Z106),0))","v":0}]
[null,null,null,null,null,null,null,null,null,null,null,null,null,null,null,null,null,"Are washer and dryer hookups provided in each unit?",null,null,null,"Reduction:",null,null,null,{"$f":"IF(S106=\"Yes\",25%,0%)","v":0},null,null,null,null,null,null,"Washers provided:"]
[null,null,null,null,null,null,null,null,null,null,null,null,null,null,null,null,null,null,null,null,null,null,null,null,null,null,null,null,null,null,null,null,"Dryers provided:"]
[null,null,"Note: If tenants are required to pay to use central laundry facilities, washers and dryers must be excluded from eligible basis. If no centralized laundry facilities are provided, washers and dryers shall be provided in each of the project’s units."]
[]
[]
[]
[null,"10325(g)(1)(H)",null,null,null,null,null,"Dishwashers",null,null,null,null,null,null,null,null,null,null,null,null,null,null,null,null,null,null,null,null,null,null,null,null,null,null,null,{"$f":"IF(OR(AE114=\"Yes\",U116=\"Yes\"),IsTrue,IsFalse)","v":"û"}]
[]
[null,null,"Are dishwashers to be provided in all Low-Income Units (excepting studio and SRO units)?"]
[]
[null,null,"Applying as a rehabilitation project and obtained a waiver:"]
[null,null,null,"Waivers should be saved as a standalone file in tab 4."]
[]
[null,"10325(g)(1)(I)",null,null,null,null,null,"Minimum low-income use period",null,null,null,null,null,null,null,null,null,null,null,null,null,null,null,null,null,null,null,null,null,null,null,null,null,null,null,{"$f":"IF(AD122=\"Acknowledged\",IsTrue,IsFalse)","v":"û"}]
[]
[null,null,"Family projects are subject to a minimum low-income use period of 55 years\n(50 years for projects located on tribal trust land)"]
[]
[]
[]
[null,null,null,null,null,null,null,"Additional comments - Large Family",null,null,null,null,null,null,null,null,null,null,null,null,null,null,null,null,null,null,null,null,null,null,null,null,null,null,null,{"$f":"IsTrue","v":"ü"}]
[]
[]
[]
[]
[]
["Senior - 10325(g)(2)"]
[]
[null,"10325(g)(2)(A)",null,null,null,null,null,"Fair Housing",null,null,null,null,null,null,null,null,null,null,null,null,null,null,null,null,null,null,null,null,null,null,null,null,null,null,null,{"$f":"IF(AND(AE135=\"Acknowledged\",AE142<>\"\"),IsTrue,IsFalse)","v":"û"}]
[]
[null,null,"All units shall be restricted to households eligible under applicable provisions of  California Civil Code Sections 51.3 and 51.3.5 and the federal Fair Housing Act, and further be subject to Fair Housing Laws with respect to senior housing. As applicable, projects with Senior units receiving project-based Section 8 rental subsidy, or other applicable Federal rental subsidies that specifically prohibit a senior restriction, may use a senior preference for senior unit leasing, in compliance with U.S. Code Title 42 Chapter 8 Subchapter I Section 1437f;"]
[]
[]
[]
[]
[]
[]
[null,null,"Projects proposing mixed tenant populations under California Civil Code Section 51.3.5 shall submit a legal opinon pursuant to Section 10322(h)(34)."]
[]
[]
[null,"10325(g)(2)(B)-(C)",null,null,null,null,null,"Accessible units",null,null,null,null,null,null,null,null,null,null,null,null,null,null,null,null,null,null,null,null,null,null,null,null,null,null,null,{"$f":"IF(OR(M152=\"Yes\",AND(Z150>=Z149,Z148>0)),IsTrue,IsFalse)","v":"û"}]
[]
[null,null,"Project type:",null,null,null,null,{"$f":"IF(OR(INDEX(val,MATCH(\"t_IsNewConstruction\",ref,0)),INDEX(val,MATCH(\"t_IsAdaptiveReuse\",ref,0))),\"New Construction\",\"Rehabilitation\")","v":"Rehabilitation"},null,null,null,null,null,null,null,null,null,null,null,null,null,null,null,null,"Required percentage:",{"$f":"IF(H147=\"New Construction\",50%,25%)","v":0.25}]
[null,null,null,null,null,null,null,null,null,null,null,null,null,null,null,null,null,null,null,null,null,null,null,null,"Low-Income Units:",{"$f":"IF(AND($N$7=\"Special Needs\",$N$8=\"Seniors\"),INDEX(val,MATCH(\"g_UnitsLowIncome\",ref,0))-INDEX(val,MATCH(\"g_UnitsSpecialNeeds\",ref,0)),INDEX(val,MATCH(\"g_UnitsLowIncome\",ref,0)))","v":0},null,null,{"$f":"IF(AND($N$7=\"Special Needs\",$N$8=\"Seniors\",$T$300=0),\"!\",\"\")","v":""},{"$f":"IF(AC148=\"!\",\"Complete primary housing type first\",\"\")","v":""}]
[null,null,null,null,null,null,null,null,null,null,null,null,null,null,null,null,null,null,null,null,null,null,null,null,"Required Housing Units with Mobility Features:",{"$f":"ROUNDUP(Z147*Z148,0)","v":0}]
[null,null,null,null,null,null,null,null,null,null,null,null,null,null,null,null,null,null,null,null,null,null,null,null,"Proposed Housing Units with Mobility Features:"]
[]
[null,null,"Obtained a full or partial waiver:"]
[null,null,null,"Waivers should be saved as a standalone file in tab 4."]
[]
[null,"10325(g)(2)(D)",null,null,null,null,null,"Access to all areas",null,null,null,null,null,null,null,null,null,null,null,null,null,null,null,null,null,null,null,null,null,null,null,null,null,null,null,{"$f":"IF(AE158<>\"\",IsTrue,IsFalse)","v":"û"}]
[]
[null,null,"Access to all common areas and housing units within each building shall be provided\nwithout the required use of stairs, either by means of an elevator or sloped walking\nramps, consistent with the senior housing requirements of California Civil Code,\nsections 51.2-51.4 (Unruh Act) and Government Code, section 12955.9"]
[]
[]
[]
[]
[null,"10325(g)(2)(E)",null,null,null,null,null,"Limit on 2+ BR units",null,null,null,null,null,null,null,null,null,null,null,null,null,null,null,null,null,null,null,null,null,null,null,null,null,null,null,{"$f":"IF(OR(AD169=\"Yes\",R167<=J167),IsTrue,IsFalse)","v":"û"}]
[]
[null,null,"Low-Income Units:",null,null,null,null,null,null,null,null,null,null,null,null,null,null,{"$f":"IF(AND($N$7=\"Special Needs\",$N$8=\"Seniors\"),INDEX(val,MATCH(\"g_UnitsLowIncome\",ref,0))-INDEX(val,MATCH(\"g_UnitsSpecialNeeds\",ref,0)),INDEX(val,MATCH(\"g_UnitsLowIncome\",ref,0)))","v":0}]
[null,null,"Low-Income Units with greater than 1 bedroom:",null,null,null,null,null,null,null,null,null,null,null,null,null,null,{"$f":"IF(AND($N$7=\"Special Needs\",$N$8=\"Seniors\"),((INDEX(val,MATCH(\"g_Units2\",ref,0))+INDEX(val,MATCH(\"g_Units3\",ref,0))+INDEX(val,MATCH(\"g_Units4\",ref,0))+INDEX(val,MATCH(\"g_Units5\",ref,0)))-(INDEX(val,MATCH(\"g_SpNe2\",ref,0))+INDEX(val,MATCH(\"g_SpNe3\",ref,0))+INDEX(val,MATCH(\"g_SpNe4\",ref,0))+INDEX(val,MATCH(\"g_SpNe5\",ref,0)))),(INDEX(val,MATCH(\"g_Units2\",ref,0))+INDEX(val,MATCH(\"g_Units3\",ref,0))+INDEX(val,MATCH(\"g_Units4\",ref,0))+INDEX(val,MATCH(\"g_Units5\",ref,0))))","v":0}]
[]
[null,null,null,null,null,null,null,null,"Maximum allowed:",0.2,null,null,null,"Percentage:",null,null,null,{"$f":"IFERROR(R165/R164,\"\")","v":""}]
[]
[null,null,"Greater than the maximum is supported by the market study and obtained a waiver:"]
[null,null,null,"Waivers should be saved as a standalone file in tab 4."]
[]
[null,"10325(g)(2)(F)",null,null,null,null,null,"Minimum unit square footages",null,null,null,null,null,null,null,null,null,null,null,null,null,null,null,null,null,null,null,null,null,null,null,null,null,null,null,{"$f":"IF(OR(W180=\"Yes\",AND(V177:X178)),IsTrue,IsFalse)","v":"ü"}]
[]
[null,null,"Smallest  Sq. Ft. Proposed",null,null,null,"Unit Type",null,null,null,null,null,null,"Minimum Sq. Ft.",null,null,null,"Count"]
[]
[]
[null,null,null,null,null,null,"1 Bedroom",null,null,null,null,null,null,450,null,null,null,{"$f":"IF(AND($N$7=\"Special Needs\",$N$8=\"Seniors\"),INDEX(val,MATCH(\"g_Units1\",ref,0))-INDEX(val,MATCH(\"g_SpNe1\",ref,0)),INDEX(val,MATCH(\"g_Units1\",ref,0)))","v":0},null,null,null,{"$f":"OR(R177=0,C177>=N177)","v":true}]
[null,null,null,null,null,null,"2 Bedroom",null,null,null,null,null,null,700,null,null,null,{"$f":"IF(AND($N$7=\"Special Needs\",$N$8=\"Seniors\"),INDEX(val,MATCH(\"g_Units2\",ref,0))-INDEX(val,MATCH(\"g_SpNe2\",ref,0)),INDEX(val,MATCH(\"g_Units2\",ref,0)))","v":0},null,null,null,{"$f":"OR(R178=0,C178>=N178)","v":true}]
[]
[null,null,"Applying as a rehabilitation project and obtained a waiver:"]
[null,null,null,"Waivers should be saved as a standalone file in tab 4."]
[]
[null,"10325(g)(2)(G)",null,null,null,null,null,"Emergency call systems",null,null,null,null,null,null,null,null,null,null,null,null,null,null,null,null,null,null,null,null,null,null,null,null,null,null,null,{"$f":"IF(OR(AF185=\"No\",AND(AF185=\"Yes\",AE188=\"Acknowledged\")),IsTrue,IsFalse)","v":"û"}]
[]
[null,null,"Will the project include units to be occupied by frail elderly populations requiring assistance with activities of daily living?"]
[]
[]
[null,null,"Such units must be equipped with emergency call systems with 24-hour monitoring or approved alternative."]
[]
[]
[null,"10325(g)(2)(H)",null,null,null,null,null,"Required common areas",null,null,null,null,null,null,null,null,null,null,null,null,null,null,null,null,null,null,null,null,null,null,null,null,null,null,null,{"$f":"IF(OR(U201=\"Yes\",AND(C196<>\"\",P193>=AC193)),IsTrue,IsFalse)","v":"û"}]
[null,null,"Common area sq. ft. proposed, excluding laundry rooms or manager living units:"]
[null,null,null,null,null,null,null,null,null,null,null,null,null,null,null,null,null,null,null,null,null,null,null,null,null,null,null,"Sq. Ft. Min:",{"$f":"IF(AC194>100,AH194,INDEX(AH195:AH198,MATCH(AC194,AF195:AF198,-11)))","v":0},null,null,"Units",null,"Min"]
[null,null,null,null,null,null,null,null,null,null,null,null,null,null,null,null,null,null,null,null,null,null,null,null,null,null,null,"Total Units:",{"$f":"INDEX(val,MATCH(\"g_UnitsTotal\",ref,0))","v":0},null,null,"> 100",null,1800]
[null,null,"Describe the interior common area amenities:",null,null,null,null,null,null,null,null,null,null,null,null,null,null,null,null,null,null,null,null,null,null,null,null,null,null,null,null,100,null,1400]
[null,null,null,null,null,null,null,null,null,null,null,null,null,null,null,null,null,null,null,null,null,null,null,null,null,null,null,null,null,null,null,60,null,1000]
[null,null,null,null,null,null,null,null,null,null,null,null,null,null,null,null,null,null,null,null,null,null,null,null,null,null,null,null,null,null,null,30,null,600]
[null,null,null,null,null,null,null,null,null,null,null,null,null,null,null,null,null,null,null,null,null,null,null,null,null,null,null,null,null,null,null,20,null,0]
[]
[]
[null,null,"Applying as a rehabilitation project and obtained a waiver:"]
[null,null,null,"Waivers should be saved as a standalone file in tab 4."]
[]
[null,"10325(g)(2)(I)",null,null,null,null,null,"Public agency or owner's equity financing",null,null,null,null,null,null,null,null,null,null,null,null,null,null,null,null,null,null,null,null,null,null,null,null,null,null,null,{"$f":"IF(OR(AD207:AF208),IsTrue,IsFalse)","v":"û"}]
[]
[null,null,"Total Project Costs:",null,null,null,null,null,null,null,null,null,null,null,null,null,{"$f":"INDEX(val,MATCH(\"g_TotalProjectCost\",ref,0))","v":0}]
[null,null,"Public agency long-term financial support:",null,null,null,null,null,null,null,null,null,null,null,null,null,0,null,null,null,null,null,"Percentage:",null,null,null,{"$f":"IFERROR(Q207/Q206,0)","v":0},null,null,{"$f":"AA207>=AH207","v":false},null,null,null,0.15]
[null,null,"Owner's equity (including tax credit proceeds):",null,null,null,null,null,null,null,null,null,null,null,null,null,0,null,null,null,null,null,"Percentage:",null,null,null,{"$f":"IFERROR(Q208/Q206,0)","v":0},null,null,{"$f":"AA208>=AH208","v":false},null,null,null,0.3]
[]
[null,"10325(g)(2)(J)",null,null,null,null,null,"Adequate laundry facilities",null,null,null,null,null,null,null,null,null,null,null,null,null,null,null,null,null,null,null,null,null,null,null,null,null,null,null,{"$f":"IF(OR(S212=\"Yes\",AND(AH213>=AH212,AH214>=AH212)),IsTrue,IsFalse)","v":"ü"}]
[]
[null,"   Are washers and dryers provided in each unit?",null,null,null,null,null,null,null,null,null,null,null,null,null,null,null,null,null,null,null,"Total Units:",null,null,null,{"$f":"INDEX(val,MATCH(\"g_UnitsTotal\",ref,0))","v":0},null,null,null,null,null,null,"Min required:",{"$f":"ROUNDUP(Z212/15*(100%-Z213),0)","v":0}]
[null,null,null,null,null,null,null,null,null,null,null,null,null,null,null,null,null,"Are washer and dryer hookups provided in each unit?",null,null,null,"Reduction:",null,null,null,{"$f":"IF(S213=\"Yes\",25%,0%)","v":0},null,null,null,null,null,null,"Washers provided:"]
[null,null,null,null,null,null,null,null,null,null,null,null,null,null,null,null,null,null,null,null,null,null,null,null,null,null,null,null,null,null,null,null,"Dryers provided:"]
[null,null,"Note: If tenants are required to pay to use central laundry facilities, washers and dryers must be excluded from eligible basis. If no centralized laundry facilities are provided, washers and dryers shall be provided in each of the project’s units."]
[]
[]
[]
[null,"10325(g)(2)(K)",null,null,null,null,null,"Minimum low-income use period",null,null,null,null,null,null,null,null,null,null,null,null,null,null,null,null,null,null,null,null,null,null,null,null,null,null,null,{"$f":"IF(AA222=\"Acknowledged\",IsTrue,IsFalse)","v":"û"}]
[]
[null,null,"Senior projects are subject to a minimum low-income use period of 55 years (50 years for projects located on tribal trust land)"]
[]
[]
[]
[null,null,null,null,null,null,null,"Additional comments - Senior",null,null,null,null,null,null,null,null,null,null,null,null,null,null,null,null,null,null,null,null,null,null,null,null,null,null,null,{"$f":"IsTrue","v":"ü"}]
[]
[]
[]
[]
[]
["Special Needs - 10325(g)(3)"]
[]
[null,"10325(g)(3)",null,null,null,null,null,"Population clarification",null,null,null,null,null,null,null,null,null,null,null,null,null,null,null,null,null,null,null,null,null,null,null,null,null,null,null,{"$f":"IF(C253<>\"\",IsTrue,IsFalse)","v":"û"}]
[]
[null,null,"The greater of 15 Low-Income Units or 25% of the Low-Income Units in the project shall serve Special Needs Population(s). The 15 Low-Income Unit minimum shall not apply to projects with committed HUD Section 811 funding. "]
[]
[]
[null,null,"Special Needs Population(s) includes one or more of the following groups who need Supportive Services to maintain and stabilize their housing:\n(1) People with Disabilities;\n(2) At-Risk of Homelessness;\n(3) Individuals with substance use disorders;\n(4) Frequent users of public health or mental health services, as identified by a public health or mental \n     health agency;\n(5) Individuals who are fleeing domestic violence, sexual assault, and human trafficking;\n(6) Individuals who are experiencing Homelessness or Chronic Homelessness;\n(7) Homeless youth as defined in Government Code section 12957, subdivision (e)(2);\n(8) Families meeting the definition of “Eligible family” under the Bringing Families Home program at WIC \n     section 16523, who may or may not be participating in the program.\n(9) Individuals exiting institutional settings or at risk of placement in an institutional setting;\n(10) Older Adults in Need of Supportive Services; or\n(11) Other specific groups with unique housing needs as determined by the Executive Director."]
[]
[]
[]
[]
[]
[]
[]
[]
[]
[]
[]
[]
[]
[null,null,"Identify all applicable Special Needs Population(s):"]
[]
[]
[]
[]
[null,"10325(g)(3)",null,null,null,null,null,"Unit mix clarification",null,null,null,null,null,null,null,null,null,null,null,null,null,null,null,null,null,null,null,null,null,null,null,null,null,null,null,{"$f":"IF(T300=T301,IsTrue,IsFalse)","v":"ü"}]
[]
[null,null,"The below table shows the unit mix you entered in the e-application. Please clarify how many of each bedroom type are Special Needs units."]
[]
[]
[null,null,"Bedroom Type",null,null,null,null,"Number of Units",null,null,null,"# Special Needs Units",null,null,null,"Average Square Feet",null,null,null,"Net Monthly Rent",null,null,null,null,"Monthly Utility Allowance",null,null,null,null,"% of Targeted AMI"]
[]
[1,null,{"$f":"IFERROR(INDEX(UnitsTbl[Bedroom Type],A264),\"\")","v":""},null,null,null,null,{"$f":"IFERROR(INDEX(UnitsTbl[Number of Units],A264),\"\")","v":""},null,null,null,null,null,null,null,{"$f":"IFERROR(INDEX(UnitsTbl[Average Sq Ft],A264),\"\")","v":""},null,null,null,{"$f":"IFERROR(INDEX(UnitsTbl[Net Rent],A264),\"\")","v":""},null,null,null,null,{"$f":"IFERROR(INDEX(UnitsTbl[Monthly Utility],A264),\"\")","v":""},null,null,null,null,{"$f":"IFERROR(INDEX(UnitsTbl[Targeted % AMI],A264),\"\")","v":0}]
[2,null,{"$f":"IFERROR(INDEX(UnitsTbl[Bedroom Type],A265),\"\")","v":""},null,null,null,null,{"$f":"IFERROR(INDEX(UnitsTbl[Number of Units],A265),\"\")","v":""},null,null,null,null,null,null,null,{"$f":"IFERROR(INDEX(UnitsTbl[Average Sq Ft],A265),\"\")","v":""},null,null,null,{"$f":"IFERROR(INDEX(UnitsTbl[Net Rent],A265),\"\")","v":""},null,null,null,null,{"$f":"IFERROR(INDEX(UnitsTbl[Monthly Utility],A265),\"\")","v":""},null,null,null,null,{"$f":"IFERROR(INDEX(UnitsTbl[Targeted % AMI],A265),\"\")","v":0}]
[3,null,{"$f":"IFERROR(INDEX(UnitsTbl[Bedroom Type],A266),\"\")","v":""},null,null,null,null,{"$f":"IFERROR(INDEX(UnitsTbl[Number of Units],A266),\"\")","v":""},null,null,null,null,null,null,null,{"$f":"IFERROR(INDEX(UnitsTbl[Average Sq Ft],A266),\"\")","v":""},null,null,null,{"$f":"IFERROR(INDEX(UnitsTbl[Net Rent],A266),\"\")","v":""},null,null,null,null,{"$f":"IFERROR(INDEX(UnitsTbl[Monthly Utility],A266),\"\")","v":""},null,null,null,null,{"$f":"IFERROR(INDEX(UnitsTbl[Targeted % AMI],A266),\"\")","v":0}]
[4,null,{"$f":"IFERROR(INDEX(UnitsTbl[Bedroom Type],A267),\"\")","v":""},null,null,null,null,{"$f":"IFERROR(INDEX(UnitsTbl[Number of Units],A267),\"\")","v":""},null,null,null,null,null,null,null,{"$f":"IFERROR(INDEX(UnitsTbl[Average Sq Ft],A267),\"\")","v":""},null,null,null,{"$f":"IFERROR(INDEX(UnitsTbl[Net Rent],A267),\"\")","v":""},null,null,null,null,{"$f":"IFERROR(INDEX(UnitsTbl[Monthly Utility],A267),\"\")","v":""},null,null,null,null,{"$f":"IFERROR(INDEX(UnitsTbl[Targeted % AMI],A267),\"\")","v":0}]
[5,null,{"$f":"IFERROR(INDEX(UnitsTbl[Bedroom Type],A268),\"\")","v":""},null,null,null,null,{"$f":"IFERROR(INDEX(UnitsTbl[Number of Units],A268),\"\")","v":""},null,null,null,null,null,null,null,{"$f":"IFERROR(INDEX(UnitsTbl[Average Sq Ft],A268),\"\")","v":""},null,null,null,{"$f":"IFERROR(INDEX(UnitsTbl[Net Rent],A268),\"\")","v":""},null,null,null,null,{"$f":"IFERROR(INDEX(UnitsTbl[Monthly Utility],A268),\"\")","v":""},null,null,null,null,{"$f":"IFERROR(INDEX(UnitsTbl[Targeted % AMI],A268),\"\")","v":0}]
[6,null,{"$f":"IFERROR(INDEX(UnitsTbl[Bedroom Type],A269),\"\")","v":""},null,null,null,null,{"$f":"IFERROR(INDEX(UnitsTbl[Number of Units],A269),\"\")","v":""},null,null,null,null,null,null,null,{"$f":"IFERROR(INDEX(UnitsTbl[Average Sq Ft],A269),\"\")","v":""},null,null,null,{"$f":"IFERROR(INDEX(UnitsTbl[Net Rent],A269),\"\")","v":""},null,null,null,null,{"$f":"IFERROR(INDEX(UnitsTbl[Monthly Utility],A269),\"\")","v":""},null,null,null,null,{"$f":"IFERROR(INDEX(UnitsTbl[Targeted % AMI],A269),\"\")","v":0}]
[7,null,{"$f":"IFERROR(INDEX(UnitsTbl[Bedroom Type],A270),\"\")","v":""},null,null,null,null,{"$f":"IFERROR(INDEX(UnitsTbl[Number of Units],A270),\"\")","v":""},null,null,null,null,null,null,null,{"$f":"IFERROR(INDEX(UnitsTbl[Average Sq Ft],A270),\"\")","v":""},null,null,null,{"$f":"IFERROR(INDEX(UnitsTbl[Net Rent],A270),\"\")","v":""},null,null,null,null,{"$f":"IFERROR(INDEX(UnitsTbl[Monthly Utility],A270),\"\")","v":""},null,null,null,null,{"$f":"IFERROR(INDEX(UnitsTbl[Targeted % AMI],A270),\"\")","v":0}]
[8,null,{"$f":"IFERROR(INDEX(UnitsTbl[Bedroom Type],A271),\"\")","v":""},null,null,null,null,{"$f":"IFERROR(INDEX(UnitsTbl[Number of Units],A271),\"\")","v":""},null,null,null,null,null,null,null,{"$f":"IFERROR(INDEX(UnitsTbl[Average Sq Ft],A271),\"\")","v":""},null,null,null,{"$f":"IFERROR(INDEX(UnitsTbl[Net Rent],A271),\"\")","v":""},null,null,null,null,{"$f":"IFERROR(INDEX(UnitsTbl[Monthly Utility],A271),\"\")","v":""},null,null,null,null,{"$f":"IFERROR(INDEX(UnitsTbl[Targeted % AMI],A271),\"\")","v":0}]
[9,null,{"$f":"IFERROR(INDEX(UnitsTbl[Bedroom Type],A272),\"\")","v":""},null,null,null,null,{"$f":"IFERROR(INDEX(UnitsTbl[Number of Units],A272),\"\")","v":""},null,null,null,null,null,null,null,{"$f":"IFERROR(INDEX(UnitsTbl[Average Sq Ft],A272),\"\")","v":""},null,null,null,{"$f":"IFERROR(INDEX(UnitsTbl[Net Rent],A272),\"\")","v":""},null,null,null,null,{"$f":"IFERROR(INDEX(UnitsTbl[Monthly Utility],A272),\"\")","v":""},null,null,null,null,{"$f":"IFERROR(INDEX(UnitsTbl[Targeted % AMI],A272),\"\")","v":0}]
[10,null,{"$f":"IFERROR(INDEX(UnitsTbl[Bedroom Type],A273),\"\")","v":""},null,null,null,null,{"$f":"IFERROR(INDEX(UnitsTbl[Number of Units],A273),\"\")","v":""},null,null,null,null,null,null,null,{"$f":"IFERROR(INDEX(UnitsTbl[Average Sq Ft],A273),\"\")","v":""},null,null,null,{"$f":"IFERROR(INDEX(UnitsTbl[Net Rent],A273),\"\")","v":""},null,null,null,null,{"$f":"IFERROR(INDEX(UnitsTbl[Monthly Utility],A273),\"\")","v":""},null,null,null,null,{"$f":"IFERROR(INDEX(UnitsTbl[Targeted % AMI],A273),\"\")","v":0}]
[11,null,{"$f":"IFERROR(INDEX(UnitsTbl[Bedroom Type],A274),\"\")","v":""},null,null,null,null,{"$f":"IFERROR(INDEX(UnitsTbl[Number of Units],A274),\"\")","v":""},null,null,null,null,null,null,null,{"$f":"IFERROR(INDEX(UnitsTbl[Average Sq Ft],A274),\"\")","v":""},null,null,null,{"$f":"IFERROR(INDEX(UnitsTbl[Net Rent],A274),\"\")","v":""},null,null,null,null,{"$f":"IFERROR(INDEX(UnitsTbl[Monthly Utility],A274),\"\")","v":""},null,null,null,null,{"$f":"IFERROR(INDEX(UnitsTbl[Targeted % AMI],A274),\"\")","v":0}]
[12,null,{"$f":"IFERROR(INDEX(UnitsTbl[Bedroom Type],A275),\"\")","v":""},null,null,null,null,{"$f":"IFERROR(INDEX(UnitsTbl[Number of Units],A275),\"\")","v":""},null,null,null,null,null,null,null,{"$f":"IFERROR(INDEX(UnitsTbl[Average Sq Ft],A275),\"\")","v":""},null,null,null,{"$f":"IFERROR(INDEX(UnitsTbl[Net Rent],A275),\"\")","v":""},null,null,null,null,{"$f":"IFERROR(INDEX(UnitsTbl[Monthly Utility],A275),\"\")","v":""},null,null,null,null,{"$f":"IFERROR(INDEX(UnitsTbl[Targeted % AMI],A275),\"\")","v":0}]
[13,null,{"$f":"IFERROR(INDEX(UnitsTbl[Bedroom Type],A276),\"\")","v":""},null,null,null,null,{"$f":"IFERROR(INDEX(UnitsTbl[Number of Units],A276),\"\")","v":""},null,null,null,null,null,null,null,{"$f":"IFERROR(INDEX(UnitsTbl[Average Sq Ft],A276),\"\")","v":""},null,null,null,{"$f":"IFERROR(INDEX(UnitsTbl[Net Rent],A276),\"\")","v":""},null,null,null,null,{"$f":"IFERROR(INDEX(UnitsTbl[Monthly Utility],A276),\"\")","v":""},null,null,null,null,{"$f":"IFERROR(INDEX(UnitsTbl[Targeted % AMI],A276),\"\")","v":0}]
[14,null,{"$f":"IFERROR(INDEX(UnitsTbl[Bedroom Type],A277),\"\")","v":""},null,null,null,null,{"$f":"IFERROR(INDEX(UnitsTbl[Number of Units],A277),\"\")","v":""},null,null,null,null,null,null,null,{"$f":"IFERROR(INDEX(UnitsTbl[Average Sq Ft],A277),\"\")","v":""},null,null,null,{"$f":"IFERROR(INDEX(UnitsTbl[Net Rent],A277),\"\")","v":""},null,null,null,null,{"$f":"IFERROR(INDEX(UnitsTbl[Monthly Utility],A277),\"\")","v":""},null,null,null,null,{"$f":"IFERROR(INDEX(UnitsTbl[Targeted % AMI],A277),\"\")","v":0}]
[15,null,{"$f":"IFERROR(INDEX(UnitsTbl[Bedroom Type],A278),\"\")","v":""},null,null,null,null,{"$f":"IFERROR(INDEX(UnitsTbl[Number of Units],A278),\"\")","v":""},null,null,null,null,null,null,null,{"$f":"IFERROR(INDEX(UnitsTbl[Average Sq Ft],A278),\"\")","v":""},null,null,null,{"$f":"IFERROR(INDEX(UnitsTbl[Net Rent],A278),\"\")","v":""},null,null,null,null,{"$f":"IFERROR(INDEX(UnitsTbl[Monthly Utility],A278),\"\")","v":""},null,null,null,null,{"$f":"IFERROR(INDEX(UnitsTbl[Targeted % AMI],A278),\"\")","v":0}]
[16,null,{"$f":"IFERROR(INDEX(UnitsTbl[Bedroom Type],A279),\"\")","v":""},null,null,null,null,{"$f":"IFERROR(INDEX(UnitsTbl[Number of Units],A279),\"\")","v":""},null,null,null,null,null,null,null,{"$f":"IFERROR(INDEX(UnitsTbl[Average Sq Ft],A279),\"\")","v":""},null,null,null,{"$f":"IFERROR(INDEX(UnitsTbl[Net Rent],A279),\"\")","v":""},null,null,null,null,{"$f":"IFERROR(INDEX(UnitsTbl[Monthly Utility],A279),\"\")","v":""},null,null,null,null,{"$f":"IFERROR(INDEX(UnitsTbl[Targeted % AMI],A279),\"\")","v":0}]
[17,null,{"$f":"IFERROR(INDEX(UnitsTbl[Bedroom Type],A280),\"\")","v":""},null,null,null,null,{"$f":"IFERROR(INDEX(UnitsTbl[Number of Units],A280),\"\")","v":""},null,null,null,null,null,null,null,{"$f":"IFERROR(INDEX(UnitsTbl[Average Sq Ft],A280),\"\")","v":""},null,null,null,{"$f":"IFERROR(INDEX(UnitsTbl[Net Rent],A280),\"\")","v":""},null,null,null,null,{"$f":"IFERROR(INDEX(UnitsTbl[Monthly Utility],A280),\"\")","v":""},null,null,null,null,{"$f":"IFERROR(INDEX(UnitsTbl[Targeted % AMI],A280),\"\")","v":0}]
[18,null,{"$f":"IFERROR(INDEX(UnitsTbl[Bedroom Type],A281),\"\")","v":""},null,null,null,null,{"$f":"IFERROR(INDEX(UnitsTbl[Number of Units],A281),\"\")","v":""},null,null,null,null,null,null,null,{"$f":"IFERROR(INDEX(UnitsTbl[Average Sq Ft],A281),\"\")","v":""},null,null,null,{"$f":"IFERROR(INDEX(UnitsTbl[Net Rent],A281),\"\")","v":""},null,null,null,null,{"$f":"IFERROR(INDEX(UnitsTbl[Monthly Utility],A281),\"\")","v":""},null,null,null,null,{"$f":"IFERROR(INDEX(UnitsTbl[Targeted % AMI],A281),\"\")","v":0}]
[19,null,{"$f":"IFERROR(INDEX(UnitsTbl[Bedroom Type],A282),\"\")","v":""},null,null,null,null,{"$f":"IFERROR(INDEX(UnitsTbl[Number of Units],A282),\"\")","v":""},null,null,null,null,null,null,null,{"$f":"IFERROR(INDEX(UnitsTbl[Average Sq Ft],A282),\"\")","v":""},null,null,null,{"$f":"IFERROR(INDEX(UnitsTbl[Net Rent],A282),\"\")","v":""},null,null,null,null,{"$f":"IFERROR(INDEX(UnitsTbl[Monthly Utility],A282),\"\")","v":""},null,null,null,null,{"$f":"IFERROR(INDEX(UnitsTbl[Targeted % AMI],A282),\"\")","v":0}]
[20,null,{"$f":"IFERROR(INDEX(UnitsTbl[Bedroom Type],A283),\"\")","v":""},null,null,null,null,{"$f":"IFERROR(INDEX(UnitsTbl[Number of Units],A283),\"\")","v":""},null,null,null,null,null,null,null,{"$f":"IFERROR(INDEX(UnitsTbl[Average Sq Ft],A283),\"\")","v":""},null,null,null,{"$f":"IFERROR(INDEX(UnitsTbl[Net Rent],A283),\"\")","v":""},null,null,null,null,{"$f":"IFERROR(INDEX(UnitsTbl[Monthly Utility],A283),\"\")","v":""},null,null,null,null,{"$f":"IFERROR(INDEX(UnitsTbl[Targeted % AMI],A283),\"\")","v":0}]
[21,null,{"$f":"IFERROR(INDEX(UnitsTbl[Bedroom Type],A284),\"\")","v":""},null,null,null,null,{"$f":"IFERROR(INDEX(UnitsTbl[Number of Units],A284),\"\")","v":""},null,null,null,null,null,null,null,{"$f":"IFERROR(INDEX(UnitsTbl[Average Sq Ft],A284),\"\")","v":""},null,null,null,{"$f":"IFERROR(INDEX(UnitsTbl[Net Rent],A284),\"\")","v":""},null,null,null,null,{"$f":"IFERROR(INDEX(UnitsTbl[Monthly Utility],A284),\"\")","v":""},null,null,null,null,{"$f":"IFERROR(INDEX(UnitsTbl[Targeted % AMI],A284),\"\")","v":0}]
[22,null,{"$f":"IFERROR(INDEX(UnitsTbl[Bedroom Type],A285),\"\")","v":""},null,null,null,null,{"$f":"IFERROR(INDEX(UnitsTbl[Number of Units],A285),\"\")","v":""},null,null,null,null,null,null,null,{"$f":"IFERROR(INDEX(UnitsTbl[Average Sq Ft],A285),\"\")","v":""},null,null,null,{"$f":"IFERROR(INDEX(UnitsTbl[Net Rent],A285),\"\")","v":""},null,null,null,null,{"$f":"IFERROR(INDEX(UnitsTbl[Monthly Utility],A285),\"\")","v":""},null,null,null,null,{"$f":"IFERROR(INDEX(UnitsTbl[Targeted % AMI],A285),\"\")","v":0}]
[23,null,{"$f":"IFERROR(INDEX(UnitsTbl[Bedroom Type],A286),\"\")","v":""},null,null,null,null,{"$f":"IFERROR(INDEX(UnitsTbl[Number of Units],A286),\"\")","v":""},null,null,null,null,null,null,null,{"$f":"IFERROR(INDEX(UnitsTbl[Average Sq Ft],A286),\"\")","v":""},null,null,null,{"$f":"IFERROR(INDEX(UnitsTbl[Net Rent],A286),\"\")","v":""},null,null,null,null,{"$f":"IFERROR(INDEX(UnitsTbl[Monthly Utility],A286),\"\")","v":""},null,null,null,null,{"$f":"IFERROR(INDEX(UnitsTbl[Targeted % AMI],A286),\"\")","v":0}]
[24,null,{"$f":"IFERROR(INDEX(UnitsTbl[Bedroom Type],A287),\"\")","v":""},null,null,null,null,{"$f":"IFERROR(INDEX(UnitsTbl[Number of Units],A287),\"\")","v":""},null,null,null,null,null,null,null,{"$f":"IFERROR(INDEX(UnitsTbl[Average Sq Ft],A287),\"\")","v":""},null,null,null,{"$f":"IFERROR(INDEX(UnitsTbl[Net Rent],A287),\"\")","v":""},null,null,null,null,{"$f":"IFERROR(INDEX(UnitsTbl[Monthly Utility],A287),\"\")","v":""},null,null,null,null,{"$f":"IFERROR(INDEX(UnitsTbl[Targeted % AMI],A287),\"\")","v":0}]
[25,null,{"$f":"IFERROR(INDEX(UnitsTbl[Bedroom Type],A288),\"\")","v":""},null,null,null,null,{"$f":"IFERROR(INDEX(UnitsTbl[Number of Units],A288),\"\")","v":""},null,null,null,null,null,null,null,{"$f":"IFERROR(INDEX(UnitsTbl[Average Sq Ft],A288),\"\")","v":""},null,null,null,{"$f":"IFERROR(INDEX(UnitsTbl[Net Rent],A288),\"\")","v":""},null,null,null,null,{"$f":"IFERROR(INDEX(UnitsTbl[Monthly Utility],A288),\"\")","v":""},null,null,null,null,{"$f":"IFERROR(INDEX(UnitsTbl[Targeted % AMI],A288),\"\")","v":0}]
[26,null,{"$f":"IFERROR(INDEX(UnitsTbl[Bedroom Type],A289),\"\")","v":""},null,null,null,null,{"$f":"IFERROR(INDEX(UnitsTbl[Number of Units],A289),\"\")","v":""},null,null,null,null,null,null,null,{"$f":"IFERROR(INDEX(UnitsTbl[Average Sq Ft],A289),\"\")","v":""},null,null,null,{"$f":"IFERROR(INDEX(UnitsTbl[Net Rent],A289),\"\")","v":""},null,null,null,null,{"$f":"IFERROR(INDEX(UnitsTbl[Monthly Utility],A289),\"\")","v":""},null,null,null,null,{"$f":"IFERROR(INDEX(UnitsTbl[Targeted % AMI],A289),\"\")","v":0}]
[27,null,{"$f":"IFERROR(INDEX(UnitsTbl[Bedroom Type],A290),\"\")","v":""},null,null,null,null,{"$f":"IFERROR(INDEX(UnitsTbl[Number of Units],A290),\"\")","v":""},null,null,null,null,null,null,null,{"$f":"IFERROR(INDEX(UnitsTbl[Average Sq Ft],A290),\"\")","v":""},null,null,null,{"$f":"IFERROR(INDEX(UnitsTbl[Net Rent],A290),\"\")","v":""},null,null,null,null,{"$f":"IFERROR(INDEX(UnitsTbl[Monthly Utility],A290),\"\")","v":""},null,null,null,null,{"$f":"IFERROR(INDEX(UnitsTbl[Targeted % AMI],A290),\"\")","v":0}]
[28,null,{"$f":"IFERROR(INDEX(UnitsTbl[Bedroom Type],A291),\"\")","v":""},null,null,null,null,{"$f":"IFERROR(INDEX(UnitsTbl[Number of Units],A291),\"\")","v":""},null,null,null,null,null,null,null,{"$f":"IFERROR(INDEX(UnitsTbl[Average Sq Ft],A291),\"\")","v":""},null,null,null,{"$f":"IFERROR(INDEX(UnitsTbl[Net Rent],A291),\"\")","v":""},null,null,null,null,{"$f":"IFERROR(INDEX(UnitsTbl[Monthly Utility],A291),\"\")","v":""},null,null,null,null,{"$f":"IFERROR(INDEX(UnitsTbl[Targeted % AMI],A291),\"\")","v":0}]
[29,null,{"$f":"IFERROR(INDEX(UnitsTbl[Bedroom Type],A292),\"\")","v":""},null,null,null,null,{"$f":"IFERROR(INDEX(UnitsTbl[Number of Units],A292),\"\")","v":""},null,null,null,null,null,null,null,{"$f":"IFERROR(INDEX(UnitsTbl[Average Sq Ft],A292),\"\")","v":""},null,null,null,{"$f":"IFERROR(INDEX(UnitsTbl[Net Rent],A292),\"\")","v":""},null,null,null,null,{"$f":"IFERROR(INDEX(UnitsTbl[Monthly Utility],A292),\"\")","v":""},null,null,null,null,{"$f":"IFERROR(INDEX(UnitsTbl[Targeted % AMI],A292),\"\")","v":0}]
[30,null,{"$f":"IFERROR(INDEX(UnitsTbl[Bedroom Type],A293),\"\")","v":""},null,null,null,null,{"$f":"IFERROR(INDEX(UnitsTbl[Number of Units],A293),\"\")","v":""},null,null,null,null,null,null,null,{"$f":"IFERROR(INDEX(UnitsTbl[Average Sq Ft],A293),\"\")","v":""},null,null,null,{"$f":"IFERROR(INDEX(UnitsTbl[Net Rent],A293),\"\")","v":""},null,null,null,null,{"$f":"IFERROR(INDEX(UnitsTbl[Monthly Utility],A293),\"\")","v":""},null,null,null,null,{"$f":"IFERROR(INDEX(UnitsTbl[Targeted % AMI],A293),\"\")","v":0}]
[31,null,{"$f":"IFERROR(INDEX(UnitsTbl[Bedroom Type],A294),\"\")","v":""},null,null,null,null,{"$f":"IFERROR(INDEX(UnitsTbl[Number of Units],A294),\"\")","v":""},null,null,null,null,null,null,null,{"$f":"IFERROR(INDEX(UnitsTbl[Average Sq Ft],A294),\"\")","v":""},null,null,null,{"$f":"IFERROR(INDEX(UnitsTbl[Net Rent],A294),\"\")","v":""},null,null,null,null,{"$f":"IFERROR(INDEX(UnitsTbl[Monthly Utility],A294),\"\")","v":""},null,null,null,null,{"$f":"IFERROR(INDEX(UnitsTbl[Targeted % AMI],A294),\"\")","v":0}]
[32,null,{"$f":"IFERROR(INDEX(UnitsTbl[Bedroom Type],A295),\"\")","v":""},null,null,null,null,{"$f":"IFERROR(INDEX(UnitsTbl[Number of Units],A295),\"\")","v":""},null,null,null,null,null,null,null,{"$f":"IFERROR(INDEX(UnitsTbl[Average Sq Ft],A295),\"\")","v":""},null,null,null,{"$f":"IFERROR(INDEX(UnitsTbl[Net Rent],A295),\"\")","v":""},null,null,null,null,{"$f":"IFERROR(INDEX(UnitsTbl[Monthly Utility],A295),\"\")","v":""},null,null,null,null,{"$f":"IFERROR(INDEX(UnitsTbl[Targeted % AMI],A295),\"\")","v":0}]
[33,null,{"$f":"IFERROR(INDEX(UnitsTbl[Bedroom Type],A296),\"\")","v":""},null,null,null,null,{"$f":"IFERROR(INDEX(UnitsTbl[Number of Units],A296),\"\")","v":""},null,null,null,null,null,null,null,{"$f":"IFERROR(INDEX(UnitsTbl[Average Sq Ft],A296),\"\")","v":""},null,null,null,{"$f":"IFERROR(INDEX(UnitsTbl[Net Rent],A296),\"\")","v":""},null,null,null,null,{"$f":"IFERROR(INDEX(UnitsTbl[Monthly Utility],A296),\"\")","v":""},null,null,null,null,{"$f":"IFERROR(INDEX(UnitsTbl[Targeted % AMI],A296),\"\")","v":0}]
[34,null,{"$f":"IFERROR(INDEX(UnitsTbl[Bedroom Type],A297),\"\")","v":""},null,null,null,null,{"$f":"IFERROR(INDEX(UnitsTbl[Number of Units],A297),\"\")","v":""},null,null,null,null,null,null,null,{"$f":"IFERROR(INDEX(UnitsTbl[Average Sq Ft],A297),\"\")","v":""},null,null,null,{"$f":"IFERROR(INDEX(UnitsTbl[Net Rent],A297),\"\")","v":""},null,null,null,null,{"$f":"IFERROR(INDEX(UnitsTbl[Monthly Utility],A297),\"\")","v":""},null,null,null,null,{"$f":"IFERROR(INDEX(UnitsTbl[Targeted % AMI],A297),\"\")","v":0}]
[35,null,{"$f":"IFERROR(INDEX(UnitsTbl[Bedroom Type],A298),\"\")","v":""},null,null,null,null,{"$f":"IFERROR(INDEX(UnitsTbl[Number of Units],A298),\"\")","v":""},null,null,null,null,null,null,null,{"$f":"IFERROR(INDEX(UnitsTbl[Average Sq Ft],A298),\"\")","v":""},null,null,null,{"$f":"IFERROR(INDEX(UnitsTbl[Net Rent],A298),\"\")","v":""},null,null,null,null,{"$f":"IFERROR(INDEX(UnitsTbl[Monthly Utility],A298),\"\")","v":""},null,null,null,null,{"$f":"IFERROR(INDEX(UnitsTbl[Targeted % AMI],A298),\"\")","v":0}]
[]
[null,null,null,null,"Number of Special Needs bedrooms filled above",null,null,null,null,null,null,null,null,null,null,null,null,null,null,{"$f":"INDEX(val,MATCH(\"g_BedroomsSpecialNeeds\",ref,0))","v":0},null,null,null,{"$f":"IF(ABS(T300-T301)>0,\"!\",\"\")","v":""},{"$f":"IF(X300=\"!\",\"Does not match number entered in e-app\",\"\")","v":""}]
[null,null,null,null,"Number of Special Needs bedrooms per E-App",null,null,null,null,null,null,null,null,null,null,null,null,null,null,{"$f":"INDEX(val,MATCH(\"g_eAppBedroomsSpN\",ref,0))","v":0}]
[null,null,null,null,"Number of Special Needs units filled above",null,null,null,null,null,null,null,null,null,null,null,null,null,null,{"$f":"INDEX(val,MATCH(\"g_UnitsSpecialNeeds\",ref,0))","v":0},null,null,null,{"$f":"IF(ABS(T302-T303)>0,\"!\",\"\")","v":""},{"$f":"IF(X302=\"!\",\"Does not match number entered in e-app\",\"\")","v":""}]
[null,null,null,null,"Number of Special Needs units per E-App",null,null,null,null,null,null,null,null,null,null,null,null,null,null,{"$f":"INDEX(val,MATCH(\"g_UnitsSpecialNeedsEapp\",ref,0))","v":0}]
[]
[null,"10325(g)(3)",null,null,null,null,null,"Housing type eligibility",null,null,null,null,null,null,null,null,null,null,null,null,null,null,null,null,null,null,null,null,null,null,null,null,null,null,null,{"$f":"IF(AND(AE308,AE309,OR(NOT(AE313),AE316,AND(AE322:AG323))),IsTrue,IsFalse)","v":"û"}]
[]
[null,null,null,null,null,null,null,null,null,null,null,null,null,null,null,null,null,"Low-Income Units:",{"$f":"INDEX(val,MATCH(\"g_UnitsLowIncome\",ref,0))","v":0}]
[null,null,null,null,null,null,null,null,null,null,null,null,null,null,null,null,null,"Low-Income Units serving Special Needs Population(s):",{"$f":"INDEX(val,MATCH(\"g_UnitsSpecialNeeds\",ref,0))","v":0},null,null,null,null,null,"Minimum:",{"$f":"IF(W311=\"Yes\",0,15)","v":15},null,null,null,null,{"$f":"S308>=Z308","v":false}]
[null,null,null,null,null,null,null,null,null,null,null,null,null,null,null,null,null,"Percentage:",{"$f":"IFERROR(S308/S307,0)","v":0},null,null,null,null,null,"Minimum:",0.25,null,null,null,null,{"$f":"S309>=Z309","v":false}]
[]
[null,null,"Does the project have committed HUD Section 811 funding?"]
[]
[null,null,"Developments with less than 75% special needs units must meet one of the following:",null,null,null,null,null,null,null,null,null,null,null,null,null,null,null,null,null,null,null,null,null,null,null,null,null,null,null,{"$f":"S309<75%","v":true}]
[]
[null,null,null,"(i) the non-special needs units meet the Large Family, Senior, or SRO housing type requirements, "]
[null,null,null,null,null,null,null,null,null,null,null,null,null,null,"Secondary housing type specified:",{"$f":"INDEX(val,MATCH(\"t_SecondaryHousingType\",ref,0))","v":"N/A"},null,null,null,null,null,null,null,null,null,null,null,null,null,null,{"$f":"P316=P317","v":false}]
[null,null,null,null,null,null,null,null,null,null,null,null,null,null,"Requirements to be met:"]
[]
[null,null,null,"(ii) the non-special needs Low-Income Units consist of at least 20% one-bedroom units and at least 10% larger than one-bedroom units."]
[]
[null,null,null,null,null,null,null,null,null,null,null,null,null,null,null,null,null,"Non-special needs Low-Income Units:",{"$f":"INDEX(val,MATCH(\"g_UnitsLowIncome\",ref,0))-INDEX(val,MATCH(\"g_UnitsSpecialNeeds\",ref,0))","v":0}]
[null,null,null,null,null,null,null,null,null,null,null,null,null,null,null,null,null,"That are 1-BR units:",{"$f":"SUMIFS(UnitsTbl[Number of Units],UnitsTbl[Bedroom Type],\"1 Bedroom\",UnitsTbl[Market Rate],\"\")-SUMIFS(UnitsTbl[Count SpN Units],UnitsTbl[Bedroom Type],\"1 Bedroom\",UnitsTbl[Market Rate],\"\")","v":0},null,null,{"$f":"IFERROR(S322/S321,0)","v":0},null,null,null,null,"Minimum:",0.2,null,null,{"$f":"V322>=AB322","v":false}]
[null,null,null,null,null,null,null,null,null,null,null,null,null,null,null,null,null,"That are greater than 1-BR units:",{"$f":"SUMIFS(UnitsTbl[Number of Units],UnitsTbl[Bedroom Type],\"2 Bedrooms\",UnitsTbl[Market Rate],\"\")+SUMIFS(UnitsTbl[Number of Units],UnitsTbl[Bedroom Type],\"3 Bedrooms\",UnitsTbl[Market Rate],\"\")+SUMIFS(UnitsTbl[Number of Units],UnitsTbl[Bedroom Type],\"4 Bedrooms\",UnitsTbl[Market Rate],\"\")+SUMIFS(UnitsTbl[Number of Units],UnitsTbl[Bedroom Type],\"5 Bedrooms\",UnitsTbl[Market Rate],\"\")-(SUMIFS(UnitsTbl[Count SpN Units],UnitsTbl[Bedroom Type],\"2 Bedrooms\",UnitsTbl[Market Rate],\"\")+SUMIFS(UnitsTbl[Count SpN Units],UnitsTbl[Bedroom Type],\"3 Bedrooms\",UnitsTbl[Market Rate],\"\")+SUMIFS(UnitsTbl[Count SpN Units],UnitsTbl[Bedroom Type],\"4 Bedrooms\",UnitsTbl[Market Rate],\"\")+SUMIFS(UnitsTbl[Count SpN Units],UnitsTbl[Bedroom Type],\"5 Bedrooms\",UnitsTbl[Market Rate],\"\"))","v":0},null,null,{"$f":"IFERROR(S323/S321,0)","v":0},null,null,null,null,"Minimum:",0.1,null,null,{"$f":"V323>=AB323","v":false}]
[]
[null,"10325(g)(3)(A)",null,null,null,null,null,"Average targeted income",null,null,null,null,null,null,null,null,null,null,null,null,null,null,null,null,null,null,null,null,null,null,null,null,null,null,null,{"$f":"IF(AB327<=AH327,IsTrue,IsFalse)","v":"ü"}]
[]
[null,null,"Special Needs Low-Income Units:",null,null,null,null,null,null,null,null,null,null,null,null,null,{"$f":"S308","v":0},null,null,null,null,null,null,null,null,null,"AMI Target Average:",{"$f":"Data!Q37","v":0},null,null,null,null,"Max.",0.4]
[]
[null,"10325(g)(3)(B)",null,null,null,null,null,"Unit/building configurations",null,null,null,null,null,null,null,null,null,null,null,null,null,null,null,null,null,null,null,null,null,null,null,null,null,null,null,{"$f":"IF(AE331=\"Acknowledged\",IsTrue,IsFalse)","v":"û"}]
[]
[null,null,"The units/building configurations (including community space) shall meet the specific needs of the population, including kitchen needs for SRO units without full kitchens."]
[]
[]
[null,"10325(g)(3)(C)",null,null,null,null,null,"Rental subsidy committed",null,null,null,null,null,null,null,null,null,null,null,null,null,null,null,null,null,null,null,null,null,null,null,null,null,null,null,{"$f":"IF(OR(AE336=\"Yes\",AND(C341<>\"\",C360<>\"\",SUM(R351:V356)>0,AB351,AB352,AB353,AB354,AB355,AB356)),IsTrue,IsFalse)","v":"û"}]
[]
[null,null,"Does the project have a public rental or operating subsidy committed for all \nspecial needs units?"]
[]
[]
[null,null,"Explain, using the market study for support, how rent for tenants living in unsubsidized units will not exceed 30% of the tenants’ incomes. Include market study page numbers for reference."]
[]
[]
[]
[]
[]
[]
[null,null,"Lowest Annual Income of Tenants",null,null,null,"Unit Type",null,null,null,null,null,null,"Lowest Monthly Income of Tenants",null,null,null,"Highest Unsubsidized Monthly Rent (Gross)",null,null,null,null,"Percentage of Income Used for Rent"]
[]
[]
[]
[null,null,"(a)",null,null,null,"(b)",null,null,null,null,null,null,"(c)",null,null,null,"(d)",null,null,null,null,{"$f":"\"(e)\"","v":"(e)"}]
[null,null,null,null,null,null,"0 Bedroom",null,null,null,null,null,null,{"$f":"C351/12","v":0},null,null,null,null,null,null,null,null,{"$f":"_xlfn.IFS(AND(N351=0,C351<>\"\"),\"!\",N351=0,\"\",TRUE,R351/N351)","v":""},null,null,null,{"$f":"IF(W351=\"!\",\"$0 income results in rent overburden without subsidy\",\"\")","v":""},{"$f":"IF(OR(AND(C351=\"\",R351=\"\"),W351<=30%),TRUE,FALSE)","v":true}]
[null,null,null,null,null,null,"1 Bedroom",null,null,null,null,null,null,{"$f":"C352/12","v":0},null,null,null,null,null,null,null,null,{"$f":"_xlfn.IFS(AND(N352=0,C352<>\"\"),\"!\",N352=0,\"\",TRUE,R352/N352)","v":""},null,null,null,"",true]
[null,null,null,null,null,null,"2 Bedroom",null,null,null,null,null,null,0,null,null,null,null,null,null,null,null,{"$f":"_xlfn.IFS(AND(N353=0,C353<>\"\"),\"!\",N353=0,\"\",TRUE,R353/N353)","v":""},null,null,null,"",true]
[null,null,null,null,null,null,"3 Bedroom",null,null,null,null,null,null,0,null,null,null,null,null,null,null,null,{"$f":"_xlfn.IFS(AND(N354=0,C354<>\"\"),\"!\",N354=0,\"\",TRUE,R354/N354)","v":""},null,null,null,"",true]
[null,null,null,null,null,null,"4 Bedroom",null,null,null,null,null,null,0,null,null,null,null,null,null,null,null,{"$f":"_xlfn.IFS(AND(N355=0,C355<>\"\"),\"!\",N355=0,\"\",TRUE,R355/N355)","v":""},null,null,null,"",true]
[null,null,null,null,null,null,"5 Bedroom",null,null,null,null,null,null,0,null,null,null,null,null,null,null,null,{"$f":"_xlfn.IFS(AND(N356=0,C356<>\"\"),\"!\",N356=0,\"\",TRUE,R356/N356)","v":""},null,null,null,"",true]
[]
[null,null,"Possible sources of income (as per the market study) for the target population generating at least the amounts in column (a) of the above table:"]
[]
[]
[]
[]
[]
[]
[null,"10325(g)(3)(D)",null,null,null,null,null,"Public agency or owner's equity financing",null,null,null,null,null,null,null,null,null,null,null,null,null,null,null,null,null,null,null,null,null,null,null,null,null,null,null,{"$f":"IF(OR(AD368:AF369),IsTrue,IsFalse)","v":"û"}]
[]
[null,null,"Total Project Costs:",null,null,null,null,null,null,null,null,null,null,null,null,null,{"$f":"INDEX(val,MATCH(\"g_TotalProjectCost\",ref,0))","v":0},null,null,null,null,null,null,null,null,null,null,null,null,null,null,null,"Minimum:"]
[null,null,"Public agency long-term financial support:",null,null,null,null,null,null,null,null,null,null,null,null,null,0,null,null,null,null,null,"Percentage:",null,null,null,{"$f":"IFERROR(Q368/Q367,0)","v":0},null,null,{"$f":"AA368>=AH368","v":false},null,null,null,0.15]
[null,null,"Owner's equity (including tax credit proceeds):",null,null,null,null,null,null,null,null,null,null,null,null,null,0,null,null,null,null,null,"Percentage:",null,null,null,{"$f":"IFERROR(Q369/Q367,0)","v":0},null,null,{"$f":"AA369>=AH369","v":false},null,null,null,0.3]
[]
[null,"10325(g)(3)(E)",null,null,null,null,null,"Adequate laundry facilities",null,null,null,null,null,null,null,null,null,null,null,null,null,null,null,null,null,null,null,null,null,null,null,null,null,null,null,{"$f":"IF(OR(S373=\"yes\",AND(AH374>=AH373,AH375>=AH373)),IsTrue,IsFalse)","v":"ü"}]
[]
[null,"   Are washers and dryers provided in each unit?",null,null,null,null,null,null,null,null,null,null,null,null,null,null,null,null,null,null,null,"Total Units:",null,null,null,{"$f":"IF(AND($N$7=\"Special Needs\",N8=\"Large Family\"),INDEX(val,MATCH(\"g_UnitsSpecialNeeds\",ref,0)),INDEX(val,MATCH(\"g_UnitsTotal\",ref,0)))","v":0},null,null,null,null,null,null,"Min required:",{"$f":"IF(AND($N$7=\"Special Needs\",$N$8=\"Large Family\"),ROUNDUP((INDEX(val,MATCH(\"g_UnitsTotal\",ref,0))-INDEX(val,MATCH(\"g_UnitsSpecialNeeds\",ref,0)))/10*(100%-Z374),0)+ROUNDUP((INDEX(val,MATCH(\"g_UnitsSpecialNeeds\",ref,0)))/15*(100%-Z374),0),ROUNDUP(Z373/15*(100%-Z374),0))","v":0}]
[null,null,null,null,null,null,null,null,null,null,null,null,null,null,null,null,null,"Are washer and dryer hookups provided in each unit?",null,null,null,"Reduction:",null,null,null,{"$f":"IF(S374=\"Yes\",25%,0%)","v":0},null,null,null,null,null,null,"Washers provided:"]
[null,null,null,null,null,null,null,null,null,null,null,null,null,null,null,null,null,null,null,null,null,null,null,null,null,null,null,null,null,null,null,null,"Dryers provided:"]
[null,null,"Note: If tenants are required to pay to use central laundry facilities, washers and dryers must be excluded from eligible basis. If no centralized laundry facilities are provided, washers and dryers shall be provided in each of the project’s units."]
[]
[]
[]
[null,"10325(g)(3)(F)",null,null,null,null,null,"Minimum low-income use period",null,null,null,null,null,null,null,null,null,null,null,null,null,null,null,null,null,null,null,null,null,null,null,null,null,null,null,{"$f":"IF(AE382=\"Acknowledged\",IsTrue,IsFalse)","v":"û"}]
[]
[null,null,"Special needs projects are subject to a minimum low-income use period of 55 years \n(50 years for projects located on tribal trust land)"]
[]
[]
[null,"10325(g)(3)(G)",null,null,null,null,null,"Minimum unit square footages",null,null,null,null,null,null,null,null,null,null,null,null,null,null,null,null,null,null,null,null,null,null,null,null,null,null,null,{"$f":"IF(OR(AF394=\"Yes\",AND(V390:X392)),IsTrue,IsFalse)","v":"ü"}]
[]
[null,null,"Smallest Sq. Ft. Proposed ",null,null,null,"Unit Type",null,null,null,null,null,null,"Minimum Sq. Ft.",null,null,null,"Count"]
[]
[]
[null,null,null,null,null,null,"1 Bedroom",null,null,null,null,null,null,450,null,null,null,{"$f":"IF(AND($N$7=\"Special Needs\",OR($N$8=\"Large Family\",$N$8=\"Seniors\")),INDEX(val,MATCH(\"g_SpNe1\",ref,0)),INDEX(val,MATCH(\"g_Units1\",ref,0)))","v":0},null,null,null,{"$f":"OR(R390=0,C390>=N390)","v":true}]
[null,null,null,null,null,null,"2 Bedroom",null,null,null,null,null,null,700,null,null,null,{"$f":"IF(AND($N$7=\"Special Needs\",OR($N$8=\"Large Family\",$N$8=\"Seniors\")),INDEX(val,MATCH(\"g_SpNe2\",ref,0)),INDEX(val,MATCH(\"g_Units2\",ref,0)))","v":0},null,null,null,{"$f":"OR(R391=0,C391>=N391)","v":true}]
[null,null,null,null,null,null,"3+ Bedroom",null,null,null,null,null,null,900,null,null,null,{"$f":"IF(AND($N$7=\"Special Needs\",OR($N$8=\"Large Family\",$N$8=\"Seniors\")),(INDEX(val,MATCH(\"g_SpNe3\",ref,0))+INDEX(val,MATCH(\"g_SpNe4\",ref,0))+INDEX(val,MATCH(\"g_SpNe5\",ref,0))),(INDEX(val,MATCH(\"g_Units3\",ref,0))+INDEX(val,MATCH(\"g_Units4\",ref,0))+INDEX(val,MATCH(\"g_Units5\",ref,0))))","v":0},null,null,null,{"$f":"OR(R392=0,C392>=N392)","v":true}]
[]
[null,null,"Applying as a rehabilitation project or received entitlements prior to 2016 and obtained a waiver:"]
[null,null,null,"Waivers should be saved as a standalone file in tab 4."]
[]
[null,"10325(g)(3)(H)",null,null,null,null,null,"Minimum SRO requirements",null,null,null,null,null,null,null,null,null,null,null,null,null,null,null,null,null,null,null,null,null,null,null,null,null,null,null,{"$f":"IF(AND(AH402,AH408),IsTrue,IsFalse)","v":"ü"}]
[]
[null,null,"Smallest proposed SRO unit square footage:",null,null,null,null,null,null,null,null,null,null,null,null,null,null,null,null,null,null,null,"Minimum:",200,null,null,null,{"$f":"OR($M$406=0,Q399>=X399)","v":true}]
[null,null,"Largest proposed SRO unit square footage:",null,null,null,null,null,null,null,null,null,null,null,null,null,null,null,null,null,null,null,"Maximum:",500,null,null,null,{"$f":"OR($M$406=0,Q400<=X400)","v":true}]
[]
[null,null,"Applying as a rehabilitation project or received entitlements prior to 2016 and obtained a waiver:",null,null,null,null,null,null,null,null,null,null,null,null,null,null,null,null,null,null,null,null,null,null,null,null,null,null,null,null,null,null,{"$f":"OR(AF402=\"Yes\",AND(AB399:AD400))","v":true}]
[null,null,null,"Waivers should be saved as a standalone file in tab 4."]
[]
[null,null,"Do the proposed SRO units each include private baths?"]
[null,null,null,null,null,null,null,null,null,null,null,"SRO Low Income Unit count:",{"$f":"INDEX(val,MATCH(\"g_Units0\",ref,0))","v":0}]
[null,null,null,null,null,null,null,null,null,null,null,"Requirement of one bath per ",8,null,null,"SRO units"]
[null,null,null,null,null,null,null,null,null,null,null,"Required baths for SRO units:",{"$f":"ROUNDUP(M406/M407,0)","v":0},null,null,null,null,null,null,null,null,null,null,null,null,null,null,null,null,"# of baths provided for SRO units:",null,null,null,{"$f":"OR(T405=\"Yes\",AE408>=M408)","v":true}]
[]
[null,"10325(g)(3)(I)",null,null,null,null,null,"Service provider contract/MOU",null,null,null,null,null,null,null,null,null,null,null,null,null,null,null,null,null,null,null,null,null,null,null,null,null,null,null,{"$f":"IF(L424=\"Complete supportive services plan provided\",IsTrue,IsFalse)","v":"û"}]
[]
[null,null,"A preliminary supportive service plan addressing the needs of the target Special Needs Population served is required and shall include:\n"]
[]
[null,null,null,null,"(i) \n","A description of the specific population to be served;"]
[null,null,null,null,"(ii)\n","A description of the specific service needs of the population and the specific services to be provided;"]
[null,null,null,null,"(iii)","Identification of the organization(s) that will provide services and a signed contract, memorandum of understanding, or commitment letters from the proposed service provider(s);"]
[]
[null,null,null,null,"(iv)\n","A description of how the services support resident stability and any other service plan objectives;"]
[null,null,null,null,"(v)\n","A preliminary budget describing anticipated income (all funding sources) and expenses associated with the services program; and"]
[]
[null,null,null,null,"(vi)","Other information deemed necessary by the Executive Director, whom determines whether the plan is adequate to qualify the project as a Special Needs project."]
[]
[]
[]
[]
[null,"10325(g)(3)(J)",null,null,null,null,null,"Senior housing requirements",null,null,null,null,null,null,null,null,null,null,null,null,null,null,null,null,null,null,null,null,null,null,null,null,null,null,null,{"$f":"IF(OR(AA428=\"No\",AND(OR(M435=\"Yes\",Z433>=Z432),AE439>\"\")),IsTrue,IsFalse)","v":"û"}]
[]
[null,null,"Will the project be operated as senior housing pursuant to Fair Housing Laws?"]
[]
[null,null,"Project type:",null,null,null,null,{"$f":"IF(OR(INDEX(val,MATCH(\"t_IsNewConstruction\",ref,0)),INDEX(val,MATCH(\"t_IsAdaptiveReuse\",ref,0))),\"New Construction\",\"Rehabilitation\")","v":"Rehabilitation"},null,null,null,null,null,null,null,null,null,null,null,null,null,null,null,null,"Required percentage:",{"$f":"IF(H430=\"New Construction\",50%,25%)","v":0.25}]
[null,null,null,null,null,null,null,null,null,null,null,null,null,null,null,null,null,null,null,null,null,null,null,null,"Low-Income Units:",{"$f":"IF(AND($N$7=\"Special Needs\",$N$8=\"Seniors\"),INDEX(val,MATCH(\"g_UnitsLowIncome\",ref,0))-INDEX(val,MATCH(\"g_UnitsSpecialNeeds\",ref,0)),INDEX(val,MATCH(\"g_UnitsLowIncome\",ref,0)))","v":0},null,null,{"$f":"IF(AND($N$7=\"Special Needs\",$N$8=\"Seniors\",$T$300=0),\"!\",\"\")","v":""},{"$f":"IF(AC431=\"!\",\"Complete primary housing type first\",\"\")","v":""}]
[null,null,null,null,null,null,null,null,null,null,null,null,null,null,null,null,null,null,null,null,null,null,null,null,"Required Housing Units with Mobility Features:",{"$f":"ROUNDUP(Z430*Z431,0)","v":0}]
[null,null,null,null,null,null,null,null,null,null,null,null,null,null,null,null,null,null,null,null,null,null,null,null,"Proposed Housing Units with Mobility Features:"]
[]
[null,null,"Obtained a full or partial waiver:"]
[null,null,null,"Waivers should be saved as a standalone file in tab 4."]
[]
[null,null,"Access to all common areas and housing units within each building shall be provided\nwithout the required use of stairs, either by means of an elevator or sloped walking\nramps, consistent with the senior housing requirements of California Civil Code,\nsections 51.2-51.4 (Unruh Act) and Government Code, section 12955.9"]
[]
[]
[]
[]
[null,"10325(g)(3)(K)",null,null,null,null,null,"Housing First",null,null,null,null,null,null,null,null,null,null,null,null,null,null,null,null,null,null,null,null,null,null,null,null,null,null,null,{"$f":"IF(AE445=\"Acknowledged\",IsTrue,IsFalse)","v":"û"}]
[]
[null,null,"Special Needs projects must follow tenant screening, property management, and service delivery practices in accordance with Housing First."]
[]
[]
[null,null,null,null,null,null,null,"Additional comments - Special Needs",null,null,null,null,null,null,null,null,null,null,null,null,null,null,null,null,null,null,null,null,null,null,null,null,null,null,null,{"$f":"IsTrue","v":"ü"}]
[]
[]
[]
[]
[]
["At-Risk - 10325(g)(4)"]
[]
[null,"10325(g)(4)",null,null,null,null,null,"Housing type eligibility and minimum low-income use period",null,null,null,null,null,null,null,null,null,null,null,null,null,null,null,null,null,null,null,null,null,null,null,null,null,null,null,{"$f":"IF(AND(AE458=\"Yes\",AE461=\"Acknowledged\"),IsTrue,IsFalse)","v":"û"}]
[]
[null,null,"Does the project meet the requirements of R & T Code subsection 17058(c)(6), except as further defined in CTCAC regulation 10325(g)(4)(B)(i)?"]
[]
[]
[null,null,"At-Risk projects are subject to a minimum low-income use period of 55 years\n(50 years for projects located on tribal trust land)"]
[]
[]
[null,"10325(g)(4)(B)(i)",null,null,null,null,null,"At-Risk eligibility",null,null,null,null,null,null,null,null,null,null,null,null,null,null,null,null,null,null,null,null,null,null,null,null,null,null,null,{"$f":"IF(AND(OR(AE466=\"Provided\",AE470=\"Yes\"),AE474=\"Provided\",AE478=\"No\"),IsTrue,IsFalse)","v":"û"}]
[]
[null,null,"Before applying for Tax Credits, the project must meet the At-risk eligibility requirements under the terms of applicable federal and state law as verified by a third party legal opinion."]
[]
[]
[]
[null,null,"Project is applying for the exception for the property being acquired by a qualified nonprofit organization within the past five years of the date of application with interim financing in order to preserve its affordability."]
[]
[]
[]
[null,null,"The application must include documentation that the project is at-risk of losing affordability on at least 50% of the restricted units due to market or other conditions."]
[]
[]
[null,null,"Is the project subject to a rent restriction with a remaining term of at least five years* that restricts incomes and rents on the restricted units to an average no greater than 60% of AMI?"]
[]
[]
[null,null,null,"*Excluding any restrictions recorded pursuant to either Government Code section 65863.11(e)(2) or 65863.13"]
[]
[]
[null,"10325(g)(4)(B)(ii)",null,null,null,null,null,"Recent government assistance/restrictions",null,null,null,null,null,null,null,null,null,null,null,null,null,null,null,null,null,null,null,null,null,null,null,null,null,null,null,{"$f":"IF(AND(AE485=\"Provided\",OR(AE488=\"Yes\",AE492=\"Yes\",AE495=\"Yes\",AE501=\"Yes\")),IsTrue,IsFalse)","v":"û"}]
[]
[null,null,"The application must include verification via a third party legal opinion, the project currently possesses or has had within the past five years from the date of application, either:"]
[]
[]
[null,null,"(1)","federal mortgage insurance, a federal loan guarantee, federal project-based rental assistance, or, have its mortgage held by a federal agency, or be owned by a federal agency; or"]
[]
[]
[]
[null,null,"(2)","loans or grants program administered by the Department of Housing and Community Development (HCD); or"]
[]
[]
[null,null,"(3)","be currently subject to, or have been subject to, within five years preceding the application deadline, the later of Federal or State Housing Tax Credit restrictions whose compliance period is expiring or has expired within the last five years and at least 50% of whose units are not subject to any other rental restrictions beyond the term of the Tax Credit restrictions; or"]
[]
[]
[]
[]
[]
[null,null,"(4)","be currently subject to, or have been subject to, within five years preceding the application deadline, California Debt Limit Allocation Committee (CDLAC) bond regulatory agreement restrictions whose compliance period is expiring or has expired within the last five years and at least 50% of whose units are not subject to any other rental restrictions beyond the term of the CDLAC restrictions;"]
[]
[]
[]
[]
[]
[null,"10325(g)(4)(B)(iii)",null,null,null,null,null,"Seeking to continue as affordable housing",null,null,null,null,null,null,null,null,null,null,null,null,null,null,null,null,null,null,null,null,null,null,null,null,null,null,null,{"$f":"IF(AE509=\"Provided\",IsTrue,IsFalse)","v":"û"}]
[]
[null,null,"The application must include verification the applicant has sought available federal incentives to continue the project as low-income housing, including, direct loans, loan forgiveness, grants, rental subsidies, renewal of existing rental subsidy contracts, etc."]
[]
[]
[]
[null,"10325(g)(4)(B)(iv)",null,null,null,null,null,"Subsidy contract expiration",null,null,null,null,null,null,null,null,null,null,null,null,null,null,null,null,null,null,null,null,null,null,null,null,null,null,null,{"$f":"IF(OR(AE515=\"Provided\",AE519=\"Yes\"),IsTrue,IsFalse)","v":"û"}]
[]
[null,null,"Subsidy contract expiration, mortgage prepayment eligibility, or the expiration of Housing Tax Credit restrictions, as verified by a third party legal opinion, shall occur no later than five calendar years after the year in which the application is filed."]
[]
[]
[]
[null,null,"Applying for an exception where a qualified nonprofit organization acquired the property within the terms of (i) above and would otherwise meet this condition but for: 1) long-term use restrictions imposed by public agencies as a condition of their acquisition financing; or 2) HAP contract renewals secured by the qualified nonprofit organization for the maximum term available subsequent to acquisition;"]
[]
[]
[]
[]
[]
[null,"10325(g)(4)(B)(v)",null,null,null,null,null,"Subsidy contract renewal",null,null,null,null,null,null,null,null,null,null,null,null,null,null,null,null,null,null,null,null,null,null,null,null,null,null,null,{"$f":"IF(AE527=\"Agreed\",IsTrue,IsFalse)","v":"û"}]
[]
[null,null,"If applicable, the applicant agrees to renew all project based rental subsidies (such as Section 8 HAP or Section 521 rental assistance contracts) for the maximum term available and shall seek additional renewals throughout the project's useful life."]
[]
[]
[]
[null,"10325(g)(4)(B)(vi)",null,null,null,null,null,"Subsidy contract renewal",null,null,null,null,null,null,null,null,null,null,null,null,null,null,null,null,null,null,null,null,null,null,null,null,null,null,null,{"$f":"IF(AND(AC537,AE539=\"Provided\"),IsTrue,IsFalse)","v":"û"}]
[]
[null,null,"At the time of application, as evidenced by tenant data provided with the application, what percentage of the project tenants have incomes at or below 60% of area median income (AMI)?"]
[]
[]
[null,null,"  Tenants of the project:",null,null,null,null,null,null,null,null,null,null,null,null,null,null,null,null,null,null,null,null,null,null,"Required percentage:",0.7]
[null,null,null,null,null,null,null,null,null,null,null,null,null,null,null,"Tenants with incomes at or below 60% AMI:",null,null,null,null,null,null,null,null,null,"Actual percentage:",{"$f":"IFERROR(Q537/Q536,0)","v":0},null,{"$f":"AA537>=AA536","v":false}]
[]
[null,null,"Tenant data has been provided, including all existing income, rent, and household size information."]
[]
[]
[null,"10325(g)(4)(B)(vii)",null,null,null,null,null,"Gap analysis",null,null,null,null,null,null,null,null,null,null,null,null,null,null,null,null,null,null,null,null,null,null,null,null,null,null,null,{"$f":"IF(AND(R545<>\"\",AG546),IsTrue,IsFalse)","v":"û"}]
[]
[null,null,null,null,null,null,null,null,null,null,null,null,null,null,null,null,"Total development costs (excluding developer fee):",{"$f":"INDEX(val,MATCH(\"g_TotalProjectCost\",ref,0))-INDEX(val,MATCH(\"t_TotalDeveloperFee\",ref,0))","v":0}]
[null,null,null,null,null,null,null,null,null,null,null,null,null,null,null,null,"Loans and grants (excluding tax credit proceeds):",null,null,null,null,null,null,null,null,null,null,null,null,"Required percentage:",0.15]
[null,"   Resulting gap between the two:",null,null,null,null,null,null,null,null,null,null,null,null,null,null,null,{"$f":"MAX(0,R544-R545)","v":0},null,null,null,null,null,null,null,null,null,null,null,"Actual percentage:",{"$f":"IFERROR(R546/R544,0)","v":0},null,{"$f":"AE546>=AE545","v":false}]
[]
[null,"10325(g)(4)(B)(viii)",null,null,null,null,null,"Public agency or owner's equity financing",null,null,null,null,null,null,null,null,null,null,null,null,null,null,null,null,null,null,null,null,null,null,null,null,null,null,null,{"$f":"IF(OR(AE551:AG552),IsTrue,IsFalse)","v":"û"}]
[]
[null,null,"Total Project Costs:",null,null,null,null,null,null,null,null,null,null,null,null,null,null,{"$f":"Q99","v":0}]
[null,null,"Public agency long-term financial support:",null,null,null,null,null,null,null,null,null,null,null,null,null,null,null,null,null,null,null,null,null,"Percentage:",null,null,null,{"$f":"IFERROR(R551/R550,0)","v":0},null,{"$f":"AC551>=AH551","v":false},null,null,0.15]
[null,null,"Owner's equity (including tax credit proceeds):",null,null,null,null,null,null,null,null,null,null,null,null,null,null,null,null,null,null,null,null,null,"Percentage:",null,null,null,{"$f":"IFERROR(R552/R550,0)","v":0},null,{"$f":"AC552>=AH552","v":false},null,null,0.3]
[]
[null,null,null,null,null,null,null,"Additional comments - At-Risk",null,null,null,null,null,null,null,null,null,null,null,null,null,null,null,null,null,null,null,null,null,null,null,null,null,null,null,{"$f":"IsTrue","v":"ü"}]
[]
[]
[]
[]
[]
["SRO - 10325(g)(5)"]
[]
[null,"10325(g)(5)(A)",null,null,null,null,null,"Average Targeted Income",null,null,null,null,null,null,null,null,null,null,null,null,null,null,null,null,null,null,null,null,null,null,null,null,null,null,null,{"$f":"IF(V565,IsTrue,IsFalse)","v":"ü"}]
[]
[null,null,"Low-Income Units:",null,null,null,null,null,{"$f":"INDEX(val,MATCH(\"g_UnitsLowIncome\",ref,0))","v":0},null,null,null,null,null,null,null,null,"Average Targeted AMI:",{"$f":"IFERROR(INDEX(val,MATCH(\"t_AvgAMITarget\",ref,0)),\"\")","v":0}]
[null,null,null,null,null,null,null,null,null,null,null,null,null,null,null,null,null,"Maximum:",0.4,null,null,{"$f":"S564<=S565","v":true}]
[]
[null,"10325(g)(5)(B)",null,null,null,null,null,"Minimum SRO requirements",null,null,null,null,null,null,null,null,null,null,null,null,null,null,null,null,null,null,null,null,null,null,null,null,null,null,null,{"$f":"IF(AND(V570,OR(AND(AC572:AE573),AH575)),IsTrue,IsFalse)","v":"û"}]
[]
[null,null,"All rental units:",null,null,null,null,null,{"$f":"INDEX(val,MATCH(\"g_UnitsTotal\",ref,0))","v":0},null,null,null,null,null,null,null,null,"Minimum:",0.9]
[null,null,"SRO units:",null,null,null,null,null,{"$f":"INDEX(val,MATCH(\"g_Units0\",ref,0))","v":0},null,null,null,null,null,null,null,null,"Percentage:",{"$f":"IFERROR(I570/I569,0)","v":0},null,null,{"$f":"S570>=S569","v":false}]
[]
[null,null,"Smallest proposed SRO unit square footage:",null,null,null,null,null,null,null,null,null,null,null,null,null,null,null,null,null,null,null,null,"Minimum:",200,null,null,null,{"$f":"OR($M$406=0,R572>=Y572)","v":true}]
[null,null,"Largest proposed SRO unit square footage:",null,null,null,null,null,null,null,null,null,null,null,null,null,null,null,null,null,null,null,null,"Maximum:",500,null,null,null,{"$f":"OR($M$406=0,R573<=Y573)","v":true}]
[]
[null,null,"Applying as a rehabilitation project or received entitlements prior to 2016 and obtained a waiver:",null,null,null,null,null,null,null,null,null,null,null,null,null,null,null,null,null,null,null,null,null,null,null,null,null,null,null,null,null,null,{"$f":"OR(AF575=\"Yes\",AND(AC572:AE573))","v":true}]
[null,null,null,"Waivers should be saved as a standalone file in tab 4."]
[]
[null,"10325(g)(5)(C)",null,null,null,null,null,"Bathroom requirements",null,null,null,null,null,null,null,null,null,null,null,null,null,null,null,null,null,null,null,null,null,null,null,null,null,null,null,{"$f":"IF(AH582,IsTrue,IsFalse)","v":"ü"}]
[]
[null,null,"SRO Low Income Unit count:",null,null,null,null,null,null,null,null,{"$f":"INDEX(val,MATCH(\"g_Units0\",ref,0))","v":0}]
[null,null,"Requirement of one bath per",null,null,null,null,null,null,null,null,8,null,null,"SRO units"]
[null,null,null,null,null,null,null,null,null,null,"Required baths for SRO units:",{"$f":"ROUNDUP(L580/L581,0)","v":0},null,null,null,null,null,null,null,null,null,null,null,null,null,null,null,null,null,"# of baths provided for SRO units:",null,null,null,{"$f":"OR(AE582>=L582)","v":true}]
[]
[null,"10325(g)(5)(D)",null,null,null,null,null,"Rental subsidy committed",null,null,null,null,null,null,null,null,null,null,null,null,null,null,null,null,null,null,null,null,null,null,null,null,null,null,null,{"$f":"IF(OR(AE586=\"Yes\",AND(C590<>\"\",C609<>\"\",SUM(R600:V605)>0,AB600,AB601,AB602,AB603,AB604,AB605)),IsTrue,IsFalse)","v":"û"}]
[]
[null,null,"Does the project have a public rental or operating subsidy committed for all SRO units?"]
[]
[null,null,"Explain, using the market study for support, how rent for tenants living in unsubsidized units will not exceed 30% of the tenants’ incomes. Include market study page numbers for reference."]
[]
[]
[]
[]
[]
[]
[null,null,"Lowest Annual Income of Tenants",null,null,null,"Unit Type",null,null,null,null,null,null,"Lowest Monthly Income of Tenants",null,null,null,"Highest Unsubsidized Monthly Rent (Gross)",null,null,null,null,"Percentage of Income Used for Rent"]
[]
[]
[]
[null,null,"(a)",null,null,null,"(b)",null,null,null,null,null,null,"(c)",null,null,null,"(d)",null,null,null,null,{"$f":"\"(e)\"","v":"(e)"}]
[null,null,null,null,null,null,"0 Bedroom",null,null,null,null,null,null,{"$f":"C600/12","v":0},null,null,null,null,null,null,null,null,{"$f":"_xlfn.IFS(AND(N600=0,C600<>\"\"),\"!\",N600=0,\"\",TRUE,R600/N600)","v":""},null,null,null,{"$f":"IF(W600=\"!\",\"$0 income results in rent overburden without subsidy\",\"\")","v":""},{"$f":"IF(OR(AND(C600=\"\",R600=\"\"),W600<=30%),TRUE,FALSE)","v":true}]
[null,null,null,null,null,null,"1 Bedroom",null,null,null,null,null,null,{"$f":"C601/12","v":0},null,null,null,null,null,null,null,null,{"$f":"_xlfn.IFS(AND(N601=0,C601<>\"\"),\"!\",N601=0,\"\",TRUE,R601/N601)","v":""},null,null,null,"",true]
[null,null,null,null,null,null,"2 Bedroom",null,null,null,null,null,null,0,null,null,null,null,null,null,null,null,{"$f":"_xlfn.IFS(AND(N602=0,C602<>\"\"),\"!\",N602=0,\"\",TRUE,R602/N602)","v":""},null,null,null,"",true]
[null,null,null,null,null,null,"3 Bedroom",null,null,null,null,null,null,0,null,null,null,null,null,null,null,null,{"$f":"_xlfn.IFS(AND(N603=0,C603<>\"\"),\"!\",N603=0,\"\",TRUE,R603/N603)","v":""},null,null,null,"",true]
[null,null,null,null,null,null,"4 Bedroom",null,null,null,null,null,null,0,null,null,null,null,null,null,null,null,{"$f":"_xlfn.IFS(AND(N604=0,C604<>\"\"),\"!\",N604=0,\"\",TRUE,R604/N604)","v":""},null,null,null,"",true]
[null,null,null,null,null,null,"5 Bedroom",null,null,null,null,null,null,0,null,null,null,null,null,null,null,null,{"$f":"_xlfn.IFS(AND(N605=0,C605<>\"\"),\"!\",N605=0,\"\",TRUE,R605/N605)","v":""},null,null,null,"",true]
[]
[null,null,"Possible sources of income (as per the market study) for the target population generating at least the amounts in column (a) of the above table:"]
[]
[]
[]
[]
[]
[null,"10325(g)(5)(E)",null,null,null,null,null,"Project configuration",null,null,null,null,null,null,null,null,null,null,null,null,null,null,null,null,null,null,null,null,null,null,null,null,null,null,null,{"$f":"IF(AE615=\"Acknowledged\",IsTrue,IsFalse)","v":"û"}]
[]
[null,null,"The project configuration, including community space and kitchen facilities, shall meet the needs of the population, and comply with Section 10325(f)(7)(E)."]
[]
[]
[null,"10325(g)(5)(F)",null,null,null,null,null,"Public agency or owner's equity financing",null,null,null,null,null,null,null,null,null,null,null,null,null,null,null,null,null,null,null,null,null,null,null,null,null,null,null,{"$f":"IF(OR(AE621:AG622),IsTrue,IsFalse)","v":"û"}]
[]
[null,null,"Total Project Costs:",null,null,null,null,null,null,null,null,null,null,null,null,null,null,{"$f":"Q99","v":0}]
[null,null,"Public agency long-term financial support:",null,null,null,null,null,null,null,null,null,null,null,null,null,null,0,null,null,null,null,null,null,"Percentage:",null,null,null,{"$f":"IFERROR(R621/R620,0)","v":0},null,{"$f":"AC621>=AH621","v":false},null,null,0.15]
[null,null,"Owner's equity (including tax credit proceeds):",null,null,null,null,null,null,null,null,null,null,null,null,null,null,0,null,null,null,null,null,null,"Percentage:",null,null,null,{"$f":"IFERROR(R622/R620,0)","v":0},null,{"$f":"AC622>=AH622","v":false},null,null,0.3]
[]
[null,"10325(g)(5)(G)",null,null,null,null,null,"Adequate laundry facilities",null,null,null,null,null,null,null,null,null,null,null,null,null,null,null,null,null,null,null,null,null,null,null,null,null,null,null,{"$f":"IF(AND(AH627>=AH626,AH628>=AH626),IsTrue,IsFalse)","v":"ü"}]
[]
[null,null,null,null,null,null,null,null,null,null,null,null,null,null,null,null,null,"Are washer and dryer hookups provided in each unit?  ",null,null,null,"Total Units:",null,null,null,{"$f":"INDEX(val,MATCH(\"g_UnitsTotal\",ref,0))","v":0},null,null,null,null,null,null,"Min required:",{"$f":"ROUNDUP(Z626/15*(100%-Z627),0)","v":0}]
[null,null,null,null,null,null,null,null,null,null,null,null,null,null,null,null,null,null,null,null,null,"Reduction:",null,null,null,{"$f":"IF(S626=\"Yes\",25%,0%)","v":0},null,null,null,null,null,null,"Washers provided:"]
[null,null,null,null,null,null,null,null,null,null,null,null,null,null,null,null,null,null,null,null,null,null,null,null,null,null,null,null,null,null,null,null,"Dryers provided:"]
[null,null,"Note: If tenants are required to pay to use central laundry facilities, washers and dryers must be excluded from eligible basis. If no centralized laundry facilities are provided, washers and dryers shall be provided in each of the project’s units."]
[]
[]
[]
[null,"10325(g)(5)(H)",null,null,null,null,null,"Minimum low-income use period",null,null,null,null,null,null,null,null,null,null,null,null,null,null,null,null,null,null,null,null,null,null,null,null,null,null,null,{"$f":"IF(AE635=\"Acknowledged\",IsTrue,IsFalse)","v":"û"}]
[]
[null,null,"SRO projects are subject to a minimum low-income use period of 55 years\n(50 years for projects located on tribal trust land)"]
[]
[]
[null,"10325(g)(5)(I)",null,null,null,null,null,"Vacancy assumptions",null,null,null,null,null,null,null,null,null,null,null,null,null,null,null,null,null,null,null,null,null,null,null,null,null,null,null,{"$f":"IF(OR(Z640=\"Yes\",AND(Z641=\"Yes\",Z642=\"Yes\")),IsTrue,IsFalse)","v":"û"}]
[]
[null,null,"Is the project cash flow using a 10% vacancy rate for rental income?"]
[null,null,"Was a different vacancy rate approved by the CTCAC Executive Director?"]
[null,null,"Is justification of the lower vacancy rate provided?"]
[null,null,null,"Justification should be saved as a standalone file in tab 4."]
[]
[null,"10325(g)(5)(J)",null,null,null,null,null,"Senior housing prohibition",null,null,null,null,null,null,null,null,null,null,null,null,null,null,null,null,null,null,null,null,null,null,null,null,null,null,null,{"$f":"IF(NOT(AND(M647=\"Yes\",M648=\"Yes\")),IsTrue,IsFalse)","v":"ü"}]
[]
[null,null,"Is the project new construction?",null,null,null,null,null,null,null,null,null,{"$f":"IF(V647=\"New Construction\",\"Yes\",\"No\")","v":"No"},null,null,null,null,null,null,null,"Project type:",{"$f":"IF(OR(INDEX(val,MATCH(\"t_IsNewConstruction\",ref,0)),INDEX(val,MATCH(\"t_IsAdaptiveReuse\",ref,0))),\"New Construction\",\"Rehabilitation\")","v":"Rehabilitation"}]
[null,null,"Is the project age restricted?",null,null,null,null,null,null,null,null,null,null,null,null,null,null,null,null,null,null,null,"Age restricted units:"]
[]
[null,null,null,null,null,null,null,"Additional comments - SRO",null,null,null,null,null,null,null,null,null,null,null,null,null,null,null,null,null,null,null,null,null,null,null,null,null,null,null,{"$f":"IsTrue","v":"ü"}]
[]
[]
[]
[]
[]
[null,null,null,null,null,null,null,null,null,null,null,null,null,null,null,null,null,null,null,null,null,null,null,null,null,null,null,null,null,null,null,null,null,null,null,null,null,null,{"$f":"HYPERLINK(\"#AM1\",\"Home\")","v":"Home"}]

{"sheet":"Parcels","index":2,"n_rows":16,"n_cols":18,"rows_kept":16,"cut":false,"hidden":false,"merged":[[0,9,0,11],[0,3,0,6],[0,1,0,2]]}
[{"$f":"CONCATENATE(\"Count of Parcels: \"&COUNTA(ParcelsTbl[Accessor''s Parcel Number]))","v":"Count of Parcels: 1"},{"$f":"CONCATENATE(\"Total Sq. Ft.: \"&SUM(ParcelsTbl[Square Feet]))","v":"Total Sq. Ft.: 0"},null,"Click this button to show or hide Site Control tabs for each ID in the table",null,null,null,null,null,"Instructions for Parcels tab »"]
["Accessor's Parcel Number","Square Feet","Owner on Title Report","Current Use","Site Control ID"]
[null,null,null,null,1]
[null,null,null,null,2]
[null,null,null,null,3,null,null,null,null,{"$f":"COUNTIFS(ParcelsTbl[Site Control ID],K5)>=1","v":true},1,null,{"$f":"IF(R5=\"\",\"\",LEFT(R5,LEN(R5)-2))","v":"0"},null,null,null,null,{"$f":"CONCATENATE(IF(Lists!AP2=\"\",\"\",Lists!AP2&\", \"),IF(Lists!AP3=\"\",\"\",Lists!AP3&\", \"),IF(Lists!AP4=\"\",\"\",Lists!AP4&\", \"),IF(Lists!AP5=\"\",\"\",Lists!AP5&\", \"),IF(Lists!AP6=\"\",\"\",Lists!AP6&\", \"),IF(Lists!AP7=\"\",\"\",Lists!AP7&\", \"),IF(Lists!AP8=\"\",\"\",Lists!AP8&\", \"),IF(Lists!AP9=\"\",\"\",Lists!AP9&\", \"),IF(Lists!AP10=\"\",\"\",Lists!AP10&\", \"),IF(Lists!AP11=\"\",\"\",Lists!AP11&\", \"),IF(Lists!AP12=\"\",\"\",Lists!AP12&\", \"),IF(Lists!AP13=\"\",\"\",Lists!AP13&\", \"),IF(Lists!AP14=\"\",\"\",Lists!AP14&\", \"),IF(Lists!AP15=\"\",\"\",Lists!AP15&\", \"))","v":"0, "}]
[null,null,null,null,4,null,null,null,null,{"$f":"COUNTIFS(ParcelsTbl[Site Control ID],K6)>=1","v":true},2,null,{"$f":"IF(R6=\"\",\"\",LEFT(R6,LEN(R6)-2))","v":"0"},null,null,null,null,{"$f":"CONCATENATE(IF(Lists!AQ2=\"\",\"\",Lists!AQ2&\", \"),IF(Lists!AQ3=\"\",\"\",Lists!AQ3&\", \"),IF(Lists!AQ4=\"\",\"\",Lists!AQ4&\", \"),IF(Lists!AQ5=\"\",\"\",Lists!AQ5&\", \"),IF(Lists!AQ6=\"\",\"\",Lists!AQ6&\", \"),IF(Lists!AQ7=\"\",\"\",Lists!AQ7&\", \"),IF(Lists!AQ8=\"\",\"\",Lists!AQ8&\", \"),IF(Lists!AQ9=\"\",\"\",Lists!AQ9&\", \"),IF(Lists!AQ10=\"\",\"\",Lists!AQ10&\", \"),IF(Lists!AQ11=\"\",\"\",Lists!AQ11&\", \"),IF(Lists!AQ12=\"\",\"\",Lists!AQ12&\", \"),IF(Lists!AQ13=\"\",\"\",Lists!AQ13&\", \"),IF(Lists!AQ14=\"\",\"\",Lists!AQ14&\", \"),IF(Lists!AQ15=\"\",\"\",Lists!AQ15&\", \"))","v":"0, "}]
[null,null,null,null,5,null,null,null,null,{"$f":"COUNTIFS(ParcelsTbl[Site Control ID],K7)>=1","v":true},3,null,{"$f":"IF(R7=\"\",\"\",LEFT(R7,LEN(R7)-2))","v":"0"},null,null,null,null,{"$f":"CONCATENATE(IF(Lists!AR2=\"\",\"\",Lists!AR2&\", \"),IF(Lists!AR3=\"\",\"\",Lists!AR3&\", \"),IF(Lists!AR4=\"\",\"\",Lists!AR4&\", \"),IF(Lists!AR5=\"\",\"\",Lists!AR5&\", \"),IF(Lists!AR6=\"\",\"\",Lists!AR6&\", \"),IF(Lists!AR7=\"\",\"\",Lists!AR7&\", \"),IF(Lists!AR8=\"\",\"\",Lists!AR8&\", \"),IF(Lists!AR9=\"\",\"\",Lists!AR9&\", \"),IF(Lists!AR10=\"\",\"\",Lists!AR10&\", \"),IF(Lists!AR11=\"\",\"\",Lists!AR11&\", \"),IF(Lists!AR12=\"\",\"\",Lists!AR12&\", \"),IF(Lists!AR13=\"\",\"\",Lists!AR13&\", \"),IF(Lists!AR14=\"\",\"\",Lists!AR14&\", \"),IF(Lists!AR15=\"\",\"\",Lists!AR15&\", \"))","v":"0, "}]
[null,null,null,null,null,null,null,null,null,{"$f":"COUNTIFS(ParcelsTbl[Site Control ID],K8)>=1","v":true},4,null,{"$f":"IF(R8=\"\",\"\",LEFT(R8,LEN(R8)-2))","v":"0"},null,null,null,null,{"$f":"CONCATENATE(IF(Lists!AS2=\"\",\"\",Lists!AS2&\", \"),IF(Lists!AS3=\"\",\"\",Lists!AS3&\", \"),IF(Lists!AS4=\"\",\"\",Lists!AS4&\", \"),IF(Lists!AS5=\"\",\"\",Lists!AS5&\", \"),IF(Lists!AS6=\"\",\"\",Lists!AS6&\", \"),IF(Lists!AS7=\"\",\"\",Lists!AS7&\", \"),IF(Lists!AS8=\"\",\"\",Lists!AS8&\", \"),IF(Lists!AS9=\"\",\"\",Lists!AS9&\", \"),IF(Lists!AS10=\"\",\"\",Lists!AS10&\", \"),IF(Lists!AS11=\"\",\"\",Lists!AS11&\", \"),IF(Lists!AS12=\"\",\"\",Lists!AS12&\", \"),IF(Lists!AS13=\"\",\"\",Lists!AS13&\", \"),IF(Lists!AS14=\"\",\"\",Lists!AS14&\", \"),IF(Lists!AS15=\"\",\"\",Lists!AS15&\", \"))","v":"0, "}]
[null,null,null,null,null,null,null,null,null,{"$f":"COUNTIFS(ParcelsTbl[Site Control ID],K9)>=1","v":true},5,null,{"$f":"IF(R9=\"\",\"\",LEFT(R9,LEN(R9)-2))","v":"0"},null,null,null,null,{"$f":"CONCATENATE(IF(Lists!AT2=\"\",\"\",Lists!AT2&\", \"),IF(Lists!AT3=\"\",\"\",Lists!AT3&\", \"),IF(Lists!AT4=\"\",\"\",Lists!AT4&\", \"),IF(Lists!AT5=\"\",\"\",Lists!AT5&\", \"),IF(Lists!AT6=\"\",\"\",Lists!AT6&\", \"),IF(Lists!AT7=\"\",\"\",Lists!AT7&\", \"),IF(Lists!AT8=\"\",\"\",Lists!AT8&\", \"),IF(Lists!AT9=\"\",\"\",Lists!AT9&\", \"),IF(Lists!AT10=\"\",\"\",Lists!AT10&\", \"),IF(Lists!AT11=\"\",\"\",Lists!AT11&\", \"),IF(Lists!AT12=\"\",\"\",Lists!AT12&\", \"),IF(Lists!AT13=\"\",\"\",Lists!AT13&\", \"),IF(Lists!AT14=\"\",\"\",Lists!AT14&\", \"),IF(Lists!AT15=\"\",\"\",Lists!AT15&\", \"))","v":"0, "}]
[]
[]
[]
[]
[]
[]
[{"$f":"1","v":1},{"$f":"0","v":0},null,null,{"$f":"0+0","v":0}]

{"sheet":"Site Control 1","index":3,"n_rows":76,"n_cols":40,"rows_kept":76,"cut":false,"hidden":false,"merged":[[90,27,90,31],[91,27,91,31],[79,17,79,21],[80,17,80,21],[81,17,81,21],[82,17,82,21],[83,17,83,21],[84,17,84,21],[85,17,85,21],[86,17,86,21],[87,17,87,21],[88,17,88,21],[89,17,89,21],[90,17,90,21],[91,17,91,21],[87,27,87,31],[88,27,88,31],[89,27,89,31],[84,22,84,26],[85,22,85,26],[86,22,86,26],[87,22,87,26],[89,22,89,26],[90,22,90,26],[91,22,91,26],[85,12,85,16],[86,12,86,16],[87,12,87,16],[88,12,88,16],[89,12,89,16],[90,12,90,16],[91,12,91,16],[84,12,84,16],[88,22,88,26],[89,2,89,6],[90,2,90,6],[91,2,91,6],[79,7,79,11],[80,7,80,11],[81,7,81,11],[82,7,82,11],[83,7,83,11],[84,7,84,11],[85,7,85,11],[86,7,86,11],[87,7,87,11],[88,7,88,11],[89,7,89,11],[90,7,90,11],[91,7,91,11],[84,2,84,6],[85,2,85,6],[86,2,86,6],[87,2,87,6],[88,2,88,6],[79,2,79,6],[80,2,80,6],[81,2,81,6],[82,2,82,6],[83,2,83,6],[75,27,78,31],[75,22,78,26],[75,12,78,16],[75,7,78,11],[75,2,78,6],[75,17,78,21],[80,12,80,16],[81,12,81,16],[82,12,82,16],[83,12,83,16],[79,12,79,16],[79,22,79,26],[80,22,80,26],[81,22,81,26],[82,22,82,26],[83,22,83,26],[58,1,58,5],[59,1,59,5],[60,1,60,5],[57,20,57,24],[58,20,58,24],[59,20,59,24],[60,20,60,24],[68,2,69,29],[74,2,74,31],[70,2,71,28],[0,39,0,42],[24,8,24,25],[0,0,0,36],[26,14,26,36],[29,12,29,34],[25,25,25,26],[30,18,30,19],[15,30,15,36],[3,1,3,36],[5,1,13,36],[22,27,22,28],[22,34,22,35],[19,3,20,34],[31,3,32,35],[17,7,17,30],[39,8,39,11],[47,32,47,35],[21,18,21,19],[18,18,18,19],[48,14,48,16],[33,30,33,36],[34,30,34,36],[38,18,38,36],[41,4,42,31],[43,4,44,30],[41,32,41,33],[43,32,43,33],[35,1,36,36],[49,34,49,35],[65,7,65,10],[67,17,67,18],[71,30,71,31],[69,30,69,31],[57,1,57,5],[86,27,86,31],[85,27,85,31],[84,27,84,31],[83,27,83,31],[82,27,82,31],[81,27,81,31],[80,27,80,31],[79,27,79,31],[50,12,50,16],[54,1,54,5],[55,1,55,5],[56,20,56,24],[56,1,56,5],[50,26,50,30],[52,12,52,16],[52,29,52,30],[49,26,49,30],[49,12,49,16]]}
[1,null,null,null,null,null,null,null,null,null,null,null,null,null,null,null,null,null,null,null,null,null,null,null,null,null,null,null,null,null,null,null,null,null,null,null,null,null,null,"Instructions for Site Control tabs »"]
[]
[null,{"$f":"\"Site Control Narrative - \"&INDEX(val,MATCH(\"g_ProjectName\",ref,0))","v":"Site Control Narrative - 0"}]
[null,"Provide a detailed description of how the applicable parcels are controlled by the applicant. If there are important nuances to understanding the arrangement, please explain and communicate where pertinent information can be found. Including page numbers is often helpful."]
[null,null,{"$f":"INDIRECT(\"Sc\"&A1&\"Apns\")","v":"0"}]
[]
[]
[]
[]
[]
[]
[]
[]
[]
[]
[null,{"$f":"\"Agreement Evidencing Site Control - Site Control #\"&$A$1","v":"Agreement Evidencing Site Control - Site Control #1"},null,null,null,null,null,null,null,null,null,null,null,null,null,null,null,null,null,null,null,null,null,null,null,null,null,null,null,null,"10325(f)(2)"]
[]
[null,null,null,null,null,null,"Type of agreement:"]
[null,null,"Has the site control document been amended?"]
[null,null,null,"If yes, provide all amendments in a single file with a cover sheet and table of contents describing each amendment's purpose."]
[]
[null,null,null,null,null,null,null,null,null,null,null,null,null,null,null,null,null,"Is this document valid through the application filing date?",null,null,null,{"$f":"IF(S22=\"No\",\"! Expired site control documents are not accepted\",\"\")","v":""}]
[null,null,null,null,"Please specify the document and page of expiration date.",null,null,null,null,null,null,null,null,null,null,null,null,null,null,null,null,null,null,null,null,null,"See amendment:",null,null,null,null,null,null,"See page:"]
[]
[null,null,null,null,null,null,null,"Entity on title report:",{"$f":"INDEX(ParcelsTbl[Owner on Title Report],MATCH(A1,ParcelsTbl[Site Control ID],0))","v":0}]
[null,null,null,null,null,null,null,null,null,null,null,null,null,null,null,null,null,null,null,null,null,null,null,null,"Is the owner on title the party who is granting site control per the document?"]
[null,null,"Entity granting site control (aka Seller):"]
[null,null,"If no, provide a detailed explanation of how the owner has authorized the disposition and documentation of such."]
[]
[null,null,null,null,null,null,null,null,null,null,null,"Entity granted site control (aka Buyer):"]
[null,null,"Is the entity with site control the CTCAC applicant?"]
[null,null,null,"If no, provide an assignment/assumption agreement granting the Applicant site control and any relevant documentation."]
[]
[null,{"$f":"\"Cost/Value Documentation - Site Control #\"&$A$1","v":"Cost/Value Documentation - Site Control #1"},null,null,null,null,null,null,null,null,null,null,null,null,null,null,null,null,null,null,null,null,null,null,null,null,null,null,null,null,"10325(c)(6)"]
[]
[null,"All applications must include the cost of land and improvements in the development budget, except competitive projects with donated land / improvements may include the appraised value of the donated land and improvements."]
[]
[]
[null,null,"What document is evidencing land cost or value?"]
[null,null,null,null,null,null,null,"Document Date:"]
[null,null,null,"Is the date of value within:"]
[null,null,null,null,"120 days before or after the execution of any site control document pursuant to Section 10325(f)(2) OR the transfer of ownership by all the parties?"]
[]
[null,null,null,null,"one year of the application date (ONLY if the latest site control document pursuant to Section 10325(f)(2) was executed within that year)?"]
[]
[null,null,null,"Note: An amendment to an agreement does not constitute any of the site control documents."]
[]
[null,"Many applications require an appraisal to substantiate the value of land and or building improvements.",null,null,null,null,null,null,null,null,null,null,null,null,null,null,null,null,null,null,null,null,null,null,null,null,null,null,null,null,null,null,"10322(h)(9)"]
[null,null,null,null,null,null,null,null,null,null,null,null,null,"Budget reflects cost or valuation?",null,null,null,null,null,null,null,null,null,null,null,null,null,null,null,null,null,null,null,null,null,null,null,null,{"$f":"IsRehab","v":false}]
[null,null,null,null,null,null,null,null,null,null,null,"Cost/Value in development budget:",null,null,null,null,null,null,null,null,null,null,null,null,null,"Appraised value:",null,null,null,null,null,"See page"]
[null,null,null,null,null,null,null,null,null,null,null,"Cost exceeds appraised value:",{"$f":"AA51>M50","v":false},null,null,null,null,null,null,null,null,null,null,null,null,"Cost exceeds valuation:",{"$f":"MAX(0,M50-AA50)","v":0}]
[]
[null,null,null,null,null,null,null,null,null,null,null,"Holding cost in development budget:",null,null,null,null,null,null,null,null,null,null,null,null,null,null,null,null,"Months of holding costs incurred:"]
[]
[null,{"$f":"INDEX(val,MATCH(\"g_LandCost\",ref,0))","v":0},null,null,null,null,"Land Cost or Value"]
[null,{"$f":"INDEX(val,MATCH(\"g_ImprovementsValue\",ref,0))","v":0},null,null,null,null,"Existing Improvements Value"]
[null,{"$f":"B55+B56","v":0},null,null,null,null,"Total Acquisition Cost or Value",null,null,null,null,null,null,null,null,null,null,null,null,null,{"$f":"INDEX(val,MATCH(\"g_HoldingCost\",ref,0))","v":0},null,null,null,null,"Holding Costs"]
[null,{"$f":"M50","v":0},null,null,null,null,"Cost/Value on this Site Control Tab",null,null,null,null,null,null,null,null,null,null,null,null,null,{"$f":"M53","v":0},null,null,null,null,"Holding Costs on this Site Control Tab"]
[null,{"$f":"B60-B58","v":0},null,null,null,null,"Cost/Value on other Site Control Tabs",null,null,null,null,null,null,null,null,null,null,null,null,null,{"$f":"U60-U58","v":0},null,null,null,null,"Holding Costs on other Site Control Tabs"]
[null,{"$f":"SiteControlTotalCost","v":0},null,null,null,null,"Total Cost/Value accounted for",null,null,null,null,null,null,null,null,null,null,null,null,null,{"$f":"HoldingTotalCost","v":0},null,null,null,null,"Total Holding Costs accounted for"]
[null,{"$f":"B57-B60","v":0},null,null,null,null,"Cost/Value yet to be accounted for",null,null,null,null,null,null,null,null,null,null,null,null,null,{"$f":"U57-U60","v":0},null,null,null,null,"Holding Costs yet to be accounted for"]
[]
[null,{"$f":"\"Title Report - Site Control #\"&$A$1","v":"Title Report - Site Control #1"}]
[]
[null,null,null,null,null,null,"Included parcels:",{"$f":"C5","v":"0"}]
[null,null,null,null,null,null,"Document date:",null,null,null,null,{"$f":"IF(ABS(H66-'Housing Type'!AF3)>90,\"!\",\"\")","v":""},{"$f":"IF(L66=\"!\",\"Date is greater than 90 days from application deadline entered on Housing Type tab.\",\"\")","v":""}]
[]
[null,null,"Is this a title report or preliminary title report?"]
[null,null,"For tribal trust land only, is this a title status report or an attorney’s opinion regarding chain of title and current title status?"]
[]
[null,null,"Is this the site control title report of an unsuccessful application being submitted in the reapplication cycle immediately following the unsuccessful application?"]
[]
[null,null,null,null,null,null,"Note: document may only be re-submitted once"]
[]
[null,null,"Current Outstanding Liens"]
[null,null,"Lender/Loan",null,null,null,null,"Original Principal Amount",null,null,null,null,"Current Remaining Principal Amount",null,null,null,null,"Current Accrued Interest Amount",null,null,null,null,"Planned Disposition Description",null,null,null,null,"Corresponding Exception Number from Title"]

{"sheet":"Site Control 2","index":4,"n_rows":76,"n_cols":40,"rows_kept":76,"cut":false,"hidden":true,"merged":[[90,27,90,31],[91,27,91,31],[79,17,79,21],[80,17,80,21],[81,17,81,21],[82,17,82,21],[83,17,83,21],[84,17,84,21],[85,17,85,21],[86,17,86,21],[87,17,87,21],[88,17,88,21],[89,17,89,21],[90,17,90,21],[91,17,91,21],[87,27,87,31],[88,27,88,31],[89,27,89,31],[90,12,90,16],[91,12,91,16],[79,22,79,26],[80,22,80,26],[81,22,81,26],[82,22,82,26],[83,22,83,26],[84,22,84,26],[85,22,85,26],[86,22,86,26],[87,22,87,26],[88,22,88,26],[89,22,89,26],[90,22,90,26],[91,22,91,26],[85,12,85,16],[86,12,86,16],[87,12,87,16],[88,12,88,16],[89,12,89,16],[80,12,80,16],[81,12,81,16],[82,12,82,16],[83,12,83,16],[89,2,89,6],[90,2,90,6],[91,2,91,6],[79,7,79,11],[80,7,80,11],[81,7,81,11],[82,7,82,11],[83,7,83,11],[84,7,84,11],[85,7,85,11],[86,7,86,11],[87,7,87,11],[88,7,88,11],[89,7,89,11],[90,7,90,11],[91,7,91,11],[84,2,84,6],[85,2,85,6],[86,2,86,6],[87,2,87,6],[88,2,88,6],[79,2,79,6],[80,2,80,6],[74,2,74,31],[79,27,79,31],[80,27,80,31],[81,27,81,31],[82,27,82,31],[83,27,83,31],[84,27,84,31],[85,27,85,31],[86,27,86,31],[79,12,79,16],[81,2,81,6],[82,2,82,6],[83,2,83,6],[75,27,78,31],[75,22,78,26],[75,12,78,16],[75,7,78,11],[75,2,78,6],[75,17,78,21],[84,12,84,16],[69,30,69,31],[65,7,65,10],[71,30,71,31],[52,12,52,16],[52,29,52,30],[67,17,67,18],[57,1,57,5],[57,20,57,24],[58,1,58,5],[58,20,58,24],[59,1,59,5],[59,20,59,24],[60,1,60,5],[60,20,60,24],[54,1,54,5],[55,1,55,5],[56,1,56,5],[56,20,56,24],[68,2,69,29],[70,2,71,28],[50,12,50,16],[50,26,50,30],[30,18,30,19],[33,30,33,36],[34,30,34,36],[39,8,39,11],[31,1,32,34],[48,14,48,16],[49,12,49,16],[49,26,49,30],[49,34,49,35],[47,32,47,35],[41,4,42,31],[43,4,44,30],[43,32,43,33],[41,32,41,33],[38,18,38,36],[35,1,36,36],[0,39,0,42],[24,8,24,29],[25,25,25,26],[29,12,29,34],[0,0,0,36],[3,1,3,36],[5,1,13,36],[15,30,15,36],[17,7,17,30],[22,27,22,28],[22,34,22,35],[26,14,26,36],[19,3,20,34],[21,18,21,19],[18,17,18,18]]}
[2,null,null,null,null,null,null,null,null,null,null,null,null,null,null,null,null,null,null,null,null,null,null,null,null,null,null,null,null,null,null,null,null,null,null,null,null,null,null,"Instructions for Site Control tabs »"]
[]
[null,{"$f":"\"Site Control Narrative - \"&INDEX(val,MATCH(\"g_ProjectName\",ref,0))","v":"Site Control Narrative - 0"}]
[null,"Provide a detailed description of how the applicable parcels are controlled by the applicant. If there are important nuances to understanding the arrangement, please explain and communicate where pertinent information can be found. Including page numbers is often helpful."]
[null,null,{"$f":"INDIRECT(\"Sc\"&A1&\"Apns\")","v":"0"}]
[]
[]
[]
[]
[]
[]
[]
[]
[]
[]
[null,{"$f":"\"Agreement Evidencing Site Control - Site Control #\"&$A$1","v":"Agreement Evidencing Site Control - Site Control #2"},null,null,null,null,null,null,null,null,null,null,null,null,null,null,null,null,null,null,null,null,null,null,null,null,null,null,null,null,"10325(f)(2)"]
[]
[null,null,null,null,null,null,"Type of agreement:"]
[null,null,"Has the site control document been amended?"]
[null,null,null,"If yes, provide all amendments in a single file with a cover sheet and table of contents describing each amendment's purpose."]
[]
[null,null,null,null,null,null,null,null,null,null,null,null,null,null,null,null,null,"Is this document valid through the application filing date?",null,null,null,{"$f":"IF(S22=\"No\",\"! Expired site control documents are not accepted\",\"\")","v":""}]
[null,null,null,null,"Please specify the document and page of expiration date.",null,null,null,null,null,null,null,null,null,null,null,null,null,null,null,null,null,null,null,null,null,"See amendment:",null,null,null,null,null,null,"See page:"]
[]
[null,null,null,null,null,null,null,"Entity on title report:",{"$f":"IFERROR(INDEX(ParcelsTbl[Owner on Title Report],MATCH(A1,ParcelsTbl[Site Control ID],0)),\"The Parcels table does not show any owners for this Site Control ID\")","v":0}]
[null,null,null,null,null,null,null,null,null,null,null,null,null,null,null,null,null,null,null,null,null,null,null,null,"Is the owner on title the party who is granting site control per the document?"]
[null,null,"Entity granting site control (aka Seller):"]
[null,null,"If no, provide a detailed explanation of how the owner has authorized the disposition and documentation of such."]
[]
[null,null,null,null,null,null,null,null,null,null,null,"Entity granted site control (aka Buyer):"]
[null,null,"Is the entity with site control the CTCAC applicant?"]
[null,"If no, provide an assignment/assumption agreement granting the Applicant site control and any relevant documentation."]
[]
[null,{"$f":"\"Cost/Value Documentation - Site Control #\"&$A$1","v":"Cost/Value Documentation - Site Control #2"},null,null,null,null,null,null,null,null,null,null,null,null,null,null,null,null,null,null,null,null,null,null,null,null,null,null,null,null,"10325(c)(6)"]
[]
[null,"All applications must include the cost of land and improvements in the development budget, except competitive projects with donated land / improvements may include the appraised value of the donated land and improvements."]
[]
[]
[null,null,"What document is evidencing land cost or value?"]
[null,null,null,null,null,null,null,"Document Date:",null,null,null,null,null,null,null,null,null,null,null,null,null,null,null,null,null,null,null,null,null,null,null,null,null,null,null,null,null,null,null,{"$f":"IFERROR(IF(O49=\"Value\",IF(ABS(I40-'Housing Type'!AE3)>120,\"! Appraisals must be dated no more than 120 days prior to the application deadline\",\"\"),\"\"),\"\")","v":""}]
[null,null,null,"Is the date of value within:"]
[null,null,null,null,"120 days before or after the execution of any site control document pursuant to Section 10325(f)(2) OR the transfer of ownership by all the parties?"]
[]
[null,null,null,null,"one year of the application date (ONLY if the latest site control document pursuant to Section 10325(f)(2) was executed within that year)?"]
[]
[null,null,null,"Note: An amendment to an agreement does not constitute any of the site control documents."]
[]
[null,"Many applications require an appraisal to substantiate the value of land and or building improvements.",null,null,null,null,null,null,null,null,null,null,null,null,null,null,null,null,null,null,null,null,null,null,null,null,null,null,null,null,null,null,"10322(h)(9)"]
[null,null,null,null,null,null,null,null,null,null,null,null,null,"Budget reflects cost or valuation?"]
[null,null,null,null,null,null,null,null,null,null,null,"Cost/Value in development budget:",null,null,null,null,null,null,null,null,null,null,null,null,null,"Appraised value:",null,null,null,null,null,"See page"]
[null,null,null,null,null,null,null,null,null,null,null,"Cost exceeds appraised value:",{"$f":"AA51>M50","v":false},null,null,null,null,null,null,null,null,null,null,null,null,"Cost exceeds valuation:",{"$f":"MAX(0,M50-AA50)","v":0}]
[]
[null,null,null,null,null,null,null,null,null,null,null,"Holding cost in development budget:",null,null,null,null,null,null,null,null,null,null,null,null,null,null,null,null,"Months of holding costs incurred:"]
[]
[null,{"$f":"INDEX(val,MATCH(\"g_LandCost\",ref,0))","v":0},null,null,null,null,"Land Cost or Value"]
[null,{"$f":"INDEX(val,MATCH(\"g_ImprovementsValue\",ref,0))","v":0},null,null,null,null,"Existing Improvements Value"]
[null,{"$f":"B55+B56","v":0},null,null,null,null,"Total Acquisition Cost or Value",null,null,null,null,null,null,null,null,null,null,null,null,null,{"$f":"INDEX(val,MATCH(\"g_HoldingCost\",ref,0))","v":0},null,null,null,null,"Holding Costs"]
[null,{"$f":"M50","v":0},null,null,null,null,"Cost/Value on this Site Control Tab",null,null,null,null,null,null,null,null,null,null,null,null,null,{"$f":"M53","v":0},null,null,null,null,"Holding Costs on this Site Control Tab"]
[null,{"$f":"B60-B58","v":0},null,null,null,null,"Cost/Value on other Site Control Tabs",null,null,null,null,null,null,null,null,null,null,null,null,null,{"$f":"U60-U58","v":0},null,null,null,null,"Holding Costs on other Site Control Tabs"]
[null,{"$f":"SiteControlTotalCost","v":0},null,null,null,null,"Total Cost/Value accounted for",null,null,null,null,null,null,null,null,null,null,null,null,null,{"$f":"HoldingTotalCost","v":0},null,null,null,null,"Total Holding Costs accounted for"]
[null,{"$f":"B57-B60","v":0},null,null,null,null,"Cost/Value yet to be accounted for",null,null,null,null,null,null,null,null,null,null,null,null,null,{"$f":"U57-U60","v":0},null,null,null,null,"Holding Costs yet to be accounted for"]
[]
[null,{"$f":"\"Title Report - Site Control #\"&$A$1","v":"Title Report - Site Control #2"}]
[]
[null,null,null,null,null,null,"Included parcels:",{"$f":"C5","v":"0"}]
[null,null,null,null,null,null,"Document date:",null,null,null,null,{"$f":"IF(ABS(H66-'Housing Type'!AF3)>90,\"!\",\"\")","v":""},{"$f":"IF(L66=\"!\",\"Date is greater than 90 days from application deadline entered on Housing Type tab.\",\"\")","v":""},null,null,null,null,null,null,null,null,null,null,null,null,null,null,null,null,null,null,null,null,null,null,null,null,{"$f":"IF(AK66=\"!\",\"Date is more than 90 days from application date\",\"\")","v":""}]
[]
[null,null,"Is this a title report or preliminary title report?"]
[null,null,"For tribal trust land only, is this a title status report or an attorney’s opinion regarding chain of title and current title status?"]
[]
[null,null,"Is this the site control title report of an unsuccessful application being submitted in the reapplication cycle immediately following the unsuccessful application?"]
[]
[null,null,null,null,null,null,"Note: document may only be re-submitted once"]
[]
[null,null,"Current Outstanding Liens"]
[null,null,"Lender/Loan",null,null,null,null,"Original Principal Amount",null,null,null,null,"Current Remaining Principal Amount",null,null,null,null,"Current Accrued Interest Amount",null,null,null,null,"Planned Disposition Description",null,null,null,null,"Corresponding Exception Number from Title"]

{"sheet":"Site Control 3","index":5,"n_rows":76,"n_cols":40,"rows_kept":76,"cut":false,"hidden":true,"merged":[[90,27,90,31],[91,27,91,31],[79,17,79,21],[80,17,80,21],[81,17,81,21],[82,17,82,21],[83,17,83,21],[84,17,84,21],[85,17,85,21],[86,17,86,21],[87,17,87,21],[88,17,88,21],[89,17,89,21],[90,17,90,21],[91,17,91,21],[87,27,87,31],[88,27,88,31],[89,27,89,31],[90,12,90,16],[91,12,91,16],[79,22,79,26],[80,22,80,26],[81,22,81,26],[82,22,82,26],[83,22,83,26],[84,22,84,26],[85,22,85,26],[86,22,86,26],[87,22,87,26],[88,22,88,26],[89,22,89,26],[90,22,90,26],[91,22,91,26],[85,12,85,16],[86,12,86,16],[87,12,87,16],[88,12,88,16],[89,12,89,16],[80,12,80,16],[81,12,81,16],[82,12,82,16],[83,12,83,16],[89,2,89,6],[90,2,90,6],[91,2,91,6],[79,7,79,11],[80,7,80,11],[81,7,81,11],[82,7,82,11],[83,7,83,11],[84,7,84,11],[85,7,85,11],[86,7,86,11],[87,7,87,11],[88,7,88,11],[89,7,89,11],[90,7,90,11],[91,7,91,11],[84,2,84,6],[85,2,85,6],[86,2,86,6],[87,2,87,6],[88,2,88,6],[79,2,79,6],[80,2,80,6],[74,2,74,31],[79,27,79,31],[80,27,80,31],[81,27,81,31],[82,27,82,31],[83,27,83,31],[84,27,84,31],[85,27,85,31],[86,27,86,31],[79,12,79,16],[81,2,81,6],[82,2,82,6],[83,2,83,6],[75,27,78,31],[75,22,78,26],[75,12,78,16],[75,7,78,11],[75,2,78,6],[75,17,78,21],[84,12,84,16],[69,30,69,31],[65,7,65,10],[71,30,71,31],[52,12,52,16],[52,29,52,30],[67,17,67,18],[57,1,57,5],[57,20,57,24],[58,1,58,5],[58,20,58,24],[59,1,59,5],[59,20,59,24],[60,1,60,5],[60,20,60,24],[54,1,54,5],[55,1,55,5],[56,1,56,5],[56,20,56,24],[68,2,69,29],[70,2,71,28],[50,12,50,16],[50,26,50,30],[30,18,30,19],[33,30,33,36],[34,30,34,36],[39,8,39,11],[31,1,32,34],[48,14,48,16],[49,12,49,16],[49,26,49,30],[49,34,49,35],[47,32,47,35],[41,4,42,31],[43,4,44,30],[41,32,41,33],[43,32,43,33],[38,18,38,36],[35,1,36,36],[0,39,0,42],[24,8,24,29],[25,25,25,26],[29,12,29,34],[0,0,0,36],[3,1,3,36],[5,1,13,36],[15,30,15,36],[17,7,17,30],[22,27,22,28],[22,34,22,35],[26,14,26,36],[19,3,20,34],[21,18,21,19],[18,17,18,18]]}
[3,null,null,null,null,null,null,null,null,null,null,null,null,null,null,null,null,null,null,null,null,null,null,null,null,null,null,null,null,null,null,null,null,null,null,null,null,null,null,"Instructions for Site Control tabs »"]
[]
[null,{"$f":"\"Site Control Narrative - \"&INDEX(val,MATCH(\"g_ProjectName\",ref,0))","v":"Site Control Narrative - 0"}]
[null,"Provide a detailed description of how the applicable parcels are controlled by the applicant. If there are important nuances to understanding the arrangement, please explain and communicate where pertinent information can be found. Including page numbers is often helpful."]
[null,null,{"$f":"INDIRECT(\"Sc\"&A1&\"Apns\")","v":"0"}]
[]
[]
[]
[]
[]
[]
[]
[]
[]
[]
[null,{"$f":"\"Agreement Evidencing Site Control - Site Control #\"&$A$1","v":"Agreement Evidencing Site Control - Site Control #3"},null,null,null,null,null,null,null,null,null,null,null,null,null,null,null,null,null,null,null,null,null,null,null,null,null,null,null,null,"10325(f)(2)"]
[]
[null,null,null,null,null,null,"Type of agreement:"]
[null,null,"Has the site control document been amended?"]
[null,null,null,"If yes, provide all amendments in a single file with a cover sheet and table of contents describing each amendment's purpose."]
[]
[null,null,null,null,null,null,null,null,null,null,null,null,null,null,null,null,null,"Is this document valid through the application filing date?",null,null,null,{"$f":"IF(S22=\"No\",\"! Expired site control documents are not accepted\",\"\")","v":""}]
[null,null,null,null,"Please specify the document and page of expiration date.",null,null,null,null,null,null,null,null,null,null,null,null,null,null,null,null,null,null,null,null,null,"See amendment:",null,null,null,null,null,null,"See page:"]
[]
[null,null,null,null,null,null,null,"Entity on title report:",{"$f":"IFERROR(INDEX(ParcelsTbl[Owner on Title Report],MATCH(A1,ParcelsTbl[Site Control ID],0)),\"The Parcels table does not show any owners for this Site Control ID\")","v":0}]
[null,null,null,null,null,null,null,null,null,null,null,null,null,null,null,null,null,null,null,null,null,null,null,null,"Is the owner on title the party who is granting site control per the document?"]
[null,null,"Entity granting site control (aka Seller):"]
[null,null,"If no, provide a detailed explanation of how the owner has authorized the disposition and documentation of such."]
[]
[null,null,null,null,null,null,null,null,null,null,null,"Entity granted site control (aka Buyer):"]
[null,null,"Is the entity with site control the CTCAC applicant?"]
[null,"If no, provide an assignment/assumption agreement granting the Applicant site control and any relevant documentation."]
[]
[null,{"$f":"\"Cost/Value Documentation - Site Control #\"&$A$1","v":"Cost/Value Documentation - Site Control #3"},null,null,null,null,null,null,null,null,null,null,null,null,null,null,null,null,null,null,null,null,null,null,null,null,null,null,null,null,"10325(c)(6)"]
[]
[null,"All applications must include the cost of land and improvements in the development budget, except competitive projects with donated land / improvements may include the appraised value of the donated land and improvements."]
[]
[]
[null,null,"What document is evidencing land cost or value?"]
[null,null,null,null,null,null,null,"Document Date:",null,null,null,null,null,null,null,null,null,null,null,null,null,null,null,null,null,null,null,null,null,null,null,null,null,null,null,null,null,null,null,{"$f":"IFERROR(IF(O49=\"Value\",IF(ABS(I40-'Housing Type'!AE3)>120,\"! Appraisals must be dated no more than 120 days prior to the application deadline\",\"\"),\"\"),\"\")","v":""}]
[null,null,null,"Is the date of value within:"]
[null,null,null,null,"120 days before or after the execution of any site control document pursuant to Section 10325(f)(2) OR the transfer of ownership by all the parties?"]
[]
[null,null,null,null,"one year of the application date (ONLY if the latest site control document pursuant to Section 10325(f)(2) was executed within that year)?"]
[]
[null,null,null,"Note: An amendment to an agreement does not constitute any of the site control documents."]
[]
[null,"Many applications require an appraisal to substantiate the value of land and or building improvements.",null,null,null,null,null,null,null,null,null,null,null,null,null,null,null,null,null,null,null,null,null,null,null,null,null,null,null,null,null,null,"10322(h)(9)"]
[null,null,null,null,null,null,null,null,null,null,null,null,null,"Budget reflects cost or valuation?"]
[null,null,null,null,null,null,null,null,null,null,null,"Cost/Value in development budget:",null,null,null,null,null,null,null,null,null,null,null,null,null,"Appraised value:",null,null,null,null,null,"See page"]
[null,null,null,null,null,null,null,null,null,null,null,"Cost exceeds appraised value:",{"$f":"AA51>M50","v":false},null,null,null,null,null,null,null,null,null,null,null,null,"Cost exceeds valuation:",{"$f":"MAX(0,M50-AA50)","v":0}]
[]
[null,null,null,null,null,null,null,null,null,null,null,"Holding cost in development budget:",null,null,null,null,null,null,null,null,null,null,null,null,null,null,null,null,"Months of holding costs incurred:"]
[]
[null,{"$f":"INDEX(val,MATCH(\"g_LandCost\",ref,0))","v":0},null,null,null,null,"Land Cost or Value"]
[null,{"$f":"INDEX(val,MATCH(\"g_ImprovementsValue\",ref,0))","v":0},null,null,null,null,"Existing Improvements Value"]
[null,{"$f":"B55+B56","v":0},null,null,null,null,"Total Acquisition Cost or Value",null,null,null,null,null,null,null,null,null,null,null,null,null,{"$f":"INDEX(val,MATCH(\"g_HoldingCost\",ref,0))","v":0},null,null,null,null,"Holding Costs"]
[null,{"$f":"M50","v":0},null,null,null,null,"Cost/Value on this Site Control Tab",null,null,null,null,null,null,null,null,null,null,null,null,null,{"$f":"M53","v":0},null,null,null,null,"Holding Costs on this Site Control Tab"]
[null,{"$f":"B60-B58","v":0},null,null,null,null,"Cost/Value on other Site Control Tabs",null,null,null,null,null,null,null,null,null,null,null,null,null,{"$f":"U60-U58","v":0},null,null,null,null,"Holding Costs on other Site Control Tabs"]
[null,{"$f":"SiteControlTotalCost","v":0},null,null,null,null,"Total Cost/Value accounted for",null,null,null,null,null,null,null,null,null,null,null,null,null,{"$f":"HoldingTotalCost","v":0},null,null,null,null,"Total Holding Costs accounted for"]
[null,{"$f":"B57-B60","v":0},null,null,null,null,"Cost/Value yet to be accounted for",null,null,null,null,null,null,null,null,null,null,null,null,null,{"$f":"U57-U60","v":0},null,null,null,null,"Holding Costs yet to be accounted for"]
[]
[null,{"$f":"\"Title Report - Site Control #\"&$A$1","v":"Title Report - Site Control #3"}]
[]
[null,null,null,null,null,null,"Included parcels:",{"$f":"C5","v":"0"}]
[null,null,null,null,null,null,"Document date:",null,null,null,null,{"$f":"IF(ABS(H66-'Housing Type'!AF3)>90,\"!\",\"\")","v":""},{"$f":"IF(L66=\"!\",\"Date is greater than 90 days from application deadline entered on Housing Type tab.\",\"\")","v":""}]
[]
[null,null,"Is this a title report or preliminary title report?"]
[null,null,"For tribal trust land only, is this a title status report or an attorney’s opinion regarding chain of title and current title status?"]
[]
[null,null,"Is this the site control title report of an unsuccessful application being submitted in the reapplication cycle immediately following the unsuccessful application?"]
[]
[null,null,null,null,null,null,"Note: document may only be re-submitted once"]
[]
[null,null,"Current Outstanding Liens"]
[null,null,"Lender/Loan",null,null,null,null,"Original Principal Amount",null,null,null,null,"Current Remaining Principal Amount",null,null,null,null,"Current Accrued Interest Amount",null,null,null,null,"Planned Disposition Description",null,null,null,null,"Corresponding Exception Number from Title"]

{"sheet":"Site Control 4","index":6,"n_rows":76,"n_cols":40,"rows_kept":76,"cut":false,"hidden":true,"merged":[[90,27,90,31],[91,27,91,31],[79,17,79,21],[80,17,80,21],[81,17,81,21],[82,17,82,21],[83,17,83,21],[84,17,84,21],[85,17,85,21],[86,17,86,21],[87,17,87,21],[88,17,88,21],[89,17,89,21],[90,17,90,21],[91,17,91,21],[87,27,87,31],[88,27,88,31],[89,27,89,31],[90,12,90,16],[91,12,91,16],[79,22,79,26],[80,22,80,26],[81,22,81,26],[82,22,82,26],[83,22,83,26],[84,22,84,26],[85,22,85,26],[86,22,86,26],[87,22,87,26],[88,22,88,26],[89,22,89,26],[90,22,90,26],[91,22,91,26],[85,12,85,16],[86,12,86,16],[87,12,87,16],[88,12,88,16],[89,12,89,16],[80,12,80,16],[81,12,81,16],[82,12,82,16],[83,12,83,16],[89,2,89,6],[90,2,90,6],[91,2,91,6],[79,7,79,11],[80,7,80,11],[81,7,81,11],[82,7,82,11],[83,7,83,11],[84,7,84,11],[85,7,85,11],[86,7,86,11],[87,7,87,11],[88,7,88,11],[89,7,89,11],[90,7,90,11],[91,7,91,11],[84,2,84,6],[85,2,85,6],[86,2,86,6],[87,2,87,6],[88,2,88,6],[79,2,79,6],[80,2,80,6],[74,2,74,31],[79,27,79,31],[80,27,80,31],[81,27,81,31],[82,27,82,31],[83,27,83,31],[84,27,84,31],[85,27,85,31],[86,27,86,31],[79,12,79,16],[81,2,81,6],[82,2,82,6],[83,2,83,6],[75,27,78,31],[75,22,78,26],[75,12,78,16],[75,7,78,11],[75,2,78,6],[75,17,78,21],[84,12,84,16],[69,30,69,31],[65,7,65,10],[71,30,71,31],[52,12,52,16],[52,29,52,30],[67,17,67,18],[57,1,57,5],[57,20,57,24],[58,1,58,5],[58,20,58,24],[59,1,59,5],[59,20,59,24],[60,1,60,5],[60,20,60,24],[54,1,54,5],[55,1,55,5],[56,1,56,5],[56,20,56,24],[68,2,69,29],[70,2,71,28],[50,12,50,16],[50,26,50,30],[30,18,30,19],[33,30,33,36],[34,30,34,36],[39,8,39,11],[31,1,32,34],[48,14,48,16],[49,12,49,16],[49,26,49,30],[49,34,49,35],[47,32,47,35],[41,4,42,31],[43,4,44,30],[41,32,41,33],[43,32,43,33],[38,18,38,36],[35,1,36,36],[0,39,0,42],[24,8,24,29],[25,25,25,26],[29,12,29,34],[0,0,0,36],[3,1,3,36],[5,1,13,36],[15,30,15,36],[17,7,17,30],[22,27,22,28],[22,34,22,35],[26,14,26,36],[19,3,20,34],[21,18,21,19],[18,17,18,18]]}
[4,null,null,null,null,null,null,null,null,null,null,null,null,null,null,null,null,null,null,null,null,null,null,null,null,null,null,null,null,null,null,null,null,null,null,null,null,null,null,"Instructions for Site Control tabs »"]
[]
[null,{"$f":"\"Site Control Narrative - \"&INDEX(val,MATCH(\"g_ProjectName\",ref,0))","v":"Site Control Narrative - 0"}]
[null,"Provide a detailed description of how the applicable parcels are controlled by the applicant. If there are important nuances to understanding the arrangement, please explain and communicate where pertinent information can be found. Including page numbers is often helpful."]
[null,null,{"$f":"INDIRECT(\"Sc\"&A1&\"Apns\")","v":"0"}]
[]
[]
[]
[]
[]
[]
[]
[]
[]
[]
[null,{"$f":"\"Agreement Evidencing Site Control - Site Control #\"&$A$1","v":"Agreement Evidencing Site Control - Site Control #4"},null,null,null,null,null,null,null,null,null,null,null,null,null,null,null,null,null,null,null,null,null,null,null,null,null,null,null,null,"10325(f)(2)"]
[]
[null,null,null,null,null,null,"Type of agreement:"]
[null,null,"Has the site control document been amended?"]
[null,null,null,"If yes, provide all amendments in a single file with a cover sheet and table of contents describing each amendment's purpose."]
[]
[null,null,null,null,null,null,null,null,null,null,null,null,null,null,null,null,null,"Is this document valid through the application filing date?",null,null,null,{"$f":"IF(S22=\"No\",\"! Expired site control documents are not accepted\",\"\")","v":""}]
[null,null,null,null,"Please specify the document and page of expiration date.",null,null,null,null,null,null,null,null,null,null,null,null,null,null,null,null,null,null,null,null,null,"See amendment:",null,null,null,null,null,null,"See page:"]
[]
[null,null,null,null,null,null,null,"Entity on title report:",{"$f":"IFERROR(INDEX(ParcelsTbl[Owner on Title Report],MATCH(A1,ParcelsTbl[Site Control ID],0)),\"The Parcels table does not show any owners for this Site Control ID\")","v":0}]
[null,null,null,null,null,null,null,null,null,null,null,null,null,null,null,null,null,null,null,null,null,null,null,null,"Is the owner on title the party who is granting site control per the document?"]
[null,null,"Entity granting site control (aka Seller):"]
[null,null,"If no, provide a detailed explanation of how the owner has authorized the disposition and documentation of such."]
[]
[null,null,null,null,null,null,null,null,null,null,null,"Entity granted site control (aka Buyer):"]
[null,null,"Is the entity with site control the CTCAC applicant?"]
[null,"If no, provide an assignment/assumption agreement granting the Applicant site control and any relevant documentation."]
[]
[null,{"$f":"\"Cost/Value Documentation - Site Control #\"&$A$1","v":"Cost/Value Documentation - Site Control #4"},null,null,null,null,null,null,null,null,null,null,null,null,null,null,null,null,null,null,null,null,null,null,null,null,null,null,null,null,"10325(c)(6)"]
[]
[null,"All applications must include the cost of land and improvements in the development budget, except competitive projects with donated land / improvements may include the appraised value of the donated land and improvements."]
[]
[]
[null,null,"What document is evidencing land cost or value?"]
[null,null,null,null,null,null,null,"Document Date:",null,null,null,null,null,null,null,null,null,null,null,null,null,null,null,null,null,null,null,null,null,null,null,null,null,null,null,null,null,null,null,{"$f":"IFERROR(IF(O49=\"Value\",IF(ABS(I40-'Housing Type'!AE3)>120,\"! Appraisals must be dated no more than 120 days prior to the application deadline\",\"\"),\"\"),\"\")","v":""}]
[null,null,null,"Is the date of value within:"]
[null,null,null,null,"120 days before or after the execution of any site control document pursuant to Section 10325(f)(2) OR the transfer of ownership by all the parties?"]
[]
[null,null,null,null,"one year of the application date (ONLY if the latest site control document pursuant to Section 10325(f)(2) was executed within that year)?"]
[]
[null,null,null,"Note: An amendment to an agreement does not constitute any of the site control documents."]
[]
[null,"Many applications require an appraisal to substantiate the value of land and or building improvements.",null,null,null,null,null,null,null,null,null,null,null,null,null,null,null,null,null,null,null,null,null,null,null,null,null,null,null,null,null,null,"10322(h)(9)"]
[null,null,null,null,null,null,null,null,null,null,null,null,null,"Budget reflects cost or valuation?"]
[null,null,null,null,null,null,null,null,null,null,null,"Cost/Value in development budget:",null,null,null,null,null,null,null,null,null,null,null,null,null,"Appraised value:",null,null,null,null,null,"See page"]
[null,null,null,null,null,null,null,null,null,null,null,"Cost exceeds appraised value:",{"$f":"AA51>M50","v":false},null,null,null,null,null,null,null,null,null,null,null,null,"Cost exceeds valuation:",{"$f":"MAX(0,M50-AA50)","v":0}]
[]
[null,null,null,null,null,null,null,null,null,null,null,"Holding cost in development budget:",null,null,null,null,null,null,null,null,null,null,null,null,null,null,null,null,"Months of holding costs incurred:"]
[]
[null,{"$f":"INDEX(val,MATCH(\"g_LandCost\",ref,0))","v":0},null,null,null,null,"Land Cost or Value"]
[null,{"$f":"INDEX(val,MATCH(\"g_ImprovementsValue\",ref,0))","v":0},null,null,null,null,"Existing Improvements Value"]
[null,{"$f":"B55+B56","v":0},null,null,null,null,"Total Acquisition Cost or Value",null,null,null,null,null,null,null,null,null,null,null,null,null,{"$f":"INDEX(val,MATCH(\"g_HoldingCost\",ref,0))","v":0},null,null,null,null,"Holding Costs"]
[null,{"$f":"M50","v":0},null,null,null,null,"Cost/Value on this Site Control Tab",null,null,null,null,null,null,null,null,null,null,null,null,null,{"$f":"M53","v":0},null,null,null,null,"Holding Costs on this Site Control Tab"]
[null,{"$f":"B60-B58","v":0},null,null,null,null,"Cost/Value on other Site Control Tabs",null,null,null,null,null,null,null,null,null,null,null,null,null,{"$f":"U60-U58","v":0},null,null,null,null,"Holding Costs on other Site Control Tabs"]
[null,{"$f":"SiteControlTotalCost","v":0},null,null,null,null,"Total Cost/Value accounted for",null,null,null,null,null,null,null,null,null,null,null,null,null,{"$f":"HoldingTotalCost","v":0},null,null,null,null,"Total Holding Costs accounted for"]
[null,{"$f":"B57-B60","v":0},null,null,null,null,"Cost/Value yet to be accounted for",null,null,null,null,null,null,null,null,null,null,null,null,null,{"$f":"U57-U60","v":0},null,null,null,null,"Holding Costs yet to be accounted for"]
[]
[null,{"$f":"\"Title Report - Site Control #\"&$A$1","v":"Title Report - Site Control #4"}]
[]
[null,null,null,null,null,null,"Included parcels:",{"$f":"C5","v":"0"}]
[null,null,null,null,null,null,"Document date:",null,null,null,null,{"$f":"IF(ABS(H66-'Housing Type'!AF3)>90,\"!\",\"\")","v":""},{"$f":"IF(L66=\"!\",\"Date is greater than 90 days from application deadline entered on Housing Type tab.\",\"\")","v":""},null,null,null,null,null,null,null,null,null,null,null,null,null,null,null,null,null,null,null,null,null,null,null,null,{"$f":"IF(AK66=\"!\",\"Date is more than 90 days from application date\",\"\")","v":""}]
[]
[null,null,"Is this a title report or preliminary title report?"]
[null,null,"For tribal trust land only, is this a title status report or an attorney’s opinion regarding chain of title and current title status?"]
[]
[null,null,"Is this the site control title report of an unsuccessful application being submitted in the reapplication cycle immediately following the unsuccessful application?"]
[]
[null,null,null,null,null,null,"Note: document may only be re-submitted once"]
[]
[null,null,"Current Outstanding Liens"]
[null,null,"Lender/Loan",null,null,null,null,"Original Principal Amount",null,null,null,null,"Current Remaining Principal Amount",null,null,null,null,"Current Accrued Interest Amount",null,null,null,null,"Planned Disposition Description",null,null,null,null,"Corresponding Exception Number from Title"]

{"sheet":"Site Control 5","index":7,"n_rows":76,"n_cols":40,"rows_kept":76,"cut":false,"hidden":true,"merged":[[90,27,90,31],[91,27,91,31],[79,17,79,21],[80,17,80,21],[81,17,81,21],[82,17,82,21],[83,17,83,21],[84,17,84,21],[85,17,85,21],[86,17,86,21],[87,17,87,21],[88,17,88,21],[89,17,89,21],[90,17,90,21],[91,17,91,21],[87,27,87,31],[88,27,88,31],[89,27,89,31],[90,12,90,16],[91,12,91,16],[79,22,79,26],[80,22,80,26],[81,22,81,26],[82,22,82,26],[83,22,83,26],[84,22,84,26],[85,22,85,26],[86,22,86,26],[87,22,87,26],[88,22,88,26],[89,22,89,26],[90,22,90,26],[91,22,91,26],[85,12,85,16],[86,12,86,16],[87,12,87,16],[88,12,88,16],[89,12,89,16],[80,12,80,16],[81,12,81,16],[82,12,82,16],[83,12,83,16],[89,2,89,6],[90,2,90,6],[91,2,91,6],[79,7,79,11],[80,7,80,11],[81,7,81,11],[82,7,82,11],[83,7,83,11],[84,7,84,11],[85,7,85,11],[86,7,86,11],[87,7,87,11],[88,7,88,11],[89,7,89,11],[90,7,90,11],[91,7,91,11],[84,2,84,6],[85,2,85,6],[86,2,86,6],[87,2,87,6],[88,2,88,6],[79,2,79,6],[80,2,80,6],[74,2,74,31],[79,27,79,31],[80,27,80,31],[81,27,81,31],[82,27,82,31],[83,27,83,31],[84,27,84,31],[85,27,85,31],[86,27,86,31],[79,12,79,16],[81,2,81,6],[82,2,82,6],[83,2,83,6],[75,27,78,31],[75,22,78,26],[75,12,78,16],[75,7,78,11],[75,2,78,6],[75,17,78,21],[84,12,84,16],[69,30,69,31],[65,7,65,10],[71,30,71,31],[52,12,52,16],[52,29,52,30],[67,17,67,18],[57,1,57,5],[57,20,57,24],[58,1,58,5],[58,20,58,24],[59,1,59,5],[59,20,59,24],[60,1,60,5],[60,20,60,24],[54,1,54,5],[55,1,55,5],[56,1,56,5],[56,20,56,24],[68,2,69,29],[70,2,71,28],[50,12,50,16],[50,26,50,30],[30,18,30,19],[33,30,33,36],[34,30,34,36],[39,8,39,11],[31,1,32,34],[48,14,48,16],[49,12,49,16],[49,26,49,30],[49,34,49,35],[47,32,47,35],[41,4,42,31],[43,4,44,30],[41,32,41,33],[43,32,43,33],[38,18,38,36],[35,1,36,36],[0,39,0,42],[24,8,24,29],[25,25,25,26],[29,12,29,34],[0,0,0,36],[3,1,3,36],[5,1,13,36],[15,30,15,36],[17,7,17,30],[22,27,22,28],[22,34,22,35],[26,14,26,36],[19,3,20,34],[21,18,21,19],[18,17,18,18]]}
[5,null,null,null,null,null,null,null,null,null,null,null,null,null,null,null,null,null,null,null,null,null,null,null,null,null,null,null,null,null,null,null,null,null,null,null,null,null,null,"Instructions for Site Control tabs »"]
[]
[null,{"$f":"\"Site Control Narrative - \"&INDEX(val,MATCH(\"g_ProjectName\",ref,0))","v":"Site Control Narrative - 0"}]
[null,"Provide a detailed description of how the applicable parcels are controlled by the applicant. If there are important nuances to understanding the arrangement, please explain and communicate where pertinent information can be found. Including page numbers is often helpful."]
[null,null,{"$f":"INDIRECT(\"Sc\"&A1&\"Apns\")","v":"0"}]
[]
[]
[]
[]
[]
[]
[]
[]
[]
[]
[null,{"$f":"\"Agreement Evidencing Site Control - Site Control #\"&$A$1","v":"Agreement Evidencing Site Control - Site Control #5"},null,null,null,null,null,null,null,null,null,null,null,null,null,null,null,null,null,null,null,null,null,null,null,null,null,null,null,null,"10325(f)(2)"]
[]
[null,null,null,null,null,null,"Type of agreement:"]
[null,null,"Has the site control document been amended?"]
[null,null,null,"If yes, provide all amendments in a single file with a cover sheet and table of contents describing each amendment's purpose."]
[]
[null,null,null,null,null,null,null,null,null,null,null,null,null,null,null,null,null,"Is this document valid through the application filing date?",null,null,null,{"$f":"IF(S22=\"No\",\"! Expired site control documents are not accepted\",\"\")","v":""}]
[null,null,null,null,"Please specify the document and page of expiration date.",null,null,null,null,null,null,null,null,null,null,null,null,null,null,null,null,null,null,null,null,null,"See amendment:",null,null,null,null,null,null,"See page:"]
[]
[null,null,null,null,null,null,null,"Entity on title report:",{"$f":"IFERROR(INDEX(ParcelsTbl[Owner on Title Report],MATCH(A1,ParcelsTbl[Site Control ID],0)),\"The Parcels table does not show any owners for this Site Control ID\")","v":0}]
[null,null,null,null,null,null,null,null,null,null,null,null,null,null,null,null,null,null,null,null,null,null,null,null,"Is the owner on title the party who is granting site control per the document?"]
[null,null,"Entity granting site control (aka Seller):"]
[null,null,"If no, provide a detailed explanation of how the owner has authorized the disposition and documentation of such."]
[]
[null,null,null,null,null,null,null,null,null,null,null,"Entity granted site control (aka Buyer):"]
[null,null,"Is the entity with site control the CTCAC applicant?"]
[null,"If no, provide an assignment/assumption agreement granting the Applicant site control and any relevant documentation."]
[]
[null,{"$f":"\"Cost/Value Documentation - Site Control #\"&$A$1","v":"Cost/Value Documentation - Site Control #5"},null,null,null,null,null,null,null,null,null,null,null,null,null,null,null,null,null,null,null,null,null,null,null,null,null,null,null,null,"10325(c)(6)"]
[]
[null,"All applications must include the cost of land and improvements in the development budget, except competitive projects with donated land / improvements may include the appraised value of the donated land and improvements."]
[]
[]
[null,null,"What document is evidencing land cost or value?"]
[null,null,null,null,null,null,null,"Document Date:",null,null,null,null,null,null,null,null,null,null,null,null,null,null,null,null,null,null,null,null,null,null,null,null,null,null,null,null,null,null,null,{"$f":"IFERROR(IF(O49=\"Value\",IF(ABS(I40-'Housing Type'!AE3)>120,\"! Appraisals must be dated no more than 120 days prior to the application deadline\",\"\"),\"\"),\"\")","v":""}]
[null,null,null,"Is the date of value within:"]
[null,null,null,null,"120 days before or after the execution of any site control document pursuant to Section 10325(f)(2) OR the transfer of ownership by all the parties?"]
[]
[null,null,null,null,"one year of the application date (ONLY if the latest site control document pursuant to Section 10325(f)(2) was executed within that year)?"]
[]
[null,null,null,"Note: An amendment to an agreement does not constitute any of the site control documents."]
[]
[null,"Many applications require an appraisal to substantiate the value of land and or building improvements.",null,null,null,null,null,null,null,null,null,null,null,null,null,null,null,null,null,null,null,null,null,null,null,null,null,null,null,null,null,null,"10322(h)(9)"]
[null,null,null,null,null,null,null,null,null,null,null,null,null,"Budget reflects cost or valuation?"]
[null,null,null,null,null,null,null,null,null,null,null,"Cost/Value in development budget:",null,null,null,null,null,null,null,null,null,null,null,null,null,"Appraised value:",null,null,null,null,null,"See page"]
[null,null,null,null,null,null,null,null,null,null,null,"Cost exceeds appraised value:",{"$f":"AA51>M50","v":false},null,null,null,null,null,null,null,null,null,null,null,null,"Cost exceeds valuation:",{"$f":"MAX(0,M50-AA50)","v":0}]
[]
[null,null,null,null,null,null,null,null,null,null,null,"Holding cost in development budget:",null,null,null,null,null,null,null,null,null,null,null,null,null,null,null,null,"Months of holding costs incurred:"]
[]
[null,{"$f":"INDEX(val,MATCH(\"g_LandCost\",ref,0))","v":0},null,null,null,null,"Land Cost or Value"]
[null,{"$f":"INDEX(val,MATCH(\"g_ImprovementsValue\",ref,0))","v":0},null,null,null,null,"Existing Improvements Value"]
[null,{"$f":"B55+B56","v":0},null,null,null,null,"Total Acquisition Cost or Value",null,null,null,null,null,null,null,null,null,null,null,null,null,{"$f":"INDEX(val,MATCH(\"g_HoldingCost\",ref,0))","v":0},null,null,null,null,"Holding Costs"]
[null,{"$f":"M50","v":0},null,null,null,null,"Cost/Value on this Site Control Tab",null,null,null,null,null,null,null,null,null,null,null,null,null,{"$f":"M53","v":0},null,null,null,null,"Holding Costs on this Site Control Tab"]
[null,{"$f":"B60-B58","v":0},null,null,null,null,"Cost/Value on other Site Control Tabs",null,null,null,null,null,null,null,null,null,null,null,null,null,{"$f":"U60-U58","v":0},null,null,null,null,"Holding Costs on other Site Control Tabs"]
[null,{"$f":"SiteControlTotalCost","v":0},null,null,null,null,"Total Cost/Value accounted for",null,null,null,null,null,null,null,null,null,null,null,null,null,{"$f":"HoldingTotalCost","v":0},null,null,null,null,"Total Holding Costs accounted for"]
[null,{"$f":"B57-B60","v":0},null,null,null,null,"Cost/Value yet to be accounted for",null,null,null,null,null,null,null,null,null,null,null,null,null,{"$f":"U57-U60","v":0},null,null,null,null,"Holding Costs yet to be accounted for"]
[]
[null,{"$f":"\"Title Report - Site Control #\"&$A$1","v":"Title Report - Site Control #5"}]
[]
[null,null,null,null,null,null,"Included parcels:",{"$f":"C5","v":"0"}]
[null,null,null,null,null,null,"Document date:",null,null,null,null,{"$f":"IF(ABS(H66-'Housing Type'!AF3)>90,\"!\",\"\")","v":""},{"$f":"IF(L66=\"!\",\"Date is greater than 90 days from application deadline entered on Housing Type tab.\",\"\")","v":""},null,null,null,null,null,null,null,null,null,null,null,null,null,null,null,null,null,null,null,null,null,null,null,null,{"$f":"IF(AK66=\"!\",\"Date is more than 90 days from application date\",\"\")","v":""}]
[]
[null,null,"Is this a title report or preliminary title report?"]
[null,null,"For tribal trust land only, is this a title status report or an attorney’s opinion regarding chain of title and current title status?"]
[]
[null,null,"Is this the site control title report of an unsuccessful application being submitted in the reapplication cycle immediately following the unsuccessful application?"]
[]
[null,null,null,null,null,null,"Note: document may only be re-submitted once"]
[]
[null,null,"Current Outstanding Liens"]
[null,null,"Lender/Loan",null,null,null,null,"Original Principal Amount",null,null,null,null,"Current Remaining Principal Amount",null,null,null,null,"Current Accrued Interest Amount",null,null,null,null,"Planned Disposition Description",null,null,null,null,"Corresponding Exception Number from Title"]

{"sheet":"Services","index":8,"n_rows":121,"n_cols":69,"rows_kept":121,"cut":false,"hidden":false,"merged":[[64,1,66,48],[61,29,61,37],[62,29,62,37],[59,21,59,28],[60,21,60,28],[61,21,61,28],[62,21,62,28],[44,11,45,20],[46,11,46,20],[47,11,47,20],[48,11,48,20],[49,11,49,20],[50,11,50,20],[51,11,51,20],[52,11,52,20],[53,11,53,20],[54,11,54,20],[55,11,55,20],[56,11,56,20],[57,11,57,20],[58,11,58,20],[59,11,59,20],[60,11,60,20],[61,11,61,20],[62,11,62,20],[58,38,58,43],[59,38,59,43],[60,38,60,43],[52,38,52,43],[53,38,53,43],[54,38,54,43],[55,38,55,43],[52,21,52,28],[53,21,53,28],[54,21,54,28],[55,21,55,28],[56,21,56,28],[57,21,57,28],[58,21,58,28],[61,38,61,43],[62,38,62,43],[53,29,53,37],[54,29,54,37],[55,29,55,37],[56,29,56,37],[57,29,57,37],[58,29,58,37],[59,29,59,37],[60,29,60,37],[47,38,47,43],[48,38,48,43],[49,38,49,43],[50,38,50,43],[51,38,51,43],[58,44,58,48],[59,44,59,48],[60,44,60,48],[47,29,47,37],[48,29,48,37],[49,29,49,37],[50,29,50,37],[51,29,51,37],[52,29,52,37],[61,44,61,48],[62,44,62,48],[44,44,45,48],[46,44,46,48],[47,44,47,48],[48,44,48,48],[49,44,49,48],[50,44,50,48],[51,44,51,48],[52,44,52,48],[53,44,53,48],[47,1,47,10],[46,1,46,10],[44,1,45,10],[46,38,46,43],[44,21,45,28],[54,44,54,48],[55,44,55,48],[56,44,56,48],[57,44,57,48],[46,21,46,28],[47,21,47,28],[48,21,48,28],[49,21,49,28],[56,38,56,43],[57,38,57,43],[50,21,50,28],[51,21,51,28],[44,38,45,43],[44,29,45,37],[46,29,46,37],[118,40,118,49],[119,1,119,49],[118,1,118,10],[118,11,118,22],[118,23,118,29],[118,30,118,32],[118,33,118,35],[118,36,118,39],[42,0,42,49],[62,1,62,10],[61,1,61,10],[60,1,60,10],[59,1,59,10],[58,1,58,10],[57,1,57,10],[56,1,56,10],[55,1,55,10],[54,1,54,10],[53,1,53,10],[52,1,52,10],[51,1,51,10],[50,1,50,10],[49,1,49,10],[48,1,48,10],[116,40,116,49],[117,1,117,10],[117,11,117,22],[117,23,117,29],[117,30,117,32],[117,33,117,35],[117,36,117,39],[117,40,117,49],[116,1,116,10],[116,11,116,22],[116,23,116,29],[116,30,116,32],[116,33,116,35],[116,36,116,39],[114,40,114,49],[115,1,115,10],[115,11,115,22],[115,23,115,29],[115,30,115,32],[115,33,115,35],[115,36,115,39],[115,40,115,49],[114,1,114,10],[114,11,114,22],[114,23,114,29],[114,30,114,32],[114,33,114,35],[114,36,114,39],[110,40,112,49],[113,1,113,10],[113,11,113,22],[113,23,113,29],[113,30,113,32],[113,33,113,35],[113,36,113,39],[113,40,113,49],[110,1,112,10],[110,11,112,22],[110,23,112,29],[110,30,112,32],[110,33,112,35],[110,36,112,39],[98,44,98,49],[99,1,100,49],[101,23,101,26],[103,0,103,49],[105,1,107,49],[108,44,108,49],[95,45,95,49],[95,56,95,57],[96,19,96,22],[96,23,96,26],[96,27,96,30],[96,31,96,34],[96,35,96,44],[96,45,96,49],[95,2,95,18],[95,19,95,22],[95,23,95,26],[95,27,95,30],[95,31,95,34],[95,35,95,44],[93,45,93,49],[93,56,93,57],[94,2,94,18],[94,19,94,22],[94,23,94,26],[94,27,94,30],[94,31,94,34],[94,35,94,44],[94,45,94,49],[94,56,94,57],[93,2,93,18],[93,19,93,22],[93,23,93,26],[93,27,93,30],[93,31,93,34],[93,35,93,44],[92,19,92,22],[92,23,92,26],[92,27,92,30],[92,31,92,34],[92,35,92,44],[92,45,92,49],[91,19,91,22],[91,23,91,26],[91,27,91,30],[91,31,91,34],[91,35,91,44],[91,45,91,49],[90,19,90,22],[90,23,90,26],[90,27,90,30],[90,31,90,34],[90,35,90,44],[90,45,90,49],[89,19,89,22],[89,23,89,26],[89,27,89,30],[89,31,89,34],[89,35,89,44],[89,45,89,49],[88,19,88,22],[88,23,88,26],[88,27,88,30],[88,31,88,34],[88,35,88,44],[88,45,88,49],[87,19,87,22],[87,23,87,26],[87,27,87,30],[87,31,87,34],[87,35,87,44],[87,45,87,49],[86,19,86,22],[86,23,86,26],[86,27,86,30],[86,31,86,34],[86,35,86,44],[86,45,86,49],[85,19,85,22],[85,23,85,26],[85,27,85,30],[85,31,85,34],[85,35,85,44],[85,45,85,49],[84,19,84,22],[84,23,84,26],[84,27,84,30],[84,31,84,34],[84,35,84,44],[84,45,84,49],[83,19,83,22],[83,23,83,26],[83,27,83,30],[83,31,83,34],[83,35,83,44],[83,45,83,49],[82,19,82,22],[82,23,82,26],[82,27,82,30],[82,31,82,34],[82,35,82,44],[82,45,82,49],[81,19,81,22],[81,23,81,26],[81,27,81,30],[81,31,81,34],[81,35,81,44],[81,45,81,49],[80,19,80,22],[80,23,80,26],[80,27,80,30],[80,31,80,34],[80,35,80,44],[80,45,80,49],[78,56,78,57],[79,19,79,22],[79,23,79,26],[79,27,79,30],[79,31,79,34],[79,35,79,44],[79,45,79,49],[78,19,78,22],[78,23,78,26],[78,27,78,30],[78,31,78,34],[78,35,78,44],[78,45,78,49],[70,1,74,49],[75,1,77,18],[75,19,77,22],[75,23,77,26],[75,27,77,30],[75,31,77,34],[75,35,77,44],[75,45,77,49],[68,0,68,49],[21,31,21,36],[23,2,23,3],[24,13,24,18],[25,2,25,3],[26,2,26,3],[34,1,35,49],[28,31,28,33],[28,34,28,36],[29,31,29,33],[29,34,29,36],[30,31,30,33],[30,34,30,36],[31,29,32,38],[24,29,25,38],[26,31,26,33],[26,34,26,36],[27,31,27,33],[27,34,27,36],[6,12,6,15],[6,25,6,29],[6,30,6,33],[6,42,6,45],[6,46,6,49],[19,2,19,3],[19,28,19,30],[20,14,20,15],[20,19,20,20],[4,7,4,20],[4,25,4,29],[4,30,4,33],[4,42,4,45],[4,46,4,49],[5,12,5,15],[5,18,5,20],[5,25,5,29],[5,30,5,33],[5,42,5,45],[5,46,5,49],[0,50,0,54],[0,0,0,49],[2,7,2,20],[2,25,2,29],[2,30,2,33],[2,45,2,49],[3,7,3,20],[3,25,3,29],[3,30,3,33],[3,42,3,45],[3,46,3,49],[120,1,121,49],[11,65,12,65],[11,66,12,66],[11,67,12,67],[11,68,12,68],[11,56,12,56],[11,57,12,57],[11,58,12,58],[11,59,12,59],[11,60,12,60],[11,61,12,61],[11,62,12,62],[11,63,12,63],[11,64,12,64],[9,1,11,49],[13,1,14,48],[15,2,15,3],[15,10,15,12],[17,1,18,49],[19,10,19,15],[21,14,21,15],[21,19,21,20],[21,28,21,29],[27,2,27,3]]}
["Attachment 24 - Service Amenity Information",null,null,null,null,null,null,null,null,null,null,null,null,null,null,null,null,null,null,null,null,null,null,null,null,null,null,null,null,null,null,null,null,null,null,null,null,null,null,null,null,null,null,null,null,null,null,null,null,null,"Instructions for Services tab »"]
[]
[null,"Project:",null,null,null,null,null,{"$f":"INDEX(val,MATCH(\"g_ProjectName\",ref,0))","v":0},null,null,null,null,null,null,null,null,null,null,null,null,null,null,null,null,null,"Source",null,null,null,null,"Amount",null,null,null,null,null,null,null,null,null,null,null,null,null,null,"10325(c)(4)(B)"]
[null,"Housing type:",null,null,null,null,null,{"$f":"INDEX(val,MATCH(\"t_HousingType\",ref,0))","v":"(select one)"},null,null,null,null,null,null,null,null,null,null,null,null,null,null,null,null,null,"Cash Flow",null,null,null,null,{"$f":"X97","v":0},null,null,null,null,null,null,null,null,null,null,null,"Units",null,null,null,"Bedrooms"]
[null,"2nd Housing type:",null,null,null,null,null,{"$f":"INDEX(val,MATCH(\"t_SecondaryHousingType\",ref,0))","v":"N/A"},null,null,null,null,null,null,null,null,null,null,null,null,null,{"$f":"IF(AND(INDEX(val,MATCH(\"t_RequiresSecondaryHousingType\",ref,0)),OR(H5=\"\",H5=\"N/A\")),\"!\",\"\")","v":""},null,null,null,"In-Kind/Grant",null,null,null,null,{"$f":"AB97","v":0},null,null,null,null,null,null,null,null,null,null,"All residential:",{"$f":"INDEX(val,MATCH(\"g_UnitsLowIncome\",ref,0))","v":0},null,null,null,{"$f":"INDEX(val,MATCH(\"g_BedroomsTotal\",ref,0))","v":0}]
[null,"Family project or 25% 3-BR units:",null,null,null,null,null,null,null,null,null,null,{"$f":"OR(H4=\"Large Family\",(SUM(INDEX(val,MATCH(\"g_Units3\",ref,0))+INDEX(val,MATCH(\"g_Units4\",ref,0))+INDEX(val,MATCH(\"g_Units5\",ref,0)))>=25%))","v":false},null,null,null,null,"3-BR:",{"$f":"SUM(INDEX(val,MATCH(\"g_Units3\",ref,0))+INDEX(val,MATCH(\"g_Units4\",ref,0))+INDEX(val,MATCH(\"g_Units5\",ref,0)))/INDEX(val,MATCH(\"g_UnitsLowIncome\",ref,0))","v":{"$error":"#DIV/0!"}},null,null,null,null,null,null,"Cap. Reserve",null,null,null,null,{"$f":"AF97","v":0},null,null,null,null,null,null,null,null,null,null,"Special Needs/SRO:",{"$f":"IF(OR(H5=\"SRO\",H4=\"SRO\"),AQ5,INDEX(val,MATCH(\"g_UnitsSpecialNeeds\",ref,0)))","v":0},null,null,null,{"$f":"IF(OR(H5=\"SRO\",H4=\"SRO\"),AU5,INDEX(val,MATCH(\"g_BedroomsSpecialNeeds\",ref,0)))","v":0}]
[null,"Small development (<= 20 units):",null,null,null,null,null,null,null,null,null,null,{"$f":"INDEX(val,MATCH(\"g_UnitsTotal\",ref,0))<=20","v":true},null,null,null,null,null,null,null,null,null,null,null,null,"Total:",null,null,null,null,{"$f":"SUM(AE4:AH6)","v":0},null,null,null,null,null,null,null,null,null,null,"Non Special Needs:",{"$f":"IF(H5=\"SRO\",0,MAX(0,AQ5-AQ6))","v":0},null,null,null,{"$f":"IF(H5=\"SRO\",0,MAX(0,AU5-AU6))","v":0}]
[]
[null,"Physical space:"]
[null,"Provide evidence that adequate physical space for services is provided on-site, inside the project, and provides sufficient square footage, accessibility and privacy to accommodate the proposed services. If services are located off-site, provide a scaled distance map evidencing the off-site service is within ½ mile of the development (1 ½ miles for Rural set-aside projects) and acknowledgment or documentation of the services from the service provider at the off-site location.",null,null,null,null,null,null,null,null,null,null,null,null,null,null,null,null,null,null,null,null,null,null,null,null,null,null,null,null,null,null,null,null,null,null,null,null,null,null,null,null,null,null,null,null,null,null,null,null,null,null,null,null,null,null,null,null,null,null,null,null,{"$f":"HousingType=\"Non-Targeted\"","v":false}]
[null,null,null,null,null,null,null,null,null,null,null,null,null,null,null,null,null,null,null,null,null,null,null,null,null,null,null,null,null,null,null,null,null,null,null,null,null,null,null,null,null,null,null,null,null,null,null,null,null,null,null,null,null,null,null,null,null,null,null,null,null,null,{"$f":"OR(HousingType=\"Special Needs\",HousingType=\"SRO\")","v":false},null,null,{"$f":"UnitsTotal<=20","v":true},null,{"$f":"M6","v":false}]
[null,null,null,null,null,null,null,null,null,null,null,null,null,null,null,null,null,null,null,null,null,null,null,null,null,null,null,null,null,null,null,null,null,null,null,null,null,null,null,null,null,null,null,null,null,null,null,null,null,null,null,null,null,null,null,null,"Option","Points","Qualifies","Eligible","Base Hours","Hours/\nBedrooms","Special Needs/SRO","Hours\nReq'rd","Poss. Points","Small Dev","Weekly","Fam or 30% 3s","Hours\nPrpsd"]
[null,"Scattered sites:"]
[null,"An application proposing a project located on multiple scattered sites is scored proportionately in the service amenities category based upon (i) each site’s score, and (ii) the percentage of units represented by each site.",null,null,null,null,null,null,null,null,null,null,null,null,null,null,null,null,null,null,null,null,null,null,null,null,null,null,null,null,null,null,null,null,null,null,null,null,null,null,null,null,null,null,null,null,null,null,null,null,null,null,null,null,null,null,1,{"$f":"IF(BQ14>0,BM14*BG14,0)","v":0},{"$f":"AND(BH14,BQ14>=BL14)","v":true},{"$f":"OR(NOT(BK11),BO35)","v":true},2080,600,null,{"$f":"BP33/BJ14*BI14","v":0},5,null,null,null,{"$f":"T80","v":0}]
[null,null,null,null,null,null,null,null,null,null,null,null,null,null,null,null,null,null,null,null,null,null,null,null,null,null,null,null,null,null,null,null,null,null,null,null,null,null,null,null,null,null,null,null,null,null,null,null,null,null,null,null,null,null,null,null,2,{"$f":"IF(BQ15>0,BM15*BG15,0)","v":0},{"$f":"AND(BH15,BQ15>=BL15)","v":true},{"$f":"OR(NOT(BK11),BO35)","v":true},2080,600,null,{"$f":"BP33/BJ15*BI15","v":0},5,null,null,null,{"$f":"T81","v":0}]
[null,null,{"$f":"IF(K16,\"Yes\",\"N/A\")","v":"N/A"},null,"Scattered Site:",null,null,null,null,null,{"$f":"INDEX(val,MATCH(\"g_ScatteredSite\",ref,0))","v":false},null,null,null,null,null,null,null,null,null,null,null,null,null,null,null,null,null,null,null,null,null,null,null,null,null,null,null,null,null,null,null,null,null,null,null,null,null,null,null,null,null,null,null,null,null,"3a",{"$f":"IF(BQ16>0,BM16*BG16,0)","v":0},false,{"$f":"OR(NOT(BK11),BO35)","v":true},84,null,null,{"$f":"BI16","v":84},7,null,null,null,{"$f":"T82","v":0}]
[null,"Scored Proportionately:",null,null,null,null,null,null,null,null,null,null,null,null,null,null,null,null,null,null,null,null,null,null,null,null,null,null,null,null,null,null,null,null,null,null,null,null,null,null,null,null,null,null,null,null,null,null,null,null,null,null,null,null,null,null,"3b",0,false,{"$f":"AND(OR(NOT(BK11),BO35),BN11)","v":true},42,null,null,{"$f":"BI17","v":42},7,true,null,null,{"$f":"BQ16","v":0}]
[null,"A Special Needs project with less than 75% special needs units is scored proportionately in the service amenity category based upon (i) the services provided to special needs and non-special needs units, respectively; and (ii) the percentage of units represented by special needs and non-special needs units, respectively.",null,null,null,null,null,null,null,null,null,null,null,null,null,null,null,null,null,null,null,null,null,null,null,null,null,null,null,null,null,null,null,null,null,null,null,null,null,null,null,null,null,null,null,null,null,null,null,null,null,null,null,null,null,null,"3c",0,false,{"$f":"OR(NOT(BK11),BO35)","v":true},60,null,null,{"$f":"BI18","v":60},5,null,null,null,{"$f":"BQ16","v":0}]
[null,null,null,null,null,null,null,null,null,null,null,null,null,null,null,null,null,null,null,null,null,null,null,null,null,null,null,null,null,null,null,null,null,null,null,null,null,null,null,null,null,null,null,null,null,null,null,null,null,null,null,null,null,null,null,null,"3d",0,false,{"$f":"AND(OR(NOT(BK11),BO35),BN11)","v":true},30,null,null,{"$f":"BI19","v":30},5,true,null,null,{"$f":"BQ16","v":0}]
[null,null,{"$f":"IF(AND(K20=\"Special Needs\",AC20<75%),\"Yes\",\"N/A\")","v":"N/A"},null,"Housing Type:",null,null,null,null,null,{"$f":"HousingType","v":"(select one)"},null,null,null,null,null,null,"Special Needs units percentage:",null,null,null,null,null,null,null,null,null,null,{"$f":"INDEX(val,MATCH(\"t_SpecialNeedsPercentage\",ref,0))","v":""},null,null,null,null,null,null,null,null,null,null,null,null,null,null,null,null,null,null,null,null,null,null,null,null,null,null,null,"4a",0,true,{"$f":"OR(NOT(BK11),BO35)","v":true},100,100,null,{"$f":"BP33/BJ20*BI20","v":0},5,null,null,null,{"$f":"T83","v":0}]
[null,null,null,null,"Special Needs/SRO Units:",null,null,null,null,null,null,null,null,null,{"$f":"AQ6","v":0},null,"Points:",null,null,{"$f":"AZ86","v":0},null,null,null,null,null,null,null,null,null,null,null,null,null,null,null,null,null,null,null,null,null,null,null,null,null,null,null,null,null,null,null,null,null,null,null,null,"4b",0,true,{"$f":"OR(NOT(BK11),BO35)","v":true},60,100,null,{"$f":"BP33/BJ21*BI21","v":0},3,null,null,null,{"$f":"BQ20","v":0}]
[null,null,null,null,"Non-Special Needs Units:",null,null,null,null,null,null,null,null,null,{"$f":"AQ7","v":0},null,"Points:",null,null,{"$f":"AZ79","v":0},null,"Proportional Score:",null,null,null,null,null,null,{"$f":"IF(BO35,SUMPRODUCT(T21:U22,O21:P22)/SUM(O21:P22),\"N/A\")","v":"N/A"},null,null,"10325(c)(4)(B)p8",null,null,null,null,null,null,null,null,null,null,null,null,null,null,null,null,null,null,null,null,null,null,null,null,5,0,false,{"$f":"AND(OR(NOT(BK11),BO35),BP11)","v":false},20,null,null,{"$f":"BI22*52","v":1040},5,null,true,true,{"$f":"T84","v":0}]
[null,"A Special Needs project with 75% or more but less than 100% special needs units must demonstrate all tenants will receive an appropriate level of services.",null,null,null,null,null,null,null,null,null,null,null,null,null,null,null,null,null,null,null,null,null,null,null,null,null,null,null,null,null,null,null,null,null,null,null,null,null,null,null,null,null,null,null,null,null,null,null,null,null,null,null,null,null,null,"6a",0,false,{"$f":"AND(OR(NOT(BK11),BO35),BP11)","v":false},10,null,null,{"$f":"BI23*52*10/12","v":433.33333333333331},5,null,true,true,{"$f":"T85","v":0}]
[null,null,{"$f":"IF(AND(K20=\"Special Needs\",AC20>=75%,AC20<100%),\"Yes\",\"N/A\")","v":"N/A"},null,null,null,null,null,null,null,null,null,null,null,null,null,null,null,null,null,null,null,null,null,null,null,null,null,null,null,null,null,null,null,null,null,null,null,null,null,null,null,null,null,null,null,null,null,null,null,null,null,null,null,null,null,"6b",0,false,{"$f":"AND(OR(NOT(BK11),BO35),BP11)","v":false},6,null,null,{"$f":"BI24*52*10/12","v":260},3,null,true,true,{"$f":"BQ23","v":0}]
[null,"Include position descriptions for:",null,null,null,null,null,null,null,null,null,null,null,"10325(c)(4)(B)p12",null,null,null,null,null,null,null,null,null,null,null,null,null,null,null,"Full Time Equivalent (FTE) to Hours Conversion Tool*",null,null,null,null,null,null,null,null,null,null,null,null,null,null,null,null,null,null,null,null,null,null,null,null,null,null,7,0,{"$f":"AND(BH25,BQ25>=BL25)","v":false},{"$f":"OR($BK$11,$BK$10)","v":false},2080,100,true,{"$f":"BP34/BJ25*BI25","v":0},5,null,null,null,{"$f":"T87","v":0}]
[null,null,{"$f":"IF(INDEX(val,MATCH(\"t_HasServiceCoordinator\",ref,0)),\"Yes\",\"N/A\")","v":"N/A"},null,"Service Coordinator",null,null,null,null,null,null,null,null,null,null,null,null,null,null,null,null,null,null,null,null,null,null,null,null,null,null,null,null,null,null,null,null,null,null,null,null,null,null,null,null,null,null,null,null,null,null,null,null,null,null,null,8,0,false,{"$f":"OR($BK$11,$BK$10)","v":false},2080,360,true,{"$f":"BP34/BJ26*BI26","v":0},5,null,null,null,{"$f":"T88","v":0}]
[null,null,{"$f":"IF(INDEX(val,MATCH(\"t_HasCaseManager\",ref,0)),\"Yes\",\"N/A\")","v":"N/A"},null,"Case Manager",null,null,null,null,null,null,null,null,null,null,null,null,null,null,null,null,null,null,null,null,null,null,null,null,null,null,"FTE",null,null,"Hours",null,null,null,null,null,null,null,null,null,null,null,null,null,null,null,null,null,null,null,null,null,"9a",0,false,{"$f":"OR($BK$11,$BK$10)","v":false},84,null,true,{"$f":"BI27","v":84},5,null,null,null,{"$f":"T89","v":0}]
[null,null,{"$f":"IF(INDEX(val,MATCH(\"t_HasOtherServiceSpecialist\",ref,0)),\"Yes\",\"N/A\")","v":"N/A"},null,"Other Service Specialist",null,null,null,null,null,null,null,null,null,null,null,null,null,null,null,null,null,null,null,null,null,null,null,null,null,null,1,null,null,{"$f":"2080*AF28","v":2080},null,null,null,null,null,null,null,null,null,null,null,null,null,null,null,null,null,null,null,null,null,"9b",0,false,{"$f":"AND(OR($BK$11,$BK$10),$BN$11)","v":false},42,null,true,{"$f":"BI28","v":42},5,true,null,null,{"$f":"BQ27","v":0}]
[null,null,null,null,"(Describe the type of specialist)",null,null,null,null,null,null,null,null,null,null,null,null,null,null,null,null,null,null,null,null,null,null,null,null,null,null,0.5,null,null,{"$f":"2080*AF29","v":1040},null,null,null,null,null,null,null,null,null,null,null,null,null,null,null,null,null,null,null,null,null,10,0,false,{"$f":"OR($BK$11,$BK$10)","v":false},1,null,true,{"$f":"BI29","v":1},5,null,null,null,{"$f":"T90","v":0}]
[null,null,null,null,null,null,null,null,null,null,null,null,null,null,null,null,null,null,null,null,null,null,null,null,null,null,null,null,null,null,null,0.25,null,null,{"$f":"2080*AF30","v":520},null,null,null,null,null,null,null,null,null,null,null,null,null,null,null,null,null,null,null,null,null,11,0,false,{"$f":"AND(OR($BK$11,$BK$10),$BP$11)","v":false},20,null,true,{"$f":"BI30*52","v":1040},5,null,true,true,{"$f":"T91","v":0}]
[null,null,null,null,null,null,null,null,null,null,null,null,null,null,null,null,null,null,null,null,null,null,null,null,null,null,null,null,null,null,null,null,null,null,{"$f":"2080*AF31","v":0},null,null,null,null,null,null,null,null,null,null,null,null,null,null,null,null,null,null,null,null,null,12,0,false,{"$f":"AND(OR($BK$11,$BK$10),$BP$11)","v":false},10,null,true,{"$f":"BI31*52*10/12","v":433.33333333333331},5,null,true,true,{"$f":"T92","v":0}]
[null,null,null,null,null,null,null,null,null,null,null,null,null,null,null,null,null,null,null,null,null,null,null,null,null,null,null,null,null,"*provided for your convenience, no entry req'd for application"]
[null,null,null,null,null,null,null,null,null,null,null,null,null,null,null,null,null,null,null,null,null,null,null,null,null,null,null,null,null,null,null,null,null,null,null,null,null,null,null,null,null,null,null,null,null,null,null,null,null,null,null,null,null,null,null,null,null,null,null,null,null,null,null,null,null,"g_BedroomsTotal",{"$f":"INDEX(val,MATCH(BN33,ref,0))","v":0},{"$f":"AU7","v":0},"Bedrooms for options 1-6"]
[null,"Service provider commitments:",null,null,null,null,null,null,null,null,null,null,null,null,null,null,null,null,null,null,null,null,null,null,null,null,null,null,null,null,null,null,null,null,null,null,null,null,null,null,null,null,null,null,null,null,null,null,null,null,null,null,null,null,null,null,null,null,null,null,null,null,null,null,null,"g_BedroomsSpecialNeeds",{"$f":"AU6","v":0},{"$f":"AU6","v":0},"Bedrooms for options 7-12"]
[null,"Include a written commitment from all service providers. Documentation must take the form of a contract for services, Memorandum of Understanding (MOU), or commitment letter on agency letterhead. Service provider commitments must:",null,null,null,null,null,null,null,null,null,null,null,null,null,null,null,null,null,null,null,null,null,null,null,null,null,null,null,null,null,null,null,null,null,null,null,null,null,null,null,null,null,null,null,null,null,null,null,null,null,null,null,null,null,null,null,null,null,null,null,null,null,null,null,"t_RequiresSecondaryHousingType",{"$f":"IF(H5=\"SRO\",FALSE,INDEX(val,MATCH(BN35,ref,0)))","v":false}]
[]
[null,null,"•","state the name and address of the organization or entity that will provide the services;"]
[null,null,"•","state the name of the project to which the services are being committed;"]
[null,null,"•","describe the services to be provided (not simply a general statement of the service categories outlined in the CTCAC regulations);"]
[null,null,"•","state the number of hours services will be provided; and"]
[null,null,"•","commit that services will be available to tenants of the project free of charge (except for child care services or other charges required by law)."]
[]
["Service Provider and Reference Contacts"]
[]
[null,"Company Name",null,null,null,null,null,null,null,null,null,"Contact Name",null,null,null,null,null,null,null,null,null,"Position",null,null,null,null,null,null,null,"Email",null,null,null,null,null,null,null,null,"Phone",null,null,null,null,null,"Provider or Reference?"]
[]
[null,null,null,null,null,null,null,null,null,null,null,null,null,null,null,null,null,null,null,null,null,null,null,null,null,null,null,null,null,null,null,null,null,null,null,null,null,null,null,null,null,null,null,null,null,null,null,null,null,null,null,{"$f":"IF(AND(AS47=\"Provider\",OR(B47=INDEX(val,MATCH(\"g_PrimaryMgmt\",ref,0)),B47=INDEX(val,MATCH(\"g_SecondMgmt\",ref,0)))),1,0)","v":0},{"$f":"IF(AZ47=1,\"! On-site property manager cannot provide services\",\"\")","v":""}]
[null,null,null,null,null,null,null,null,null,null,null,null,null,null,null,null,null,null,null,null,null,null,null,null,null,null,null,null,null,null,null,null,null,null,null,null,null,null,null,null,null,null,null,null,null,null,null,null,null,null,null,{"$f":"IF(AND(AS48=\"Provider\",OR(B48=INDEX(val,MATCH(\"g_PrimaryMgmt\",ref,0)),B48=INDEX(val,MATCH(\"g_SecondMgmt\",ref,0)))),1,0)","v":0},{"$f":"IF(AZ48=1,\"! On-site property manager cannot provide services\",\"\")","v":""}]
[null,null,null,null,null,null,null,null,null,null,null,null,null,null,null,null,null,null,null,null,null,null,null,null,null,null,null,null,null,null,null,null,null,null,null,null,null,null,null,null,null,null,null,null,null,null,null,null,null,null,null,{"$f":"IF(AND(AS49=\"Provider\",OR(B49=INDEX(val,MATCH(\"g_PrimaryMgmt\",ref,0)),B49=INDEX(val,MATCH(\"g_SecondMgmt\",ref,0)))),1,0)","v":0},""]
[null,null,null,null,null,null,null,null,null,null,null,null,null,null,null,null,null,null,null,null,null,null,null,null,null,null,null,null,null,null,null,null,null,null,null,null,null,null,null,null,null,null,null,null,null,null,null,null,null,null,null,{"$f":"IF(AND(AS50=\"Provider\",OR(B50=INDEX(val,MATCH(\"g_PrimaryMgmt\",ref,0)),B50=INDEX(val,MATCH(\"g_SecondMgmt\",ref,0)))),1,0)","v":0},""]
[null,null,null,null,null,null,null,null,null,null,null,null,null,null,null,null,null,null,null,null,null,null,null,null,null,null,null,null,null,null,null,null,null,null,null,null,null,null,null,null,null,null,null,null,null,null,null,null,null,null,null,{"$f":"IF(AND(AS51=\"Provider\",OR(B51=INDEX(val,MATCH(\"g_PrimaryMgmt\",ref,0)),B51=INDEX(val,MATCH(\"g_SecondMgmt\",ref,0)))),1,0)","v":0},""]
[null,null,null,null,null,null,null,null,null,null,null,null,null,null,null,null,null,null,null,null,null,null,null,null,null,null,null,null,null,null,null,null,null,null,null,null,null,null,null,null,null,null,null,null,null,null,null,null,null,null,null,{"$f":"IF(AND(AS52=\"Provider\",OR(B52=INDEX(val,MATCH(\"g_PrimaryMgmt\",ref,0)),B52=INDEX(val,MATCH(\"g_SecondMgmt\",ref,0)))),1,0)","v":0},""]
[null,null,null,null,null,null,null,null,null,null,null,null,null,null,null,null,null,null,null,null,null,null,null,null,null,null,null,null,null,null,null,null,null,null,null,null,null,null,null,null,null,null,null,null,null,null,null,null,null,null,null,{"$f":"IF(AND(AS53=\"Provider\",OR(B53=INDEX(val,MATCH(\"g_PrimaryMgmt\",ref,0)),B53=INDEX(val,MATCH(\"g_SecondMgmt\",ref,0)))),1,0)","v":0},""]
[null,null,null,null,null,null,null,null,null,null,null,null,null,null,null,null,null,null,null,null,null,null,null,null,null,null,null,null,null,null,null,null,null,null,null,null,null,null,null,null,null,null,null,null,null,null,null,null,null,null,null,{"$f":"IF(AND(AS54=\"Provider\",OR(B54=INDEX(val,MATCH(\"g_PrimaryMgmt\",ref,0)),B54=INDEX(val,MATCH(\"g_SecondMgmt\",ref,0)))),1,0)","v":0},""]
[null,null,null,null,null,null,null,null,null,null,null,null,null,null,null,null,null,null,null,null,null,null,null,null,null,null,null,null,null,null,null,null,null,null,null,null,null,null,null,null,null,null,null,null,null,null,null,null,null,null,null,{"$f":"IF(AND(AS55=\"Provider\",OR(B55=INDEX(val,MATCH(\"g_PrimaryMgmt\",ref,0)),B55=INDEX(val,MATCH(\"g_SecondMgmt\",ref,0)))),1,0)","v":0},""]
[null,null,null,null,null,null,null,null,null,null,null,null,null,null,null,null,null,null,null,null,null,null,null,null,null,null,null,null,null,null,null,null,null,null,null,null,null,null,null,null,null,null,null,null,null,null,null,null,null,null,null,{"$f":"IF(AND(AS56=\"Provider\",OR(B56=INDEX(val,MATCH(\"g_PrimaryMgmt\",ref,0)),B56=INDEX(val,MATCH(\"g_SecondMgmt\",ref,0)))),1,0)","v":0},""]
[null,null,null,null,null,null,null,null,null,null,null,null,null,null,null,null,null,null,null,null,null,null,null,null,null,null,null,null,null,null,null,null,null,null,null,null,null,null,null,null,null,null,null,null,null,null,null,null,null,null,null,{"$f":"IF(AND(AS57=\"Provider\",OR(B57=INDEX(val,MATCH(\"g_PrimaryMgmt\",ref,0)),B57=INDEX(val,MATCH(\"g_SecondMgmt\",ref,0)))),1,0)","v":0},""]
[null,null,null,null,null,null,null,null,null,null,null,null,null,null,null,null,null,null,null,null,null,null,null,null,null,null,null,null,null,null,null,null,null,null,null,null,null,null,null,null,null,null,null,null,null,null,null,null,null,null,null,{"$f":"IF(AND(AS58=\"Provider\",OR(B58=INDEX(val,MATCH(\"g_PrimaryMgmt\",ref,0)),B58=INDEX(val,MATCH(\"g_SecondMgmt\",ref,0)))),1,0)","v":0},""]
[null,null,null,null,null,null,null,null,null,null,null,null,null,null,null,null,null,null,null,null,null,null,null,null,null,null,null,null,null,null,null,null,null,null,null,null,null,null,null,null,null,null,null,null,null,null,null,null,null,null,null,{"$f":"IF(AND(AS59=\"Provider\",OR(B59=INDEX(val,MATCH(\"g_PrimaryMgmt\",ref,0)),B59=INDEX(val,MATCH(\"g_SecondMgmt\",ref,0)))),1,0)","v":0},""]
[null,null,null,null,null,null,null,null,null,null,null,null,null,null,null,null,null,null,null,null,null,null,null,null,null,null,null,null,null,null,null,null,null,null,null,null,null,null,null,null,null,null,null,null,null,null,null,null,null,null,null,{"$f":"IF(AND(AS60=\"Provider\",OR(B60=INDEX(val,MATCH(\"g_PrimaryMgmt\",ref,0)),B60=INDEX(val,MATCH(\"g_SecondMgmt\",ref,0)))),1,0)","v":0},""]
[null,null,null,null,null,null,null,null,null,null,null,null,null,null,null,null,null,null,null,null,null,null,null,null,null,null,null,null,null,null,null,null,null,null,null,null,null,null,null,null,null,null,null,null,null,null,null,null,null,null,null,{"$f":"IF(AND(AS61=\"Provider\",OR(B61=INDEX(val,MATCH(\"g_PrimaryMgmt\",ref,0)),B61=INDEX(val,MATCH(\"g_SecondMgmt\",ref,0)))),1,0)","v":0},""]
[null,null,null,null,null,null,null,null,null,null,null,null,null,null,null,null,null,null,null,null,null,null,null,null,null,null,null,null,null,null,null,null,null,null,null,null,null,null,null,null,null,null,null,null,null,null,null,null,null,null,null,{"$f":"IF(AND(AS62=\"Provider\",OR(B62=INDEX(val,MATCH(\"g_PrimaryMgmt\",ref,0)),B62=INDEX(val,MATCH(\"g_SecondMgmt\",ref,0)))),1,0)","v":0},""]
[null,null,null,null,null,null,null,null,null,null,null,null,null,null,null,null,null,null,null,null,null,null,null,null,null,null,null,null,null,null,null,null,null,null,null,null,null,null,null,null,null,null,null,null,null,null,null,null,null,null,null,{"$f":"IF(AND(AS63=\"Provider\",OR(B63=INDEX(val,MATCH(\"g_PrimaryMgmt\",ref,0)),B63=INDEX(val,MATCH(\"g_SecondMgmt\",ref,0)))),1,0)","v":0},""]
[]
[null,{"$f":"IF(SUM(AZ47:AZ63)>0,BI66,\"\")","v":""}]
[null,null,null,null,null,null,null,null,null,null,null,null,null,null,null,null,null,null,null,null,null,null,null,null,null,null,null,null,null,null,null,null,null,null,null,null,null,null,null,null,null,null,null,null,null,null,null,null,null,null,null,null,null,null,null,null,null,null,null,null,"Services delivered by the on-site Property Manager or other property management staff will not be eligible for points. If there are separate property management and service provider departments in the same organization, provide documentation of this in tab 24 with the Service Provider commitment."]
[]
[]
["Attachment 24 - Service Amenities Budget"]
[]
[null,"The Service Amenities Budget must clearly describe all anticipated income and expenses associated with the services program(s) and must align with the services commitments provided (i.e. contracts, MOUs, letters, etc.). Applications shall receive points for services only if the proposed budget adequately accounts for the level of service. The budgeted amount(s) must be reasonably expected to cover the costs of the proposed level of service(s). If project operating income (cash flow) will fund service amenities, the application’s Service Amenities Budget must be consistent with the application’s fifteen year pro forma. Services costs contained in the project’s pro forma operating expense budget do not count towards meeting CTCAC’s minimum operating expense requirements."]
[]
[]
[]
[]
[null,"Services to be Provided",null,null,null,null,null,null,null,null,null,null,null,null,null,null,null,null,null,"Service Hours per Year",null,null,null,"Amount Paid from Cashflow",null,null,null,"Value of\nIn-Kind or Grant",null,null,null,"Amount Paid from Cap. Rsrv.",null,null,null,"Service Provider",null,null,null,null,null,null,null,null,null,"Narrative Explanation Provided"]
[]
[null,null,null,null,null,null,null,null,null,null,null,null,null,null,null,null,null,null,null,null,null,null,null,null,null,null,null,null,null,null,null,null,null,null,null,null,null,null,null,null,null,null,null,null,null,null,null,null,null,null,null,"Points"]
[null,"Family, Senior, or At-Risk projects ¹",null,null,null,null,null,null,null,null,null,null,null,null,null,null,null,null,null,null,null,null,null,null,null,null,null,null,null,null,null,null,null,null,null,null,null,null,null,null,null,null,null,null,null,null,null,null,null,null,null,{"$f":"MIN(10,SUM(AZ80:AZ85))","v":0},null,null,null,null,null,null,null,"Funds","Provider","Experience","Eligible","Hours"]
[null,"1. Service Coordinator",null,null,null,null,null,null,null,null,null,null,null,null,null,null,null,null,null,null,null,null,null,null,null,null,null,null,null,null,null,null,null,null,null,null,null,null,null,null,null,null,null,null,null,null,null,null,null,null,null,{"$f":"BF14","v":0},{"$f":"IF(BH80,\"! Missing funding\",IF(BI80,\"! Missing Service Provider\",IF(BJ80,\"! Missing Service Experience\",IF(BK80,\"! Not eligible\",IF(BL80,\"! Not enough hours\",\"\")))))","v":""},null,null,null,null,null,null,{"$f":"AND(T80>0,SUM(X80:AI80)=0,AB80=\"\")","v":false},{"$f":"AND(T80>0,AJ80=\"\")","v":false},{"$f":"AND(T80>0,IFERROR(NOT(INDEX($BH$114:$BH$119,MATCH(AJ80,$B$114:$B$119,0))),TRUE))","v":false},null,{"$f":"AND(T80>0,AZ80=0,NOT(BK80))","v":false}]
[null,"2. Other Services Specialist",null,null,null,null,null,null,null,null,null,null,null,null,null,null,null,null,null,null,null,null,null,null,null,null,null,null,null,null,null,null,null,null,null,null,null,null,null,null,null,null,null,null,null,null,null,null,null,null,null,{"$f":"BF15","v":0},{"$f":"IF(BH81,\"! Missing funding\",IF(BI81,\"! Missing Service Provider\",IF(BJ81,\"! Missing Service Experience\",IF(BK81,\"! Not eligible\",IF(BL81,\"! Not enough hours\",\"\")))))","v":""},null,null,null,null,null,null,false,false,false,null,false]
[null,"3. Adult education, health, skill building classes",null,null,null,null,null,null,null,null,null,null,null,null,null,null,null,null,null,null,null,null,null,null,null,null,null,null,null,null,null,null,null,null,null,null,null,null,null,null,null,null,null,null,null,null,null,null,null,null,null,{"$f":"MAX(BF16:BF19)","v":0},{"$f":"IF(BH82,\"! Missing funding\",IF(BI82,\"! Missing Service Provider\",IF(BJ82,\"! Missing Service Experience\",IF(BK82,\"! Not eligible\",IF(BL82,\"! Not enough hours\",\"\")))))","v":""},null,null,null,null,null,null,false,false,false,null,{"$f":"AND(T82>0,AZ82=0,NOT(BK82))","v":false}]
[null,"4. Health and wellness services and programs",null,null,null,null,null,null,null,null,null,null,null,null,null,null,null,null,null,null,null,null,null,null,null,null,null,null,null,null,null,null,null,null,null,null,null,null,null,null,null,null,null,null,null,null,null,null,null,null,null,{"$f":"MAX(BF20:BF21)","v":0},"",null,null,null,null,null,null,false,false,false,null,false]
[null,"5. Licensed child care ²",null,null,null,null,null,null,null,null,null,null,null,null,null,null,null,null,null,null,null,null,null,null,null,null,null,null,null,null,null,null,null,null,null,null,null,null,null,null,null,null,null,null,null,null,null,null,null,null,null,{"$f":"BF22","v":0},"",null,null,null,null,null,null,false,false,false,{"$f":"AND(T84>0,NOT($M$6))","v":false},false]
[null,"6. After school program ²",null,null,null,null,null,null,null,null,null,null,null,null,null,null,null,null,null,null,null,null,null,null,null,null,null,null,null,null,null,null,null,null,null,null,null,null,null,null,null,null,null,null,null,null,null,null,null,null,null,{"$f":"MAX(BF23:BF24)","v":0},"",null,null,null,null,null,null,false,false,false,{"$f":"AND(T85>0,NOT($M$6))","v":false},false]
[null,"Special Needs or SRO projects ¹",null,null,null,null,null,null,null,null,null,null,null,null,null,null,null,null,null,null,null,null,null,null,null,null,null,null,null,null,null,null,null,null,null,null,null,null,null,null,null,null,null,null,null,null,null,null,null,null,null,{"$f":"MIN(10,SUM(AZ87:AZ92))","v":0}]
[null,"7. Case manager",null,null,null,null,null,null,null,null,null,null,null,null,null,null,null,null,null,null,null,null,null,null,null,null,null,null,null,null,null,null,null,null,null,null,null,null,null,null,null,null,null,null,null,null,null,null,null,null,null,{"$f":"BF25","v":0},"",null,null,null,null,null,null,{"$f":"AND(T87>0,SUM(X87:AI87)=0,AB87=\"\")","v":false},{"$f":"AND(T87>0,AJ87=\"\")","v":false},{"$f":"AND(T87>0,IFERROR(NOT(INDEX($BH$114:$BH$119,MATCH(AJ87,$B$114:$B$119,0))),TRUE))","v":false},null,{"$f":"AND(T87>0,AZ87=0,NOT(BK87))","v":false}]
[null,"8. Service Coordinator or Other Services Specialist",null,null,null,null,null,null,null,null,null,null,null,null,null,null,null,null,null,null,null,null,null,null,null,null,null,null,null,null,null,null,null,null,null,null,null,null,null,null,null,null,null,null,null,null,null,null,null,null,null,{"$f":"BF26","v":0},"",null,null,null,null,null,null,false,false,false,null,false]
[null,"9. Adult education, health, skill building classes",null,null,null,null,null,null,null,null,null,null,null,null,null,null,null,null,null,null,null,null,null,null,null,null,null,null,null,null,null,null,null,null,null,null,null,null,null,null,null,null,null,null,null,null,null,null,null,null,null,{"$f":"MAX(BF27:BF28)","v":0},"",null,null,null,null,null,null,false,false,false,null,false]
[null,"10. Health or behavioral health services",null,null,null,null,null,null,null,null,null,null,null,null,null,null,null,null,null,null,null,null,null,null,null,null,null,null,null,null,null,null,null,null,null,null,null,null,null,null,null,null,null,null,null,null,null,null,null,null,null,{"$f":"BF29","v":0},"",null,null,null,null,null,null,false,false,false,null,false]
[null,"11. Licensed child care ²",null,null,null,null,null,null,null,null,null,null,null,null,null,null,null,null,null,null,null,null,null,null,null,null,null,null,null,null,null,null,null,null,null,null,null,null,null,null,null,null,null,null,null,null,null,null,null,null,null,{"$f":"BF30","v":0},"",null,null,null,null,null,null,false,false,false,{"$f":"AND(T91>0,NOT($M$6))","v":false},false]
[null,"12. After school program ²",null,null,null,null,null,null,null,null,null,null,null,null,null,null,null,null,null,null,null,null,null,null,null,null,null,null,null,null,null,null,null,null,null,null,null,null,null,null,null,null,null,null,null,null,null,null,null,null,null,{"$f":"BF31","v":0},"",null,null,null,null,null,null,false,false,false,{"$f":"AND(T92>0,NOT($M$6))","v":false},false]
[null,"Other Services"]
[]
[]
[]
[null,null,null,null,null,null,null,null,null,null,null,null,null,null,null,null,null,null,"Totals ³ :",{"$f":"SUM(T80:W96)","v":0},null,null,null,{"$f":"SUM(X80:AA96)","v":0},null,null,null,{"$f":"SUM(AB80:AE96)","v":0},null,null,null,{"$f":"SUM(AF80:AI96)","v":0},null,null,null,"Combined Total:",null,null,null,null,null,null,null,null,null,{"$f":"SUM(X97:AI97)","v":0}]
[null,"¹ To receive points for the service amenity (a) the amount of hours, (b) the source of financing, and (c) the service provider must be specified above."]
[null,"² Only available to Large Family projects or other projects in which at least 25% of Low-Income Units are three bedrooms or larger.",null,null,null,null,null,null,null,null,null,null,null,null,null,null,null,null,null,null,null,null,null,null,null,null,null,null,null,null,null,null,null,null,null,null,null,null,null,null,null,null,null,null,"10325(c)(4)(B)(v)"]
[null,"³ The Service Amenities annual expense in the E-Application must match this budget's services paid from cash flow. "]
[]
[null,null,null,null,null,null,null,null,null,null,null,null,null,null,null,null,null,null,null,null,null,null,"Total Services Budgeted in Operating Expenses:",{"$f":"INDEX(val,MATCH(\"g_TotalServicesBudget\",ref,0))","v":0},null,null,null,{"$f":"IF(ABS(X102-X97)>1,\"!\",\"\")","v":""},{"$f":"IF(AB102=\"!\",\" This budget does not match services paid from cash flow on 15-Year Pro Forma.\",\"\")","v":""}]
[]
["Attachment 24 - Service Provider Experience"]
[]
[null,"Each service provider that will be providing services for which the applicant is claiming service amenities points must have at least 24 months experience in the successful provision of services to at least one of the project’s target populations. Please provide information on the experience of each service provider in the table below. Note that a Service Provider must be an organization. Experience of individuals may not substitute for organizational experience."]
[]
[]
[null,"Complete one row for each service provider. ",null,null,null,null,null,null,null,null,null,null,null,null,null,null,null,null,null,null,null,null,null,null,null,null,null,null,null,null,null,null,null,null,null,null,null,null,null,null,null,null,null,null,"10325(c)(4)(B)p14"]
[]
[null,"Service Provider",null,null,null,null,null,null,null,null,null,"Description of Services Organization has Provided \n(to meet 24 month minimum)",null,null,null,null,null,null,null,null,null,null,null,"Target Population Served",null,null,null,null,null,null,"Starting Date",null,null,"Ending Date",null,null,"Number of Clients Served*",null,null,null,"Service Provider \nReference**"]
[]
[null,null,null,null,null,null,null,null,null,null,null,null,null,null,null,null,null,null,null,null,null,null,null,null,null,null,null,null,null,null,null,null,null,null,null,null,null,null,null,null,null,null,null,null,null,null,null,null,null,null,null,null,null,null,null,null,null,null,null,"Experience"]
[null,null,null,null,null,null,null,null,null,null,null,null,null,null,null,null,null,null,null,null,null,null,null,null,null,null,null,null,null,null,null,null,null,null,null,null,null,null,null,null,"",null,null,null,null,null,null,null,null,null,null,null,{"$f":"IF(B114<>\"\",IF(AH114=\"\",IF('Housing Type'!$AF$3-AE114<365*2,\"! Not showing 24 months experience\",\"\"),IF(AH114-AE114<365*2,\"! Not showing 24 months experience\",\"\")),\"\")","v":""},null,null,null,null,null,null,{"$f":"AND(B114<>\"\",AE114<>\"\",IF(AH114=\"\",IF('Housing Type'!$AF$3=\"\",TODAY()-AE114>2*365,'Housing Type'!$AF$3-AE114>2*365),AH114-AE114>2*365))","v":false}]
[null,null,null,null,null,null,null,null,null,null,null,null,null,null,null,null,null,null,null,null,null,null,null,null,null,null,null,null,null,null,null,null,null,null,null,null,null,null,null,null,null,null,null,null,null,null,null,null,null,null,null,null,{"$f":"IF(B115<>\"\",IF(AH115=\"\",IF('Housing Type'!$AF$3-AE115<365*2,\"! Not showing 24 months experience\",\"\"),IF(AH115-AE115<365*2,\"! Not showing 24 months experience\",\"\")),\"\")","v":""},null,null,null,null,null,null,{"$f":"AND(B115<>\"\",AE115<>\"\",IF(AH115=\"\",IF('Housing Type'!$AF$3=\"\",TODAY()-AE115>2*365,'Housing Type'!$AF$3-AE115>2*365),AH115-AE115>2*365))","v":false}]
[null,null,null,null,null,null,null,null,null,null,null,null,null,null,null,null,null,null,null,null,null,null,null,null,null,null,null,null,null,null,null,null,null,null,null,null,null,null,null,null,null,null,null,null,null,null,null,null,null,null,null,null,{"$f":"IF(B116<>\"\",IF(AH116=\"\",IF('Housing Type'!$AF$3-AE116<365*2,\"! Not showing 24 months experience\",\"\"),IF(AH116-AE116<365*2,\"! Not showing 24 months experience\",\"\")),\"\")","v":""},null,null,null,null,null,null,{"$f":"AND(B116<>\"\",AE116<>\"\",IF(AH116=\"\",IF('Housing Type'!$AF$3=\"\",TODAY()-AE116>2*365,'Housing Type'!$AF$3-AE116>2*365),AH116-AE116>2*365))","v":false}]
[null,null,null,null,null,null,null,null,null,null,null,null,null,null,null,null,null,null,null,null,null,null,null,null,null,null,null,null,null,null,null,null,null,null,null,null,null,null,null,null,null,null,null,null,null,null,null,null,null,null,null,null,{"$f":"IF(B117<>\"\",IF(AH117=\"\",IF('Housing Type'!$AF$3-AE117<365*2,\"! Not showing 24 months experience\",\"\"),IF(AH117-AE117<365*2,\"! Not showing 24 months experience\",\"\")),\"\")","v":""},null,null,null,null,null,null,{"$f":"AND(B117<>\"\",AE117<>\"\",IF(AH117=\"\",IF('Housing Type'!$AF$3=\"\",TODAY()-AE117>2*365,'Housing Type'!$AF$3-AE117>2*365),AH117-AE117>2*365))","v":false}]
[null,null,null,null,null,null,null,null,null,null,null,null,null,null,null,null,null,null,null,null,null,null,null,null,null,null,null,null,null,null,null,null,null,null,null,null,null,null,null,null,null,null,null,null,null,null,null,null,null,null,null,null,{"$f":"IF(B118<>\"\",IF(AH118=\"\",IF('Housing Type'!$AF$3-AE118<365*2,\"! Not showing 24 months experience\",\"\"),IF(AH118-AE118<365*2,\"! Not showing 24 months experience\",\"\")),\"\")","v":""},null,null,null,null,null,null,{"$f":"AND(B118<>\"\",AE118<>\"\",IF(AH118=\"\",IF('Housing Type'!$AF$3=\"\",TODAY()-AE118>2*365,'Housing Type'!$AF$3-AE118>2*365),AH118-AE118>2*365))","v":false}]
[null,null,null,null,null,null,null,null,null,null,null,null,null,null,null,null,null,null,null,null,null,null,null,null,null,null,null,null,null,null,null,null,null,null,null,null,null,null,null,null,null,null,null,null,null,null,null,null,null,null,null,null,{"$f":"IF(B119<>\"\",IF(AH119=\"\",IF('Housing Type'!$AF$3-AE119<365*2,\"! Not showing 24 months experience\",\"\"),IF(AH119-AE119<365*2,\"! Not showing 24 months experience\",\"\")),\"\")","v":""},null,null,null,null,null,null,{"$f":"AND(B119<>\"\",AE119<>\"\",IF(AH119=\"\",IF('Housing Type'!$AF$3=\"\",TODAY()-AE119>2*365,'Housing Type'!$AF$3-AE119>2*365),AH119-AE119>2*365))","v":false}]
[null,"* Provide the number of unduplicated clients served in the most recent year services were provided."]
[null,"** In the contacts table above, provide name, title, email address, and phone number of a person who can provide a reference regarding the services provided.\n   This person may not be affiliated with the service provider or project sponsor."]

{"sheet":"Resyndication","index":9,"n_rows":341,"n_cols":44,"rows_kept":341,"cut":false,"hidden":false,"merged":[[88,1,92,37],[53,26,53,38],[54,26,54,38],[55,26,55,38],[56,26,56,38],[57,26,57,38],[58,26,58,38],[59,26,59,38],[60,26,60,38],[61,26,61,38],[79,31,79,35],[80,25,80,29],[81,25,81,29],[83,23,83,24],[84,5,85,19],[84,21,85,31],[71,1,72,34],[71,35,71,36],[59,1,59,15],[59,16,59,20],[59,21,59,25],[60,1,60,15],[60,16,60,20],[60,21,60,25],[291,2,292,35],[293,3,296,35],[298,3,302,35],[273,2,276,35],[279,2,282,35],[283,3,284,35],[287,3,289,35],[257,4,260,35],[262,2,264,34],[265,3,271,35],[336,3,337,35],[340,3,348,35],[322,5,323,35],[325,5,328,35],[329,2,332,35],[304,2,305,35],[306,3,308,35],[310,2,312,35],[313,3,314,35],[317,5,320,35],[252,6,254,35],[219,3,227,35],[228,2,229,35],[230,3,237,35],[204,6,210,35],[214,7,215,35],[216,7,217,35],[197,2,199,35],[183,3,187,35],[189,2,190,35],[191,3,195,35],[239,2,242,35],[243,4,246,35],[247,4,250,35],[174,4,174,18],[174,19,174,23],[174,24,174,28],[175,4,175,18],[175,19,175,23],[175,24,175,28],[172,4,172,18],[172,19,172,23],[172,24,172,28],[173,4,173,18],[173,19,173,23],[173,24,173,28],[170,4,170,18],[170,19,170,23],[170,24,170,28],[171,4,171,18],[171,19,171,23],[171,24,171,28],[168,4,168,18],[168,19,168,23],[168,24,168,28],[169,4,169,18],[169,19,169,23],[169,24,169,28],[167,4,167,18],[167,19,167,23],[167,24,167,28],[166,4,166,28],[143,3,155,35],[141,2,142,35],[129,3,132,35],[134,2,136,35],[137,3,139,35],[116,3,120,36],[123,3,125,35],[126,17,126,25],[126,3,126,16],[99,4,100,35],[103,3,105,35],[108,3,112,35],[157,2,159,34],[160,3,164,35],[16,5,16,24],[16,25,16,35],[11,2,11,3],[12,2,12,3],[15,2,15,3],[17,2,17,3],[8,2,9,34],[12,5,14,35],[15,5,15,34],[24,33,24,34],[21,28,21,29],[21,32,21,36],[22,32,22,36],[57,1,57,15],[57,16,57,20],[57,21,57,25],[58,1,58,15],[58,16,58,20],[58,21,58,25],[55,1,55,15],[55,16,55,20],[55,21,55,25],[36,33,36,36],[37,21,37,25],[38,21,38,25],[40,35,40,36],[43,1,43,2],[27,33,27,34],[30,35,30,36],[32,9,32,13],[32,33,32,36],[33,9,33,13],[34,9,34,13],[76,4,77,34],[76,35,76,36],[79,25,79,26],[56,1,56,15],[56,16,56,20],[56,21,56,25],[53,1,53,15],[53,16,53,20],[53,21,53,25],[54,1,54,15],[54,16,54,20],[54,21,54,25],[61,1,61,15],[61,16,61,20],[61,21,61,25],[69,1,69,2],[70,33,70,36],[73,2,73,29],[73,30,73,33],[74,3,75,33],[74,35,74,36],[34,33,34,36],[99,47,100,78],[24,2,25,32],[27,2,28,32],[114,2,115,36],[19,1,19,37],[6,1,6,37],[0,0,0,39],[96,1,96,38],[94,13,94,26],[2,4,2,17],[2,25,2,26],[2,32,2,33],[4,11,4,17],[4,21,4,27],[4,35,4,36],[0,41,0,52],[2,43,2,50],[44,1,44,2],[44,4,45,36],[46,1,46,2],[46,4,48,36],[50,33,50,36],[36,23,36,25]]}
["Resyndication",null,null,null,null,null,null,null,null,null,null,null,null,null,null,null,null,null,null,null,null,null,null,null,null,null,null,null,null,null,null,null,null,null,null,null,null,null,null,null,null,"Instructions for Resyndication tab »"]
[]
[null,"Project",null,null,{"$f":"INDEX(val,MATCH(\"g_ProjectName\",ref,0))","v":0},null,null,null,null,null,null,null,null,null,null,null,null,null,null,"Is a Resyndication",null,null,null,null,null,{"$f":"IF(INDEX(val,MATCH(\"g_Resyndication\",ref,0)),\"Yes\",\"No\")","v":"No"},null,null,"Credit Type",null,null,null,{"$f":"CONCATENATE(CreditType,\"%\")","v":"9%"},null,null,null,null,null,null,null,null,null,null,{"$f":"HYPERLINK(\"#AO98\",\"Resyndication Q&A »\")","v":"Resyndication Q&A »"}]
[]
[null,null,"Existing CTCAC Number(s)",null,null,null,null,null,null,null,null,{"$f":"IF(Z3=\"No\",\"\",INDEX(val,MATCH(\"t_ResyndOriginalNumber1\",ref,0)))","v":""},null,null,null,null,null,null,null,null,null,{"$f":"IF(Z3=\"No\",\"\",INDEX(val,MATCH(\"t_ResyndOriginalNumber2\",ref,0)))","v":""},null,null,null,null,null,null,null,null,null,null,null,null,"Total Units:",{"$f":"INDEX(val,MATCH(\"g_UnitsTotal\",ref,0))","v":0}]
[]
[null,"     Checklist",null,null,null,null,null,null,null,null,null,null,null,null,null,null,null,null,null,null,null,null,null,null,null,null,null,null,null,null,null,null,null,null,null,null,null,null,{"$f":"IF(AND(C12=\"X\",C13=\"X\",C16=\"X\",C18=\"X\"),IsTrue,IsFalse)","v":"û"}]
[]
[null,null,"All resyndication applications must include the following documents in addition to the items outlined in the application checklist:"]
[]
[]
[null,null,null,null,null,"A copy of the CTCAC recorded regulatory agreement"]
[null,null,null,null,null,"A confirmation letter from the seller that the seller will transfer tenant records and all tenant demographic data collected up to the date the sale closes escrow to the buyer and their property management agent"]
[]
[]
[null,null,null,null,null,"A reserve certification indicating that all unexpended funds in the project reserve funds associated "]
[null,null,null,null,null,"with the project will remain with the project (Section 10327(c)(7))",null,null,null,null,null,null,null,null,null,null,null,null,null,null,null,null,null,null,null,{"$f":"HYPERLINK(\"http://www.treasurer.ca.gov/ctcac/compliance/covenant/reserve.docx\",\"Template on CTCAC website here\")","v":"Template on CTCAC website here"}]
[null,null,null,null,null,"The questionnaire below, and any items required by the questionnaire"]
[]
[null,"     Questionnaire",null,null,null,null,null,null,null,null,null,null,null,null,null,null,null,null,null,null,null,null,null,null,null,null,null,null,null,null,null,null,null,null,null,null,null,null,{"$f":"IF(AH25=\"Yes\",IsTrue,IF(OR(AH28=\"Yes\",AH28=\"No\"),IsTrue,IsFalse))","v":"û"}]
[]
[null,null,"Does the regulatory agreement include a commitment to provide service amenities?"]
[null,null,null,"Note: the length of the commitment (or whether it has ended) is not relevant",null,null,null,null,null,null,null,null,null,null,null,null,null,null,null,null,null,null,null,null,null,null,null,null,null,null,null,null,{"$f":"IF(CreditType=4,\"10326(g)(8)(B)\",IF(CreditType=9,\"10325(f)(11)(B)\",\"\"))","v":"10325(f)(11)(B)"}]
[]
[null,null,"Does your Transfer Event qualify for an exemption because the project’s existing CTCAC regulatory agreement has a remaining term of 5 years or less?"]
[]
[]
[null,null,"Is your project currently subject to a Capital Needs Agreement or Capital Needs Covenant as a condition of a previous Transfer Event?"]
[]
[null,null,"Provide a copy of the Capital Needs Covenant."]
[null,null,"If yes, has the acquisition price increased between the initial Transfer Event and this application?"]
[null,null,null,"If yes, determine the required seller carryback loan/equity contribution"]
[null,null,null,null,"New valuation",null,null,null,null,null,null,null,null,null,null,"Aggregate annual replacement reserve contributions"]
[null,null,null,null,"Original cost",null,null,null,null,null,null,null,null,null,null,null,"required by Capital Needs Agreement"]
[null,null,null,null,"Increased value",null,null,null,null,{"$f":"J33-J34","v":0},null,null,null,null,null,"Aggregate annual replacement reserve contributions",null,null,null,null,null,null,null,null,null,null,null,null,null,null,null,null,null,{"$f":"AJ5*300","v":0}]
[null,null,null,null,null,null,null,null,null,null,null,null,null,null,null,null,"required by CTCAC regulations"]
[null,null,null,null,null,null,null,null,null,null,null,null,null,null,null,null,null,null,null,null,null,null,"Cap rate used in the appraisal associated with the resyndication",null,null,null,null,null,null,null,null,null,"Difference:",{"$f":"AH33-AH35","v":0}]
[null,null,null,null,null,null,null,null,null,null,null,null,null,null,null,null,null,null,null,null,"Reserve Requirement Value Differential",{"$f":"IFERROR(AH37/X37,0)","v":0}]
[null,null,null,null,null,null,null,null,null,null,null,null,null,null,null,null,null,null,null,null,"Required seller carryback/equity contribution",{"$f":"MIN(V38,J35)","v":0}]
[]
[null,null,"If subject to a Capital Needs Covenant, has the Short-Term Work been performed?"]
[]
[null,null,"If subject to a Capital Needs Covenant, provide the following as attachments to the application (see checklist for more details):"]
[null,{"$f":"IF(AH28=\"No\",\"N/A\",\"\")","v":""},null,1,"The current Capital Needs Covenant"]
[null,{"$f":"IF(OR($AJ$31=\"No\",B44=\"N/A\"),\"N/A\",\"\")","v":""},null,2,"An appraisal or other documentation that calculates what portion of the increase is due to a reduction in annual deposits to the replacement reserve account"]
[]
[null,{"$f":"IF(OR($AJ$31=\"No\",B44=\"N/A\"),\"N/A\",\"\")","v":""},null,3,"A statement of how the project complies with the requirement that the difference in value attributable to a reduction in the replacement reserve deposits be evidenced by a seller carryback note or general partner equity contribution"]
[]
[]
[]
[null,"Net Project Equity calculation",null,null,null,null,null,null,null,null,null,null,null,null,null,null,null,null,null,null,null,null,null,null,null,null,null,null,null,null,null,null,null,"10338(d)"]
[null,"Use the form below to determine if the Transfer Event will distribute Net Project Equity"]
[]
[null,"Seller Sources",null,null,null,null,null,null,null,null,null,null,null,null,null,null,"Debit",null,null,null,null,"Credit",null,null,null,null,"Substantiating Document and Page #"]
[null,"Total sales price"]
[null,"Seller carryback loan1"]
[null,"Repayment of existing debt2"]
[null,"Repayment of original deferred developer fee3"]
[null,"Repayment of GP operating deficit advances"]
[null,"Repayment of LIHTC investor LP taxes4"]
[null,"General Partner Equity5"]
[null,"Net Project Equity",null,null,null,null,null,null,null,null,null,null,null,null,null,null,{"$f":"V55-SUM(Q56:U61)","v":0}]
[]
[null,null,1,"Must be a residual receipt loan with a term that extends beyond the new partnership's tax credit compliance period"]
[null,null,2,"Amount must equal the total of outstanding debts on attachment 2-A3 or in the Tab 2 Financing Plan"]
[null,null,3,"Payment of Seller entity's deferred developer fee note to original developer"]
[null,null,4,"Federal, state, and local taxes incurred by the Seller entity's tax credit investor limited partner"]
[null,null,5,"Contribution of equity by General Partner to the new tax credit partnership"]
[]
[null,{"$f":"IF(AH25=\"Yes\",\"N/A\",\"\")","v":""},null,{"$f":"IF(AND(B70=\"N/A\",AH25=\"Yes\"),\"Project is exempt from Qualified Capital Needs Assessment due to remaining regulatory agreement timeframe\",\"\")","v":""}]
[null,"Qualified Capital Needs Assessment and Short-Term Work",null,null,null,null,null,null,null,null,null,null,null,null,null,null,null,null,null,null,null,null,null,null,null,null,null,null,null,null,null,null,null,"10338(d)"]
[null,"Does your Transfer Event qualify for a waiver from the requirements of 10338(c) because there are no distributions of Net Project Equity from the Transfer Event?",null,null,null,null,null,null,null,null,null,null,null,null,null,null,null,null,null,null,null,null,null,null,null,null,null,null,null,null,null,null,null,null,null,{"$f":"IF(Q62>0,\"No\",\"Yes\")","v":"Yes"}]
[]
[null,null,"Provide a current Qualified Capital Needs Assessment for the property (see checklist)",null,null,null,null,null,null,null,null,null,null,null,null,null,null,null,null,null,null,null,null,null,null,null,null,null,null,null,"10302(jj)"]
[null,null,null,"Does the Qualified Capital Needs Assessment indicate the project needs at least $5,000 per unit of work performed in the next three years (the Short-Term Work)?"]
[]
[null,null,null,null,"Is the project exempt from this requirement by virtue of the project's current regulatory agreement expiring in ten (10) years or less?"]
[]
[]
[null,null,null,"Does the rehabilitation scope of work include the Short Term Work?",null,null,null,null,null,null,null,null,null,null,null,null,null,null,null,null,null,null,null,null,null,null,null,null,null,null,null,"10338(c)"]
[null,null,null,null,"What is the amount of the Short Term Work identified in the CNA?"]
[null,null,null,null,null,"Min. Short Term Work (lesser of $5k/unit or Net Project Equity):",null,null,null,null,null,null,null,null,null,null,null,null,null,null,null,null,null,null,null,{"$f":"MIN((INDEX(val,MATCH(\"g_UnitsTotal\",ref,0))*5000),Q62)","v":0}]
[]
[null,null,null,null,"Is the Short Term Work being included in eligible basis?"]
[null,null,null,null,null,"If so how will the Short Term Work be funded?"]
[]
[]
[]
[null,"After a project has received a new reservation of credits, the existing regulatory agreement must be assigned to and assumed by the new owner. At your earliest convenience, please forward Ruben Barcelo and Carmen Doonan a draft of the assignment and assumption of regulatory agreement and any standstill and/or subordination agreement the lender may require, along with the anticipated closing date. Please include all documents together. Subordinations will only be processed for projects with no distribution of net project equity."]
[]
[]
[]
[]
[]
[null,null,null,null,null,null,null,null,null,null,null,null,null,{"$f":"HYPERLINK(\"mailto:ruben.barcelo@treasurer.ca.gov,cdoonan@treasurer.ca.gov\",\"mailto: Ruben Barcelo & Carmen Doonan\")","v":"mailto: Ruben Barcelo & Carmen Doonan"}]
[]
[null,"     Questions and Answers (Q&As)"]
[]
[null,null,"1. What is a resyndication project?"]
[null,null,null,null,"Resyndication refers to the process where an existing tax credit project requests a new reservation of tax credits to finance the rehabilitation of the existing tax credit project."]
[]
[]
[null,null,"2. When can I apply for a new reservation of credits (resyndicate)?"]
[null,null,null,"You may apply for a new reservation of tax credits concurrently with the initial, expiring 15-year federal compliance period. The acquisition date and the placed in service date must occur after the existing federal 15-year compliance period has expired."]
[]
[]
[]
[null,null,"3. How is the initial 15-year compliance period determined?"]
[null,null,null,"The 15-year compliance period begins on the first day of the taxable year of the credit period. In other words, the credit and compliance periods will begin the same year.\n\nFor example, a project is placed in service on July 1, 2001. Most LIHTC property owners are limited partnerships with taxable years beginning on January 1st, so the compliance period begins on January 1, 2001 and ends on December 31, 2015. See Internal Revenue Code §42(i)(1)."]
[]
[]
[]
[]
[]
[null,null,"4. What is the difference between an exemption and a waiver of the Transfer Event Short Term Work requirements?"]
[]
[null,null,null,"A resyndication project is exempt from Transfer Event Short Term Work requirements only if the project is subject to an existing tax credit regulatory agreement with a remaining term of five or less years.\n\nA resyndication project may receive a waiver of the Transfer Event Short Term Work requirements if there is no distribution of Net Project Equity. Development Section staff will consider the waiver as part of the application review (see Questions 9 and 10). "]
[]
[]
[]
[]
[]
[null,null,"5. What if the transfer is not occurring concurrently with a resyndication?"]
[null,null,null,"Refer to the compliance transfer event questionnaire on the CTCAC website. If you have questions after reviewing the compliance questionnaire, please contact Compliance Program Manager David McDaniels by email or by phone at (916) 654-6340."]
[]
[]
[null,null,null,{"$f":"HYPERLINK(\"https://www.treasurer.ca.gov/ctcac/compliance/covenant/questionnaire.pdf\",\"Compliance Transfer Event Questionnaire\")","v":"Compliance Transfer Event Questionnaire"},null,null,null,null,null,null,null,null,null,null,null,null,null,{"$f":"HYPERLINK(\"mailto:david.mcdaniels@treasurer.ca.gov\",\"mailto: David McDaniels\")","v":"mailto: David McDaniels"}]
[]
[null,null,"6. When does a Capital Needs Agreement, or Capital Needs Covenant, apply?"]
[null,null,null,"A capital needs agreement is a document recorded on title when there is an equity cash out not occurring concurrently with a resyndication (Question 5). The document is recorded on title and outlines the Short Term Work to be completed within 3 years from the date of the Transfer Event and any deposits to reserves as necessary to fund the long term work."]
[]
[]
[]
[]
[null,null,"7. Assume a project is subject to a Capital Needs Agreement due to a prior Transfer Event and Net Project Equity take out. If there will be additional equity take out (Net Project Equity distribution) with the resyndication application, would this qualify for a waiver?"]
[]
[]
[null,null,null,"No. If additional equity is being taken out, the project would not be eligible for a waiver and the resyndication application must exclude from basis the costs of the Short Term Work unless one of the four funding sources described in answer 14b) is included. "]
[]
[]
[]
[null,null,"8. If a project is subject to an existing Capital Needs Agreement, can the project take eligible basis on the Short Term Work required by the Capital Needs Agreement?\n"]
[]
[null,null,null,"In many cases, the Short Term Work should already be completed because it has been more than 3 years since the Capital Needs Agreement was signed.\n\nIf it has been less than 3 years since the Capital Needs Agreement was signed and some or all of the Short Term Work required by the Capital Needs Agreement will be done as part of the rehabilitation, the project must exclude from eligible basis any amount of the remaining Short Term Work reserve from the Capital Needs Agreement. These costs are included in the Sources and Uses Budget, but are not basis-eligible. Tax credits shall not pay for work funded already by the seller from the Initial Transfer Event. In addition, the applicant shall include the Short Term Work reserve funds required by the Capital Needs Agreement as a financing source. Since the funds have already been set aside for these costs, they must be spent for that purpose.\n\nIf it has been more than 3 years since the Capital Needs Agreement was signed, the costs of any Short Term Work required by the Capital Needs Agreement may not be included in basis. The project is in violation of the Capital Needs Agreement, and CTCAC will not award tax credits for completion of this work."]
[]
[]
[]
[]
[]
[]
[]
[]
[]
[]
[]
[]
[]
[null,null,"9. If a project is not subject to an existing Capital Needs Agreement and the Transfer Event associated with a resyndication will not distribute Net Project Equity to parties, are there any restrictions on including all rehabilitation costs in eligible basis?"]
[]
[]
[null,null,null,"No. Notwithstanding that the resyndication may be a Transfer Event, because the project is not under a Capital Needs Agreement at the time of resyndication and the transfer associated with the resyndication distributes no Net Project Equity to parties, upon verification CTCAC will waive the requirement to fund the Short Term Work. As part of the CTCAC resyndication application, the applicant must submit a Worksheet of Sale Proceeds from the transfer which calculates the Net Project Equity and demonstrates that the transfer does not distribute Net Project Equity to parties."]
[]
[]
[]
[]
[]
[null,null,null,null,"Sample Worksheet of Sale Proceeds:"]
[null,null,null,null,"Seller Sources",null,null,null,null,null,null,null,null,null,null,null,null,null,null,"Debit",null,null,null,null,"Credit"]
[null,null,null,null,"Total sales price"]
[null,null,null,null,"Seller carryback loan1"]
[null,null,null,null,"Repayment of existing debt2"]
[null,null,null,null,"Repayment of original deferred developer fee3"]
[null,null,null,null,"Repayment of GP operating deficit advances"]
[null,null,null,null,"Repayment of LIHTC investor LP taxes4"]
[null,null,null,null,"General Partner Equity5"]
[null,null,null,null,"Net Project Equity",null,null,null,null,null,null,null,null,null,null,null,null,null,null,{"$f":"Y169-SUM(T170:X175)","v":0}]
[]
[null,null,1,"Must be a residual receipt loan with a term that extends beyond the new partnership's tax credit compliance period"]
[null,null,2,"Amount must equal the total of outstanding debts on attachment 2-A3 or in the Tab 2 Financing Plan"]
[null,null,3,"Payment of Seller entity's deferred developer fee note to original developer"]
[null,null,4,"Federal, state, and local taxes incurred by the Seller entity's tax credit investor limited partner"]
[null,null,5,"Contribution of equity by General Partner to the new tax credit partnership"]
[]
[null,null,null,"Please be aware that CTCAC will make this determination during the application review based on documentation included in the application. If it is determined there is a Short Term Work requirement and the application incorrectly excluded a Short Term Work requirement, the application must be corrected. If there is insufficient time for this to occur, the application will be removed from the scheduled Committee meeting."]
[]
[]
[]
[]
[]
[null,null,"10. If the resyndication will not distribute Net Project Equity, should the applicant should differentiate immediate needs/short term work from any other rehabilitation work? "]
[]
[null,null,null,"No. If CTCAC determines there is no Net Project Equity being distributed, the Short Term Work\nrequirement is waived. Please be aware that CTCAC will make this determination during the application\nreview based on documentation included in the application. If it is determined there is a Short Term\nWork requirement and the application incorrectly excluded a Short Term Work requirement, the\napplication must be corrected. If there is insufficient time for this to occur, the application will be\nremoved from the scheduled Committee meeting. "]
[]
[]
[]
[]
[]
[null,null,"11. If a resyndication project excludes the costs of Short Term Work from basis or includes an adequate amount of the funding sources described in answer 14b), may the seller pull cash out (Net Project Equity distribution) even if it is a related party transaction?"]
[]
[]
[null,null,null,"Yes."]
[]
[null,null,"12. What is a Qualified Capital Needs Assessment (QCNA) and when is it required?"]
[null,null,null,"QCNA:"]
[null,null,null,null,null,"a)","Meets the requirements of (a) the Fannie Mae Multifamily Instructions for the PNA Property Evaluator, (b) Freddie Mac’s Property Condition Report requirements in Chapter 14 of the Small Balance Loan Addendum, (c) HUD’s Multifamily Capital Needs Assessment section in Appendix 5G of the Multifamily Accelerated Process Guide, or (d) Standard Guide for Property Condition Assessments: Baseline Property Condition Assessment Process (ASTM Designation E 2018-08) utilizing a recognized industry standard to establish useful life estimates for the replacement reserve analysis;\n"]
[]
[]
[]
[]
[]
[]
[null,null,null,null,null,"b)","Is commissioned by a third-party lender; "]
[null,null,null,null,null,"c)","Prepared within 180 days of the proposed transfer event; and"]
[null,null,null,null,null,"d)"," Includes a pre-rehabilitation reserve study that clearly sets forth: "]
[null,null,null,null,null,null,"i.","the capital needs of the project for the next 3 years (Short Term Work) and the projected costs thereof, AND"]
[]
[null,null,null,null,null,null,"ii.","the capital needs of the project for the subsequent 12 years (long term work) and the projected contributions to reserves that will be needed to accomplish that work. "]
[]
[]
[null,null,null,"A QCNA is required for all resyndications, including those that receive a waiver of or are not subject to Short Term Work requirements.\n\nNOTE: When there is a Net Project Equity distribution the 15 year pre-rehabilitation reserve study in the QCNA must demonstrate a rehabilitation need of at least $5,000 per unit over the first three years (Short Term Work, see Question 13).\n\nPlease refer to Sections 10302(ff), 10338(c)-(d), 10322(h)(26)(B), and 10325(f)(11)(C)."]
[]
[]
[]
[]
[]
[]
[]
[]
[null,null,"13. Resyndications with a distribution of Net Project Equity are subject to CTCAC’s Transfer Event Short Term Work requirement. How does CTCAC verify the Short Term Work requirement is met?"]
[]
[null,null,null,"The Qualified Capital Needs Assessment (QCNA) must demonstrate immediate rehabilitation needs of at least $5,000 per unit over the first three years of the 15 year pre-rehabilitation study. This is equal to the aggregate amounts in Years 1-3 of the 15 year pre-rehabilitation reserve study plus any immediate needs if identified separately in the QCNA. (The $5,000 per unit calculation cannot include inflation adjusters for Years 2-3 since all of this work is being performed as part of the rehabilitation and is not spread over a 3 year period.) For example, the QCNA for a 75 unit project must demonstrate at least $375,000 in rehabilitation needs for Years 1-3. If it does not, the project does not qualify for resyndication."]
[]
[]
[]
[]
[]
[]
[]
[]
[null,null,"14. For resyndication applications subject to the Transfer Event provisions, how should the Short Term Work amount from the Qualified Capital Needs Assessment (QCNA) be reflected in the resyndication application?"]
[]
[]
[]
[null,null,null,"a)","The Short Term Work is included in the rehabilitation scope of work (Attachment 8). In the Sources and Uses Budget, the Short Term Work is included in the budget either within the rehabilitation costs or as a separate line item. Be sure the costs in the QCNA 15 year pre-rehabilitation reserve study equal at least $5,000 per unit in Years 1-3 (Question 13)."]
[]
[]
[]
[null,null,null,"b)","If the applicant demonstrates one of the sources listed below in an amount equal to or greater than the Short Term Work amount, the applicant may claim eligible basis for the Short Term Work amount and should not differentiate the Short Term Work from any other rehabilitation work in the Sources and Uses Budget:"]
[]
[]
[]
[null,null,null,null,null,"i.","a credit from the seller of the project equal to the costs of Short Term Work;"]
[null,null,null,null,null,"ii.","a reduction in the purchase price of the project as compared to the purchase price of the project had the project not been subject to the Transfer Event requirement, as shown by an appraisal that calculates the impact of the Short Term Work requirement on value;"]
[]
[]
[null,null,null,null,null,"iii.","general partner equity; and/or"]
[null,null,null,null,null,"iv.","developer fee contributed to the project (deferred developer fee does not qualify)."]
[null,null,null,"c)","If the applicant is not eligible for a waiver and does not demonstrate one of the sources listed above in item b), the eligible basis for the Structures line item in the Sources and Uses Budget worksheet of the Excel application should be reduced by an amount equal to or greater than the Short Term Work amount."]
[]
[]
[]
[]
[null,null,"15. There is a seller credit in the amount of the Short Term Work requirement due to a Net Project Equity distribution (Answer 14b)). How should the seller credit be presented in the purchase and sale agreement, the CTCAC application, and the Sources and Uses Budget?"]
[]
[]
[null,null,null,"Assume a purchase and sale agreement for $10M, a seller credit of $500,000, and Short Term Work of $500,000. The purchase and sale agreement (PSA) must acknowledge the seller credit of $500,000. The appraisal in the application must support a value of at least $10M. The net purchase price ($9.5M) should be shown in the Sources and Uses Budget since that is what is being paid. Having the PSA verify the full amount ($10M) will sufficiently evidence the seller credit for the CTCAC application. In the Sources and Uses Budget, the Short Term Work is included in the budget either within the rehabilitation costs or as a separate line item. "]
[]
[]
[]
[]
[]
[]
[]
[null,null,"16. Does the amount of Short Term Work that must be contributed as described in Question 14b) above (Section 10338(c)(2)) count towards the amount of developer fee that must be deferred or contributed as equity in cases where the developer fee is in excess of CTCAC’s maximum that may be disbursed (Section 10327(c)(2)(B))?"]
[]
[]
[]
[null,null,null,"No. "]
[]
[null,null,"17. All projects with a reservation of credit made 1997 and later are subject to the requirement that all unexpended funds in project reserve accounts must remain with the project to be used for the benefit of the property and/or its residents. Can the seller require the purchase of the existing reserves? "]
[]
[]
[]
[null,null,null,"Yes, however the payment will be considered a distribution of Net Project Equity for Transfer Event purposes."]
[]
[]
[null,null,"18. How will CTCAC confirm Short Term Work has been completed?"]
[null,null,null,"For all projects CTCAC will require confirmation at placed in service that the applicant completed all of the Short Term Work items or that the Short Term Work items have been rendered moot by the larger rehabilitation work."]
[]
[]
[]
[null,null,"19. If the requirement to provide services amenities in the existing CTCAC regulatory agreement has expired, is the project required to provide services in the resyndication application?"]
[]
[null,null,null,"If the existing CTCAC regulatory agreement for the resyndication project was required to provide service amenities even if that requirement has expired, the resyndication project shall provide a similar or greater level of services for a period of at least 15 years under the new regulatory agreement. A project obtaining maximum CTCAC points for service amenities shall be deemed to have met this requirement. "]
[]
[]
[]
[]
[null,null,null,"The Executive Director may alter the service amenities requirement if the project (1) has exhibited a cash flow of less than $20,000 for at least each of the last 3 years, (2) has no hard debt and failed to break even in Year 15 with services amenities, or (3) within the next 5 years will lose a rental or operating subsidy that was factored into the project's initial feasibility, provided that the service amenity expenditures are maximized to what project feasibility allows."]
[]
[]
[]
[]
[]
[null,null,"20. For a resyndication of an existing tax credit project, may the area median income (AMI) rent and income targeting be increased in the new application?"]
[]
[null,null,null,"The targeted rent and income figures must be maintained at or below the targeted levels required in the existing CTCAC regulatory agreement unless approved by the Executive Director due to negative cash flow (see Section 10326(g)(8))."]
[]
[]
[]
[null,null,"21. If a resyndication includes a Subsequent Transfer described in Section 10338(c)(2) and the value of the property has increased from the Initial Transfer, how is the required seller carryback or equity contribution amount determined?"]
[]
[]
[null,null,null,"The methodology to calculate the amount of the required seller carryback or equity contribution is as follows:"]
[]
[null,null,null,null,"1)","Subtract the original acquisition cost from the new valuation (the “Increased Value”);"]
[]
[null,null,null,null,"2)","Subtract the aggregate annual replacement reserve contributions required under the standard CTCAC replacement reserve requirements from the aggregate annual replacement reserve contributions required by the Capital Needs Agreement. This difference is then divided by the cap rate used in the appraisal associated with the resyndication (the “Reserve Requirement Value Differential”). "]
[]
[]
[]
[]
[null,null,null,null,null,"(aggregate annual replacement reserve contributions required by the Capital Needs Agreement -\naggregate annual replacement reserve contributions required by CTCAC); and"]
[]
[]
[null,null,null,null,"3)","The amount of the seller carryback shall be the amount of the Reserve Requirement Value Differential but not in excess of the Increased Value. In the event that assumed third-party secured debt on the property equals or exceeds the property’s value from the appraisal associated with the resyndication, no seller carryback or equity contribution is required."]
[]
[]
[]
[null,null,"22. If a resyndication includes a Subsequent Transfer described in Section 10338(c)(2) and the value of the property has increased from the Initial Transfer, and the seller chooses to provide a carryback loan to meet CTCAC requirements, what are the required terms of the seller carryback loan?"]
[]
[]
[]
[null,null,null,"The seller carryback shall be a 55-year residual receipts loan payable solely from project cash flow."]
[]
[null,null,"23. What will the building identification numbers (BIN’s) be for my new application?"]
[null,null,null,"All resyndication projects are required by the IRS to use the existing BIN’s for the project. For example if the original BIN was CA-04-00201, the new project will retain that BIN for future IRS filings. "]
[]
[]
[null,null,"24. Are resyndication projects eligible to use the California Utility Allowance Calculator (CUAC)?"]
[null,null,null,"Yes. Projects applying for tax credits for which the rehabilitation improves energy efficiency by at least 20%, consistent with the requirements of Section 10325(c)(5)(D) and (G), or installs solar generation that offsets 50% of tenant loads, as determined consistent with the requirements of Section 10325(c)(5)(G), are eligible to use the CUAC.\n\nAny decrease in tenant’s utility allowance resulting from conversion to the CUAC shall not exceed $15 per month over any 12-month period. Resyndication projects proposing the CUAC should reflect actual rents in the Excel application no greater than a $15 tenant rent increase. At placed in service, CTCAC will compare the pre- and post-CUAC utility allowances and tenant paid rents."]

{"sheet":"Hybrid","index":10,"n_rows":48,"n_cols":42,"rows_kept":48,"cut":false,"hidden":false,"merged":[[13,5,15,35],[16,2,16,3],[33,33,33,37],[37,26,37,37],[35,3,36,37],[25,2,25,3],[32,1,32,37],[34,28,34,29],[34,32,34,36],[18,33,18,34],[22,33,22,34],[23,5,24,36],[43,34,43,35],[11,2,11,3],[0,41,0,52],[2,6,2,19],[2,25,2,26],[2,32,2,33],[5,33,5,37],[25,5,28,36],[4,1,4,37],[6,2,7,34],[9,2,9,3],[0,0,0,39],[29,2,30,37],[38,2,41,32],[39,33,39,34],[13,2,13,3]]}
["Hybrid",null,null,null,null,null,null,null,null,null,null,null,null,null,null,null,null,null,null,null,null,null,null,null,null,null,null,null,null,null,null,null,null,null,null,null,null,null,null,null,null,"Instructions for Hybrid tab »"]
[]
[null,"Project Name:",null,null,null,null,{"$f":"INDEX(val,MATCH(\"g_ProjectName\",ref,0))","v":0},null,null,null,null,null,null,null,null,null,null,null,null,null,null,"Is a Hybrid?",null,null,null,{"$f":"IF(INDEX(val,MATCH(\"g_IsHybrid\",ref,0)),\"Yes\",\"No\")","v":"No"},null,null,"Credit Type",null,null,null,{"$f":"CONCATENATE(CreditType,\"%\")","v":"9%"}]
[]
[null,"     Checklist",null,null,null,null,null,null,null,null,null,null,null,null,null,null,null,null,null,null,null,null,null,null,null,null,null,null,null,null,null,null,null,null,null,null,null,null,{"$f":"IF(AND(C10=\"X\",C12=\"X\",C14=\"X\",C17=\"X\",C26=\"X\"),IsTrue,IsFalse)","v":"û"}]
[null,null,null,null,null,null,null,null,null,null,null,null,null,null,null,null,null,null,null,null,null,null,null,null,null,null,null,null,null,null,null,null,null,"10325(c)(9)(A)"]
[null,null,"To be considered a Hybrid project and eligible to include the 4% units in the size factor calculation* and 4% leveraged soft resources in the 9% tie breaker calculation, all of the following must be true:"]
[]
[]
[null,null,null,null,null,"both components shall be new construction projects;"]
[]
[null,null,null,null,null,"the 4% application shall have been submitted to CTCAC and CDLAC by the 9% application deadline;"]
[]
[null,null,null,null,null,"the 4% and 9% projects are simultaneous phases: \"projects consisting of a single building, or projects on the same parcel or on parcels within ¼ mile of each other and with construction start dates within six months of each other, or completion dates that are within six months of each other\";"]
[]
[]
[null,null,null,null,null,"the 4% application is eligible for maximum points in the following categories:"]
[null,null,null,null,null,null,"• Housing Needs (Section 10325(c)(3))"]
[null,null,null,null,null,null,null,"Project requests this category to be reviewed in combination with the 9% project?"]
[null,null,null,null,null,null,null,"Note: projects may select different housing types, but each must qualify for full points if so"]
[null,null,null,null,null,null,"• Service Amenities (Section 10325(c)(4)(B))"]
[null,null,null,null,null,null,"• Lowest Income (Section 10325(c)(6))"]
[null,null,null,null,null,null,null,"Project requests this category to be reviewed in combination with the 9% project?"]
[null,null,null,null,null,"9% project shall also be scored in the corresponding point category in combination with the 4% project"]
[]
[null,null,null,null,null,"developers shall defer or contribute as equity to the project any amount of combined 4% and 9% developer fees in cost that are in excess of the limit pursuant to Section 10327(c)(2)(A), using (a) the combined Tax Credit Units of the 9% and 4% components, (b) the combined eligible basis of the 9% and 4% components"]
[]
[]
[]
[null,null,"*4% components of Hybrid projects that receive an increase to the 9% component's size factor must be placed in service within six months of the 9% component, or both applicants may be subject to negative points. "]
[]
[]
[null,"     Questionnaire",null,null,null,null,null,null,null,null,null,null,null,null,null,null,null,null,null,null,null,null,null,null,null,null,null,null,null,null,null,null,null,null,null,null,null,null,{"$f":"IF(AND(AC35<>\"\",AH40=\"Yes\",AI44=\"Yes\"),IsTrue,IsFalse)","v":"û"}]
[null,null,null,null,null,null,null,null,null,null,null,null,null,null,null,null,null,null,null,null,null,null,null,null,null,null,null,null,null,null,null,null,null,"10322(h)(10)"]
[null,null,"Is the project providing a joint market study for both the 4% and 9% components?"]
[null,null,null,"If not, each market study shall reflect the other component project as a development in the planning or construction stages."]
[]
[null,null,null,null,null,null,null,null,null,null,null,null,null,null,null,null,null,null,null,null,null,null,null,null,null,null,"10326(i)/10328(b)/10335(e)/10335(d)"]
[null,null,"Does the Applicant acknowledge that the performance deposit, if applicable; reservation fee; and executed reservation letter bearing the applicant's signature accepting the reservation shall be due for the 4% application within five (5) business days of the Committee's notice to the applicant of the reservation for the corresponding 9% application?"]
[]
[]
[]
[]
[null,null,"Are any shared amenities sized to accommodate the total number of units across both components?"]
[null,null,null,"Such amenities include but are not limited to:"]
[null,null,null,null,"• play area for children required pursuant to Section 10325(g)(1)(D); "]
[null,null,null,null,"• common areas required pursuant to Sections 10325(g)(1)(E) and 10325(g)(2)(H); or "]
[null,null,null,null,"• laundry facilities required pursuant to Sections 10325(g)(1)(G), 10325(g)(2)(J), 10325(g)(3)(E), and 10325(g)(5)(G)."]

{"sheet":"Rehab","index":11,"n_rows":87,"n_cols":9,"rows_kept":87,"cut":false,"hidden":false,"merged":[[10,1,10,2],[2,0,2,6],[3,1,3,6],[4,1,4,2],[6,1,6,2],[7,1,7,2],[8,1,8,2],[9,1,9,2],[23,1,23,2],[11,1,11,2],[12,1,12,2],[13,1,13,2],[14,1,14,2],[15,1,15,2],[16,1,16,2],[17,1,17,2],[18,1,18,2],[19,1,19,2],[20,1,20,2],[22,1,22,2],[35,1,35,2],[24,1,24,2],[25,1,25,2],[26,1,26,2],[27,1,27,2],[28,1,28,2],[29,1,29,2],[30,1,30,2],[31,1,31,2],[32,1,32,2],[33,1,33,2],[34,1,34,2],[64,1,64,2],[65,1,65,2],[49,1,49,2],[37,1,37,2],[38,1,38,2],[39,1,39,2],[40,1,40,2],[41,1,41,2],[42,1,42,2],[44,1,44,2],[45,1,45,2],[46,1,46,2],[47,1,47,2],[48,1,48,2],[86,0,86,6],[87,0,101,6],[0,0,1,6],[76,1,76,2],[78,1,78,2],[79,1,79,2],[80,1,80,2],[81,1,81,2],[82,1,82,2],[69,1,69,2],[70,1,70,2],[72,1,72,2],[73,1,73,2],[68,1,68,2],[62,1,62,2],[50,1,50,2],[0,8,1,11],[74,1,74,2],[75,1,75,2],[66,1,66,2],[67,1,67,2],[51,1,51,2],[52,1,52,2],[53,1,53,2],[55,1,55,2],[56,1,56,2],[57,1,57,2],[58,1,58,2],[59,1,59,2],[60,1,60,2],[61,1,61,2],[63,1,63,2]]}
["Attachment 8 - Rehabilitation Summary",null,null,null,null,null,null,null,"Instructions for Rehab tab »"]
[]
[]
["Project Name:",{"$f":"INDEX(val,MATCH(\"g_ProjectName\",ref,0))","v":0}]
["REHABILITATION ITEMS","COMMENTS / BRIEF DESCRIPTION OF THE PROPOSED REHABILITATION",null,"NUMBER OF UNITS","PERCENTAGE","ESTIMATED REMAINING USEFUL LIFE / CNA EVIDENCE","ESTIMATED\nCOST"]
["SITE"]
["Carports/Garages"]
["Drainage"]
["Fencing"]
["Landscaping/Topography"]
["Lighting"]
["Parking/Roadways"]
["Recreation Areas"]
["Sidewalks/Pedestrian Areas"]
["Signage"]
["Trash Facilities"]
["Maintenance Shed"]
["Utilities"]
["Other (Specify)"]
["Other (Specify)"]
["Other (Specify)"]
["STRUCTURE FRAMES AND ENVELOPES"]
["Balconies/Patios"]
["Doors and Frames"]
["Elevated Walkways"]
["Facades/Siding/Exterior Walls"]
["Foundation/Substructure"]
["Insulation"]
["Painting"]
["Roofing"]
["Stairs/Landings"]
["Superstructure"]
["Windows and Frames"]
["Other (Specify)"]
["Other (Specify)"]
["Other (Specify)"]
["COMMON AREAS"]
["Community Room"]
["Laundry Facilities"]
["Management Office"]
["Other (Specify)"]
["Other (Specify)"]
["Other (Specify)"]
["MECHANICAL / ELECTRICAL / PLUMBING"]
["Electrical Systems"]
["Elevators"]
["Fire Alarm/Suppression"]
["Hot and Cold Water Distribution"]
["HVAC/Heating/Cooling"]
["Plumbing and Sewage Systems"]
["Water Heaters"]
["Other (Specify)"]
["Other (Specify)"]
["Other (Specify)"]
["UNIT INTERIORS"]
["Appliances"]
["Cabinets"]
["Carpeting"]
["Ceilings/Walls"]
["Countertops"]
["Doors"]
["Flooring"]
["Lighting"]
["Painting"]
["Sinks/Faucets"]
["Smoke/Heat/CO2 Detectors"]
["Toilets, Tubs and Showers"]
["Window Coverings"]
["Other (Specify)"]
["Other (Specify)"]
["Other (Specify)"]
["CODE COMPLIANCE"]
["Fire Safety"]
["Building Safety"]
["Other (Specify)"]
["Other (Specify)"]
["Other (Specify)"]
["ACCESSIBILITY / ADA COMPLIANCE"]
["Public Area Accessibility"]
["Unit Accessibility"]
["Other (Specify)"]
["Other (Specify)"]
["Other (Specify)"]
["TOTAL COSTS",null,null,null,null,null,{"$f":"SUM(G6:G83)","v":0},{"$f":"IF(G84<>(INDEX(val,MATCH(\"g_CostRehab\",ref,0))),\"!\",\"\")","v":""},{"$f":"IF(H84=\"!\",\"Costs do not match Rehab costs from the Sources & Uses Budget\",\"\")","v":""}]
["TOTAL COSTS (From CNA)",null,null,null,null,"$"]
[]
["COMMENTS (Explanation for variance from CNA, if applicable):"]

{"sheet":"Const. & Design","index":12,"n_rows":49,"n_cols":43,"rows_kept":49,"cut":false,"hidden":false,"merged":[[0,42,1,55],[48,2,52,37],[0,0,1,40],[17,4,18,36],[19,4,20,36],[21,4,22,36],[23,4,24,36],[26,4,27,36],[33,2,34,35],[36,2,38,35],[43,6,44,35],[45,6,46,35],[4,2,6,38]]}
["Attachment 12 - Construction & Design Description",null,null,null,null,null,null,null,null,null,null,null,null,null,null,null,null,null,null,null,null,null,null,null,null,null,null,null,null,null,null,null,null,null,null,null,null,null,null,null,null,null,"Instructions for Const. & Design tab »"]
[]
[]
[]
[null,null,"This attachment should be a detailed narrative description of the proposed project’s construction and design including how the design will serve the targeted population. Please include your narrative as a separate PDF in tab 12. Do not PDF this page and submit it."]
[]
[]
[]
[null,null,"Include basic information about the project:"]
[null,null,null,"•","number of buildings, stories per building, units per building, any elevator access"]
[null,null,null,"•","building type (Type I-V), or any combination of types"]
[null,null,null,"•","building construction, foundation, and exterior type(s)"]
[null,null,null,"•","building area uses (residential, community/common, commercial) "]
[null,null,null,"•","housing type and how the design will serve the targeted population"]
[null,null,null,"•","number of units and bedroom types, accessibility features"]
[null,null,null,"•","number and size of manager unit(s) and market rate units"]
[null,null,null,"•","description of any plans for employing desk or security staff in lieu of manager units"]
[null,null,null,"•","if market rate project is built concurrent with the proposed project, provide a brief description of the market rate development"]
[]
[null,null,null,"•","if proposing a project to include senior housing in combination with non-senior housing, provide a third party legal opinion stating that the project complies with fair housing law"]
[]
[null,null,null,"•","parking (number of covered and uncovered spaces including covered description (carports, tuck under, garages, etc.), accessibility) "]
[]
[null,null,null,"•","site amenities (examples: community and common areas, laundry, gated access, security, recreational areas, pool, community garden, etc.)"]
[]
[null,null,null,"•","sustainable and green building elements"]
[null,null,null,"•","multi-phase projects should provide information about other phase sites (previously built or proposed) and any shared areas, services, management, etc. These may require prior approval by CTCAC."]
[]
[null,null,null,"•","summary of any planned parcel subdivisions or parcel merging, if not described elsewhere in the application"]
[null,null,null,"•","description of any existing structures"]
[null,null,"Rehabilitation projects should also include:"]
[null,null,null,"•","history of previous retrofits or renovations, overall physical condition of the building(s) "]
[]
[null,null,"Site mitigation requirements and complex or costly structural or site/topographical requirements should be included in the description of unique features."]
[]
[]
[null,null,"The narrative must also include an explanation of any required demolition and off-site improvements, as well as a detailed construction breakdown of these expenses. Off-site improvement costs must be separated out into the following categories:"]
[]
[]
[]
[null,null,null,"(1)",null,"General off-site costs (off-sites that do not immediately border the project site)"]
[]
[null,null,null,"(2)",null,"Project-specific off-site costs (off-sites that immediately border the project site)"]
[null,null,null,null,null,"(A)","Off-site costs meeting the requirements under CTCAC Regulation Section 10325(c)(9) as public contributions of off-site costs."]
[]
[null,null,null,null,null,"(B)","Other off-site costs that do not meet the requirements under CTCAC Regulation Section 10325(c)(9) as public contributions of off-site costs."]
[]
[]
[null,null,"Within each category, provide a list of off-sites and their individual costs. Specific costs must be listed out to total the subtotals for each category. Each cost should also be identified as being included or excluded from eligible basis and whether or not they meet the public contributions of off-site cost requirements of CTCAC Regulation Section 10325(c)(9). The grand total of the costs and basis must be consistent with the total amount shown in the Sources and Uses Budget. "]

{"sheet":"Min. Const. Stds.","index":13,"n_rows":135,"n_cols":39,"rows_kept":135,"cut":false,"hidden":false,"merged":[[88,5,101,33],[66,8,66,20],[69,5,74,33],[128,5,132,33],[134,3,137,31],[103,3,104,31],[105,5,107,33],[109,5,118,33],[119,6,121,32],[123,6,126,32],[76,5,80,33],[82,5,85,33],[86,8,86,20],[64,3,65,31],[56,3,58,31],[60,3,62,31],[0,0,0,36],[2,14,2,27],[7,3,7,4],[0,38,0,51],[53,3,54,32],[32,3,36,35],[39,3,40,34],[42,3,44,33],[46,3,51,32],[37,7,37,22],[4,1,5,35],[10,1,14,35],[16,3,17,35],[18,5,26,33],[28,5,30,33]]}
["Attachment 10 - Minimum Construction Standards",null,null,null,null,null,null,null,null,null,null,null,null,null,null,null,null,null,null,null,null,null,null,null,null,null,null,null,null,null,null,null,null,null,null,null,null,null,"Instructions for Min. Const. Stds. tab »"]
[]
[null,null,null,null,null,null,null,null,null,null,null,null,null,"Project Name:",{"$f":"INDEX(val,MATCH(\"g_ProjectName\",ref,0))","v":0}]
[]
[null,"Applicant shall provide a statement that the following minimum specifications will be incorporated into the project design for all new construction and rehabilitation projects."]
[]
[]
[null,null,null,null,null,null,"Waiver requested"]
[null,null,null,null,null,null,null,"Provide waiver and approval in tab 10."]
[]
[null,"All below standards will be incorporated unless the above box is selected. In addition, a statement shall commit the property owner to at least maintaining the applicable Building Energy Efficiency Standards (Energy Code, California Code of Regulations, Title 24) adopted by the California Energy Commission (CEC)  as well as maintaining installed energy efficiency and sustainability features’ quality when replacing each of the following listed systems or materials: "]
[]
[]
[]
[]
[]
[null,"(A)",null,"Energy Efficiency. All rehabilitated buildings, both competitive and non-competitive, shall meet one of the following:"]
[]
[null,null,null,null,"(i)","Achieve at least a 10% post-rehabilitation improvement over existing conditions energy efficiency achieved for the project as a whole, except that Scattered Site applications shall also document at least a 5% postrehabilitation improvement over existing conditions energy efficiency achieved for each site. In the case of projects in which energy efficiency improvements have been completed within five years prior to the application date or since the last tax credit award pursuant to a public or regulated utility program or other governmental program that established existing conditions of the systems being replaced using a HERS Rater, the applicant may include the existing conditions of those systems prior to the improvements. "]
[]
[]
[]
[]
[]
[]
[]
[]
[]
[null,null,null,null,"(ii)","At least 2 out of 3 residential end uses (cooking, space heating, and water heating) are electrified, or the building(s) is/are electric ready as defined in Section 160.9 of the 2022 Building Energy Efficiency Standards."]
[]
[]
[]
[null,"(B)",null,"Landscaping. If landscaping is to be provided or replaced, a variety of plant and tree species that require low water use shall be provided in sufficient quantities based on landscaping practices in the general market area and low maintenance needs. Projects shall follow the requirements of the state Model Water Efficient Landscape Ordinance unless a local landscape ordinance has been determined to be at least as stringent as the current model ordinance. "]
[]
[]
[]
[]
[null,null,null,null,null,null,null,{"$f":"HYPERLINK(\"https://water.ca.gov/Programs/Water-Use-And-Efficiency/Urban-Water-Use-Efficiency/Model-Water-Efficient-Landscape-Ordinance\",\"Model Water Efficient Landscape Ordinance »\")","v":"Model Water Efficient Landscape Ordinance »"}]
[]
[null,"(C) ",null,"Roofs. Newly installed roofing shall carry a three-year subcontractor guarantee and at least a 20-year manufacturer’s warranty. "]
[]
[]
[null,"(D)",null,"Exterior doors. If exterior doors are to be provided or replaced, insulated or solid core, flush, paint or stain grade exterior doors shall be made of metal clad faces, hardwood faces, or fiberglass faces, with a standard one-year guarantee and all six sides primed."]
[]
[]
[]
[null,"(E) ",null,"Appliances. All Low-Income Units shall provide a refrigerator. All non-SRO LowIncome Units shall provide a range (stovetop and oven), and all SRO Low-Income Units shall include a cooking facility (i.e. a cooktop or microwave). The Executive Director may waive the appliance requirement for SRO units if the project includes a tenant common area kitchen facility. As applicable, appliances provided or replaced within Low-Income Units and/or in on-site community facilities shall be ENERGY STAR rated, unless waived by the Executive Director."]
[]
[]
[]
[]
[]
[]
[null,"(F)",null,"Window coverings. Window coverings shall be provided and may include fire retardant drapes or blinds. "]
[]
[]
[null,"(G)",null,"Water heater. If water heaters are to be provided or replaced, for Low-Income Units with individual tank-type water heaters, minimum capacities are to be 28 gallons for one- and two-bedroom units and 38 gallons for three-bedroom units or larger."]
[]
[]
[]
[null,"(H)",null,"Floor coverings. If floor coverings are to be provided or replaced, a hard, water resistant, cleanable surface shall be required for all kitchen and bath areas. Any carpet provided or replaced shall comply with HUD/FHA UM44D."]
[]
[]
[]
[null,"(I)",null,"All fiberglass-based insulation provided or replaced shall meet the Greenguard Gold Certification."]
[]
[null,null,null,null,null,null,null,null,{"$f":"HYPERLINK(\"https://www.ul.com/resources/ul-greenguard-certification-program\",\"GreenGuard Certification Program »\")","v":"GreenGuard Certification Program »"}]
[]
[null,"(J)",null,"On-Site Manager’s Unit."]
[null,null,null,null,"(i)","An on-site manager’s unit is required for projects with 16 or more LowIncome and Market-Rate Units. Projects with at least 161 Low-Income and Market-Rate Units shall provide a second on-site manager’s unit for either another on-site manager or other maintenance personnel, and there shall be one additional on-site manager’s unit for either another on-site manager or other maintenance personnel for each 80 Low-Income and Market-Rate Units beyond 161 units, up to a maximum of four on-site manager’s units. "]
[]
[]
[]
[]
[]
[]
[null,null,null,null,"(ii)","Scattered site projects totaling 16 or more Low-Income and Market-Rate Units must have at least one on-site manager’s unit for the entire project, and at least one manager’s unit at each site where that site’s building(s) consist of 16 or more Low-Income and Market-Rate Units. Scattered sites within 100 yards of each other shall be treated as a single site for purposes of this paragraph."]
[]
[]
[]
[]
[]
[null,null,null,null,"(iii)","If an applicant or project owner proposes using a Low-Income Unit to meet the requirements of subdivision (f)(7)(J), the owner must comply with the Resident Manager’s Unit requirements set forth in CTCAC’s Compliance Manual, available on CTCAC’s website and incorporated herein by reference. \n"]
[]
[]
[]
[null,null,null,null,null,null,null,null,{"$f":"HYPERLINK(\"https://www.treasurer.ca.gov/ctcac/compliance/manual.asp\",\"CTCAC Compliance Manual »\")","v":"CTCAC Compliance Manual »"}]
[]
[null,null,null,null,"(iv)","At the Executive Director’s discretion and upon approval by the Executive Director, in lieu of providing an on-site manager, a project may meet the onsite manager unit requirements of subdivision (f)(7)(J)(i)-(ii) by providing tenants with equivalent access to management services. For example, a project may commit to employ an equivalent number of on-site full-time property management staff (at least one of whom is a property manager) and provide an equivalent number of desk or security staff who are not tenants and are capable of responding to emergencies for the hours when property management staff is not working. All staff or contractors performing desk or security work shall be knowledgeable of how the property’s fire system operates and be trained in, and have participated in, fire evacuation drills for tenants. CTCAC reserves the right to require that one or more onsite managers’ units be provided and occupied by property management staff if, in its sole discretion, it determines as part of any on-site inspection that the project has not been adequately operated and/or maintained. Nothing herein relieves the applicant from complying with any other local, state, or federal laws regarding on-site manager units.\n"]
[]
[]
[]
[]
[]
[]
[]
[]
[]
[]
[]
[]
[]
[]
[null,"(K)",null,"Accessible Housing Unit(s). All projects shall comply with the Housing and Building Accessibility Requirements in addition to the following, unless otherwise specified:"]
[]
[null,null,null,null,"(i)","All new construction projects must provide a minimum of fifteen percent (15%) of the Low-Income Units as Housing Units with Mobility Features, and a minimum of ten percent (10%) of the Low-Income Units as Housing Units with Hearing/Vision Features."]
[]
[]
[]
[null,null,null,null,"(ii)","Rehabilitation projects shall provide a minimum of ten percent (10%) of the Low-Income Units as Housing Units with Mobility Features, and four percent (4%) as Housing Units with Hearing/Vision Features. At least one of each common area facility type and amenity, paths of travel between accessible units and such facilities and amenities, the building entry and public right of way, and the leasing office or area shall also be made accessible utilizing the Housing and Accessibility Requirements and CBC Chapter 11B as a design standard. In all other respects, applicable building code will apply. Projects with other federal, state, or local funding sources may be required to meet additional accessibility requirements. The Executive Director may approve a partial or full waiver to the requirements for the number of Accessible Housing Units exceeding those required by the ADA, Section 504, and CBC Ch. 11B provided both of the following are met: "]
[]
[]
[]
[]
[]
[]
[]
[]
[]
[null,null,null,null,null,"(a)","The exemption does not pertain to any accessibility features required by applicable building codes, the CBC Chapter 11B, or federal law. The CBC Ch. 11B and federal law minimums are calculated on all units in the project, not just restricted units, and "]
[]
[]
[]
[null,null,null,null,null,"(b)","The Applicant and its architect demonstrate that full compliance with subsection (f)(7)(K)(ii) would be impractical or create an undue financial and administrative burden. Accessibility must be provided to the maximum extent feasible and the waiver must be obtained in advance. "]
[]
[]
[]
[]
[null,null,null,null,"(iii)","Accessible Housing Units shall, to the maximum extent feasible and subject to reasonable health and safety requirements, be distributed throughout the project and be available in a sufficient range of sizes and amenities so that an individual with disabilities’ choice of living arrangements is comparable to that of other persons eligible for housing assistance under the same project consistent with 24 CFR Section 8.26. \n"]
[]
[]
[]
[]
[]
[null,"(K)",null,"Waiver. If a rehabilitation applicant does not propose to meet any of the requirements of subdivisions (f)(7)(A) through (I), its CNA must show why the requirements not being met are either unnecessary or excessively expensive. All waivers must be approved in advance by the Executive Director. "]

{"sheet":"Data","index":14,"n_rows":195,"n_cols":49,"rows_kept":195,"cut":false,"hidden":true,"merged":[]}
["Reference","Value","Description",null,null,"Bedroom Type","Number of Units","Average Sq Ft","Net Rent","Monthly Utility","Targeted % AMI","Count SpN Units","Market Rate",null,"Average Affordability by AMI Actual Rents - SpN",null,null,null,"Average Affordability by AMI Actual Rents - Non-SpN SRO",null,null,null,null,"All Liens for CDLAC",null,null,null,null,null,null,null,null,null,null,null,null,null,null,null,null,null,null,null,null,null,null,null,null,"Corresponding Exception Number from Title"]
[null,"Project Location",null,null,null,{"$f":"IF(CreditType=4,IF([1]Application!$B723=\"\",\"\",[1]Application!$B723),IF([1]Application!$B703=\"\",\"\",[1]Application!$B703))","v":""},{"$f":"IF(CreditType=4,IF([1]Application!$G723=\"\",\"\",[1]Application!$G723),IF([1]Application!$G703=\"\",\"\",[1]Application!$G703))","v":""},{"$f":"IF(CreditType=4,IF([1]Application!$K723=\"\",\"\",[1]Application!$K723),IF([1]Application!$K703=\"\",\"\",[1]Application!$K703))","v":""},{"$f":"IF(CreditType=4,IF([1]Application!$O723=\"\",\"\",[1]Application!$O723),IF([1]Application!$O703=\"\",\"\",[1]Application!$O703))","v":""},{"$f":"IF(CreditType=4,IF([1]Application!$T723=\"\",\"\",[1]Application!$T723),IF([1]Application!$Y703=\"\",\"\",[1]Application!$Y703))","v":""},{"$f":"IF(CreditType=4,[1]Application!$AC723,[1]Application!$AH703)","v":0},{"$f":"'Housing Type'!L269","v":0},null,null,"Units","Unit % of Total","Pro Rata Target %",null,"Units","Unit % of Total","Pro Rata Target %",null,null,"Lender/Loan","Original Principal Amount","Current Remaining Principal Amount","Current Accrued Interest Amount","Planned Disposition Description","Corresponding Exception Number from Title"]
["g_ProjectName",{"$f":"IF(CreditType=4,[1]Application!$H$18,IF(CreditType=9,[1]Application!$H$17,\"Use a current e-app in order to link\"))","v":0},"Name of the project",null,null,{"$f":"IF(CreditType=4,IF([1]Application!$B724=\"\",\"\",[1]Application!$B724),IF([1]Application!$B704=\"\",\"\",[1]Application!$B704))","v":""},{"$f":"IF(CreditType=4,IF([1]Application!$G724=\"\",\"\",[1]Application!$G724),IF([1]Application!$G704=\"\",\"\",[1]Application!$G704))","v":""},{"$f":"IF(CreditType=4,IF([1]Application!$K724=\"\",\"\",[1]Application!$K724),IF([1]Application!$K704=\"\",\"\",[1]Application!$K704))","v":""},{"$f":"IF(CreditType=4,IF([1]Application!$O724=\"\",\"\",[1]Application!$O724),IF([1]Application!$O704=\"\",\"\",[1]Application!$O704))","v":""},{"$f":"IF(CreditType=4,IF([1]Application!$T724=\"\",\"\",[1]Application!$T724),IF([1]Application!$Y704=\"\",\"\",[1]Application!$Y704))","v":""},{"$f":"IF(CreditType=4,[1]Application!$AC724,[1]Application!$AH704)","v":0},{"$f":"'Housing Type'!L270","v":0},null,null,{"$f":"IF(OR(L3=\"\",L3=0),\"\",L3)","v":""},{"$f":"IF(OR(O3=\"\",O3=0),\"\",O3/$O$37)","v":""},{"$f":"IF(OR(P3=0,P3=\"\"),\"\",P3*K3)","v":""},null,{"$f":"IF(F3=\"SRO/Studio\",G3-L3,\"\")","v":""},{"$f":"IF(OR(S3=\"\",S3=0),\"\",S3/$S$37)","v":""},{"$f":"IF(OR(T3=0,T3=\"\"),\"\",T3*$K3)","v":""},null,null,{"$f":"'Site Control 1'!C80","v":0},{"$f":"'Site Control 1'!H80","v":0},{"$f":"'Site Control 1'!M80","v":0},{"$f":"'Site Control 1'!R80","v":0},{"$f":"'Site Control 1'!W80","v":0},{"$f":"'Site Control 1'!AB80","v":0}]
["g_ProjectAddress",{"$f":"IF([1]Application!$I$185=\"\",[1]Application!$E$187,[1]Application!$I$185)","v":0},"Primary address of site",null,null,{"$f":"IF(CreditType=4,IF([1]Application!$B725=\"\",\"\",[1]Application!$B725),IF([1]Application!$B705=\"\",\"\",[1]Application!$B705))","v":""},{"$f":"IF(CreditType=4,IF([1]Application!$G725=\"\",\"\",[1]Application!$G725),IF([1]Application!$G705=\"\",\"\",[1]Application!$G705))","v":""},{"$f":"IF(CreditType=4,IF([1]Application!$K725=\"\",\"\",[1]Application!$K725),IF([1]Application!$K705=\"\",\"\",[1]Application!$K705))","v":""},{"$f":"IF(CreditType=4,IF([1]Application!$O725=\"\",\"\",[1]Application!$O725),IF([1]Application!$O705=\"\",\"\",[1]Application!$O705))","v":""},{"$f":"IF(CreditType=4,IF([1]Application!$T725=\"\",\"\",[1]Application!$T725),IF([1]Application!$Y705=\"\",\"\",[1]Application!$Y705))","v":""},{"$f":"IF(CreditType=4,[1]Application!$AC725,[1]Application!$AH705)","v":0},{"$f":"'Housing Type'!L271","v":0},null,null,{"$f":"IF(OR(L4=\"\",L4=0),\"\",L4)","v":""},{"$f":"IF(OR(O4=\"\",O4=0),\"\",O4/$O$37)","v":""},{"$f":"IF(OR(P4=0,P4=\"\"),\"\",P4*K4)","v":""},null,{"$f":"IF(F4=\"SRO/Studio\",G4-L4,\"\")","v":""},{"$f":"IF(OR(S4=\"\",S4=0),\"\",S4/$S$37)","v":""},{"$f":"IF(OR(T4=0,T4=\"\"),\"\",T4*$K4)","v":""},null,null,{"$f":"'Site Control 1'!C81","v":0},{"$f":"'Site Control 1'!H81","v":0},{"$f":"'Site Control 1'!M81","v":0},{"$f":"'Site Control 1'!R81","v":0},{"$f":"'Site Control 1'!W81","v":0},{"$f":"'Site Control 1'!AB81","v":0}]
["g_City",{"$f":"[1]Application!$I$189","v":0},"City",null,null,{"$f":"IF(CreditType=4,IF([1]Application!$B726=\"\",\"\",[1]Application!$B726),IF([1]Application!$B706=\"\",\"\",[1]Application!$B706))","v":""},{"$f":"IF(CreditType=4,IF([1]Application!$G726=\"\",\"\",[1]Application!$G726),IF([1]Application!$G706=\"\",\"\",[1]Application!$G706))","v":""},{"$f":"IF(CreditType=4,IF([1]Application!$K726=\"\",\"\",[1]Application!$K726),IF([1]Application!$K706=\"\",\"\",[1]Application!$K706))","v":""},{"$f":"IF(CreditType=4,IF([1]Application!$O726=\"\",\"\",[1]Application!$O726),IF([1]Application!$O706=\"\",\"\",[1]Application!$O706))","v":""},{"$f":"IF(CreditType=4,IF([1]Application!$T726=\"\",\"\",[1]Application!$T726),IF([1]Application!$Y706=\"\",\"\",[1]Application!$Y706))","v":""},{"$f":"IF(CreditType=4,[1]Application!$AC726,[1]Application!$AH706)","v":0},{"$f":"'Housing Type'!L272","v":0},null,null,{"$f":"IF(OR(L5=\"\",L5=0),\"\",L5)","v":""},"",{"$f":"IF(OR(P5=0,P5=\"\"),\"\",P5*K5)","v":""},null,{"$f":"IF(F5=\"SRO/Studio\",G5-L5,\"\")","v":""},"",{"$f":"IF(OR(T5=0,T5=\"\"),\"\",T5*$K5)","v":""},null,null,{"$f":"'Site Control 1'!C82","v":0},{"$f":"'Site Control 1'!H82","v":0},{"$f":"'Site Control 1'!M82","v":0},{"$f":"'Site Control 1'!R82","v":0},{"$f":"'Site Control 1'!W82","v":0},{"$f":"'Site Control 1'!AB82","v":0}]
["g_ZipCode",{"$f":"[1]Application!$I$190","v":0},"Zip Code",null,null,{"$f":"IF(CreditType=4,IF([1]Application!$B727=\"\",\"\",[1]Application!$B727),IF([1]Application!$B707=\"\",\"\",[1]Application!$B707))","v":""},{"$f":"IF(CreditType=4,IF([1]Application!$G727=\"\",\"\",[1]Application!$G727),IF([1]Application!$G707=\"\",\"\",[1]Application!$G707))","v":""},{"$f":"IF(CreditType=4,IF([1]Application!$K727=\"\",\"\",[1]Application!$K727),IF([1]Application!$K707=\"\",\"\",[1]Application!$K707))","v":""},{"$f":"IF(CreditType=4,IF([1]Application!$O727=\"\",\"\",[1]Application!$O727),IF([1]Application!$O707=\"\",\"\",[1]Application!$O707))","v":""},{"$f":"IF(CreditType=4,IF([1]Application!$T727=\"\",\"\",[1]Application!$T727),IF([1]Application!$Y707=\"\",\"\",[1]Application!$Y707))","v":""},{"$f":"IF(CreditType=4,[1]Application!$AC727,[1]Application!$AH707)","v":0},{"$f":"'Housing Type'!L273","v":0},null,null,{"$f":"IF(OR(L6=\"\",L6=0),\"\",L6)","v":""},"",{"$f":"IF(OR(P6=0,P6=\"\"),\"\",P6*K6)","v":""},null,{"$f":"IF(F6=\"SRO/Studio\",G6-L6,\"\")","v":""},"",{"$f":"IF(OR(T6=0,T6=\"\"),\"\",T6*$K6)","v":""},null,null,{"$f":"'Site Control 1'!C83","v":0},{"$f":"'Site Control 1'!H83","v":0},{"$f":"'Site Control 1'!M83","v":0},{"$f":"'Site Control 1'!R83","v":0},{"$f":"'Site Control 1'!W83","v":0},{"$f":"'Site Control 1'!AB83","v":0}]
["g_ScatteredSite",{"$f":"IF(CreditType=4,[1]Application!$T$197=\"Yes\",[1]Application!$AI$194=\"Yes\")","v":false},"If the project involves multiple scattered sites",null,null,{"$f":"IF(CreditType=4,IF([1]Application!$B728=\"\",\"\",[1]Application!$B728),IF([1]Application!$B708=\"\",\"\",[1]Application!$B708))","v":""},{"$f":"IF(CreditType=4,IF([1]Application!$G728=\"\",\"\",[1]Application!$G728),IF([1]Application!$G708=\"\",\"\",[1]Application!$G708))","v":""},{"$f":"IF(CreditType=4,IF([1]Application!$K728=\"\",\"\",[1]Application!$K728),IF([1]Application!$K708=\"\",\"\",[1]Application!$K708))","v":""},{"$f":"IF(CreditType=4,IF([1]Application!$O728=\"\",\"\",[1]Application!$O728),IF([1]Application!$O708=\"\",\"\",[1]Application!$O708))","v":""},{"$f":"IF(CreditType=4,IF([1]Application!$T728=\"\",\"\",[1]Application!$T728),IF([1]Application!$Y708=\"\",\"\",[1]Application!$Y708))","v":""},{"$f":"IF(CreditType=4,[1]Application!$AC728,[1]Application!$AH708)","v":0},{"$f":"'Housing Type'!L274","v":0},null,null,{"$f":"IF(OR(L7=\"\",L7=0),\"\",L7)","v":""},"",{"$f":"IF(OR(P7=0,P7=\"\"),\"\",P7*K7)","v":""},null,{"$f":"IF(F7=\"SRO/Studio\",G7-L7,\"\")","v":""},"",{"$f":"IF(OR(T7=0,T7=\"\"),\"\",T7*$K7)","v":""},null,null,{"$f":"'Site Control 1'!C84","v":0},{"$f":"'Site Control 1'!H84","v":0},{"$f":"'Site Control 1'!M84","v":0},{"$f":"'Site Control 1'!R84","v":0},{"$f":"'Site Control 1'!W84","v":0},{"$f":"'Site Control 1'!AB84","v":0}]
["g_CensusTract",{"$f":"[1]Application!$T$190","v":0},"Census tract project resides in",null,null,{"$f":"IF(CreditType=4,IF([1]Application!$B729=\"\",\"\",[1]Application!$B729),IF([1]Application!$B709=\"\",\"\",[1]Application!$B709))","v":""},{"$f":"IF(CreditType=4,IF([1]Application!$G729=\"\",\"\",[1]Application!$G729),IF([1]Application!$G709=\"\",\"\",[1]Application!$G709))","v":""},{"$f":"IF(CreditType=4,IF([1]Application!$K729=\"\",\"\",[1]Application!$K729),IF([1]Application!$K709=\"\",\"\",[1]Application!$K709))","v":""},{"$f":"IF(CreditType=4,IF([1]Application!$O729=\"\",\"\",[1]Application!$O729),IF([1]Application!$O709=\"\",\"\",[1]Application!$O709))","v":""},{"$f":"IF(CreditType=4,IF([1]Application!$T729=\"\",\"\",[1]Application!$T729),IF([1]Application!$Y709=\"\",\"\",[1]Application!$Y709))","v":""},{"$f":"IF(CreditType=4,[1]Application!$AC729,[1]Application!$AH709)","v":0},{"$f":"'Housing Type'!L275","v":0},null,null,{"$f":"IF(OR(L2=\"\",L2=0),\"\",L2)","v":""},"",{"$f":"IF(OR(P8=0,P8=\"\"),\"\",P8*K2)","v":""},null,{"$f":"IF(F2=\"SRO/Studio\",G2-L2,\"\")","v":""},"",{"$f":"IF(OR(T8=0,T8=\"\"),\"\",T8*$K2)","v":""},null,null,{"$f":"'Site Control 1'!C85","v":0},{"$f":"'Site Control 1'!H85","v":0},{"$f":"'Site Control 1'!M85","v":0},{"$f":"'Site Control 1'!R85","v":0},{"$f":"'Site Control 1'!W85","v":0},{"$f":"'Site Control 1'!AB85","v":0}]
["g_County",{"$f":"[1]Application!$T$189","v":"(select one)"},"County project resides in",null,null,{"$f":"IF(CreditType=4,IF([1]Application!$B730=\"\",\"\",[1]Application!$B730),IF([1]Application!$B710=\"\",\"\",[1]Application!$B710))","v":""},{"$f":"IF(CreditType=4,IF([1]Application!$G730=\"\",\"\",[1]Application!$G730),IF([1]Application!$G710=\"\",\"\",[1]Application!$G710))","v":""},{"$f":"IF(CreditType=4,IF([1]Application!$K730=\"\",\"\",[1]Application!$K730),IF([1]Application!$K710=\"\",\"\",[1]Application!$K710))","v":""},{"$f":"IF(CreditType=4,IF([1]Application!$O730=\"\",\"\",[1]Application!$O730),IF([1]Application!$O710=\"\",\"\",[1]Application!$O710))","v":""},{"$f":"IF(CreditType=4,IF([1]Application!$T730=\"\",\"\",[1]Application!$T730),IF([1]Application!$Y710=\"\",\"\",[1]Application!$Y710))","v":""},{"$f":"IF(CreditType=4,[1]Application!$AC730,[1]Application!$AH710)","v":0},{"$f":"'Housing Type'!L276","v":0},null,null,{"$f":"IF(OR(L8=\"\",L8=0),\"\",L8)","v":""},"",{"$f":"IF(OR(P9=0,P9=\"\"),\"\",P9*K8)","v":""},null,{"$f":"IF(F8=\"SRO/Studio\",G8-L8,\"\")","v":""},"",{"$f":"IF(OR(T9=0,T9=\"\"),\"\",T9*$K8)","v":""},null,null,{"$f":"'Site Control 1'!C86","v":0},{"$f":"'Site Control 1'!H86","v":0},{"$f":"'Site Control 1'!M86","v":0},{"$f":"'Site Control 1'!R86","v":0},{"$f":"'Site Control 1'!W86","v":0},{"$f":"'Site Control 1'!AB86","v":0}]
["g_DdaStatus",{"$f":"IF(CreditType=4,[1]Application!$T$195=\"Yes\",[1]Application!$T$193=\"Yes\")","v":false},"TRUE if designated a Difficult Development Area",null,null,{"$f":"IF(CreditType=4,IF([1]Application!$B731=\"\",\"\",[1]Application!$B731),IF([1]Application!$B711=\"\",\"\",[1]Application!$B711))","v":""},{"$f":"IF(CreditType=4,IF([1]Application!$G731=\"\",\"\",[1]Application!$G731),IF([1]Application!$G711=\"\",\"\",[1]Application!$G711))","v":""},{"$f":"IF(CreditType=4,IF([1]Application!$K731=\"\",\"\",[1]Application!$K731),IF([1]Application!$K711=\"\",\"\",[1]Application!$K711))","v":""},{"$f":"IF(CreditType=4,IF([1]Application!$O731=\"\",\"\",[1]Application!$O731),IF([1]Application!$O711=\"\",\"\",[1]Application!$O711))","v":""},{"$f":"IF(CreditType=4,IF([1]Application!$T731=\"\",\"\",[1]Application!$T731),IF([1]Application!$Y711=\"\",\"\",[1]Application!$Y711))","v":""},{"$f":"IF(CreditType=4,[1]Application!$AC731,[1]Application!$AH711)","v":0},{"$f":"'Housing Type'!L277","v":0},null,null,"","","",null,"","","",null,null,{"$f":"'Site Control 1'!C87","v":0},{"$f":"'Site Control 1'!H87","v":0},{"$f":"'Site Control 1'!M87","v":0},{"$f":"'Site Control 1'!R87","v":0},{"$f":"'Site Control 1'!W87","v":0},{"$f":"'Site Control 1'!AB87","v":0}]
["g_QctStatus",{"$f":"IF(CreditType=4,[1]Application!$T$196=\"Yes\",[1]Application!$T$194=\"Yes\")","v":false},"TRUE if in a Qualified Census Tract",null,null,{"$f":"IF(CreditType=4,IF([1]Application!$B732=\"\",\"\",[1]Application!$B732),IF([1]Application!$B712=\"\",\"\",[1]Application!$B712))","v":""},{"$f":"IF(CreditType=4,IF([1]Application!$G732=\"\",\"\",[1]Application!$G732),IF([1]Application!$G712=\"\",\"\",[1]Application!$G712))","v":""},{"$f":"IF(CreditType=4,IF([1]Application!$K732=\"\",\"\",[1]Application!$K732),IF([1]Application!$K712=\"\",\"\",[1]Application!$K712))","v":""},{"$f":"IF(CreditType=4,IF([1]Application!$O732=\"\",\"\",[1]Application!$O732),IF([1]Application!$O712=\"\",\"\",[1]Application!$O712))","v":""},{"$f":"IF(CreditType=4,IF([1]Application!$T732=\"\",\"\",[1]Application!$T732),IF([1]Application!$Y712=\"\",\"\",[1]Application!$Y712))","v":""},{"$f":"IF(CreditType=4,[1]Application!$AC732,[1]Application!$AH712)","v":0},{"$f":"'Housing Type'!L278","v":0},null,null,"","","",null,"","","",null,null,{"$f":"'Site Control 1'!C88","v":0},{"$f":"'Site Control 1'!H88","v":0},{"$f":"'Site Control 1'!M88","v":0},{"$f":"'Site Control 1'!R88","v":0},{"$f":"'Site Control 1'!W88","v":0},{"$f":"'Site Control 1'!AB88","v":0}]
["g_OpportunityArea",{"$f":"IF(CreditType=4,[1]Application!$T$193,[1]Application!$R$199)","v":"(select one)"},"Opportunity map designation",null,null,{"$f":"IF(CreditType=4,IF([1]Application!$B733=\"\",\"\",[1]Application!$B733),IF([1]Application!$B713=\"\",\"\",[1]Application!$B713))","v":""},{"$f":"IF(CreditType=4,IF([1]Application!$G733=\"\",\"\",[1]Application!$G733),IF([1]Application!$G713=\"\",\"\",[1]Application!$G713))","v":""},{"$f":"IF(CreditType=4,IF([1]Application!$K733=\"\",\"\",[1]Application!$K733),IF([1]Application!$K713=\"\",\"\",[1]Application!$K713))","v":""},{"$f":"IF(CreditType=4,IF([1]Application!$O733=\"\",\"\",[1]Application!$O733),IF([1]Application!$O713=\"\",\"\",[1]Application!$O713))","v":""},{"$f":"IF(CreditType=4,IF([1]Application!$T733=\"\",\"\",[1]Application!$T733),IF([1]Application!$Y713=\"\",\"\",[1]Application!$Y713))","v":""},{"$f":"IF(CreditType=4,[1]Application!$AC733,[1]Application!$AH713)","v":0},{"$f":"'Housing Type'!L279","v":0},null,null,"","","",null,"","","",null,null,{"$f":"'Site Control 1'!C89","v":0},{"$f":"'Site Control 1'!H89","v":0},{"$f":"'Site Control 1'!M89","v":0},{"$f":"'Site Control 1'!R89","v":0},{"$f":"'Site Control 1'!W89","v":0},{"$f":"'Site Control 1'!AB89","v":0}]
["g_DistrictFederalCongressional",{"$f":"IF(CreditType=4,[1]Application!$AH$195,[1]Application!$O$225)","v":0},"Federal Congressional District",null,null,{"$f":"IF(CreditType=4,IF([1]Application!$B734=\"\",\"\",[1]Application!$B734),IF([1]Application!$B714=\"\",\"\",[1]Application!$B714))","v":""},{"$f":"IF(CreditType=4,IF([1]Application!$G734=\"\",\"\",[1]Application!$G734),IF([1]Application!$G714=\"\",\"\",[1]Application!$G714))","v":""},{"$f":"IF(CreditType=4,IF([1]Application!$K734=\"\",\"\",[1]Application!$K734),IF([1]Application!$K714=\"\",\"\",[1]Application!$K714))","v":""},{"$f":"IF(CreditType=4,IF([1]Application!$O734=\"\",\"\",[1]Application!$O734),IF([1]Application!$O714=\"\",\"\",[1]Application!$O714))","v":""},{"$f":"IF(CreditType=4,IF([1]Application!$T734=\"\",\"\",[1]Application!$T734),IF([1]Application!$Y714=\"\",\"\",[1]Application!$Y714))","v":""},{"$f":"IF(CreditType=4,[1]Application!$AC734,[1]Application!$AH714)","v":0},{"$f":"'Housing Type'!L280","v":0},null,null,"","","",null,"","","",null,null,{"$f":"'Site Control 1'!C90","v":0},{"$f":"'Site Control 1'!H90","v":0},{"$f":"'Site Control 1'!M90","v":0},{"$f":"'Site Control 1'!R90","v":0},{"$f":"'Site Control 1'!W90","v":0},{"$f":"'Site Control 1'!AB90","v":0}]
["g_DistrictStateAssembly",{"$f":"IF(CreditType=4,[1]Application!$AH$196,[1]Application!$O$226)","v":0},"State Assembly District",null,null,{"$f":"IF(CreditType=4,IF([1]Application!$B735=\"\",\"\",[1]Application!$B735),IF([1]Application!$B715=\"\",\"\",[1]Application!$B715))","v":""},{"$f":"IF(CreditType=4,IF([1]Application!$G735=\"\",\"\",[1]Application!$G735),IF([1]Application!$G715=\"\",\"\",[1]Application!$G715))","v":""},{"$f":"IF(CreditType=4,IF([1]Application!$K735=\"\",\"\",[1]Application!$K735),IF([1]Application!$K715=\"\",\"\",[1]Application!$K715))","v":""},{"$f":"IF(CreditType=4,IF([1]Application!$O735=\"\",\"\",[1]Application!$O735),IF([1]Application!$O715=\"\",\"\",[1]Application!$O715))","v":""},{"$f":"IF(CreditType=4,IF([1]Application!$T735=\"\",\"\",[1]Application!$T735),IF([1]Application!$Y715=\"\",\"\",[1]Application!$Y715))","v":""},{"$f":"IF(CreditType=4,[1]Application!$AC735,[1]Application!$AH715)","v":0},{"$f":"'Housing Type'!L281","v":0},null,null,"","","",null,"","","",null,null,{"$f":"'Site Control 1'!C91","v":0},{"$f":"'Site Control 1'!H91","v":0},{"$f":"'Site Control 1'!M91","v":0},{"$f":"'Site Control 1'!R91","v":0},{"$f":"'Site Control 1'!W91","v":0},{"$f":"'Site Control 1'!AB91","v":0}]
["g_DistrictStateSenate",{"$f":"IF(CreditType=4,[1]Application!$AH$197,[1]Application!$O$227)","v":0},"State Senate District",null,null,{"$f":"IF(CreditType=4,IF([1]Application!$B736=\"\",\"\",[1]Application!$B736),IF([1]Application!$B716=\"\",\"\",[1]Application!$B716))","v":""},{"$f":"IF(CreditType=4,IF([1]Application!$G736=\"\",\"\",[1]Application!$G736),IF([1]Application!$G716=\"\",\"\",[1]Application!$G716))","v":""},{"$f":"IF(CreditType=4,IF([1]Application!$K736=\"\",\"\",[1]Application!$K736),IF([1]Application!$K716=\"\",\"\",[1]Application!$K716))","v":""},{"$f":"IF(CreditType=4,IF([1]Application!$O736=\"\",\"\",[1]Application!$O736),IF([1]Application!$O716=\"\",\"\",[1]Application!$O716))","v":""},{"$f":"IF(CreditType=4,IF([1]Application!$T736=\"\",\"\",[1]Application!$T736),IF([1]Application!$Y716=\"\",\"\",[1]Application!$Y716))","v":""},{"$f":"IF(CreditType=4,[1]Application!$AC736,[1]Application!$AH716)","v":0},{"$f":"'Housing Type'!L282","v":0},null,null,"","","",null,"","","",null,null,{"$f":"'Site Control 1'!C92","v":0},{"$f":"'Site Control 1'!H92","v":0},{"$f":"'Site Control 1'!M92","v":0},{"$f":"'Site Control 1'!R92","v":0},{"$f":"'Site Control 1'!W92","v":0},{"$f":"'Site Control 1'!AB92","v":0}]
["g_GeographicArea",{"$f":"IF(CreditType=4,IF(ISNUMBER(SEARCH(\":\",[1]Application!$D$220)),LEFT([1]Application!$D$220,SEARCH(\":\",[1]Application!$D$220)-1),[1]Application!$D$220),IF(ISNUMBER(SEARCH(\":\",[1]Application!$D$223)),LEFT([1]Application!$D$223,SEARCH(\":\",[1]Application!$D$223)-1),[1]Application!$D$223))","v":"(select one)"},"Geographic Region",null,null,{"$f":"IF(CreditType=4,IF([1]Application!$B737=\"\",\"\",[1]Application!$B737),IF([1]Application!$B717=\"\",\"\",[1]Application!$B717))","v":""},{"$f":"IF(CreditType=4,IF([1]Application!$G737=\"\",\"\",[1]Application!$G737),IF([1]Application!$G717=\"\",\"\",[1]Application!$G717))","v":""},{"$f":"IF(CreditType=4,IF([1]Application!$K737=\"\",\"\",[1]Application!$K737),IF([1]Application!$K717=\"\",\"\",[1]Application!$K717))","v":""},{"$f":"IF(CreditType=4,IF([1]Application!$O737=\"\",\"\",[1]Application!$O737),IF([1]Application!$O717=\"\",\"\",[1]Application!$O717))","v":""},{"$f":"IF(CreditType=4,IF([1]Application!$T737=\"\",\"\",[1]Application!$T737),IF([1]Application!$Y717=\"\",\"\",[1]Application!$Y717))","v":""},{"$f":"IF(CreditType=4,[1]Application!$AC737,[1]Application!$AH717)","v":0},{"$f":"'Housing Type'!L283","v":0},null,null,"","","",null,"","","",null,null,{"$f":"'Site Control 2'!C80","v":0},{"$f":"'Site Control 2'!H80","v":0},{"$f":"'Site Control 2'!M80","v":0},{"$f":"'Site Control 2'!R80","v":0},{"$f":"'Site Control 2'!W80","v":0},{"$f":"'Site Control 2'!AB80","v":0}]
[null,"Project Characteristics",null,null,null,{"$f":"IF(CreditType=4,IF([1]Application!$B738=\"\",\"\",[1]Application!$B738),IF([1]Application!$B718=\"\",\"\",[1]Application!$B718))","v":""},{"$f":"IF(CreditType=4,IF([1]Application!$G738=\"\",\"\",[1]Application!$G738),IF([1]Application!$G718=\"\",\"\",[1]Application!$G718))","v":""},{"$f":"IF(CreditType=4,IF([1]Application!$K738=\"\",\"\",[1]Application!$K738),IF([1]Application!$K718=\"\",\"\",[1]Application!$K718))","v":""},{"$f":"IF(CreditType=4,IF([1]Application!$O738=\"\",\"\",[1]Application!$O738),IF([1]Application!$O718=\"\",\"\",[1]Application!$O718))","v":""},{"$f":"IF(CreditType=4,IF([1]Application!$T738=\"\",\"\",[1]Application!$T738),IF([1]Application!$Y718=\"\",\"\",[1]Application!$Y718))","v":""},{"$f":"IF(CreditType=4,[1]Application!$AC738,[1]Application!$AH718)","v":0},{"$f":"'Housing Type'!L284","v":0},null,null,"","","",null,"","","",null,null,{"$f":"'Site Control 2'!C81","v":0},{"$f":"'Site Control 2'!H81","v":0},{"$f":"'Site Control 2'!M81","v":0},{"$f":"'Site Control 2'!R81","v":0},{"$f":"'Site Control 2'!W81","v":0},{"$f":"'Site Control 2'!AB81","v":0}]
["g_TaxCredits",{"$f":"[1]Application!$AS$1","v":9},"Type of tax credits",null,null,{"$f":"IF(CreditType=4,IF([1]Application!$B739=\"\",\"\",[1]Application!$B739),IF([1]Application!$B719=\"\",\"\",[1]Application!$B719))","v":""},{"$f":"IF(CreditType=4,IF([1]Application!$G739=\"\",\"\",[1]Application!$G739),IF([1]Application!$G719=\"\",\"\",[1]Application!$G719))","v":""},{"$f":"IF(CreditType=4,IF([1]Application!$K739=\"\",\"\",[1]Application!$K739),IF([1]Application!$K719=\"\",\"\",[1]Application!$K719))","v":""},{"$f":"IF(CreditType=4,IF([1]Application!$O739=\"\",\"\",[1]Application!$O739),IF([1]Application!$O719=\"\",\"\",[1]Application!$O719))","v":""},{"$f":"IF(CreditType=4,IF([1]Application!$T739=\"\",\"\",[1]Application!$T739),IF([1]Application!$Y719=\"\",\"\",[1]Application!$Y719))","v":""},{"$f":"IF(CreditType=4,[1]Application!$AC739,[1]Application!$AH719)","v":0},{"$f":"'Housing Type'!L285","v":0},null,null,"","","",null,"","","",null,null,{"$f":"'Site Control 2'!C82","v":0},{"$f":"'Site Control 2'!H82","v":0},{"$f":"'Site Control 2'!M82","v":0},{"$f":"'Site Control 2'!R82","v":0},{"$f":"'Site Control 2'!W82","v":0},{"$f":"'Site Control 2'!AB82","v":0}]
["g_Rural",{"$f":"IF(CreditType=4,\nIF([1]Application!$T$199=\"Yes\",TRUE,FALSE),\nIF(OR(\n[1]Application!$D$211=\"Rural\",\n[1]Application!$D$211=\"Rural apportionment (Section 514)\",\n[1]Application!$D$211=\"Rural apportionment (CDBG-DR)\",\n[1]Application!$D$211=\"Rural apportionment (Section 515)\",\n[1]Application!$D$211=\"Rural apportionment (HOME)\",\n[1]Application!$D$211=\"Rural apportionment (Native American apportionment)\",\n[1]Application!$D$223=\"N/A\"),TRUE,FALSE))","v":false},"Rural",null,null,{"$f":"IF(CreditType=4,IF([1]Application!$B740=\"\",\"\",[1]Application!$B740),IF([1]Application!$B720=\"\",\"\",[1]Application!$B720))","v":""},{"$f":"IF(CreditType=4,IF([1]Application!$G740=\"\",\"\",[1]Application!$G740),IF([1]Application!$G720=\"\",\"\",[1]Application!$G720))","v":""},{"$f":"IF(CreditType=4,IF([1]Application!$K740=\"\",\"\",[1]Application!$K740),IF([1]Application!$K720=\"\",\"\",[1]Application!$K720))","v":""},{"$f":"IF(CreditType=4,IF([1]Application!$O740=\"\",\"\",[1]Application!$O740),IF([1]Application!$O720=\"\",\"\",[1]Application!$O720))","v":""},{"$f":"IF(CreditType=4,IF([1]Application!$T740=\"\",\"\",[1]Application!$T740),IF([1]Application!$Y720=\"\",\"\",[1]Application!$Y720))","v":""},{"$f":"IF(CreditType=4,[1]Application!$AC740,[1]Application!$AH720)","v":0},{"$f":"'Housing Type'!L286","v":0},null,null,"","","",null,"","","",null,null,{"$f":"'Site Control 2'!C83","v":0},{"$f":"'Site Control 2'!H83","v":0},{"$f":"'Site Control 2'!M83","v":0},{"$f":"'Site Control 2'!R83","v":0},{"$f":"'Site Control 2'!W83","v":0},{"$f":"'Site Control 2'!AB83","v":0}]
["g_IncludesResUnitDemolition",{"$f":"IF(CreditType=4,\nAND([1]Application!$AJ$364=\"Yes\",[1]Application!$AJ$365>0),\nAND([1]Application!$AJ$357=\"Yes\",[1]Application!$AJ$358>0))","v":false},"Demolition of existing residential units",null,null,{"$f":"IF(CreditType=4,IF([1]Application!$B741=\"\",\"\",[1]Application!$B741),IF([1]Application!$B721=\"\",\"\",[1]Application!$B721))","v":""},{"$f":"IF(CreditType=4,IF([1]Application!$G741=\"\",\"\",[1]Application!$G741),IF([1]Application!$G721=\"\",\"\",[1]Application!$G721))","v":""},{"$f":"IF(CreditType=4,IF([1]Application!$K741=\"\",\"\",[1]Application!$K741),IF([1]Application!$K721=\"\",\"\",[1]Application!$K721))","v":""},{"$f":"IF(CreditType=4,IF([1]Application!$O741=\"\",\"\",[1]Application!$O741),IF([1]Application!$O721=\"\",\"\",[1]Application!$O721))","v":""},{"$f":"IF(CreditType=4,IF([1]Application!$T741=\"\",\"\",[1]Application!$T741),IF([1]Application!$Y721=\"\",\"\",[1]Application!$Y721))","v":""},{"$f":"IF(CreditType=4,[1]Application!$AC741,[1]Application!$AH721)","v":0},{"$f":"'Housing Type'!L287","v":0},null,null,"","","",null,"","","",null,null,{"$f":"'Site Control 2'!C84","v":0},{"$f":"'Site Control 2'!H84","v":0},{"$f":"'Site Control 2'!M84","v":0},{"$f":"'Site Control 2'!R84","v":0},{"$f":"'Site Control 2'!W84","v":0},{"$f":"'Site Control 2'!AB84","v":0}]
["g_IncludesTenantRelocation",{"$f":"IF(CreditType=4,[1]Application!$AJ$366=\"Yes\",[1]Application!$AJ$359=\"Yes\")","v":false},"Relocation of existing residential tenants",null,null,{"$f":"IF(CreditType=4,IF([1]Application!$B742=\"\",\"\",[1]Application!$B742),IF([1]Application!$B722=\"\",\"\",[1]Application!$B722))","v":""},{"$f":"IF(CreditType=4,IF([1]Application!$G742=\"\",\"\",[1]Application!$G742),IF([1]Application!$G722=\"\",\"\",[1]Application!$G722))","v":""},{"$f":"IF(CreditType=4,IF([1]Application!$K742=\"\",\"\",[1]Application!$K742),IF([1]Application!$K722=\"\",\"\",[1]Application!$K722))","v":""},{"$f":"IF(CreditType=4,IF([1]Application!$O742=\"\",\"\",[1]Application!$O742),IF([1]Application!$O722=\"\",\"\",[1]Application!$O722))","v":""},{"$f":"IF(CreditType=4,IF([1]Application!$T742=\"\",\"\",[1]Application!$T742),IF([1]Application!$Y722=\"\",\"\",[1]Application!$Y722))","v":""},{"$f":"IF(CreditType=4,[1]Application!$AC742,[1]Application!$AH722)","v":0},{"$f":"'Housing Type'!L288","v":0},null,null,"","","",null,"","","",null,null,{"$f":"'Site Control 2'!C85","v":0},{"$f":"'Site Control 2'!H85","v":0},{"$f":"'Site Control 2'!M85","v":0},{"$f":"'Site Control 2'!R85","v":0},{"$f":"'Site Control 2'!W85","v":0},{"$f":"'Site Control 2'!AB85","v":0}]
["g_IncludesRehabilitation",{"$f":"IF(CreditType=4,OR([1]Application!$M$366=\"Yes\",[1]Application!$M$367=\"Yes\"),OR([1]Application!$M$359=\"Yes\",[1]Application!$M$360=\"Yes\"))","v":false},"Rehab of existing residential buildings",null,null,{"$f":"IF(CreditType=4,IF([1]Application!$B743=\"\",\"\",[1]Application!$B743),IF([1]Application!$B723=\"\",\"\",[1]Application!$B723))","v":""},{"$f":"IF(CreditType=4,IF([1]Application!$G743=\"\",\"\",[1]Application!$G743),IF([1]Application!$G723=\"\",\"\",[1]Application!$G723))","v":""},{"$f":"IF(CreditType=4,IF([1]Application!$K743=\"\",\"\",[1]Application!$K743),IF([1]Application!$K723=\"\",\"\",[1]Application!$K723))","v":""},{"$f":"IF(CreditType=4,IF([1]Application!$O743=\"\",\"\",[1]Application!$O743),IF([1]Application!$O723=\"\",\"\",[1]Application!$O723))","v":""},{"$f":"IF(CreditType=4,IF([1]Application!$T743=\"\",\"\",[1]Application!$T743),IF([1]Application!$Y723=\"\",\"\",[1]Application!$Y723))","v":""},{"$f":"IF(CreditType=4,[1]Application!$AC743,[1]Application!$AH723)","v":0},{"$f":"'Housing Type'!L289","v":0},null,null,"","","",null,"","","",null,null,{"$f":"'Site Control 2'!C86","v":0},{"$f":"'Site Control 2'!H86","v":0},{"$f":"'Site Control 2'!M86","v":0},{"$f":"'Site Control 2'!R86","v":0},{"$f":"'Site Control 2'!W86","v":0},{"$f":"'Site Control 2'!AB86","v":0}]
["g_Resyndication",{"$f":"IF(CreditType=4,[1]Application!$X$180=\"Yes\",[1]Application!$Y$180=\"Yes\")","v":false},"Resyndication",null,null,{"$f":"IF(CreditType=4,IF([1]Application!$B744=\"\",\"\",[1]Application!$B744),IF([1]Application!$B724=\"\",\"\",[1]Application!$B724))","v":""},{"$f":"IF(CreditType=4,IF([1]Application!$G744=\"\",\"\",[1]Application!$G744),IF([1]Application!$G724=\"\",\"\",[1]Application!$G724))","v":""},{"$f":"IF(CreditType=4,IF([1]Application!$K744=\"\",\"\",[1]Application!$K744),IF([1]Application!$K724=\"\",\"\",[1]Application!$K724))","v":""},{"$f":"IF(CreditType=4,IF([1]Application!$O744=\"\",\"\",[1]Application!$O744),IF([1]Application!$O724=\"\",\"\",[1]Application!$O724))","v":""},{"$f":"IF(CreditType=4,IF([1]Application!$T744=\"\",\"\",[1]Application!$T744),IF([1]Application!$Y724=\"\",\"\",[1]Application!$Y724))","v":""},{"$f":"IF(CreditType=4,[1]Application!$AC744,[1]Application!$AH724)","v":0},{"$f":"'Housing Type'!L290","v":0},null,null,"","","",null,"","","",null,null,{"$f":"'Site Control 2'!C87","v":0},{"$f":"'Site Control 2'!H87","v":0},{"$f":"'Site Control 2'!M87","v":0},{"$f":"'Site Control 2'!R87","v":0},{"$f":"'Site Control 2'!W87","v":0},{"$f":"'Site Control 2'!AB87","v":0}]
["g_IncludesHomeOwnership",null,"Eventual home ownership",null,null,{"$f":"IF(CreditType=4,IF([1]Application!$B745=\"\",\"\",[1]Application!$B745),IF([1]Application!$B725=\"\",\"\",[1]Application!$B725))","v":""},{"$f":"IF(CreditType=4,IF([1]Application!$G745=\"\",\"\",[1]Application!$G745),IF([1]Application!$G725=\"\",\"\",[1]Application!$G725))","v":""},{"$f":"IF(CreditType=4,IF([1]Application!$K745=\"\",\"\",[1]Application!$K745),IF([1]Application!$K725=\"\",\"\",[1]Application!$K725))","v":""},{"$f":"IF(CreditType=4,IF([1]Application!$O745=\"\",\"\",[1]Application!$O745),IF([1]Application!$O725=\"\",\"\",[1]Application!$O725))","v":""},{"$f":"IF(CreditType=4,IF([1]Application!$T745=\"\",\"\",[1]Application!$T745),IF([1]Application!$Y725=\"\",\"\",[1]Application!$Y725))","v":""},{"$f":"IF(CreditType=4,[1]Application!$AC745,[1]Application!$AH725)","v":0},{"$f":"'Housing Type'!L291","v":0},null,null,"","","",null,"","","",null,null,{"$f":"'Site Control 2'!C88","v":0},{"$f":"'Site Control 2'!H88","v":0},{"$f":"'Site Control 2'!M88","v":0},{"$f":"'Site Control 2'!R88","v":0},{"$f":"'Site Control 2'!W88","v":0},{"$f":"'Site Control 2'!AB88","v":0}]
["g_IncludesElevators",{"$f":"IF(CreditType=4,[1]Application!$R$420=\"Yes\",[1]Application!$R$412=\"Yes\")","v":false},"Elevators",null,null,{"$f":"IF(CreditType=4,IF([1]Application!$B746=\"\",\"\",[1]Application!$B746),IF([1]Application!$B726=\"\",\"\",[1]Application!$B726))","v":""},{"$f":"IF(CreditType=4,IF([1]Application!$G746=\"\",\"\",[1]Application!$G746),IF([1]Application!$G726=\"\",\"\",[1]Application!$G726))","v":""},{"$f":"IF(CreditType=4,IF([1]Application!$K746=\"\",\"\",[1]Application!$K746),IF([1]Application!$K726=\"\",\"\",[1]Application!$K726))","v":""},{"$f":"IF(CreditType=4,IF([1]Application!$O746=\"\",\"\",[1]Application!$O746),IF([1]Application!$O726=\"\",\"\",[1]Application!$O726))","v":""},{"$f":"IF(CreditType=4,IF([1]Application!$T746=\"\",\"\",[1]Application!$T746),IF([1]Application!$Y726=\"\",\"\",[1]Application!$Y726))","v":""},{"$f":"IF(CreditType=4,[1]Application!$AC746,[1]Application!$AH726)","v":0},{"$f":"'Housing Type'!L292","v":0},null,null,"","","",null,"","","",null,null,{"$f":"'Site Control 2'!C89","v":0},{"$f":"'Site Control 2'!H89","v":0},{"$f":"'Site Control 2'!M89","v":0},{"$f":"'Site Control 2'!R89","v":0},{"$f":"'Site Control 2'!W89","v":0},{"$f":"'Site Control 2'!AB89","v":0}]
["g_OnTribalTrustLand",null,"Tribal trust land",null,null,{"$f":"IF(CreditType=4,IF([1]Application!$B747=\"\",\"\",[1]Application!$B747),IF([1]Application!$B727=\"\",\"\",[1]Application!$B727))","v":""},{"$f":"IF(CreditType=4,IF([1]Application!$G747=\"\",\"\",[1]Application!$G747),IF([1]Application!$G727=\"\",\"\",[1]Application!$G727))","v":""},{"$f":"IF(CreditType=4,IF([1]Application!$K747=\"\",\"\",[1]Application!$K747),IF([1]Application!$K727=\"\",\"\",[1]Application!$K727))","v":""},{"$f":"IF(CreditType=4,IF([1]Application!$O747=\"\",\"\",[1]Application!$O747),IF([1]Application!$O727=\"\",\"\",[1]Application!$O727))","v":""},{"$f":"IF(CreditType=4,IF([1]Application!$T747=\"\",\"\",[1]Application!$T747),IF([1]Application!$Y727=\"\",\"\",[1]Application!$Y727))","v":""},{"$f":"IF(CreditType=4,[1]Application!$AC747,[1]Application!$AH727)","v":0},{"$f":"'Housing Type'!L293","v":0},null,null,"","","",null,"","","",null,null,{"$f":"'Site Control 2'!C90","v":0},{"$f":"'Site Control 2'!H90","v":0},{"$f":"'Site Control 2'!M90","v":0},{"$f":"'Site Control 2'!R90","v":0},{"$f":"'Site Control 2'!W90","v":0},{"$f":"'Site Control 2'!AB90","v":0}]
["g_IncludesCommercial",null,"Commercial space",null,null,{"$f":"IF(CreditType=4,IF([1]Application!$B748=\"\",\"\",[1]Application!$B748),IF([1]Application!$B728=\"\",\"\",[1]Application!$B728))","v":""},{"$f":"IF(CreditType=4,IF([1]Application!$G748=\"\",\"\",[1]Application!$G748),IF([1]Application!$G728=\"\",\"\",[1]Application!$G728))","v":""},{"$f":"IF(CreditType=4,IF([1]Application!$K748=\"\",\"\",[1]Application!$K748),IF([1]Application!$K728=\"\",\"\",[1]Application!$K728))","v":""},{"$f":"IF(CreditType=4,IF([1]Application!$O748=\"\",\"\",[1]Application!$O748),IF([1]Application!$O728=\"\",\"\",[1]Application!$O728))","v":""},{"$f":"IF(CreditType=4,IF([1]Application!$T748=\"\",\"\",[1]Application!$T748),IF([1]Application!$Y728=\"\",\"\",[1]Application!$Y728))","v":""},{"$f":"IF(CreditType=4,[1]Application!$AC748,[1]Application!$AH728)","v":0},{"$f":"'Housing Type'!L294","v":0},null,null,"","","",null,"","","",null,null,{"$f":"'Site Control 2'!C91","v":0},{"$f":"'Site Control 2'!H91","v":0},{"$f":"'Site Control 2'!M91","v":0},{"$f":"'Site Control 2'!R91","v":0},{"$f":"'Site Control 2'!W91","v":0},{"$f":"'Site Control 2'!AB91","v":0}]
["g_IncludesCommunityServiceFacilities",null,"Community Service Facilities",null,null,{"$f":"IF(CreditType=4,IF([1]Application!$B749=\"\",\"\",[1]Application!$B749),IF([1]Application!$B729=\"\",\"\",[1]Application!$B729))","v":""},{"$f":"IF(CreditType=4,IF([1]Application!$G749=\"\",\"\",[1]Application!$G749),IF([1]Application!$G729=\"\",\"\",[1]Application!$G729))","v":""},{"$f":"IF(CreditType=4,IF([1]Application!$K749=\"\",\"\",[1]Application!$K749),IF([1]Application!$K729=\"\",\"\",[1]Application!$K729))","v":""},{"$f":"IF(CreditType=4,IF([1]Application!$O749=\"\",\"\",[1]Application!$O749),IF([1]Application!$O729=\"\",\"\",[1]Application!$O729))","v":""},{"$f":"IF(CreditType=4,IF([1]Application!$T749=\"\",\"\",[1]Application!$T749),IF([1]Application!$Y729=\"\",\"\",[1]Application!$Y729))","v":""},{"$f":"IF(CreditType=4,[1]Application!$AC749,[1]Application!$AH729)","v":0},{"$f":"'Housing Type'!L295","v":0},null,null,"","","",null,"","","",null,null,{"$f":"'Site Control 2'!C92","v":0},{"$f":"'Site Control 2'!H92","v":0},{"$f":"'Site Control 2'!M92","v":0},{"$f":"'Site Control 2'!R92","v":0},{"$f":"'Site Control 2'!W92","v":0},{"$f":"'Site Control 2'!AB92","v":0}]
["g_PartOfSimultaneousPhases",null,"Multiple simultaneous phases",null,null,{"$f":"IF(CreditType=4,IF([1]Application!$B750=\"\",\"\",[1]Application!$B750),IF([1]Application!$B730=\"\",\"\",[1]Application!$B730))","v":""},{"$f":"IF(CreditType=4,IF([1]Application!$G750=\"\",\"\",[1]Application!$G750),IF([1]Application!$G730=\"\",\"\",[1]Application!$G730))","v":""},{"$f":"IF(CreditType=4,IF([1]Application!$K750=\"\",\"\",[1]Application!$K750),IF([1]Application!$K730=\"\",\"\",[1]Application!$K730))","v":""},{"$f":"IF(CreditType=4,IF([1]Application!$O750=\"\",\"\",[1]Application!$O750),IF([1]Application!$O730=\"\",\"\",[1]Application!$O730))","v":""},{"$f":"IF(CreditType=4,IF([1]Application!$T750=\"\",\"\",[1]Application!$T750),IF([1]Application!$Y730=\"\",\"\",[1]Application!$Y730))","v":""},{"$f":"IF(CreditType=4,[1]Application!$AC750,[1]Application!$AH730)","v":0},{"$f":"'Housing Type'!L296","v":0},null,null,"","","",null,"","","",null,null,{"$f":"'Site Control 3'!C80","v":0},{"$f":"'Site Control 3'!H80","v":0},{"$f":"'Site Control 3'!M80","v":0},{"$f":"'Site Control 3'!R80","v":0},{"$f":"'Site Control 3'!W80","v":0},{"$f":"'Site Control 3'!AB80","v":0}]
["g_FulfillsInclusionaryReq",null,"Fulfills inclusionary requirements",null,null,{"$f":"IF(CreditType=4,IF([1]Application!$B751=\"\",\"\",[1]Application!$B751),IF([1]Application!$B731=\"\",\"\",[1]Application!$B731))","v":""},{"$f":"IF(CreditType=4,IF([1]Application!$G751=\"\",\"\",[1]Application!$G751),IF([1]Application!$G731=\"\",\"\",[1]Application!$G731))","v":""},{"$f":"IF(CreditType=4,IF([1]Application!$K751=\"\",\"\",[1]Application!$K751),IF([1]Application!$K731=\"\",\"\",[1]Application!$K731))","v":""},{"$f":"IF(CreditType=4,IF([1]Application!$O751=\"\",\"\",[1]Application!$O751),IF([1]Application!$O731=\"\",\"\",[1]Application!$O731))","v":""},{"$f":"IF(CreditType=4,IF([1]Application!$T751=\"\",\"\",[1]Application!$T751),IF([1]Application!$Y731=\"\",\"\",[1]Application!$Y731))","v":""},{"$f":"IF(CreditType=4,[1]Application!$AC751,[1]Application!$AH731)","v":0},{"$f":"'Housing Type'!L297","v":0},null,null,"","","",null,"","","",null,null,{"$f":"'Site Control 3'!C81","v":0},{"$f":"'Site Control 3'!H81","v":0},{"$f":"'Site Control 3'!M81","v":0},{"$f":"'Site Control 3'!R81","v":0},{"$f":"'Site Control 3'!W81","v":0},{"$f":"'Site Control 3'!AB81","v":0}]
["g_IsHybrid",{"$f":"IF(CreditType=4,\n[1]Application!$T$200=\"Yes\",\nAND('[1]Tie Breaker'!$Q$46>0,'[1]Tie Breaker'!$G$66>0))","v":false},"Multiple simultaneous phase with differing credit types",null,null,{"$f":"IF(CreditType=4,IF([1]Application!$B752=\"\",\"\",[1]Application!$B752),IF([1]Application!$B732=\"\",\"\",[1]Application!$B732))","v":""},{"$f":"IF(CreditType=4,IF([1]Application!$G752=\"\",\"\",[1]Application!$G752),IF([1]Application!$G732=\"\",\"\",[1]Application!$G732))","v":""},{"$f":"IF(CreditType=4,IF([1]Application!$K752=\"\",\"\",[1]Application!$K752),IF([1]Application!$K732=\"\",\"\",[1]Application!$K732))","v":""},{"$f":"IF(CreditType=4,IF([1]Application!$O752=\"\",\"\",[1]Application!$O752),IF([1]Application!$O732=\"\",\"\",[1]Application!$O732))","v":""},{"$f":"IF(CreditType=4,IF([1]Application!$T752=\"\",\"\",[1]Application!$T752),IF([1]Application!$Y732=\"\",\"\",[1]Application!$Y732))","v":""},{"$f":"IF(CreditType=4,[1]Application!$AC752,[1]Application!$AH732)","v":0},{"$f":"'Housing Type'!L298","v":0},null,null,"","","",null,"","","",null,null,{"$f":"'Site Control 3'!C82","v":0},{"$f":"'Site Control 3'!H82","v":0},{"$f":"'Site Control 3'!M82","v":0},{"$f":"'Site Control 3'!R82","v":0},{"$f":"'Site Control 3'!W82","v":0},{"$f":"'Site Control 3'!AB82","v":0}]
["g_Historical",null,"Includes an historical building",null,null,{"$f":"IF(CreditType=4,IF([1]Application!$B753=\"\",\"\",[1]Application!$B753),IF([1]Application!$B733=\"\",\"\",[1]Application!$B733))","v":""},{"$f":"IF(CreditType=4,IF([1]Application!$G753=\"\",\"\",[1]Application!$G753),IF([1]Application!$G733=\"\",\"\",[1]Application!$G733))","v":""},{"$f":"IF(CreditType=4,IF([1]Application!$K753=\"\",\"\",[1]Application!$K753),IF([1]Application!$K733=\"\",\"\",[1]Application!$K733))","v":""},{"$f":"IF(CreditType=4,IF([1]Application!$O753=\"\",\"\",[1]Application!$O753),IF([1]Application!$O733=\"\",\"\",[1]Application!$O733))","v":""},{"$f":"IF(CreditType=4,IF([1]Application!$T753=\"\",\"\",[1]Application!$T753),IF([1]Application!$Y733=\"\",\"\",[1]Application!$Y733))","v":""},{"$f":"IF(CreditType=4,[1]Application!$AC753,[1]Application!$AH733)","v":0},{"$f":"'Housing Type'!L299","v":0},null,null,"","","",null,"","","",null,null,{"$f":"'Site Control 3'!C83","v":0},{"$f":"'Site Control 3'!H83","v":0},{"$f":"'Site Control 3'!M83","v":0},{"$f":"'Site Control 3'!R83","v":0},{"$f":"'Site Control 3'!W83","v":0},{"$f":"'Site Control 3'!AB83","v":0}]
[null,"Partnership Contacts",null,null,null,{"$f":"IF(CreditType=4,IF([1]Application!$B754=\"\",\"\",[1]Application!$B754),IF([1]Application!$B734=\"\",\"\",[1]Application!$B734))","v":""},{"$f":"IF(CreditType=4,IF([1]Application!$G754=\"\",\"\",[1]Application!$G754),IF([1]Application!$G734=\"\",\"\",[1]Application!$G734))","v":""},{"$f":"IF(CreditType=4,IF([1]Application!$K754=\"\",\"\",[1]Application!$K754),IF([1]Application!$K734=\"\",\"\",[1]Application!$K734))","v":""},{"$f":"IF(CreditType=4,IF([1]Application!$O754=\"\",\"\",[1]Application!$O754),IF([1]Application!$O734=\"\",\"\",[1]Application!$O734))","v":""},{"$f":"IF(CreditType=4,IF([1]Application!$T754=\"\",\"\",[1]Application!$T754),IF([1]Application!$Y734=\"\",\"\",[1]Application!$Y734))","v":""},{"$f":"IF(CreditType=4,[1]Application!$AC754,[1]Application!$AH734)","v":0},{"$f":"'Housing Type'!L300","v":0},null,null,"","","",null,"","","",null,null,{"$f":"'Site Control 3'!C84","v":0},{"$f":"'Site Control 3'!H84","v":0},{"$f":"'Site Control 3'!M84","v":0},{"$f":"'Site Control 3'!R84","v":0},{"$f":"'Site Control 3'!W84","v":0},{"$f":"'Site Control 3'!AB84","v":0}]
["g_EventualOwnershipEntity",null,"Company name of key entity in Contacts table",null,null,{"$f":"IF(CreditType=4,IF([1]Application!$B755=\"\",\"\",[1]Application!$B755),IF([1]Application!$B735=\"\",\"\",[1]Application!$B735))","v":""},{"$f":"IF(CreditType=4,IF([1]Application!$G755=\"\",\"\",[1]Application!$G755),IF([1]Application!$G735=\"\",\"\",[1]Application!$G735))","v":""},{"$f":"IF(CreditType=4,IF([1]Application!$K755=\"\",\"\",[1]Application!$K755),IF([1]Application!$K735=\"\",\"\",[1]Application!$K735))","v":""},{"$f":"IF(CreditType=4,IF([1]Application!$O755=\"\",\"\",[1]Application!$O755),IF([1]Application!$O735=\"\",\"\",[1]Application!$O735))","v":""},{"$f":"IF(CreditType=4,IF([1]Application!$T755=\"\",\"\",[1]Application!$T755),IF([1]Application!$Y735=\"\",\"\",[1]Application!$Y735))","v":""},{"$f":"IF(CreditType=4,[1]Application!$AC755,[1]Application!$AH735)","v":0},{"$f":"'Housing Type'!L301","v":0},null,null,"","","",null,"","","",null,null,{"$f":"'Site Control 3'!C85","v":0},{"$f":"'Site Control 3'!H85","v":0},{"$f":"'Site Control 3'!M85","v":0},{"$f":"'Site Control 3'!R85","v":0},{"$f":"'Site Control 3'!W85","v":0},{"$f":"'Site Control 3'!AB85","v":0}]
["g_TcacApplicant",{"$f":"IF(CreditType=4,[1]Application!$H$16,[1]Application!$H$15)","v":0},"Company name of key entity in Contacts table",null,null,{"$f":"IF(CreditType=4,IF([1]Application!$B756=\"\",\"\",[1]Application!$B756),IF([1]Application!$B736=\"\",\"\",[1]Application!$B736))","v":""},{"$f":"IF(CreditType=4,IF([1]Application!$G756=\"\",\"\",[1]Application!$G756),IF([1]Application!$G736=\"\",\"\",[1]Application!$G736))","v":""},{"$f":"IF(CreditType=4,IF([1]Application!$K756=\"\",\"\",[1]Application!$K756),IF([1]Application!$K736=\"\",\"\",[1]Application!$K736))","v":""},{"$f":"IF(CreditType=4,IF([1]Application!$O756=\"\",\"\",[1]Application!$O756),IF([1]Application!$O736=\"\",\"\",[1]Application!$O736))","v":""},{"$f":"IF(CreditType=4,IF([1]Application!$T756=\"\",\"\",[1]Application!$T756),IF([1]Application!$Y736=\"\",\"\",[1]Application!$Y736))","v":""},{"$f":"IF(CreditType=4,[1]Application!$AC756,[1]Application!$AH736)","v":0},{"$f":"'Housing Type'!L302","v":0},null,null,"","","",null,"","","",null,null,{"$f":"'Site Control 3'!C86","v":0},{"$f":"'Site Control 3'!H86","v":0},{"$f":"'Site Control 3'!M86","v":0},{"$f":"'Site Control 3'!R86","v":0},{"$f":"'Site Control 3'!W86","v":0},{"$f":"'Site Control 3'!AB86","v":0}]
["g_LeadDeveloper",null,"Company name of key entity in Contacts table",null,null,{"$f":"IF(CreditType=4,IF([1]Application!$B757=\"\",\"\",[1]Application!$B757),IF([1]Application!$B737=\"\",\"\",[1]Application!$B737))","v":""},{"$f":"IF(CreditType=4,IF([1]Application!$G757=\"\",\"\",[1]Application!$G757),IF([1]Application!$G737=\"\",\"\",[1]Application!$G737))","v":""},{"$f":"IF(CreditType=4,IF([1]Application!$K757=\"\",\"\",[1]Application!$K757),IF([1]Application!$K737=\"\",\"\",[1]Application!$K737))","v":""},{"$f":"IF(CreditType=4,IF([1]Application!$O757=\"\",\"\",[1]Application!$O757),IF([1]Application!$O737=\"\",\"\",[1]Application!$O737))","v":""},{"$f":"IF(CreditType=4,IF([1]Application!$T757=\"\",\"\",[1]Application!$T757),IF([1]Application!$Y737=\"\",\"\",[1]Application!$Y737))","v":""},{"$f":"IF(CreditType=4,[1]Application!$AC757,[1]Application!$AH737)","v":0},{"$f":"'Housing Type'!L303","v":0},null,null,"","","",null,"","","",null,null,{"$f":"'Site Control 3'!C87","v":0},{"$f":"'Site Control 3'!H87","v":0},{"$f":"'Site Control 3'!M87","v":0},{"$f":"'Site Control 3'!R87","v":0},{"$f":"'Site Control 3'!W87","v":0},{"$f":"'Site Control 3'!AB87","v":0}]
["g_ManagingGeneralPartner",null,"Company name of key entity in Contacts table",null,null,{"$f":"IF(CreditType=4,IF([1]Application!$J795=\"\",\"\",[1]Application!$J795),IF([1]Application!$J774=\"\",\"\",[1]Application!$J774))","v":""},{"$f":"IF(CreditType=4,IF([1]Application!$O795=\"\",\"\",[1]Application!$O795),IF([1]Application!$O774=\"\",\"\",[1]Application!$O774))","v":""},{"$f":"IF(CreditType=4,IF([1]Application!$T795=\"\",\"\",[1]Application!$T795),IF([1]Application!$T774=\"\",\"\",[1]Application!$T774))","v":""},{"$f":"IF(CreditType=4,IF([1]Application!$X795=\"\",\"\",[1]Application!$X795),IF([1]Application!$X774=\"\",\"\",[1]Application!$X774))","v":""},null,null,0,true,null,{"$f":"SUM(O3:O36)","v":0},{"$f":"SUM(P3:P36)","v":0},{"$f":"SUM(Q3:Q36)","v":0},null,{"$f":"SUM(S3:S36)","v":0},{"$f":"SUM(T3:T36)","v":0},{"$f":"SUM(U3:U36)","v":0},null,null,{"$f":"'Site Control 3'!C88","v":0},{"$f":"'Site Control 3'!H88","v":0},{"$f":"'Site Control 3'!M88","v":0},{"$f":"'Site Control 3'!R88","v":0},{"$f":"'Site Control 3'!W88","v":0},{"$f":"'Site Control 3'!AB88","v":0}]
["g_AdministrativeGeneralPartner",null,"Company name of key entity in Contacts table",null,null,{"$f":"IF(CreditType=4,IF([1]Application!$J796=\"\",\"\",[1]Application!$J796),IF([1]Application!$J775=\"\",\"\",[1]Application!$J775))","v":""},{"$f":"IF(CreditType=4,IF([1]Application!$O796=\"\",\"\",[1]Application!$O796),IF([1]Application!$O775=\"\",\"\",[1]Application!$O775))","v":""},{"$f":"IF(CreditType=4,IF([1]Application!$T796=\"\",\"\",[1]Application!$T796),IF([1]Application!$T775=\"\",\"\",[1]Application!$T775))","v":""},{"$f":"IF(CreditType=4,IF([1]Application!$X796=\"\",\"\",[1]Application!$X796),IF([1]Application!$X775=\"\",\"\",[1]Application!$X775))","v":""},null,null,0,true,null,null,null,null,null,null,null,null,null,null,{"$f":"'Site Control 3'!C89","v":0},{"$f":"'Site Control 3'!H89","v":0},{"$f":"'Site Control 3'!M89","v":0},{"$f":"'Site Control 3'!R89","v":0},{"$f":"'Site Control 3'!W89","v":0},{"$f":"'Site Control 3'!AB89","v":0}]
["g_ProjectSponsor",null,"Company name of key entity in Contacts table",null,null,{"$f":"IF(CreditType=4,IF([1]Application!$J797=\"\",\"\",[1]Application!$J797),IF([1]Application!$J776=\"\",\"\",[1]Application!$J776))","v":""},{"$f":"IF(CreditType=4,IF([1]Application!$O797=\"\",\"\",[1]Application!$O797),IF([1]Application!$O776=\"\",\"\",[1]Application!$O776))","v":""},{"$f":"IF(CreditType=4,IF([1]Application!$T797=\"\",\"\",[1]Application!$T797),IF([1]Application!$T776=\"\",\"\",[1]Application!$T776))","v":""},{"$f":"IF(CreditType=4,IF([1]Application!$X797=\"\",\"\",[1]Application!$X797),IF([1]Application!$X776=\"\",\"\",[1]Application!$X776))","v":""},null,null,0,true,null,null,null,null,null,null,null,null,null,null,{"$f":"'Site Control 3'!C90","v":0},{"$f":"'Site Control 3'!H90","v":0},{"$f":"'Site Control 3'!M90","v":0},{"$f":"'Site Control 3'!R90","v":0},{"$f":"'Site Control 3'!W90","v":0},{"$f":"'Site Control 3'!AB90","v":0}]
["g_PrimaryContact",null,"Company name of key entity in Contacts table",null,null,{"$f":"IF(CreditType=4,IF([1]Application!$J798=\"\",\"\",[1]Application!$J798),IF([1]Application!$J777=\"\",\"\",[1]Application!$J777))","v":""},{"$f":"IF(CreditType=4,IF([1]Application!$O798=\"\",\"\",[1]Application!$O798),IF([1]Application!$O777=\"\",\"\",[1]Application!$O777))","v":""},{"$f":"IF(CreditType=4,IF([1]Application!$T798=\"\",\"\",[1]Application!$T798),IF([1]Application!$T777=\"\",\"\",[1]Application!$T777))","v":""},{"$f":"IF(CreditType=4,IF([1]Application!$X798=\"\",\"\",[1]Application!$X798),IF([1]Application!$X777=\"\",\"\",[1]Application!$X777))","v":""},null,null,0,true,null,null,null,null,null,null,null,null,null,null,{"$f":"'Site Control 3'!C91","v":0},{"$f":"'Site Control 3'!H91","v":0},{"$f":"'Site Control 3'!M91","v":0},{"$f":"'Site Control 3'!R91","v":0},{"$f":"'Site Control 3'!W91","v":0},{"$f":"'Site Control 3'!AB91","v":0}]
["g_PrimaryMgmt",{"$f":"IF(CreditType=4,[1]Application!$AA$344,[1]Application!$AA$329)","v":0},"Company name of key entity in Contacts table",null,null,{"$f":"IF(CreditType=4,IF([1]Application!$J799=\"\",\"\",[1]Application!$J799),IF([1]Application!$J778=\"\",\"\",[1]Application!$J778))","v":""},{"$f":"IF(CreditType=4,IF([1]Application!$O799=\"\",\"\",[1]Application!$O799),IF([1]Application!$O778=\"\",\"\",[1]Application!$O778))","v":""},{"$f":"IF(CreditType=4,IF([1]Application!$T799=\"\",\"\",[1]Application!$T799),IF([1]Application!$T778=\"\",\"\",[1]Application!$T778))","v":""},{"$f":"IF(CreditType=4,IF([1]Application!$X799=\"\",\"\",[1]Application!$X799),IF([1]Application!$X778=\"\",\"\",[1]Application!$X778))","v":""},null,null,0,true,null,null,null,null,null,null,null,null,null,null,{"$f":"'Site Control 3'!C92","v":0},{"$f":"'Site Control 3'!H92","v":0},{"$f":"'Site Control 3'!M92","v":0},{"$f":"'Site Control 3'!R92","v":0},{"$f":"'Site Control 3'!W92","v":0},{"$f":"'Site Control 3'!AB92","v":0}]
["g_SecondMgmt",{"$f":"IF(CreditType=4,[1]Application!$P$352,[1]Application!$AA$337)","v":0},"Company name of key entity in Contacts table",null,null,{"$f":"IF(CreditType=4,IF([1]Application!$J800=\"\",\"\",[1]Application!$J800),IF([1]Application!$J779=\"\",\"\",[1]Application!$J779))","v":""},{"$f":"IF(CreditType=4,IF([1]Application!$O800=\"\",\"\",[1]Application!$O800),IF([1]Application!$O779=\"\",\"\",[1]Application!$O779))","v":""},{"$f":"IF(CreditType=4,IF([1]Application!$T800=\"\",\"\",[1]Application!$T800),IF([1]Application!$T779=\"\",\"\",[1]Application!$T779))","v":""},{"$f":"IF(CreditType=4,IF([1]Application!$X800=\"\",\"\",[1]Application!$X800),IF([1]Application!$X779=\"\",\"\",[1]Application!$X779))","v":""},null,null,0,true,null,null,null,null,null,null,null,null,null,null,{"$f":"'Site Control 4'!C80","v":0},{"$f":"'Site Control 4'!H80","v":0},{"$f":"'Site Control 4'!M80","v":0},{"$f":"'Site Control 4'!R80","v":0},{"$f":"'Site Control 4'!W80","v":0},{"$f":"'Site Control 4'!AB80","v":0}]
[null,"Sources Information",null,null,null,{"$f":"IF(CreditType=4,IF([1]Application!$J801=\"\",\"\",[1]Application!$J801),IF([1]Application!$J780=\"\",\"\",[1]Application!$J780))","v":""},{"$f":"IF(CreditType=4,IF([1]Application!$O801=\"\",\"\",[1]Application!$O801),IF([1]Application!$O780=\"\",\"\",[1]Application!$O780))","v":""},{"$f":"IF(CreditType=4,IF([1]Application!$T801=\"\",\"\",[1]Application!$T801),IF([1]Application!$T780=\"\",\"\",[1]Application!$T780))","v":""},{"$f":"IF(CreditType=4,IF([1]Application!$X801=\"\",\"\",[1]Application!$X801),IF([1]Application!$X780=\"\",\"\",[1]Application!$X780))","v":""},null,null,0,true,null,null,null,null,null,null,null,null,null,null,{"$f":"'Site Control 4'!C81","v":0},{"$f":"'Site Control 4'!H81","v":0},{"$f":"'Site Control 4'!M81","v":0},{"$f":"'Site Control 4'!R81","v":0},{"$f":"'Site Control 4'!W81","v":0},{"$f":"'Site Control 4'!AB81","v":0}]
["g_SourcesPermanent",null,"Sum of Sources[PermAmount] rounded down",null,null,{"$f":"IF(CreditType=4,IF([1]Application!$J802=\"\",\"\",[1]Application!$J802),IF([1]Application!$J781=\"\",\"\",[1]Application!$J781))","v":""},{"$f":"IF(CreditType=4,IF([1]Application!$O802=\"\",\"\",[1]Application!$O802),IF([1]Application!$O781=\"\",\"\",[1]Application!$O781))","v":""},{"$f":"IF(CreditType=4,IF([1]Application!$T802=\"\",\"\",[1]Application!$T802),IF([1]Application!$T781=\"\",\"\",[1]Application!$T781))","v":""},{"$f":"IF(CreditType=4,IF([1]Application!$X802=\"\",\"\",[1]Application!$X802),IF([1]Application!$X781=\"\",\"\",[1]Application!$X781))","v":""},null,null,0,true,null,null,null,null,null,null,null,null,null,null,{"$f":"'Site Control 4'!C82","v":0},{"$f":"'Site Control 4'!H82","v":0},{"$f":"'Site Control 4'!M82","v":0},{"$f":"'Site Control 4'!R82","v":0},{"$f":"'Site Control 4'!W82","v":0},{"$f":"'Site Control 4'!AB82","v":0}]
["g_SourcesConstruction",null,"Sum of Sources[ConAmount] rounded down",null,null,{"$f":"IF(CreditType=4,IF([1]Application!$J803=\"\",\"\",[1]Application!$J803),IF([1]Application!$J782=\"\",\"\",[1]Application!$J782))","v":""},{"$f":"IF(CreditType=4,IF([1]Application!$O803=\"\",\"\",[1]Application!$O803),IF([1]Application!$O782=\"\",\"\",[1]Application!$O782))","v":""},{"$f":"IF(CreditType=4,IF([1]Application!$T803=\"\",\"\",[1]Application!$T803),IF([1]Application!$T782=\"\",\"\",[1]Application!$T782))","v":""},{"$f":"IF(CreditType=4,IF([1]Application!$X803=\"\",\"\",[1]Application!$X803),IF([1]Application!$X782=\"\",\"\",[1]Application!$X782))","v":""},null,null,0,true,null,null,null,null,null,null,null,null,null,null,{"$f":"'Site Control 4'!C83","v":0},{"$f":"'Site Control 4'!H83","v":0},{"$f":"'Site Control 4'!M83","v":0},{"$f":"'Site Control 4'!R83","v":0},{"$f":"'Site Control 4'!W83","v":0},{"$f":"'Site Control 4'!AB83","v":0}]
["g_SourcesDebtService",null,"Sum of Sources[DebtService] rounded down",null,null,{"$f":"IF(CreditType=4,IF([1]Application!$J804=\"\",\"\",[1]Application!$J804),IF([1]Application!$J783=\"\",\"\",[1]Application!$J783))","v":""},{"$f":"IF(CreditType=4,IF([1]Application!$O804=\"\",\"\",[1]Application!$O804),IF([1]Application!$O783=\"\",\"\",[1]Application!$O783))","v":""},{"$f":"IF(CreditType=4,IF([1]Application!$T804=\"\",\"\",[1]Application!$T804),IF([1]Application!$T783=\"\",\"\",[1]Application!$T783))","v":""},{"$f":"IF(CreditType=4,IF([1]Application!$X804=\"\",\"\",[1]Application!$X804),IF([1]Application!$X783=\"\",\"\",[1]Application!$X783))","v":""},null,null,0,true,null,null,null,null,null,null,null,null,null,null,{"$f":"'Site Control 4'!C84","v":0},{"$f":"'Site Control 4'!H84","v":0},{"$f":"'Site Control 4'!M84","v":0},{"$f":"'Site Control 4'!R84","v":0},{"$f":"'Site Control 4'!W84","v":0},{"$f":"'Site Control 4'!AB84","v":0}]
["g_TaxExemptFinPerm",null,"Sum of perm sources labeled Tax-Exempt Loan",null,null,0,{"$f":"[1]Application!$O$786","v":0},0,0,0,0,0,null,null,null,null,null,null,null,null,null,null,null,{"$f":"'Site Control 4'!C85","v":0},{"$f":"'Site Control 4'!H85","v":0},{"$f":"'Site Control 4'!M85","v":0},{"$f":"'Site Control 4'!R85","v":0},{"$f":"'Site Control 4'!W85","v":0},{"$f":"'Site Control 4'!AB85","v":0}]
["g_TaxExemptFinCon",null,"Sum of construction sources labeled Tax-Exempt Loan",null,null,null,null,null,null,null,null,null,null,null,null,null,null,null,null,null,null,null,null,{"$f":"'Site Control 4'!C86","v":0},{"$f":"'Site Control 4'!H86","v":0},{"$f":"'Site Control 4'!M86","v":0},{"$f":"'Site Control 4'!R86","v":0},{"$f":"'Site Control 4'!W86","v":0},{"$f":"'Site Control 4'!AB86","v":0}]
["g_SourcesCommittedPerm",null,"Sum of committed permanent financing",null,null,null,null,null,null,null,null,null,null,null,null,null,null,null,null,null,null,null,null,{"$f":"'Site Control 4'!C87","v":0},{"$f":"'Site Control 4'!H87","v":0},{"$f":"'Site Control 4'!M87","v":0},{"$f":"'Site Control 4'!R87","v":0},{"$f":"'Site Control 4'!W87","v":0},{"$f":"'Site Control 4'!AB87","v":0}]
["g_SourcesCommittedCon",null,"Sum of committed construction period financing",null,null,null,null,null,null,null,null,null,null,null,null,null,null,null,null,null,null,null,null,{"$f":"'Site Control 4'!C88","v":0},{"$f":"'Site Control 4'!H88","v":0},{"$f":"'Site Control 4'!M88","v":0},{"$f":"'Site Control 4'!R88","v":0},{"$f":"'Site Control 4'!W88","v":0},{"$f":"'Site Control 4'!AB88","v":0}]
[null,"Cost Information",null,null,null,null,null,null,null,null,null,null,null,null,null,null,null,null,null,null,null,null,null,{"$f":"'Site Control 4'!C89","v":0},{"$f":"'Site Control 4'!H89","v":0},{"$f":"'Site Control 4'!M89","v":0},{"$f":"'Site Control 4'!R89","v":0},{"$f":"'Site Control 4'!W89","v":0},{"$f":"'Site Control 4'!AB89","v":0}]
["g_TotalProjectCost",{"$f":"IF(CreditType=4,'[1]Sources and Uses Budget'!$B$105,'[1]Sources and Uses Budget'!$B$104)","v":0},"Sum of Uses[Use] individually rounded down, excluding headings",null,null,null,null,null,null,null,null,null,null,null,null,null,null,null,null,null,null,null,null,{"$f":"'Site Control 4'!C90","v":0},{"$f":"'Site Control 4'!H90","v":0},{"$f":"'Site Control 4'!M90","v":0},{"$f":"'Site Control 4'!R90","v":0},{"$f":"'Site Control 4'!W90","v":0},{"$f":"'Site Control 4'!AB90","v":0}]
["g_TotalResidentialCost",{"$f":"IF(CreditType=4,'[1]Sources and Uses Budget'!$C$105,'[1]Sources and Uses Budget'!$C$104)","v":0},"Total Residential Project Cost from S&U",null,null,null,null,null,null,null,null,null,null,null,null,null,null,null,null,null,null,null,null,{"$f":"'Site Control 4'!C91","v":0},{"$f":"'Site Control 4'!H91","v":0},{"$f":"'Site Control 4'!M91","v":0},{"$f":"'Site Control 4'!R91","v":0},{"$f":"'Site Control 4'!W91","v":0},{"$f":"'Site Control 4'!AB91","v":0}]
["g_LandCost",{"$f":"'[1]Sources and Uses Budget'!$B$4","v":0},"Land Cost from Sources and Uses Budget",null,null,null,null,null,null,null,null,null,null,null,null,null,null,null,null,null,null,null,null,{"$f":"'Site Control 4'!C92","v":0},{"$f":"'Site Control 4'!H92","v":0},{"$f":"'Site Control 4'!M92","v":0},{"$f":"'Site Control 4'!R92","v":0},{"$f":"'Site Control 4'!W92","v":0},{"$f":"'Site Control 4'!AB92","v":0}]
["g_HoldingCost",{"$f":"'[1]Sources and Uses Budget'!$B$13","v":0},"Holding Cost from Sources and Uses Budget",null,null,null,null,null,null,null,null,null,null,null,null,null,null,null,null,null,null,null,null,{"$f":"'Site Control 5'!C80","v":0},{"$f":"'Site Control 5'!H80","v":0},{"$f":"'Site Control 5'!M80","v":0},{"$f":"'Site Control 5'!R80","v":0},{"$f":"'Site Control 5'!W80","v":0},{"$f":"'Site Control 5'!AB80","v":0}]
["g_ImprovementsValue",{"$f":"'[1]Sources and Uses Budget'!$B$9","v":0},"Existing Improvements Value from Sources and Uses Budget",null,null,null,null,null,null,null,null,null,null,null,null,null,null,null,null,null,null,null,null,{"$f":"'Site Control 5'!C81","v":0},{"$f":"'Site Control 5'!H81","v":0},{"$f":"'Site Control 5'!M81","v":0},{"$f":"'Site Control 5'!R81","v":0},{"$f":"'Site Control 5'!W81","v":0},{"$f":"'Site Control 5'!AB81","v":0}]
["g_CostRehab",{"$f":"'[1]Sources and Uses Budget'!$C$26","v":0},"Total Residential Rehabilitation Costs from S&U Budget",null,null,null,null,null,null,null,null,null,null,null,null,null,null,null,null,null,null,null,null,{"$f":"'Site Control 5'!C82","v":0},{"$f":"'Site Control 5'!H82","v":0},{"$f":"'Site Control 5'!M82","v":0},{"$f":"'Site Control 5'!R82","v":0},{"$f":"'Site Control 5'!W82","v":0},{"$f":"'Site Control 5'!AB82","v":0}]
["g_BasisEligible",null,"Sum of Uses[EligibleBasis] individually rounded down, excluding headings",null,null,null,null,null,null,null,null,null,null,null,null,null,null,null,null,null,null,null,null,{"$f":"'Site Control 5'!C83","v":0},{"$f":"'Site Control 5'!H83","v":0},{"$f":"'Site Control 5'!M83","v":0},{"$f":"'Site Control 5'!R83","v":0},{"$f":"'Site Control 5'!W83","v":0},{"$f":"'Site Control 5'!AB83","v":0}]
["g_BasisAcquisition",null,"Sum of Uses[Acquisition Basis] individually rounded down, excluding headings",null,null,null,null,null,null,null,null,null,null,null,null,null,null,null,null,null,null,null,null,{"$f":"'Site Control 5'!C84","v":0},{"$f":"'Site Control 5'!H84","v":0},{"$f":"'Site Control 5'!M84","v":0},{"$f":"'Site Control 5'!R84","v":0},{"$f":"'Site Control 5'!W84","v":0},{"$f":"'Site Control 5'!AB84","v":0}]
["g_CostCommercial",null,"Sum of Uses[Commercial Portion] individually rounded down, excluding headings",null,null,null,null,null,null,null,null,null,null,null,null,null,null,null,null,null,null,null,null,{"$f":"'Site Control 5'!C85","v":0},{"$f":"'Site Control 5'!H85","v":0},{"$f":"'Site Control 5'!M85","v":0},{"$f":"'Site Control 5'!R85","v":0},{"$f":"'Site Control 5'!W85","v":0},{"$f":"'Site Control 5'!AB85","v":0}]
["g_CostCommunityService",null,"Sum of Uses[CSF Portion] individually rounded down, excluding headings",null,null,null,null,null,null,null,null,null,null,null,null,null,null,null,null,null,null,null,null,{"$f":"'Site Control 5'!C86","v":0},{"$f":"'Site Control 5'!H86","v":0},{"$f":"'Site Control 5'!M86","v":0},{"$f":"'Site Control 5'!R86","v":0},{"$f":"'Site Control 5'!W86","v":0},{"$f":"'Site Control 5'!AB86","v":0}]
["g_CostResidential",null,"TotalProjectCost minus CostCommercial and CostCommunityService",null,null,null,null,null,null,null,null,null,null,null,null,null,null,null,null,null,null,null,null,{"$f":"'Site Control 5'!C87","v":0},{"$f":"'Site Control 5'!H87","v":0},{"$f":"'Site Control 5'!M87","v":0},{"$f":"'Site Control 5'!R87","v":0},{"$f":"'Site Control 5'!W87","v":0},{"$f":"'Site Control 5'!AB87","v":0}]
["g_CapitalizedOperatingReserve",null,"Capitalized Operating Reserve from Uses table",null,null,null,null,null,null,null,null,null,null,null,null,null,null,null,null,null,null,null,null,{"$f":"'Site Control 5'!C88","v":0},{"$f":"'Site Control 5'!H88","v":0},{"$f":"'Site Control 5'!M88","v":0},{"$f":"'Site Control 5'!R88","v":0},{"$f":"'Site Control 5'!W88","v":0},{"$f":"'Site Control 5'!AB88","v":0}]
["g_StatePrevailingWages",null,"Paying state prevailing wages",null,null,null,null,null,null,null,null,null,null,null,null,null,null,null,null,null,null,null,null,{"$f":"'Site Control 5'!C89","v":0},{"$f":"'Site Control 5'!H89","v":0},{"$f":"'Site Control 5'!M89","v":0},{"$f":"'Site Control 5'!R89","v":0},{"$f":"'Site Control 5'!W89","v":0},{"$f":"'Site Control 5'!AB89","v":0}]
["g_FederalDavisBaconActWages",null,"Paying federal Davis Bacon Act wages",null,null,null,null,null,null,null,null,null,null,null,null,null,null,null,null,null,null,null,null,{"$f":"'Site Control 5'!C90","v":0},{"$f":"'Site Control 5'!H90","v":0},{"$f":"'Site Control 5'!M90","v":0},{"$f":"'Site Control 5'!R90","v":0},{"$f":"'Site Control 5'!W90","v":0},{"$f":"'Site Control 5'!AB90","v":0}]
["g_TotalServicesBudget",{"$f":"'[1]15 Year Pro Forma'!$E$27","v":0},"Year 1 Services Cost from 15 Year Pro Forma",null,null,null,null,null,null,null,null,null,null,null,null,null,null,null,null,null,null,null,null,{"$f":"'Site Control 5'!C91","v":0},{"$f":"'Site Control 5'!H91","v":0},{"$f":"'Site Control 5'!M91","v":0},{"$f":"'Site Control 5'!R91","v":0},{"$f":"'Site Control 5'!W91","v":0},{"$f":"'Site Control 5'!AB91","v":0}]
[null,"Square Footage Information",null,null,null,null,null,null,null,null,null,null,null,null,null,null,null,null,null,null,null,null,null,{"$f":"'Site Control 5'!C92","v":0},{"$f":"'Site Control 5'!H92","v":0},{"$f":"'Site Control 5'!M92","v":0},{"$f":"'Site Control 5'!R92","v":0},{"$f":"'Site Control 5'!W92","v":0},{"$f":"'Site Control 5'!AB92","v":0}]
["g_SqFtTotal",null,"Total of all square footages",null,null,null,null,null,null,null,null,null,null,null,null,null,null,null,null,null,null,null,null,{"$f":"'Site Control 1'!C167","v":0},0,0,0,0,0]
["g_SqFtResidential",null,"Sumproduce of Quantity and Square Feet in UnitsTbl"]
["g_SqFtLowIncome",null,"Includes only units with Gen AMI <= 80%"]
["g_SqFtExemptUnits",null,"Includes only units with Exempt Unit = TRUE"]
["g_SqFtCommon",null,"Exempt common area square footage"]
["g_SqFtCommunity",null,"Exempt community area square footage"]
["g_SqFtStructuredParking",null,"Structured parking square footage"]
["g_SqFtCommercial",null,"Commercial space square footage"]
["g_SqFtCommunityService",null,"Community service facility square footage"]
["g_SqFtSite",null,"Site size in acres * 43560"]
[null,"Unit Information"]
["g_UnitsRental",{"$f":"IF(CreditType=4,[1]Application!$AG$448,[1]Application!$AG$440)","v":0},"total number of units excluding managers units"]
["g_UnitsTotal",{"$f":"IF(CreditType=4,[1]Application!$AG$446,[1]Application!$AG$438)","v":0},"total of all units - low income, manager, and market-rate"]
["g_UnitsTaxCredit",{"$f":"IF(CreditType=4,[1]Application!$G$761+[1]Application!$O$785,[1]Application!$G$738+[1]Application!$O$764)","v":0},"UnitsLowIncome plus UnitsExempt"]
["g_UnitsNonTaxCredit",{"$f":"IF(CreditType=4,[1]Application!$O$7805,[1]Application!$O$784)","v":0},"UnitsResidential minus UnitsTaxCredit ( market rate)"]
["g_UnitsExempt",{"$f":"IF(CreditType=4,[1]Application!$O$785,[1]Application!$O$764)","v":0},"Sum of Exempt Units (manager units)",null,{"$f":"IF(CreditType=4,[1]Application!$Y$211,ROUNDUP(([1]Application!$AE$215*[1]Application!$AG$433),0))","v":0}]
["g_UnitsSubsidized",null,"Sum of Residential Unit with Contract Rent"]
["g_UnitsLowIncome",{"$f":"IF(CreditType=4,[1]Application!$G$761,[1]Application!$G$738)","v":0},"Sum of Res. Units at/below 80% AMI"]
["g_UnitsSpecialNeeds",{"$f":"SUM(UnitsTbl[Count SpN Units])","v":0},"Sum of Special Needs units"]
["g_UnitsSpecialNeedsEapp",{"$f":"IF(CreditType=4,[1]Application!$Q$212,[1]Application!$S$215)","v":0},"Count of SpN units entered by applicant in e-app"]
["g_UnitsPsh",null,"Sum of Permanent Supportive Housing Units"]
["g_UnitsHomeless",{"$f":"IF(CreditType=4,[1]Application!$W$473,[1]Application!$W$468)","v":0},"Sum of Homeless Housing Units"]
["g_UnitsHomeOwnership",null,"Sum of Home Ownership units"]
["g_UnitsAgeRestricted",null,"Sum of Age Restricted units"]
["g_AmiAvgLowIncomeUnits",null,"Sum of Rental AMIs under 80% divided by UnitsLowIncome"]
["g_UnitsDemolished",null,"Count of existing units to be demolished"]
["g_UnitsRetained",null,"Count of existing units to be retained"]
["g_Units0",{"$f":"SUMIFS(UnitsTbl[Number of Units],UnitsTbl[Bedroom Type],\"SRO/Studio\",UnitsTbl[Market Rate],\"\")","v":0},"Count all low-income studio units"]
["g_Units1",{"$f":"SUMIFS(UnitsTbl[Number of Units],UnitsTbl[Bedroom Type],\"1 Bedroom\",UnitsTbl[Market Rate],\"\")","v":0},"Count all low-income 1-BR units"]
["g_Units2",{"$f":"SUMIFS(UnitsTbl[Number of Units],UnitsTbl[Bedroom Type],\"2 Bedrooms\",UnitsTbl[Market Rate],\"\")","v":0},"Count all low-income 2-BR units"]
["g_Units3",{"$f":"SUMIFS(UnitsTbl[Number of Units],UnitsTbl[Bedroom Type],\"3 Bedrooms\",UnitsTbl[Market Rate],\"\")","v":0},"Count all low-income 3-BR units"]
["g_Units4",{"$f":"SUMIFS(UnitsTbl[Number of Units],UnitsTbl[Bedroom Type],\"4 Bedrooms\",UnitsTbl[Market Rate],\"\")","v":0},"Count all low-income 4-BR units"]
["g_Units5",{"$f":"SUMIFS(UnitsTbl[Number of Units],UnitsTbl[Bedroom Type],\"5 Bedrooms\",UnitsTbl[Market Rate],\"\")","v":0},"Count all low-income 5-BR units"]
["g_SpNe0",{"$f":"SUMIFS(UnitsTbl[Count SpN Units],UnitsTbl[Bedroom Type],\"SRO/Studio\")","v":0},"Count of Special Needs studio units"]
["g_SpNe1",{"$f":"SUMIFS(UnitsTbl[Count SpN Units],UnitsTbl[Bedroom Type],\"1 Bedroom\")","v":0},"Count of Special Needs 1-BR units"]
["g_SpNe2",{"$f":"SUMIFS(UnitsTbl[Count SpN Units],UnitsTbl[Bedroom Type],\"2 Bedrooms\")","v":0},"Count of Special Needs 2-BR units"]
["g_SpNe3",{"$f":"SUMIFS(UnitsTbl[Count SpN Units],UnitsTbl[Bedroom Type],\"3 Bedrooms\")","v":0},"Count of Special Needs 3-BR units"]
["g_SpNe4",{"$f":"SUMIFS(UnitsTbl[Count SpN Units],UnitsTbl[Bedroom Type],\"4 Bedrooms\")","v":0},"Count of Special Needs 4-BR units"]
["g_SpNe5",{"$f":"SUMIFS(UnitsTbl[Count SpN Units],UnitsTbl[Bedroom Type],\"5 Bedrooms\")","v":0},"Count of Special Needs 5-BR units"]
["g_MktUnits0",{"$f":"SUMIFS(UnitsTbl[Number of Units],UnitsTbl[Market Rate],TRUE,UnitsTbl[Bedroom Type],\"SRO/Studio\")","v":0},"Count of Market Rate studio units"]
["g_MktUnits1",{"$f":"SUMIFS(UnitsTbl[Number of Units],UnitsTbl[Market Rate],TRUE,UnitsTbl[Bedroom Type],\"1 Bedroom\")","v":0},"Count of Market Rate 1-BR units"]
["g_MktUnits2",{"$f":"SUMIFS(UnitsTbl[Number of Units],UnitsTbl[Market Rate],TRUE,UnitsTbl[Bedroom Type],\"2 Bedrooms\")","v":0},"Count of Market Rate 2-BR units"]
["g_MktUnits3",{"$f":"SUMIFS(UnitsTbl[Number of Units],UnitsTbl[Market Rate],TRUE,UnitsTbl[Bedroom Type],\"3 Bedrooms\")","v":0},"Count of Market Rate 3-BR units"]
["g_MktUnits4",{"$f":"SUMIFS(UnitsTbl[Number of Units],UnitsTbl[Market Rate],TRUE,UnitsTbl[Bedroom Type],\"4 Bedrooms\")","v":0},"Count of Market Rate 4-BR units"]
["g_MktUnits5",{"$f":"SUMIFS(UnitsTbl[Number of Units],UnitsTbl[Market Rate],TRUE,UnitsTbl[Bedroom Type],\"5 Bedrooms\")","v":0},"Count of Market Rate 5-BR units"]
[null,"Product Information"]
["g_BuildingsResidential",null,"Quantity of residential buildings in the project"]
["g_BuildingsNonResidential",null,"Quantity of non-residential buildings in the project"]
["g_BuildingStories",{"$f":"IF(CreditType=4,\nIF(AND([1]Application!$AD$420>0,[1]Application!$AD$421>0),MAX([1]Application!$AD$420,[1]Application!$AD$421),IF([1]Application!$AD$420>0,[1]Application!$AD$420,IF([1]Application!$AD$421>0,[1]Application!$AD$421,1))),\n\nIF(AND([1]Application!$AD$412>0,[1]Application!$AD$413>0),MAX([1]Application!$AD$412,[1]Application!$AD$413),IF([1]Application!$AD$412>0,[1]Application!$AD$412,IF([1]Application!$AD$413>0,[1]Application!$AD$413,1))))","v":1},"Number of stories in buildings"]
["g_ParkingCount",null,"Parking spaces provided on site"]
["g_BedroomsTotal",{"$f":"SUM(((B95+B107)*1),((B96+B108)*1),((B97+B109)*2),((B98+B110)*3),((B99+B111)*4),((B100+B112)*5))","v":0},"Sum of unit bedrooms counting 1 per studio"]
["g_BedroomsSpecialNeeds",{"$f":"SUM((B101*1),(B102*1),(B103*2),(B104*3),(B105*4),(B106*5))","v":0},"Same calculation as above but requiring Special Needs designation"]
["g_LaundryWashersCount",null,"Community washing machines available for tenant use"]
["g_LaundryDryersCount",null,"Community clothes dryers available fore tenant use"]
["g_eAppBedroomsSpN",{"$f":"IF(CreditType=4,[1]Application!$AG$764,[1]Application!$AG$741)","v":0},"Number of Special Needs bedrooms listed in e-app"]
[null,"Cash Flow Information"]
["g_ResidentialIncomeMonthly",null,"Monthly residential rental income"]
["g_ContractRentIncomeMonthly",null,"Monthly rental subsidy income"]
["g_GrossPotentialIncome",null,"All income, excluding in-kind services, projected in Year 1"]
["g_TotalAnnualIncome",null,"All income projected in Year 1 after vacancy"]
["g_TotalAnnualExpenses",null,"Sum of Annual Expenses from ExpenseTbl"]
["g_AnnExpensesForTcacMin",null,"Sum of Annual Expenses that qualify towards TCAC minimum expenses"]
["g_AnnualReplacementReserves",null,"Annual Replacement Reserve funding from Expenese table"]
["g_AnnRepResPerUnit",null,"Annual Replacement Reserve per unit"]
["g_NetOperatingIncome",null,"Net Operating Income in Year 1"]
["g_TotalDebtService",null,"Total debt service in Year 1"]
["g_Lowest15YearCashFlow",null,"Minimum of first 15 years of cash flow after debt service"]
[null,"County Data"]
["tcd_RentLimits",null,"Year rent limits were published"]
["tcd_BasisLimits9",null,"Year basis limits were published"]
["tcd_BasisLimits4",null,"Year basis limits were published"]
["tcd_MinAnExp",null,"Year minimum operating expenses were published"]
["tcd_Version",null,"The version number for this file"]
[null,"Tax Credits"]
["t_FederalCreditsAnnual",null,"Maximum allowed Federal tax credits"]
["t_StateCreditsTotal",null,"Maximum allowed State tax credits"]
[null,"Developer Fee"]
["t_DeveloperFeeLimit",null,"Overall limit on developer fee"]
["t_MinDevFeeDeferral",null,"Minimum required deferral/contribution of developer fee"]
["t_DeveloperFeeLimitCapitalized",null,"Maximum allowable developer fee payments from sources"]
["t_TotalDeveloperFee",{"$f":"IF(CreditType=4,'[1]Sources and Uses Budget'!$B$104,'[1]Sources and Uses Budget'!$B$103)","v":0},"Total sum of all Developer fee"]
[null,"Threshold Basis Limits"]
["t_ThresholdBasisLimit"]
["t_UnAdjustedThresholdBasisLimit"]
["t_TblDeeperTargetingBoosts"]
[null,"Compliance"]
["t_HighCostPercentage"]
["t_ApplicableFraction"]
["t_TaxCreditUnits"]
["t_LowIncomeUnits"]
["t_MinOperatingExpenses"]
[null,"Application Characteristics"]
["t_CreditType",{"$f":"[1]Application!$AS$1","v":9}]
["t_SubmittalType"]
["t_IsBipocJv"]
["t_Is4percent"]
["t_Is9percent"]
["t_ResyndOriginalNumber1",{"$f":"IF(CreditType=4,CONCATENATE(\"CA-\",[1]Application!$S$385,\"-\",[1]Application!$V$385),CONCATENATE(\"CA-\",[1]Application!$S$378,\"-\",[1]Application!$V$378))","v":"CA--"}]
["t_ResyndOriginalNumber2",{"$f":"IF(CreditType=4,CONCATENATE(\"CA-\",[1]Application!$AD$385,\"-\",[1]Application!$AG$385),CONCATENATE(\"CA-\",[1]Application!$AD$378,\"-\",[1]Application!$AG$378))","v":"CA--"}]
["t_Is9snBothBoost"]
["t_IsLowValueRehab"]
["t_IsFarmworker"]
["t_Isg1B"]
["t_Isg1A"]
["t_IsNewConstruction",{"$f":"IF(CreditType=4,[1]Application!$M364=\"Yes\",[1]Application!$M357=\"Yes\")","v":false}]
["t_IsAdaptiveReuse",{"$f":"IF(CreditType=4,[1]Application!$M365=\"Yes\",[1]Application!$M358=\"Yes\")","v":false}]
["t_IsRehabOnly",{"$f":"IF(CreditType=4,[1]Application!$M366=\"Yes\",[1]Application!$M359=\"Yes\")","v":false}]
["t_IsAcqAndRehab",{"$f":"IF(CreditType=4,[1]Application!$M367=\"Yes\",[1]Application!$M360=\"Yes\")","v":false}]
["t_IsBoosted"]
["t_IsBoostedPartial"]
["t_StateCreditType"]
["t_FederalCreditElection"]
["t_MaximumElectionAMI"]
["t_HousingType",{"$f":"IF(CreditType=4,[1]Application!$D$211,[1]Application!$D$214)","v":"(select one)"}]
["t_RequiresSecondaryHousingType",{"$f":"IF(CreditType=4,AND(B181=\"Special Needs\",[1]Application!$T$212<75%),AND(B181=\"Special Needs\",([1]Application!$V$215<75%)))","v":false}]
["t_SecondaryHousingType",{"$f":"IF(CreditType=4,[1]Application!$D$214,[1]Application!$E$217)","v":"N/A"}]
["t_SetAside",{"$f":"IF(CreditType=4,\"N/A\",[1]Application!$D$211)","v":"N/A"}]
["t_SpecialNeedsPercentage",{"$f":"IF(CreditType=4,[1]Application!$T$212,[1]Application!$V$215)","v":""}]
["t_AppStage"]
["t_FederalCreditFactor",{"$f":"IF(CreditType=4,'[1]Basis & Credits'!$AB$50,'[1]Basis & Credits'!$AB$49)","v":0}]
["t_StateCreditFactor",{"$f":"IF(CreditType=4,'[1]Basis & Credits'!$AB$72,'[1]Basis & Credits'!$AB$70)","v":0}]
[null,"Points Info"]
["t_HasServiceCoordinator",{"$f":"IF(CreditType=4,OR('[1]Points System'!$C$394=\"Yes\",'[1]Points System'!$C$455=\"Yes\"),OR('[1]Points System'!$C$389=\"Yes\",'[1]Points System'!$C$454=\"Yes\"))","v":false}]
["t_HasCaseManager",{"$f":"IF(CreditType=4,'[1]Points System'!$C$443=\"Yes\",'[1]Points System'!$C$442=\"Yes\")","v":false}]
["t_HasOtherServiceSpecialist",{"$f":"IF(CreditType=4,OR('[1]Points System'!$C$402=\"Yes\",'[1]Points System'!$C$455=\"Yes\"),OR('[1]Points System'!$C$454=\"Yes\",'[1]Points System'!$C$399=\"Yes\"))","v":false}]
["t_PointsAddlHousingType",{"$f":"IF(CreditType=4,OR('[1]Points System'!$B$26=\"Yes\",'[1]Points System'!$B$187=\"Large Family\",'[1]Points System'!$B$187=\"Special Needs\",'[1]Points System'!$B$187=\"Senior\",'[1]Points System'!$B$187=\"SRO\"),'[1]Points System'!$AK$68>0)","v":false}]
[]
["t_AvgAMITarget",{"$f":"IF(CreditType=4,[1]Application!$AC$761,[1]Application!$AH$738)","v":0}]

{"sheet":"Lists","index":15,"n_rows":44,"n_cols":46,"rows_kept":44,"cut":false,"hidden":true,"merged":[]}
["Don't delete or insert columns or rows",null,null,null,null,null,"ü","IsTrue",null,null,null,"M",{"$f":"ROW('Site Control 1'!M50)","v":50},{"$f":"ROW('Site Control 1'!M53)","v":53},null,null,null,"ProviderContacts",null,null,null,null,null,null,null,null,null,"ListProviders",null,"ListReferences",null,"GPs","Parent Co","ParentOrNA","LSQoptions","Type",null,"ListManagementCo",null,null,null,"SC1Parcels","SC2Parcels","SC3Parcels","SC4Parcels","SC5Parcels"]
[null,null,null,null,null,null,"û","IsFalse","Row Starts",null,null,1,{"$f":"IFERROR(INDIRECT(\"'Site Control \"&$L2&\"'!\"&$L$1&M$1),0)","v":0},{"$f":"IFERROR(INDIRECT(\"'Site Control \"&$L2&\"'!\"&$L$1&N$1),0)","v":0},null,null,null,"Company Name","Contact","Title","Email","Phone","Provider","R-Provider","Reference","R-Reference",null,null,null,null,null,{"$f":"IF(CreditType=4,[1]Application!$M$243,[1]Application!$M$245)","v":0},{"$f":"IF(CreditType=4,[1]Application!$AA$248,[1]Application!$AA$251)","v":0},{"$f":"IF(OR(GeneralPartners[[#This Row],[Parent Co]]=\"\",GeneralPartners[[#This Row],[Parent Co]]=0),\"No parent company entered\",GeneralPartners[[#This Row],[Parent Co]])","v":"No parent company entered"},{"$f":"IF(CreditType=4,[1]Application!$M$243,[1]Application!$M$245)","v":0},"General Partner",null,{"$f":"IF(CreditType=4,[1]Application!$AA$335,[1]Application!$AA$329)","v":0},null,null,null,{"$f":"IF(Parcels!$E$3=1,Parcels!$A$3,\"\")","v":0},{"$f":"IF(Parcels!$E3=2,Parcels!$A3,\"\")","v":""},{"$f":"IF(Parcels!$E3=3,Parcels!$A3,\"\")","v":""},{"$f":"IF(Parcels!$E3=4,Parcels!$A3,\"\")","v":""},{"$f":"IF(Parcels!$E3=5,Parcels!$A3,\"\")","v":""}]
[null,null,null,null,null,null,null,null,"Column",null,null,2,{"$f":"IFERROR(INDIRECT(\"'Site Control \"&$L3&\"'!\"&$L$1&M$1),0)","v":0},{"$f":"IFERROR(INDIRECT(\"'Site Control \"&$L3&\"'!\"&$L$1&N$1),0)","v":0},null,null,null,{"$f":"IFERROR(Services!B47,\"\")","v":0},{"$f":"IFERROR(Services!L47,\"\")","v":0},{"$f":"IFERROR(Services!T47,\"\")","v":0},{"$f":"IFERROR(Services!Y47,\"\")","v":0},{"$f":"IFERROR(Services!AM47,\"\")","v":0},{"$f":"IF(Services!AS47=\"Provider\",1,0)","v":0},{"$f":"W3*SUM($W$3:W3)","v":0},{"$f":"IF(Services!AS47=\"Reference\",1,0)","v":0},{"$f":"Y3*SUM($Y$3:Y3)","v":0},null,{"$f":"IFERROR(INDEX(ProviderContactsTbl[Company Name],MATCH(ROW(1:1),ProviderContactsTbl[R-Provider],0)),\"\")","v":""},null,{"$f":"IFERROR(INDEX(ProviderContactsTbl[Company Name],MATCH(ROW(1:1),ProviderContactsTbl[R-Reference],0)),\"\")","v":""},null,{"$f":"IF(CreditType=4,[1]Application!$M$251,[1]Application!$M$253)","v":0},{"$f":"IF(CreditType=4,[1]Application!$AA$256,[1]Application!$AA$259)","v":0},{"$f":"IF(OR(GeneralPartners[[#This Row],[Parent Co]]=\"\",GeneralPartners[[#This Row],[Parent Co]]=0),\"No parent company entered\",GeneralPartners[[#This Row],[Parent Co]])","v":"No parent company entered"},{"$f":"IF(CreditType=4,[1]Application!$M$251,[1]Application!$M$253)","v":0},"General Partner",null,{"$f":"IF(CreditType=4,IF([1]Application!$P$343=\"\",\"\",[1]Application!$P$343),IF([1]Application!$AA$337=\"\",\"\",[1]Application!$AA$337))","v":""},null,null,null,{"$f":"IF(Parcels!E4=1,Parcels!A4,\"\")","v":""},{"$f":"IF(Parcels!$E4=2,Parcels!$A4,\"\")","v":0},{"$f":"IF(Parcels!$E4=3,Parcels!$A4,\"\")","v":""},{"$f":"IF(Parcels!$E4=4,Parcels!$A4,\"\")","v":""},{"$f":"IF(Parcels!$E4=5,Parcels!$A4,\"\")","v":""}]
[null,null,null,null,null,null,null,"YesNoNa",null,null,null,3,{"$f":"IFERROR(INDIRECT(\"'Site Control \"&$L4&\"'!\"&$L$1&M$1),0)","v":0},{"$f":"IFERROR(INDIRECT(\"'Site Control \"&$L4&\"'!\"&$L$1&N$1),0)","v":0},null,null,null,{"$f":"IFERROR(Services!B48,\"\")","v":0},{"$f":"IFERROR(Services!L48,\"\")","v":0},{"$f":"IFERROR(Services!T48,\"\")","v":0},{"$f":"IFERROR(Services!Y48,\"\")","v":0},{"$f":"IFERROR(Services!AM48,\"\")","v":0},{"$f":"IF(Services!AS48=\"Provider\",1,0)","v":0},{"$f":"W4*SUM($W$3:W4)","v":0},{"$f":"IF(Services!AS48=\"Reference\",1,0)","v":0},{"$f":"Y4*SUM($Y$3:Y4)","v":0},null,{"$f":"IFERROR(INDEX(ProviderContactsTbl[Company Name],MATCH(ROW(2:2),ProviderContactsTbl[R-Provider],0)),\"\")","v":""},null,{"$f":"IFERROR(INDEX(ProviderContactsTbl[Company Name],MATCH(ROW(2:2),ProviderContactsTbl[R-Reference],0)),\"\")","v":""},null,{"$f":"IF(CreditType=4,[1]Application!$M$259,[1]Application!$M$261)","v":0},{"$f":"IF(CreditType=4,[1]Application!$AA$264,[1]Application!$AA$267)","v":0},{"$f":"IF(OR(GeneralPartners[[#This Row],[Parent Co]]=\"\",GeneralPartners[[#This Row],[Parent Co]]=0),\"No parent company entered\",GeneralPartners[[#This Row],[Parent Co]])","v":"No parent company entered"},{"$f":"IF(CreditType=4,[1]Application!$M$259,[1]Application!$M$261)","v":0},"General Partner",null,null,null,null,null,{"$f":"IF(Parcels!E5=1,Parcels!A5,\"\")","v":""},{"$f":"IF(Parcels!$E5=2,Parcels!$A5,\"\")","v":""},{"$f":"IF(Parcels!$E5=3,Parcels!$A5,\"\")","v":0},{"$f":"IF(Parcels!$E5=4,Parcels!$A5,\"\")","v":""},{"$f":"IF(Parcels!$E5=5,Parcels!$A5,\"\")","v":""}]
[null,null,null,null,null,null,null,"Yes",null,null,null,4,{"$f":"IFERROR(INDIRECT(\"'Site Control \"&$L5&\"'!\"&$L$1&M$1),0)","v":0},{"$f":"IFERROR(INDIRECT(\"'Site Control \"&$L5&\"'!\"&$L$1&N$1),0)","v":0},null,null,null,{"$f":"IFERROR(Services!B49,\"\")","v":0},{"$f":"IFERROR(Services!L49,\"\")","v":0},{"$f":"IFERROR(Services!T49,\"\")","v":0},{"$f":"IFERROR(Services!Y49,\"\")","v":0},{"$f":"IFERROR(Services!AM49,\"\")","v":0},{"$f":"IF(Services!AS49=\"Provider\",1,0)","v":0},{"$f":"W5*SUM($W$3:W5)","v":0},{"$f":"IF(Services!AS49=\"Reference\",1,0)","v":0},{"$f":"Y5*SUM($Y$3:Y5)","v":0},null,{"$f":"IFERROR(INDEX(ProviderContactsTbl[Company Name],MATCH(ROW(3:3),ProviderContactsTbl[R-Provider],0)),\"\")","v":""},null,{"$f":"IFERROR(INDEX(ProviderContactsTbl[Company Name],MATCH(ROW(3:3),ProviderContactsTbl[R-Reference],0)),\"\")","v":""},null,{"$f":"_xlfn.CONCAT(IF(CreditType=4,[1]Application!$H$287,[1]Application!$H$289)&\"- Tribal Applicants Only\")","v":"- Tribal Applicants Only"},null,{"$f":"IF(OR(GeneralPartners[[#This Row],[Parent Co]]=\"\",GeneralPartners[[#This Row],[Parent Co]]=0),\"N/A - Developer Entity\",GeneralPartners[[#This Row],[Parent Co]])","v":"N/A - Developer Entity"},{"$f":"IF(CreditType=4,[1]Application!$H$286,[1]Application!$H$289)","v":0},"Developer",null,null,null,null,null,{"$f":"IF(Parcels!E6=1,Parcels!A6,\"\")","v":""},{"$f":"IF(Parcels!$E6=2,Parcels!$A6,\"\")","v":""},{"$f":"IF(Parcels!$E6=3,Parcels!$A6,\"\")","v":""},{"$f":"IF(Parcels!$E6=4,Parcels!$A6,\"\")","v":0},{"$f":"IF(Parcels!$E6=5,Parcels!$A6,\"\")","v":""}]
[null,null,null,null,null,null,null,"No",null,null,null,5,{"$f":"IFERROR(INDIRECT(\"'Site Control \"&$L6&\"'!\"&$L$1&M$1),0)","v":0},{"$f":"IFERROR(INDIRECT(\"'Site Control \"&$L6&\"'!\"&$L$1&N$1),0)","v":0},null,null,null,{"$f":"IFERROR(Services!B50,\"\")","v":0},{"$f":"IFERROR(Services!L50,\"\")","v":0},{"$f":"IFERROR(Services!T50,\"\")","v":0},{"$f":"IFERROR(Services!Y50,\"\")","v":0},{"$f":"IFERROR(Services!AM50,\"\")","v":0},{"$f":"IF(Services!AS50=\"Provider\",1,0)","v":0},{"$f":"W6*SUM($W$3:W6)","v":0},{"$f":"IF(Services!AS50=\"Reference\",1,0)","v":0},{"$f":"Y6*SUM($Y$3:Y6)","v":0},null,{"$f":"IFERROR(INDEX(ProviderContactsTbl[Company Name],MATCH(ROW(4:4),ProviderContactsTbl[R-Provider],0)),\"\")","v":""},null,{"$f":"IFERROR(INDEX(ProviderContactsTbl[Company Name],MATCH(ROW(4:4),ProviderContactsTbl[R-Reference],0)),\"\")","v":""},null,null,null,null,{"$f":"INDEX(val,MATCH(\"g_TCACApplicant\",ref,0))","v":0},"Applicant",null,null,null,null,null,{"$f":"IF(Parcels!E7=1,Parcels!A7,\"\")","v":""},{"$f":"IF(Parcels!$E7=2,Parcels!$A7,\"\")","v":""},{"$f":"IF(Parcels!$E7=3,Parcels!$A7,\"\")","v":""},{"$f":"IF(Parcels!$E7=4,Parcels!$A7,\"\")","v":""},{"$f":"IF(Parcels!$E7=5,Parcels!$A7,\"\")","v":0}]
[null,null,null,null,null,null,null,"NA",null,null,null,"SiteControlTotalCost",{"$f":"SUM(M2:M6)","v":0},{"$f":"SUM(N2:N6)","v":0},"HoldingTotalCost",null,null,{"$f":"IFERROR(Services!B51,\"\")","v":0},{"$f":"IFERROR(Services!L51,\"\")","v":0},{"$f":"IFERROR(Services!T51,\"\")","v":0},{"$f":"IFERROR(Services!Y51,\"\")","v":0},{"$f":"IFERROR(Services!AM51,\"\")","v":0},{"$f":"IF(Services!AS51=\"Provider\",1,0)","v":0},{"$f":"W7*SUM($W$3:W7)","v":0},{"$f":"IF(Services!AS51=\"Reference\",1,0)","v":0},{"$f":"Y7*SUM($Y$3:Y7)","v":0},null,{"$f":"IFERROR(INDEX(ProviderContactsTbl[Company Name],MATCH(ROW(5:5),ProviderContactsTbl[R-Provider],0)),\"\")","v":""},null,{"$f":"IFERROR(INDEX(ProviderContactsTbl[Company Name],MATCH(ROW(5:5),ProviderContactsTbl[R-Reference],0)),\"\")","v":""},null,null,null,null,null,null,null,null,null,null,null,{"$f":"IF(Parcels!E8=1,Parcels!A8,\"\")","v":""},{"$f":"IF(Parcels!$E8=2,Parcels!$A8,\"\")","v":""},{"$f":"IF(Parcels!$E8=3,Parcels!$A8,\"\")","v":""},{"$f":"IF(Parcels!$E8=4,Parcels!$A8,\"\")","v":""},{"$f":"IF(Parcels!$E8=5,Parcels!$A8,\"\")","v":""}]
[null,null,null,null,null,null,null,null,null,null,null,null,null,null,null,null,null,{"$f":"IFERROR(Services!B52,\"\")","v":0},{"$f":"IFERROR(Services!L52,\"\")","v":0},{"$f":"IFERROR(Services!T52,\"\")","v":0},{"$f":"IFERROR(Services!Y52,\"\")","v":0},{"$f":"IFERROR(Services!AM52,\"\")","v":0},{"$f":"IF(Services!AS52=\"Provider\",1,0)","v":0},{"$f":"W8*SUM($W$3:W8)","v":0},{"$f":"IF(Services!AS52=\"Reference\",1,0)","v":0},{"$f":"Y8*SUM($Y$3:Y8)","v":0},null,{"$f":"IFERROR(INDEX(ProviderContactsTbl[Company Name],MATCH(ROW(6:6),ProviderContactsTbl[R-Provider],0)),\"\")","v":""},null,{"$f":"IFERROR(INDEX(ProviderContactsTbl[Company Name],MATCH(ROW(6:6),ProviderContactsTbl[R-Reference],0)),\"\")","v":""},null,null,null,null,null,null,null,null,null,null,null,{"$f":"IF(Parcels!E9=1,Parcels!A9,\"\")","v":""},{"$f":"IF(Parcels!$E9=2,Parcels!$A9,\"\")","v":""},{"$f":"IF(Parcels!$E9=3,Parcels!$A9,\"\")","v":""},{"$f":"IF(Parcels!$E9=4,Parcels!$A9,\"\")","v":""},{"$f":"IF(Parcels!$E9=5,Parcels!$A9,\"\")","v":""}]
[null,null,null,null,null,null,null,"ListAgreementTypes","ListAppraisalRequired",null,null,null,null,null,null,null,null,{"$f":"IFERROR(Services!B53,\"\")","v":0},{"$f":"IFERROR(Services!L53,\"\")","v":0},{"$f":"IFERROR(Services!T53,\"\")","v":0},{"$f":"IFERROR(Services!Y53,\"\")","v":0},{"$f":"IFERROR(Services!AM53,\"\")","v":0},{"$f":"IF(Services!AS53=\"Provider\",1,0)","v":0},{"$f":"W9*SUM($W$3:W9)","v":0},{"$f":"IF(Services!AS53=\"Reference\",1,0)","v":0},{"$f":"Y9*SUM($Y$3:Y9)","v":0},null,null,null,null,null,null,null,null,null,null,null,null,null,null,null,{"$f":"IF(Parcels!E10=1,Parcels!A10,\"\")","v":""},{"$f":"IF(Parcels!$E10=2,Parcels!$A10,\"\")","v":""},{"$f":"IF(Parcels!$E10=3,Parcels!$A10,\"\")","v":""},{"$f":"IF(Parcels!$E10=4,Parcels!$A10,\"\")","v":""},{"$f":"IF(Parcels!$E10=5,Parcels!$A10,\"\")","v":""}]
[null,null,null,null,null,null,null,"Grant Deed",false,null,null,null,null,null,null,null,null,{"$f":"IFERROR(Services!B54,\"\")","v":0},{"$f":"IFERROR(Services!L54,\"\")","v":0},{"$f":"IFERROR(Services!T54,\"\")","v":0},{"$f":"IFERROR(Services!Y54,\"\")","v":0},{"$f":"IFERROR(Services!AM54,\"\")","v":0},{"$f":"IF(Services!AS54=\"Provider\",1,0)","v":0},{"$f":"W10*SUM($W$3:W10)","v":0},{"$f":"IF(Services!AS54=\"Reference\",1,0)","v":0},{"$f":"Y10*SUM($Y$3:Y10)","v":0},null,null,null,null,null,null,null,null,null,null,null,null,null,null,null,{"$f":"IF(Parcels!E11=1,Parcels!A11,\"\")","v":""},{"$f":"IF(Parcels!$E11=2,Parcels!$A11,\"\")","v":""},{"$f":"IF(Parcels!$E11=3,Parcels!$A11,\"\")","v":""},{"$f":"IF(Parcels!$E11=4,Parcels!$A11,\"\")","v":""},{"$f":"IF(Parcels!$E11=5,Parcels!$A11,\"\")","v":""}]
[null,null,null,null,null,null,null,"Lease Agreement",true,null,null,null,null,null,null,null,null,{"$f":"IFERROR(Services!B55,\"\")","v":0},{"$f":"IFERROR(Services!L55,\"\")","v":0},{"$f":"IFERROR(Services!T55,\"\")","v":0},{"$f":"IFERROR(Services!Y55,\"\")","v":0},{"$f":"IFERROR(Services!AM55,\"\")","v":0},{"$f":"IF(Services!AS55=\"Provider\",1,0)","v":0},{"$f":"W11*SUM($W$3:W11)","v":0},{"$f":"IF(Services!AS55=\"Reference\",1,0)","v":0},{"$f":"Y11*SUM($Y$3:Y11)","v":0},null,null,null,null,null,null,null,null,null,null,null,null,null,null,null,{"$f":"IF(Parcels!E12=1,Parcels!A12,\"\")","v":""},{"$f":"IF(Parcels!$E12=2,Parcels!$A12,\"\")","v":""},{"$f":"IF(Parcels!$E12=3,Parcels!$A12,\"\")","v":""},{"$f":"IF(Parcels!$E12=4,Parcels!$A12,\"\")","v":""},{"$f":"IF(Parcels!$E12=5,Parcels!$A12,\"\")","v":""}]
[null,null,null,null,null,null,null,"Purchase and Sales Agreement",false,null,null,null,null,null,null,null,null,{"$f":"IFERROR(Services!B56,\"\")","v":0},{"$f":"IFERROR(Services!L56,\"\")","v":0},{"$f":"IFERROR(Services!T56,\"\")","v":0},{"$f":"IFERROR(Services!Y56,\"\")","v":0},{"$f":"IFERROR(Services!AM56,\"\")","v":0},{"$f":"IF(Services!AS56=\"Provider\",1,0)","v":0},{"$f":"W12*SUM($W$3:W12)","v":0},{"$f":"IF(Services!AS56=\"Reference\",1,0)","v":0},{"$f":"Y12*SUM($Y$3:Y12)","v":0},null,null,null,null,null,null,null,null,null,null,null,null,null,null,null,{"$f":"IF(Parcels!E13=1,Parcels!A13,\"\")","v":""},{"$f":"IF(Parcels!$E13=2,Parcels!$A13,\"\")","v":""},{"$f":"IF(Parcels!$E13=3,Parcels!$A13,\"\")","v":""},{"$f":"IF(Parcels!$E13=4,Parcels!$A13,\"\")","v":""},{"$f":"IF(Parcels!$E13=5,Parcels!$A13,\"\")","v":""}]
[null,null,null,null,null,null,null,"Purchase Option Agreement",false,null,null,null,null,null,null,null,null,{"$f":"IFERROR(Services!B57,\"\")","v":0},{"$f":"IFERROR(Services!L57,\"\")","v":0},{"$f":"IFERROR(Services!T57,\"\")","v":0},{"$f":"IFERROR(Services!Y57,\"\")","v":0},{"$f":"IFERROR(Services!AM57,\"\")","v":0},{"$f":"IF(Services!AS57=\"Provider\",1,0)","v":0},{"$f":"W13*SUM($W$3:W13)","v":0},{"$f":"IF(Services!AS57=\"Reference\",1,0)","v":0},{"$f":"Y13*SUM($Y$3:Y13)","v":0},null,null,null,null,null,null,null,null,null,null,null,null,null,null,null,{"$f":"IF(Parcels!E14=1,Parcels!A14,\"\")","v":""},{"$f":"IF(Parcels!$E14=2,Parcels!$A14,\"\")","v":""},{"$f":"IF(Parcels!$E14=3,Parcels!$A14,\"\")","v":""},{"$f":"IF(Parcels!$E14=4,Parcels!$A14,\"\")","v":""},{"$f":"IF(Parcels!$E14=5,Parcels!$A14,\"\")","v":""}]
[null,null,null,null,null,null,null,"Lease Option",true,null,null,null,null,null,null,null,null,{"$f":"IFERROR(Services!B58,\"\")","v":0},{"$f":"IFERROR(Services!L58,\"\")","v":0},{"$f":"IFERROR(Services!T58,\"\")","v":0},{"$f":"IFERROR(Services!Y58,\"\")","v":0},{"$f":"IFERROR(Services!AM58,\"\")","v":0},{"$f":"IF(Services!AS58=\"Provider\",1,0)","v":0},{"$f":"W14*SUM($W$3:W14)","v":0},{"$f":"IF(Services!AS58=\"Reference\",1,0)","v":0},{"$f":"Y14*SUM($Y$3:Y14)","v":0},null,null,null,null,null,null,null,null,null,null,null,null,null,null,null,{"$f":"IF(Parcels!E15=1,Parcels!A15,\"\")","v":""},{"$f":"IF(Parcels!$E15=2,Parcels!$A15,\"\")","v":""},{"$f":"IF(Parcels!$E15=3,Parcels!$A15,\"\")","v":""},{"$f":"IF(Parcels!$E15=4,Parcels!$A15,\"\")","v":""},{"$f":"IF(Parcels!$E15=5,Parcels!$A15,\"\")","v":""}]
[null,null,null,null,null,null,null,"Disposition and Development Agreement",true,null,null,null,null,null,null,null,null,{"$f":"IFERROR(Services!B59,\"\")","v":0},{"$f":"IFERROR(Services!L59,\"\")","v":0},{"$f":"IFERROR(Services!T59,\"\")","v":0},{"$f":"IFERROR(Services!Y59,\"\")","v":0},{"$f":"IFERROR(Services!AM59,\"\")","v":0},{"$f":"IF(Services!AS59=\"Provider\",1,0)","v":0},{"$f":"W15*SUM($W$3:W15)","v":0},{"$f":"IF(Services!AS59=\"Reference\",1,0)","v":0},{"$f":"Y15*SUM($Y$3:Y15)","v":0},null,null,null,null,null,null,null,null,null,null,null,null,null,null,null,{"$f":"IF(Parcels!E16=1,Parcels!A16,\"\")","v":""}]
[null,null,null,null,null,null,null,"Donation Agreement",true,null,null,null,null,null,null,null,null,{"$f":"IFERROR(Services!B60,\"\")","v":0},{"$f":"IFERROR(Services!L60,\"\")","v":0},{"$f":"IFERROR(Services!T60,\"\")","v":0},{"$f":"IFERROR(Services!Y60,\"\")","v":0},{"$f":"IFERROR(Services!AM60,\"\")","v":0},{"$f":"IF(Services!AS60=\"Provider\",1,0)","v":0},{"$f":"W16*SUM($W$3:W16)","v":0},{"$f":"IF(Services!AS60=\"Reference\",1,0)","v":0},{"$f":"Y16*SUM($Y$3:Y16)","v":0}]
[null,null,null,null,null,null,null,null,null,null,null,null,null,null,null,null,null,{"$f":"IFERROR(Services!B61,\"\")","v":0},{"$f":"IFERROR(Services!L61,\"\")","v":0},{"$f":"IFERROR(Services!T61,\"\")","v":0},{"$f":"IFERROR(Services!Y61,\"\")","v":0},{"$f":"IFERROR(Services!AM61,\"\")","v":0},{"$f":"IF(Services!AS61=\"Provider\",1,0)","v":0},{"$f":"W17*SUM($W$3:W17)","v":0},{"$f":"IF(Services!AS61=\"Reference\",1,0)","v":0},{"$f":"Y17*SUM($Y$3:Y17)","v":0}]
[null,null,null,null,null,null,null,null,null,null,null,null,null,null,null,null,null,{"$f":"IFERROR(Services!B62,\"\")","v":0},{"$f":"IFERROR(Services!L62,\"\")","v":0},{"$f":"IFERROR(Services!T62,\"\")","v":0},{"$f":"IFERROR(Services!Y62,\"\")","v":0},{"$f":"IFERROR(Services!AM62,\"\")","v":0},{"$f":"IF(Services!AS62=\"Provider\",1,0)","v":0},{"$f":"W18*SUM($W$3:W18)","v":0},{"$f":"IF(Services!AS62=\"Reference\",1,0)","v":0},{"$f":"Y18*SUM($Y$3:Y18)","v":0}]
[null,null,null,null,null,null,null,"ListDocumentTypes",null,null,null,null,null,null,null,null,null,{"$f":"IFERROR(Services!B63,\"\")","v":0},{"$f":"IFERROR(Services!L63,\"\")","v":0},{"$f":"IFERROR(Services!T63,\"\")","v":0},{"$f":"IFERROR(Services!Y63,\"\")","v":0},{"$f":"IFERROR(Services!AM63,\"\")","v":0},{"$f":"IF(Services!AS63=\"Provider\",1,0)","v":0},{"$f":"W19*SUM($W$3:W19)","v":0},{"$f":"IF(Services!AS63=\"Reference\",1,0)","v":0},{"$f":"Y19*SUM($Y$3:Y19)","v":0}]
[null,null,null,null,null,null,null,"Amends"]
[null,null,null,null,null,null,null,"Assigns"]
[null,null,null,null,null,null,null,"Authorizes"]
[null,null,null,null,null,null,null,"Clarifies"]
[null,null,null,null,null,null,null,"Expounds"]
[null,null,null,null,null,null,null,"Extends"]
[null,null,null,null,null,null,null,"Restates"]
[null,null,null,null,null,null,null,"Site Control"]
[null,null,null,null,null,null,null,"Supports"]
[null,null,null,null,null,null,null,"Title Information"]
[]
[null,null,null,null,null,null,null,"ListCostDocTypes"]
[null,null,null,null,null,null,null,"Site Control Document"]
[null,null,null,null,null,null,null,"Settlement Statement"]
[null,null,null,null,null,null,null,"Appraisal"]
[]
[null,null,null,null,null,null,{"$f":"INDEX(val,MATCH(\"g_County\",ref,0))","v":"(select one)"},"County"]
[null,null,null,null,null,null,null,"CountyRow"]
[]
[null,null,null,null,null,null,null,"LowIncomeUnits"]
[null,null,null,null,null,null,null,"TotalUnits"]
[]
[null,null,null,null,null,null,null,"ListCreditType"]
[null,null,null,null,null,null,null,0.04]
[null,null,null,null,null,null,null,0.09]